Workbook

Sheet Data Input Instructions (hidden)
A3: Worksheet ID | B3: Worksheet | C3: Input Data Notes
A4: 1 | B4: Data Current Rates | C4: R2 Service Charge should already be net of RRRP credit
A5: 1 | B5: Data Current Rates | C5: Demand billed RTSR should already be loss adjusted
A6: 2 | B6: Data Proposed Rates | C6: Mapped from Draft Rates file prepared for Claude
A7: 2 | B7: Data Proposed Rates | C7: Row 5 with header name TEXT is precedent to templates; changes to TEXT need to reflected in templates
A8: 2 | B8: Data Proposed Rates | C8: Templates are set up with 2-dimension vlookups so it will accommodate inserted/deleted rows and/or columns
A9: 3 | B9: Data Billing Quantities | C9: Row 4 with header name TEXT is precedent to templates; changes to TEXT need to reflected in templates
A10: 3 | B10: Data Billing Quantities | C10: Templates are set up with 2-dimension vlookups so it will accommodate inserted/deleted rows and/or columns
A11: 4 | B11: Data Pass Through | C11: Changes to Pass Through rates can be manually input on this sheet, which is precedent to the templates
A12: 4 | B12: Data Pass Through | C12: Links to templates from Column A TEXT; any changes in the TEXT of the charge names must be reflected in the templates
A13: 5 | B13: Data BI List | C13: Instruction Sheet for macro to create individual bill impact worksheets
A14: 5 | B14: Data BI List | C14: Need to MANUALLY update Test Year to appear as header on all bill impact worksheets
A15: 6 | B15: Data BI Summary | C15: This replaces the need for cell references in summary sheet, and displays value for totals so rows can be added to templates and worksheets without having to update the summary sheet
B16: Bill Impact Summary | C16: This file has 2 hidden columns needed to link to worksheets; see Col E and F

Sheet Data Current Rates (hidden)
A1: Proposed 2023 Rates
H2: Charges inherited from Acquisition
A3: 1 | B3: 2 | C3: 3 | D3: 4 | E3: 5 | F3: 6 | G3: 7 | H3: 8 | I3: 9 | J3: 10 | K3: 11 | L3: 12 | M3: 13
A4: Rate Class | B4: Proposed Fixed Charge ($/month) | C4: Proposed Volumetric Charge ($/kWh or $/kW) | D4: Proposed Group 1 DVA Rider - Volumetric ($/kWh or $/kW) | E4: Porposed Group 1 DVA Rider - Volumetric Applicable to Non-WMP Only ($/kWh or $/kW) | F4: Proposed Rate Rider for Disposition of Global Adjustment (Non WMP, Non-RPP, Non-LDC, and Class B) ($/kWh) | G4: Proposed Rate Rider for CBR (Non-WMP Class B) ($/kWh or $/kW) | H4: Proposed Group 2 Rate Rider - Fixed ($/month) | I4: Proposed Group 2 Rate Rider - Volumetric ($/kWh or $/kW) | J4: Proposed Base Rate Adjustment for Past Tax Amounts - Fixed ($/month) | K4: Proposed Base Rate Adjustment for Past Tax Amounts - Volumetric ($/kWh or $/kW) | L4: Proposed RTSR-NW ($/kWh or $/kW) | M4: Proposed RTSR-CONN ($/kWh or $/kW)
A5: Rate as shown on Bill Impact Sheet | B5: Service Charge | C5: Distribution Volumetric Charge | D5: Group 1 Volumetric DVA Rider (General) | E5: Group 1 Volumetric Deferral/Variance Account Rider (Sub-Account RSVA Wholesale Market Service Charge & RSVA Power) | F5: Group 1 Volumetric Deferral/Variance Account Rider (Sub-Account Global Adjustment) | G5: Group 1 Volumetric Deferral/Variance Account Rider (Sub Account CBR) | H5: Group 2 Fixed DVA Rider | I5: Group 2 Volumetric DVA Rider | J5: Fixed Base Rate Adjustment to Recover Past Tax Amounts | K5: Volumetric Base Rate Adjustment to Recover Past Tax Amounts | L5: Retail Transmission Rate – Network Service Rate | M5: Retail Transmission Rate – Line and Transformation Connection Service Rate
A6: Rounding factor | B6: 2 | C6: 4 | D6: 4 | E6: 4 | F6: 4 | G6: 4 | H6: 2 | I6: 4 | J6: 2 | K6: 4 | L6: 4 | M6: 4
A7: UR | B7: 35.88 | C7: 0 | D7: -0.0004 | E7: 0 | F7: -0.0007 | H7: -0.08 | J7: 0.8 | K7: 0 | L7: 0.0102 | M7: 0.0074
A8: R1 | B8: 57.22 | C8: 0.0052 | D8: -0.0004 | E8: 0 | F8: -0.0007 | H8: -0.14 | J8: 1.44 | K8: 0 | L8: 0.0095 | M8: 0.0069
A9: R2 | B9: 56.08 | C9: 0.0081 | D9: -0.0004 | E9: 0 | F9: -0.0007 | H9: -0.29 | J9: 4 | K9: 0 | L9: 0.0088 | M9: 0.0065
A10: GSe | B10: 30.95 | C10: 0.0647 | D10: -0.0004 | E10: 0 | F10: -0.0007 | I10: -0.0002 | J10: 1.1 | K10: 0.0023 | L10: 0.0075 | M10: 0.0059
A11: UGe | B11: 24.1 | C11: 0.0311 | D11: -0.0004 | E11: 0 | F11: -0.0007 | I11: -0.0001 | J11: 0.82 | K11: 0.0011 | L11: 0.008 | M11: 0.0062
A12: St Lgt | B12: 2.97 | C12: 0.1064 | D12: -0.0004 | E12: 0 | F12: -0.0007 | I12: -0.0003 | J12: 0.11 | K12: 0.0041 | L12: 0.0055 | M12: 0.0043
A13: Sen Lgt | B13: 2.83 | C13: 0.1545 | D13: -0.0004 | E13: 0 | F13: -0.0007 | I13: -0.0003 | J13: 0.16 | K13: 0.009 | L13: 0.0055 | M13: 0.0043
A14: USL | B14: 34.68 | C14: 0.0216 | D14: -0.0004 | E14: 0 | F14: -0.0007 | I14: -0.0002 | J14: 0.87 | K14: 0.0005 | L14: 0.0064 | M14: 0.0047
A15: GSd | B15: 99.8 | C15: 18.4174 | D15: -0.0509 | E15: -0.071 | F15: -0.0007 | I15: -0.0466 | J15: 4.43 | K15: 0.8111 | L15: 2.442 | M15: 1.8696
A16: UGd | B16: 91.19 | C16: 10.6718 | D16: -0.0629 | E16: -0.0877 | F16: -0.0007 | I16: -0.0276 | J16: 4.01 | K16: 0.4638 | L16: 3.122 | M16: 2.3492
A17: Dgen | B17: 192.51 | C17: 10.0684 | D17: -0.0235 | E17: -0.0336 | F17: -0.0007 | I17: -0.0593 | J17: 1.77 | K17: 0.0913 | L17: 1.3408 | M17: 0.8025
A18: ST | B18: 1162.53 | C18: 1.4638 | D18: -0.0799 | E18: -0.1119 | F18: -0.0007 | I18: -0.0048 | J18: 32.54 | K18: 0.0504 | L18: 4.1165 | M18: 3.2406
A19: AUR | B19: 29.59 | C19: 0 | D19: -0.0004 | E19: 0 | F19: -0.0007 | L19: 0.0106 | M19: 0.0076
A20: AUGe | B20: 25.36 | C20: 0.0147 | D20: -0.0004 | E20: 0 | F20: -0.0007 | L20: 0.0081 | M20: 0.0062
A21: AUGd | B21: 150.84 | C21: 2.4538 | D21: -0.0579 | E21: -0.0803 | F21: -0.0007 | L21: 2.8411 | M21: 2.131
A22: AR | B22: 35.94 | C22: 0 | D22: -0.0004 | E22: 0 | F22: -0.0007 | L22: 0.0101 | M22: 0.0074
A23: AGSe | B23: 37.65 | C23: 0.0171 | D23: -0.0004 | E23: 0 | F23: -0.0007 | L23: 0.008 | M23: 0.0061
A24: AGSd | B24: 171.2 | C24: 4.0886 | D24: -0.0584 | E24: -0.081 | F24: -0.0007 | L24: 2.4941 | M24: 1.9178
A25: AUR-WHSI | B25: 29.59 | C25: 0 | D25: -0.0005 | E25: 0 | F25: -0.0007 | L25: =L19 -> 0.0106 | M25: 0.0076
A26: AUGe-WHSI | B26: 25.36 | C26: 0.0147 | D26: -0.0005 | E26: 0 | F26: -0.0007 | L26: 0.0081 | M26: 0.0062
A27: AUGd-WHSI | B27: 150.84 | C27: 2.4538 | D27: -0.0383 | E27: -0.0803 | F27: -0.0007 | L27: 2.8411 | M27: 2.131
A28: ST-WHSI | B28: 1162.53 | C28: 1.4638 | D28: -0.0633 | E28: 0 | F28: 0 | L28: =L18 -> 4.1165 | M28: =M18 -> 3.2406
A29: St Lgt-WHSI | B29: 2.97 | C29: 0.1064 | D29: -0.0003 | E29: 0 | F29: -0.0007 | L29: =L12 -> 0.0055 | M29: =M12 -> 0.0043
A30: USL-WHSI | B30: 34.68 | C30: 0.0216 | D30: -0.0005 | E30: 0 | F30: -0.0007 | L30: =L14 -> 0.0064 | M30: =M14 -> 0.0047
A31: AR-NPDI | B31: 35.94 | C31: 0 | D31: -0.0005 | E31: 0 | F31: -0.0007 | L31: =L22 -> 0.0101 | M31: 0.0074
A32: AGSe-NPDI | B32: 37.65 | C32: 0.0171 | D32: -0.0005 | E32: 0 | F32: -0.0007 | L32: 0.008 | M32: 0.0061
A33: AGSd-NPDI | B33: 171.2 | C33: 4.0886 | D33: -0.0388 | E33: -0.081 | F33: -0.0007 | L33: 2.4941 | M33: 1.9178
A34: St Lgt-NPDI | B34: 2.97 | C34: 0.1064 | D34: -0.0007 | E34: 0 | F34: -0.0007 | L34: =L12 -> 0.0055 | M34: =M12 -> 0.0043
A35: Sen Lgt-NPDI | B35: 2.83 | C35: 0.1545 | D35: -0.0007 | E35: 0 | F35: -0.0007 | L35: =L13 -> 0.0055 | M35: 0.0043
A36: USL-NPDI | B36: 34.68 | C36: 0.0216 | D36: -0.0009 | E36: 0 | F36: -0.0007 | L36: 0.0064 | M36: 0.0047
A37: AR-HCHI | B37: 35.94 | C37: 0 | D37: -0.0004 | E37: 0 | F37: -0.0007 | L37: =L22 -> 0.0101 | M37: =M22 -> 0.0074
A38: AGSe-HCHI | B38: 37.65 | C38: 0.0171 | D38: -0.0004 | E38: 0 | F38: -0.0007 | L38: =L23 -> 0.008 | M38: 0.0061
A39: AGSd-HCHI | B39: 171.2 | C39: 4.0886 | D39: -0.0584 | E39: -0.081 | F39: -0.0007 | L39: =L24 -> 2.4941 | M39: 1.9178
A40: St Lgt-HCHI | B40: 2.97 | C40: 0.1064 | D40: -0.0004 | E40: 0 | F40: -0.0007 | L40: =L12 -> 0.0055 | M40: =M12 -> 0.0043
A41: Sen Lgt-HCHI | B41: 2.83 | C41: 0.1545 | D41: -0.0004 | E41: 0 | F41: -0.0007 | L41: =L13 -> 0.0055 | M41: 0.0043
A42: USL-HCHI | B42: 34.68 | C42: 0.0216 | D42: -0.0004 | E42: 0 | F42: -0.0007 | L42: 0.0064 | M42: 0.0047

Sheet Data Proposed Rates (hidden)
A1: Proposed 2023 Rates
A3: 1 | B3: 2 | C3: 3 | D3: 4 | E3: 5 | F3: 6 | G3: 7 | H3: 8 | I3: 9 | J3: 10 | K3: 11 | L3: 12 | M3: 13
A4: Rate Class | B4: Proposed Fixed Charge ($/month) | C4: Proposed Volumetric Charge ($/kWh or $/kW) | D4: Proposed Group 1 DVA Rider - Volumetric ($/kWh or $/kW) | E4: Porposed Group 1 DVA Rider - Volumetric Applicable to Non-WMP Only ($/kWh or $/kW) | F4: Proposed Rate Rider for Disposition of Global Adjustment (Non WMP, Non-RPP, Non-LDC, and Class B) ($/kWh) | G4: Proposed Rate Rider for CBR (Non-WMP Class B) ($/kWh or $/kW) | H4: Proposed Group 2 Rate Rider - Fixed ($/month) | I4: Proposed Group 2 Rate Rider - Volumetric ($/kWh or $/kW) | J4: Proposed Base Rate Adjustment for Past Tax Amounts - Fixed ($/month) | K4: Proposed Base Rate Adjustment for Past Tax Amounts - Volumetric ($/kWh or $/kW) | L4: Proposed RTSR-NW ($/kWh or $/kW) | M4: Proposed RTSR-CONN ($/kWh or $/kW)
A5: Rate as shown on Bill Impact Sheet | B5: Service Charge | C5: Distribution Volumetric Charge | D5: Group 1 Volumetric DVA Rider (General) | E5: Group 1 Volumetric Deferral/Variance Account Rider (Sub-Account RSVA Wholesale Market Service Charge & RSVA Power) | F5: Group 1 Volumetric Deferral/Variance Account Rider (Sub-Account Global Adjustment) | G5: Group 1 Volumetric Deferral/Variance Account Rider (Sub Account CBR) | H5: Group 2 Fixed DVA Rider | I5: Group 2 Volumetric DVA Rider | J5: Fixed Base Rate Adjustment to Recover Past Tax Amounts | K5: Volumetric Base Rate Adjustment to Recover Past Tax Amounts | L5: Retail Transmission Rate – Network Service Rate | M5: Retail Transmission Rate – Line and Transformation Connection Service Rate
A6: Rounding Factor | B6: 2 | C6: 4 | D6: 4 | E6: 4 | F6: 4 | G6: 4 | H6: 2 | I6: 4 | J6: 2 | K6: 4 | L6: 4 | M6: 4
A7: UR | B7: 37.48 | C7: 0 | D7: -0.0004 | E7: 0 | F7: -0.0007 | H7: -0.08 | L7: 0.0102 | M7: 0.0074
A8: R1 | B8: 64.05 | C8: 0 | D8: -0.0004 | E8: 0 | F8: -0.0007 | H8: -0.14 | L8: 0.0095 | M8: 0.0069
A9: R2 | B9: 69.5 | C9: 0 | D9: -0.0004 | E9: 0 | F9: -0.0007 | H9: -0.29 | L9: 0.0088 | M9: 0.0065
A10: GSe | B10: 32.17 | C10: 0.0677 | D10: -0.0004 | E10: 0 | F10: -0.0007 | I10: -0.0002 | L10: 0.0075 | M10: 0.0059
A11: UGe | B11: 25.09 | C11: 0.0325 | D11: -0.0004 | E11: 0 | F11: -0.0007 | I11: -0.0001 | L11: 0.008 | M11: 0.0062
A12: St Lgt | B12: 3.07 | C12: 0.1111 | D12: -0.0004 | E12: 0 | F12: -0.0007 | I12: -0.0003 | L12: 0.0055 | M12: 0.0043
A13: Sen Lgt | B13: 2.94 | C13: 0.1617 | D13: -0.0004 | E13: 0 | F13: -0.0007 | I13: -0.0003 | L13: 0.0055 | M13: 0.0043
A14: USL | B14: 35.84 | C14: 0.0223 | D14: -0.0004 | E14: 0 | F14: -0.0007 | I14: -0.0002 | L14: 0.0064 | M14: 0.0047
A15: GSd | B15: 103.48 | C15: 19.2389 | D15: -0.0509 | E15: -0.071 | F15: -0.0007 | I15: -0.0466 | L15: 2.442 | M15: 1.8696
A16: UGd | B16: 94.77 | C16: 11.1458 | D16: -0.0629 | E16: -0.0877 | F16: -0.0007 | I16: -0.0276 | L16: 3.122 | M16: 2.3492
A17: Dgen | B17: 199.1 | C17: 10.6828 | D17: -0.0235 | E17: -0.0336 | F17: -0.0007 | I17: -0.0593 | L17: 1.3408 | M17: 0.8025
A18: ST | B18: 1210.53 | C18: 1.5349 | D18: -0.0799 | E18: -0.1119 | F18: -0.0007 | I18: -0.0048 | L18: 4.1165 | M18: 3.2406
A19: AUR | B19: 30.91 | C19: 0 | D19: -0.0004 | E19: 0 | F19: -0.0007 | L19: 0.0106 | M19: 0.0076
A20: AUGe | B20: 26.53 | C20: 0.0153 | D20: -0.0004 | E20: 0 | F20: -0.0007 | L20: 0.0081 | M20: 0.0062
A21: AUGd | B21: 157.56 | C21: 2.5574 | D21: -0.0579 | E21: -0.0803 | F21: -0.0007 | L21: 2.8411 | M21: 2.131
A22: AR | B22: 37.54 | C22: 0 | D22: -0.0004 | E22: 0 | F22: -0.0007 | L22: 0.0101 | M22: 0.0074
A23: AGSe | B23: 39.19 | C23: 0.018 | D23: -0.0004 | E23: 0 | F23: -0.0007 | L23: 0.008 | M23: 0.0061
A24: AGSd | B24: 178.2 | C24: 4.3249 | D24: -0.0584 | E24: -0.081 | F24: -0.0007 | L24: 2.4941 | M24: 1.9178
A25: AUR-WHSI | B25: 30.91 | C25: 0 | D25: -0.0005 | E25: 0 | F25: -0.0007 | L25: =L19 -> 0.0106 | M25: 0.0076
A26: AUGe-WHSI | B26: 26.53 | C26: 0.0153 | D26: -0.0005 | E26: 0 | F26: -0.0007 | L26: 0.0081 | M26: 0.0062
A27: AUGd-WHSI | B27: 157.56 | C27: 2.5574 | D27: -0.0383 | E27: -0.0803 | F27: -0.0007 | L27: 2.8411 | M27: 2.131
A28: ST-WHSI | B28: 1210.53 | C28: 1.5349 | D28: -0.0633 | E28: 0 | F28: 0 | L28: =L18 -> 4.1165 | M28: =M18 -> 3.2406
A29: St Lgt-WHSI | B29: 3.07 | C29: 0.1111 | D29: -0.0003 | E29: 0 | F29: -0.0007 | L29: =L12 -> 0.0055 | M29: =M12 -> 0.0043
A30: USL-WHSI | B30: 35.84 | C30: 0.0223 | D30: -0.0005 | E30: 0 | F30: -0.0007 | L30: =L14 -> 0.0064 | M30: =M14 -> 0.0047
A31: AR-NPDI | B31: 37.54 | C31: 0 | D31: -0.0005 | E31: 0 | F31: -0.0007 | L31: =L22 -> 0.0101 | M31: 0.0074
A32: AGSe-NPDI | B32: 39.19 | C32: 0.018 | D32: -0.0005 | E32: 0 | F32: -0.0007 | L32: 0.008 | M32: 0.0061
A33: AGSd-NPDI | B33: 178.2 | C33: 4.3249 | D33: -0.0388 | E33: -0.081 | F33: -0.0007 | L33: 2.4941 | M33: 1.9178
A34: St Lgt-NPDI | B34: 3.07 | C34: 0.1111 | D34: -0.0007 | E34: 0 | F34: -0.0007 | L34: =L12 -> 0.0055 | M34: =M12 -> 0.0043
A35: Sen Lgt-NPDI | B35: 2.94 | C35: 0.1617 | D35: -0.0007 | E35: 0 | F35: -0.0007 | L35: =L13 -> 0.0055 | M35: 0.0043
A36: USL-NPDI | B36: 35.84 | C36: 0.0223 | D36: -0.0009 | E36: 0 | F36: -0.0007 | L36: =L14 -> 0.0064 | M36: 0.0047
A37: AR-HCHI | B37: 37.54 | C37: 0 | D37: -0.0004 | E37: 0 | F37: -0.0007 | L37: =L22 -> 0.0101 | M37: 0.0074
A38: AGSe-HCHI | B38: 39.19 | C38: 0.018 | D38: -0.0004 | E38: 0 | F38: -0.0007 | L38: 0.008 | M38: 0.0061
A39: AGSd-HCHI | B39: 178.2 | C39: 4.3249 | D39: -0.0584 | E39: -0.081 | F39: -0.0007 | L39: 2.4941 | M39: 1.9178
A40: St Lgt-HCHI | B40: 3.07 | C40: 0.1111 | D40: -0.0004 | E40: 0 | F40: -0.0007 | L40: =L12 -> 0.0055 | M40: =M12 -> 0.0043
A41: Sen Lgt-HCHI | B41: 2.94 | C41: 0.1617 | D41: -0.0004 | E41: 0 | F41: -0.0007 | L41: =L13 -> 0.0055 | M41: 0.0043
A42: USL-HCHI | B42: 35.84 | C42: 0.0223 | D42: -0.0004 | E42: 0 | F42: -0.0007 | L42: =L14 -> 0.0064 | M42: 0.0047

Sheet Data Billing Quantities (hidden)
A1: Rate Class-Specific Billing Quantities (Applied to Current and Proposed Bill)
E3: Consumption (kWh) | I3: Peak (kW) | M3: TOU Split
A4: Rate Class | B4: Loss Factor | C4: Charge Determinant | D4: Commodity Threshold | E4: Low kWh | F4: Typical kWh | G4: Average kWh | H4: High kWh | I4: Low kW | J4: Typical kW | K4: Average kW | L4: High kW | M4: TOU-Off Peak | N4: TOU-Mid Peak | O4: TOU-On Peak | P4: Acquired Street Light Service Charge
A5: UR | B5: 1.057 | C5: kWh | D5: 600 | E5: 340 | F5: 750 | G5: 690 | H5: 1260 | M5: 0.64 | N5: 0.18 | O5: 0.18
A6: R1 | B6: 1.076 | C6: kWh | D6: 600 | E6: 370 | F6: 750 | G6: 784 | H6: 1650 | M6: =M$5 -> 0.64 | N6: =N$5 -> 0.18 | O6: =O$5 -> 0.18
A7: R2 | B7: 1.105 | C7: kWh | D7: 600 | E7: 440 | F7: 750 | G7: 978 | H7: 2110 | M7: =M$5 -> 0.64 | N7: 0.18 | O7: 0.18
A8: Seasonal | B8: 1.104 | C8: kWh | D8: 600 | E8: 40 | G8: 369 | H8: 1040 | M8: 0.64 | N8: 0.18 | O8: 0.18
A9: GSe | B9: 1.096 | C9: kWh | D9: 750 | E9: 60 | F9: 2000 | G9: 1887 | H9: 5570 | M9: 0.64 | N9: 0.18 | O9: 0.18
A10: UGe | B10: 1.067 | C10: kWh | D10: 750 | E10: 180 | F10: 2000 | G10: 2494 | H10: 6930 | M10: 0.64 | N10: 0.18 | O10: 0.18
A11: St Lgt | B11: 1.092 | C11: kWh | D11: 750 | E11: 30 | G11: 1274 | H11: 2310
A12: Sen Lgt | B12: 1.092 | C12: kWh | D12: 750 | E12: 20 | G12: 49 | H12: 80
A13: USL | B13: 1.092 | C13: kWh | D13: 750 | E13: 100 | G13: 477 | H13: 550
A14: GSd | B14: 1.061 | C14: kW | D14: 0 | E14: 9310 | G14: 34334 | H14: 75790 | I14: 55 | K14: 110 | L14: 250
A15: UGd | B15: 1.05 | C15: kW | D15: 0 | E15: 13900 | G15: 42592 | H15: 97610 | I15: 55 | K15: 111 | L15: 280
A16: Dgen | B16: 1.061 | C16: kW | D16: 0 | E16: 10 | G16: 1709 | H16: 8490 | I16: 0.02941666667 | K16: 12 | L16: 45
A17: ST | B17: 1.034 | C17: kW | D17: 0 | E17: 88780 | G17: 1373443 | H17: 2641420 | I17: 500 | K17: 2808 | L17: 13730
A18: WHSI_RES | B18: 1.0431 | C18: kWh | D18: 600 | E18: 310 | F18: 750 | G18: 636 | H18: 1160 | M18: =M$5 -> 0.64 | N18: 0.18 | O18: 0.18
A19: WHSI_GS<50 | B19: 1.0431 | C19: kWh | D19: 750 | E19: 190 | F19: 2000 | G19: 2471 | H19: 7240 | M19: 0.64 | N19: 0.18 | O19: 0.18
A20: WHSI_GS 50>999 | B20: 1.0431 | C20: kW | E20: 9370 | G20: 47636 | H20: 137890 | I20: 50 | K20: 134 | L20: 340
A21: WHSI_GS >1,000kW | B21: 1.0326 | C21: kW | G21: 895853 | K21: 3301
A22: WHSI_St Lgt | B22: 1.0431 | C22: kW | D22: 750 | G22: 37079 | P22: 1
A23: WHSI_USL | B23: 1.0431 | C23: kWh | D23: 750 | G23: 1349 | M23: =M$5 -> 0.64 | N23: 0.18 | O23: 0.18
A24: NPDI_RES | B24: 1.0564 | C24: kWh | D24: 600 | E24: 290 | F24: 750 | G24: 692 | H24: 1230 | M24: 0.64 | N24: 0.18 | O24: 0.18
A25: NPDI_GS<50 | B25: 1.0564 | C25: kWh | D25: 750 | E25: 110 | F25: 2000 | G25: 2377 | H25: 6410 | M25: 0.64 | N25: 0.18 | O25: 0.18
A26: NPDI_GS >50 | B26: 1.0464 | C26: kW | E26: 13020 | G26: 70294 | H26: 129420 | I26: 55 | K26: 181 | L26: 300
A27: NPDI_St Lgt | B27: 1.0564 | C27: kW | D27: 750 | G27: 11389 | P27: 1
A28: NPDI_Sen Lgt | B28: 1.0564 | C28: kW | D28: 750 | G28: 108
A29: NPDI_USL | B29: 1.0564 | C29: kWh | D29: 750 | G29: 904
A30: HCHI_RES | B30: 1.0655 | C30: kWh | D30: 600 | E30: 250 | F30: 750 | G30: 742 | H30: 1410 | M30: =M$5 -> 0.64 | N30: 0.18 | O30: 0.18
A31: HCHI_GS<50 | B31: 1.0655 | C31: kWh | D31: 750 | E31: 90 | F31: 2000 | G31: 2261 | H31: 5430 | M31: 0.64 | N31: 0.18 | O31: 0.18
A32: HCHI_GS >50 | B32: 1.0548 | C32: kW | E32: 10880 | G32: 57529 | H32: 135160 | I32: 55 | K32: 175 | L32: 375
A33: HCHI_St Lgt | B33: 1.0655 | C33: kW | D33: 750 | G33: 31001 | P33: 1
A34: HCHI_Sen Lgt | B34: 1.0655 | C34: kW | D34: 750 | G34: 61
A35: HCHI_USL | B35: 1.0655 | C35: kWh | D35: 750 | G35: 471
A36: AUR | B36: 1.043 | C36: kWh | D36: 750 | E36: 310 | F36: 750 | G36: 636 | H36: 1160 | M36: =M$5 -> 0.64 | N36: 0.18 | O36: 0.18
A37: AUGe | B37: =B36 -> 1.043 | C37: kWh | D37: 750 | E37: 190 | F37: 2000 | G37: 2471 | H37: 7240 | M37: 0.64 | N37: 0.18 | O37: 0.18
A38: AUGd | B38: 1.033 | C38: kW | E38: 9370 | G38: 47636 | H38: 137890 | I38: 50 | K38: 134 | L38: 340
A39: AR | B39: 1.064 | C39: kWh | D39: 750 | F39: 750 | M39: =M$5 -> 0.64 | N39: 0.18 | O39: 0.18
A40: AGSe | B40: =B39 -> 1.064 | C40: kWh | D40: 750 | F40: 2000 | M40: 0.64 | N40: 0.18 | O40: 0.18
A41: AGSd | B41: 1.053 | C41: kW
A42: AUR-WHSI | B42: =B36 -> 1.043 | C42: kWh | D42: =D36 -> 750 | E42: 310 | F42: 750 | G42: 636 | H42: 1160 | M42: =M$5 -> 0.64 | N42: 0.18 | O42: 0.18
A43: AUGe-WHSI | B43: =B37 -> 1.043 | C43: kWh | D43: =D37 -> 750 | E43: 190 | F43: 2000 | G43: 2471 | H43: 7240 | M43: 0.64 | N43: 0.18 | O43: 0.18
A44: AUGd-WHSI | B44: =B38 -> 1.033 | C44: kW | E44: 9370 | G44: 47636 | H44: 137890 | I44: 50 | K44: 134 | L44: 340
A45: ST-WHSI | B45: =B17 -> 1.034 | C45: kW | G45: 895853 | K45: 3301
A46: St Lgt-WHSI | B46: =B11 -> 1.092 | C46: kWh | D46: =D11 -> 750 | G46: =G22 -> 37079 | K46: =K22 -> 0 | P46: =P22 -> 1
A47: USL-WHSI | B47: =B13 -> 1.092 | C47: kWh | D47: =D13 -> 750 | G47: =G23 -> 1349
A48: AR-NPDI | B48: =B39 -> 1.064 | C48: kWh | D48: =D39 -> 750 | E48: 290 | F48: 750 | G48: 692 | H48: 1230 | M48: =M$5 -> 0.64 | N48: 0.18 | O48: 0.18
A49: AGSe-NPDI | B49: =B40 -> 1.064 | C49: kWh | D49: =D40 -> 750 | E49: 110 | F49: 2000 | G49: 2377 | H49: 6410 | M49: 0.64 | N49: 0.18 | O49: 0.18
A50: AGSd-NPDI | B50: =B41 -> 1.053 | C50: kW | D50: =D41 -> 0 | E50: 13020 | G50: 70294 | H50: 129420 | I50: 55 | K50: 181 | L50: 300
A51: St Lgt-NPDI | B51: =B11 -> 1.092 | C51: kWh | D51: =D11 -> 750 | G51: =G27 -> 11389 | K51: =K27 -> 0 | P51: =P27 -> 1
A52: Sen Lgt-NPDI | B52: =B12 -> 1.092 | C52: kWh | D52: =D12 -> 750 | G52: =G28 -> 108 | K52: =K28 -> 0
A53: USL-NPDI | B53: =B13 -> 1.092 | C53: kWh | D53: =D13 -> 750 | G53: =G29 -> 904
A54: AR-HCHI | B54: =B48 -> 1.064 | C54: kWh | D54: 750 | E54: 250 | F54: 750 | G54: 742 | H54: 1410 | M54: =M$5 -> 0.64 | N54: 0.18 | O54: 0.18
A55: AGSe-HCHI | B55: 1.064 | C55: kWh | D55: 750 | E55: 90 | F55: 2000 | G55: 2261 | H55: 5430 | M55: 0.64 | N55: 0.18 | O55: 0.18
A56: AGSd-HCHI | B56: 1.053 | C56: kW | D56: 0 | E56: 10880 | G56: 57529 | H56: 135160 | I56: 55 | K56: 175 | L56: 375
A57: St Lgt-HCHI | B57: 1.092 | C57: kWh | D57: 750 | G57: =G33 -> 31001 | K57: =K33 -> 0 | P57: =P33 -> 1
A58: Sen Lgt-HCHI | B58: 1.092 | C58: kWh | D58: 750 | G58: =G34 -> 61 | K58: =K34 -> 0
A59: USL-HCHI | B59: 1.092 | C59: kWh | D59: 750 | G59: =G35 -> 471

Sheet Data Pass Through (hidden)
A1: 3. Pass Through Charges
B2: Current Bill | C2: Proposed Bill
A3: Effective Date | B3: 2022-01-01 | C3: 2023-01-01 | D3: TOU % | E3: Notes
A4: R2 Credit | B4: 60.5 | C4: =B4 -> 60.5
A5: Energy First Tier | B5: 0.098 | C5: =B5 -> 0.098 | E5: Effective May 1 2018
A6: Energy Second Tier | B6: 0.115 | C6: 0.115 | E6: Effective May 1 2018
A7: Weighted Average Hourly Spot Price | B7: 0.119 | C7: =B7 -> 0.119 | E7: Avg for May 2020 to Apr 2021
A8: TOU-Off Peak | B8: 0.082 | C8: 0.082 | D8: 0.64 | E8: Effective May 1 2018
A9: TOU-Mid Peak | B9: 0.113 | C9: 0.113 | D9: 0.18 | E9: Effective May 1 2018
A10: TOU-On Peak | B10: 0.17 | C10: 0.17 | D10: 0.18 | E10: Effective May 1 2018
A11: Wholesale Market Service Rate (WMS) - not including CBR | B11: 0.003 | C11: 0.003 | E11: Effective May 1 2017, 0.0036 WMSC broken up between WMSC and CBR
A12: Capacity Based Recovery (CBR) - Applicable for Class B Customers | B12: 0.0004 | C12: 0.0004 | E12: Effective May 1 2017, 0.0036 WMSC broken up between WMSC and CBR
A13: Rural Rate Protection Charge | B13: 0.0005 | C13: 0.0005 | E13: RRRP charge reduced from $0.0021/kWh to $0.0003/kWh effective July 1, 2017.
A14: Ontario Electricity Support Program Charge | B14: 0 | C14: 0 | E14: OESP charge removed for all rate classes effective May 1, 2017. ROW HIDDEN IN BILL IMPACT FILE
A15: Standard Supply Service – Administration Charge (if applicable) | B15: 0.25 | C15: 0.25
A16: Fair Hydro Plan - Distribution Rate Protection Savings* | B16: =IF('Bill Impact Summary'!L6="TOU",0,IF('Bill Impact Summary'!L6="TOU (DRP applied)",B17,"error")) -> 0 | C16: =IF('Bill Impact Summary'!L6="TOU",0,IF('Bill Impact Summary'!L6="TOU (DRP applied)",C17,"error")) -> 0 | E16: Highlighted cells are FORMULAS; do not overwrite with hard-entered values. Input DRP limit values in row 17 below
A17: DRP limit (applied when selected from Bill Impact Summary) | B17: 36.86 | C17: 36.86 | E17: Make change to FHP DRP limit here, but to apply DRP, must do in Bill Impact Summary sheet cell L6
A18: Smart Metering Entity Charge | B18: 0.57 | C18: 0.57 | E18: Change from 0.79 to 0.57 effective March 1 2018; only for metered energy-billed (UR, R1, R2, SEA, GSE, UGE)
A19: Debt Retirement Charge (DRC) | B19: 0 | C19: 0 | E19: DRC removed from all rate classes Apr 1 2018 ROW HIDDEN IN BILL IMPACT FILE
A20: Ontario Electricity Rebate (OER) | B20: -0.189 | C20: =B20 -> -0.189
A22: Customer Attributes - Assumptions
A23: ST customers are assumed to be Non-WMP, Class A

Sheet Data BI Summary (hidden)
A2: Summary Column | B2: Current Total Bill | C2: Change in DX Bill ($) | D2: Change in DX Bill (%) | E2: Change in Total Bill ($) | F2: Change in Total Bill (%)
A3: BI Template_Energy | B3: Total Amount on TOU | C3: Sub-Total: Distribution (excluding pass through) | D3: Sub-Total: Distribution (excluding pass through) | E3: Total Amount on TOU | F3: Total Amount on TOU
A4: BI Template_EnergyUNM | B4: Total Amount on Two-Tier RPP | C4: Sub-Total: Distribution (excluding pass through) | D4: Sub-Total: Distribution (excluding pass through) | E4: Total Amount on Two-Tier RPP | F4: Total Amount on Two-Tier RPP
A5: BI Template_Demand | B5: Total Amount on WAHSP | C5: Sub-Total: Distribution | D5: Sub-Total: Distribution | E5: Total Amount on WAHSP | F5: Total Amount on WAHSP
A6: BI Template_EnergyNPDI | B6: Total Amount on TOU | C6: Sub-Total: Distribution (excluding pass through) | D6: Sub-Total: Distribution (excluding pass through) | E6: Total Amount on TOU | F6: Total Amount on TOU
A7: BI Template_UNMNPDI | B7: Total Amount on Two-Tier RPP | C7: Sub-Total: Distribution (excluding pass through) | D7: Sub-Total: Distribution (excluding pass through) | E7: Total Amount on Two-Tier RPP | F7: Total Amount on Two-Tier RPP
A8: BI Template_DemandNPDI | B8: Total Amount on WAHSP | C8: Sub-Total: Distribution | D8: Sub-Total: Distribution | E8: Total Amount on WAHSP | F8: Total Amount on WAHSP
A9: BI Template_EnergyHCHI | B9: Total Amount on TOU | C9: Sub-Total: Distribution (excluding pass through) | D9: Sub-Total: Distribution (excluding pass through) | E9: Total Amount on TOU | F9: Total Amount on TOU
A10: BI Template_UNMHCHI | B10: Total Amount on Two-Tier RPP | C10: Sub-Total: Distribution (excluding pass through) | D10: Sub-Total: Distribution (excluding pass through) | E10: Total Amount on Two-Tier RPP | F10: Total Amount on Two-Tier RPP
A11: BI Template_DemandHCHI | B11: Total Amount on WAHSP | C11: Sub-Total: Distribution | D11: Sub-Total: Distribution | E11: Total Amount on WAHSP | F11: Total Amount on WAHSP
A12: BI Template_EnergyWHSI | B12: Total Amount on TOU | C12: Sub-Total: Distribution (excluding pass through) | D12: Sub-Total: Distribution (excluding pass through) | E12: Total Amount on TOU | F12: Total Amount on TOU
A13: BI Template_UNMWHSI | B13: Total Amount on Two-Tier RPP | C13: Sub-Total: Distribution (excluding pass through) | D13: Sub-Total: Distribution (excluding pass through) | E13: Total Amount on Two-Tier RPP | F13: Total Amount on Two-Tier RPP
A14: BI Template_DemandWHSI | B14: Total Amount on WAHSP | C14: Sub-Total: Distribution | D14: Sub-Total: Distribution | E14: Total Amount on WAHSP | F14: Total Amount on WAHSP
A15: BI Template_Seasonal | B15: Total Amount on TOU | C15: Sub-Total: Distribution (excluding pass through) | D15: Sub-Total: Distribution (excluding pass through) | E15: Total Amount on TOU | F15: Total Amount on TOU

Sheet Data BI List (hidden)
A1: Template Name | B1: Bill Impact Worksheet Name | C1: Bill Impact Header
A2: BI Template_Energy | B2: BI_UR_Low | C2: 2024 Bill Impacts (Low Consumption Level) - UR
A3: BI Template_Energy | B3: BI_UR_Typical | C3: 2024 Bill Impacts (Typical Consumption Level) - UR
A4: BI Template_Energy | B4: BI_UR_Avg | C4: 2024 Bill Impacts (Average Consumption Level) - UR
A5: BI Template_Energy | B5: BI_UR_High | C5: 2024 Bill Impacts (High Consumption Level) - UR
A6: BI Template_Energy | B6: BI_R1_Low | C6: 2024 Bill Impacts (Low Consumption Level) - R1
A7: BI Template_Energy | B7: BI_R1_Typical | C7: 2024 Bill Impacts (Typical Consumption Level) - R1
A8: BI Template_Energy | B8: BI_R1_Avg | C8: 2024 Bill Impacts (Average Consumption Level) - R1
A9: BI Template_Energy | B9: BI_R1_High | C9: 2024 Bill Impacts (High Consumption Level) - R1
A10: BI Template_Energy | B10: BI_R2_Low | C10: 2024 Bill Impacts (Low Consumption Level) - R2
A11: BI Template_Energy | B11: BI_R2_Typical | C11: 2024 Bill Impacts (Typical Consumption Level) - R2
A12: BI Template_Energy | B12: BI_R2_Avg | C12: 2024 Bill Impacts (Average Consumption Level) - R2
A13: BI Template_Energy | B13: BI_R2_High | C13: 2024 Bill Impacts (High Consumption Level) - R2
A14: BI Template_Energy | B14: BI_GSe_Low | C14: 2024 Bill Impacts (Low Consumption Level) - GSe
A15: BI Template_Energy | B15: BI_GSe_Typical | C15: 2024 Bill Impacts (Typical Consumption Level) - GSe
A16: BI Template_Energy | B16: BI_GSe_Avg | C16: 2024 Bill Impacts (Average Consumption Level) - GSe
A17: BI Template_Energy | B17: BI_GSe_High | C17: 2024 Bill Impacts (High Consumption Level) - GSe
A18: BI Template_Energy | B18: BI_UGe_Low | C18: 2024 Bill Impacts (Low Consumption Level) - UGe
A19: BI Template_Energy | B19: BI_UGe_Typical | C19: 2024 Bill Impacts (Typical Consumption Level) - UGe
A20: BI Template_Energy | B20: BI_UGe_Avg | C20: 2024 Bill Impacts (Average Consumption Level) - UGe
A21: BI Template_Energy | B21: BI_UGe_High | C21: 2024 Bill Impacts (High Consumption Level) - UGe
A22: BI Template_Demand | B22: BI_GSd_Low | C22: 2024 Bill Impacts (Low Consumption Level) - GSd
A23: BI Template_Demand | B23: BI_GSd_Avg | C23: 2024 Bill Impacts (Average Consumption Level) - GSd
A24: BI Template_Demand | B24: BI_GSd_High | C24: 2024 Bill Impacts (High Consumption Level) - GSd
A25: BI Template_Demand | B25: BI_UGd_Low | C25: 2024 Bill Impacts (Low Consumption Level) - UGd
A26: BI Template_Demand | B26: BI_UGd_Avg | C26: 2024 Bill Impacts (Average Consumption Level) - UGd
A27: BI Template_Demand | B27: BI_UGd_High | C27: 2024 Bill Impacts (High Consumption Level) - UGd
A28: BI Template_EnergyUNM | B28: BI_StLgt_Low | C28: 2024 Bill Impacts (Low Consumption Level) - St Lgt
A29: BI Template_EnergyUNM | B29: BI_StLgt_Avg | C29: 2024 Bill Impacts (Average Consumption Level) - St Lgt
A30: BI Template_EnergyUNM | B30: BI_StLgt_High | C30: 2024 Bill Impacts (High Consumption Level) - St Lgt
A31: BI Template_EnergyUNM | B31: BI_SenLgt_Low | C31: 2024 Bill Impacts (Low Consumption Level) - Sen Lgt
A32: BI Template_EnergyUNM | B32: BI_SenLgt_Avg | C32: 2024 Bill Impacts (Average Consumption Level) - Sen Lgt
A33: BI Template_EnergyUNM | B33: BI_SenLgt_High | C33: 2024 Bill Impacts (High Consumption Level) - Sen Lgt
A34: BI Template_EnergyUNM | B34: BI_USL_Low | C34: 2024 Bill Impacts (Low Consumption Level) - USL
A35: BI Template_EnergyUNM | B35: BI_USL_Avg | C35: 2024 Bill Impacts (Average Consumption Level) - USL
A36: BI Template_EnergyUNM | B36: BI_USL_High | C36: 2024 Bill Impacts (High Consumption Level) - USL
A37: BI Template_Demand | B37: BI_Dgen_Low | C37: 2024 Bill Impacts (Low Consumption Level) - Dgen
A38: BI Template_Demand | B38: BI_Dgen_Avg | C38: 2024 Bill Impacts (Average Consumption Level) - Dgen
A39: BI Template_Demand | B39: BI_Dgen_High | C39: 2024 Bill Impacts (High Consumption Level) - Dgen
A40: BI Template_Demand | B40: BI_ST_Low | C40: 2024 Bill Impacts (Low Consumption Level) - ST
A41: BI Template_Demand | B41: BI_ST_Avg | C41: 2024 Bill Impacts (Average Consumption Level) - ST
A42: BI Template_Demand | B42: BI_ST_High | C42: 2024 Bill Impacts (High Consumption Level) - ST
A43: BI Template_EnergyWHSI | B43: BI_WHSI_AUR_Low | C43: 2024 Bill Impacts (Low Consumption Level) - AUR_WHSI
A44: BI Template_EnergyWHSI | B44: BI_WHSI_AUR_Typical | C44: 2024 Bill Impacts (Typical Consumption Level) - AUR_WHSI
A45: BI Template_EnergyWHSI | B45: BI_WHSI_AUR_Avg | C45: 2024 Bill Impacts (Average Consumption Level) - AUR_WHSI
A46: BI Template_EnergyWHSI | B46: BI_WHSI_AUR_High | C46: 2024 Bill Impacts (High Consumption Level) - AUR_WHSI
A47: BI Template_EnergyWHSI | B47: BI_WHSI_AUGe_Low | C47: 2024 Bill Impacts (Low Consumption Level) - AUGe_WHSI
A48: BI Template_EnergyWHSI | B48: BI_WHSI_AUGe_Typical | C48: 2024 Bill Impacts (Typical Consumption Level) - AUGe_WHSI
A49: BI Template_EnergyWHSI | B49: BI_WHSI_AUGe_Avg | C49: 2024 Bill Impacts (Average Consumption Level) - AUGe_WHSI
A50: BI Template_EnergyWHSI | B50: BI_WHSI_AUGe_High | C50: 2024 Bill Impacts (High Consumption Level) - AUGe_WHSI
A51: BI Template_DemandWHSI | B51: BI_WHSI_AUGd_Low | C51: 2024 Bill Impacts (Low Consumption Level) - AUGd_WHSI
A52: BI Template_DemandWHSI | B52: BI_WHSI_AUGd_Avg | C52: 2024 Bill Impacts (Average Consumption Level) - AUGd_WHSI
A53: BI Template_DemandWHSI | B53: BI_WHSI_AUGd_High | C53: 2024 Bill Impacts (High Consumption Level) - AUGd_WHSI
A54: BI Template_DemandWHSI | B54: BI_WHSI_ST_Avg | C54: 2024 Bill Impacts (Average Consumption Level) - ST_WHSI
A55: BI Template_EnergyNPDI | B55: BI_NPDI_AR_Low | C55: 2024 Bill Impacts (Low Consumption Level) - AR_NPDI
A56: BI Template_EnergyNPDI | B56: BI_NPDI_AR_Typical | C56: 2024 Bill Impacts (Typical Consumption Level) - AR_NPDI
A57: BI Template_EnergyNPDI | B57: BI_NPDI_AR_Avg | C57: 2024 Bill Impacts (Average Consumption Level) - AR_NPDI
A58: BI Template_EnergyNPDI | B58: BI_NPDI_AR_High | C58: 2024 Bill Impacts (High Consumption Level) - AR_NPDI
A59: BI Template_EnergyHCHI | B59: BI_HCHI_AR_Low | C59: 2024 Bill Impacts (Low Consumption Level) - AR_HCHI
A60: BI Template_EnergyHCHI | B60: BI_HCHI_AR_Typical | C60: 2024 Bill Impacts (Typical Consumption Level) - AR_HCHI
A61: BI Template_EnergyHCHI | B61: BI_HCHI_AR_Avg | C61: 2024 Bill Impacts (Average Consumption Level) - AR_HCHI
A62: BI Template_EnergyHCHI | B62: BI_HCHI_AR_High | C62: 2024 Bill Impacts (High Consumption Level) - AR_HCHI
A63: BI Template_EnergyNPDI | B63: BI_NPDI_AGSe_Low | C63: 2024 Bill Impacts (Low Consumption Level) - AGSe_NPDI
A64: BI Template_EnergyNPDI | B64: BI_NPDI_AGSe_Typical | C64: 2024 Bill Impacts (Typical Consumption Level) - AGSe_NPDI
A65: BI Template_EnergyNPDI | B65: BI_NPDI_AGSe_Avg | C65: 2024 Bill Impacts (Average Consumption Level) - AGSe_NPDI
A66: BI Template_EnergyNPDI | B66: BI_NPDI_AGSe_High | C66: 2024 Bill Impacts (High Consumption Level) - AGSe_NPDI
A67: BI Template_EnergyHCHI | B67: BI_HCHI_AGSe_Low | C67: 2024 Bill Impacts (Low Consumption Level) - AGSe_HCHI
A68: BI Template_EnergyHCHI | B68: BI_HCHI_AGSe_Typical | C68: 2024 Bill Impacts (Typical Consumption Level) - AGSe_HCHI
A69: BI Template_EnergyHCHI | B69: BI_HCHI_AGSe_Avg | C69: 2024 Bill Impacts (Average Consumption Level) - AGSe_HCHI
A70: BI Template_EnergyHCHI | B70: BI_HCHI_AGSe_High | C70: 2024 Bill Impacts (High Consumption Level) - AGSe_HCHI
A71: BI Template_DemandNPDI | B71: BI_NPDI_AGSd_Low | C71: 2024 Bill Impacts (Low Consumption Level) - AGSd_NPDI
A72: BI Template_DemandNPDI | B72: BI_NPDI_AGSd_Avg | C72: 2024 Bill Impacts (Average Consumption Level) - AGSd_NPDI
A73: BI Template_DemandNPDI | B73: BI_NPDI_AGSd_High | C73: 2024 Bill Impacts (High Consumption Level) - AGSd_NPDI
A74: BI Template_DemandHCHI | B74: BI_HCHI_AGSd_Low | C74: 2024 Bill Impacts (Low Consumption Level) - AGSd_HCHI
A75: BI Template_DemandHCHI | B75: BI_HCHI_AGSd_Avg | C75: 2024 Bill Impacts (Average Consumption Level) - AGSd_HCHI
A76: BI Template_DemandHCHI | B76: BI_HCHI_AGSd_High | C76: 2024 Bill Impacts (High Consumption Level) - AGSd_HCHI
A77: BI Template_unmWHSI | B77: BI_WHSI_USL_Avg | C77: 2024 Bill Impacts (Average Consumption Level) - USL_WHSI
A78: BI Template_unmNPDI | B78: BI_NPDI_USL_Avg | C78: 2024 Bill Impacts (Average Consumption Level) - USL_NPDI
A79: BI Template_unmHCHI | B79: BI_HCHI_USL_Avg | C79: 2024 Bill Impacts (Average Consumption Level) - USL_HCHI
A80: BI Template_unmWHSI | B80: BI_WHSI_StLgt_Avg | C80: 2024 Bill Impacts (Average Consumption Level) - St Lgt_WHSI
A81: BI Template_unmNPDI | B81: BI_NPDI_StLgt_Avg | C81: 2024 Bill Impacts (Average Consumption Level) - St Lgt_NPDI
A82: BI Template_unmHCHI | B82: BI_HCHI_StLgt_Avg | C82: 2024 Bill Impacts (Average Consumption Level) - St Lgt_HCHI
A83: BI Template_unmNPDI | B83: BI_NPDI_SenLgt_Avg | C83: 2024 Bill Impacts (Average Consumption Level) - Sen Lgt_NPDI
A84: BI Template_unmHCHI | B84: BI_HCHI_SenLgt_Avg | C84: 2024 Bill Impacts (Average Consumption Level) - Sen Lgt_HCHI

Sheet Data BI List Acq_Seas (hidden)
A1: Template Name | B1: Bill Impact Worksheet Name | C1: Bill Impact Header | D1: Current Rate Class (Acq) | E1: Proposed Rate Class
A2: BI Template_EnergyWHSI | B2: BI_AUR_Low | C2: 2024 Bill Impacts (Low Consumption Level) - AUR_WHSI | D2: AUR-WHSI | E2: AUR-WHSI
A3: BI Template_EnergyWHSI | B3: BI_AUR_Typical | C3: 2024 Bill Impacts (Typical Consumption Level) - AUR_WHSI | D3: AUR-WHSI | E3: AUR-WHSI
A4: BI Template_EnergyWHSI | B4: BI_AUR_Avg | C4: 2024 Bill Impacts (Average Consumption Level) - AUR_WHSI | D4: AUR-WHSI | E4: AUR-WHSI
A5: BI Template_EnergyWHSI | B5: BI_AUR_High | C5: 2024 Bill Impacts (High Consumption Level) - AUR_WHSI | D5: AUR-WHSI | E5: AUR-WHSI
A6: BI Template_EnergyWHSI | B6: BI_AUGe_Low | C6: 2024 Bill Impacts (Low Consumption Level) - AUGe_WHSI | D6: AUGe-WHSI | E6: AUGe-WHSI
A7: BI Template_EnergyWHSI | B7: BI_AUGe_Typical | C7: 2024 Bill Impacts (Typical Consumption Level) - AUGe_WHSI | D7: AUGe-WHSI | E7: AUGe-WHSI
A8: BI Template_EnergyWHSI | B8: BI_AUGe_Avg | C8: 2024 Bill Impacts (Average Consumption Level) - AUGe_WHSI | D8: AUGe-WHSI | E8: AUGe-WHSI
A9: BI Template_EnergyWHSI | B9: BI_AUGe_High | C9: 2024 Bill Impacts (High Consumption Level) - AUGe_WHSI | D9: AUGe-WHSI | E9: AUGe-WHSI
A10: BI Template_DemandWHSI | B10: BI_AUGd_Low | C10: 2024 Bill Impacts (Low Consumption Level) - AUGd_WHSI | D10: AUGd-WHSI | E10: AUGd-WHSI
A11: BI Template_DemandWHSI | B11: BI_AUGd_Avg | C11: 2024 Bill Impacts (Average Consumption Level) - AUGd_WHSI | D11: AUGd-WHSI | E11: AUGd-WHSI
A12: BI Template_DemandWHSI | B12: BI_AUGd_High | C12: 2024 Bill Impacts (High Consumption Level) - AUGd_WHSI | D12: AUGd-WHSI | E12: AUGd-WHSI
A13: BI Template_DemandWHSI | B13: BI_WHSI_ST_Avg | C13: 2024 Bill Impacts (Average Consumption Level) - ST_WHSI | D13: ST-WHSI | E13: ST-WHSI
A14: BI Template_EnergyNPDI | B14: BI_NPDI_AR_Low | C14: 2024 Bill Impacts (Low Consumption Level) - AR_NPDI | D14: AR-NPDI | E14: AR-NPDI
A15: BI Template_EnergyNPDI | B15: BI_NPDI_AR_Typical | C15: 2024 Bill Impacts (Typical Consumption Level) - AR_NPDI | D15: AR-NPDI | E15: AR-NPDI
A16: BI Template_EnergyNPDI | B16: BI_NPDI_AR_Avg | C16: 2024 Bill Impacts (Average Consumption Level) - AR_NPDI | D16: AR-NPDI | E16: AR-NPDI
A17: BI Template_EnergyNPDI | B17: BI_NPDI_AR_High | C17: 2024 Bill Impacts (High Consumption Level) - AR_NPDI | D17: AR-NPDI | E17: AR-NPDI
A18: BI Template_EnergyHCHI | B18: BI_HCHI_AR_Low | C18: 2024 Bill Impacts (Low Consumption Level) - AR_HCHI | D18: AR-HCHI | E18: AR-HCHI
A19: BI Template_EnergyHCHI | B19: BI_HCHI_AR_Typical | C19: 2024 Bill Impacts (Typical Consumption Level) - AR_HCHI | D19: AR-HCHI | E19: AR-HCHI
A20: BI Template_EnergyHCHI | B20: BI_HCHI_AR_Avg | C20: 2024 Bill Impacts (Average Consumption Level) - AR_HCHI | D20: AR-HCHI | E20: AR-HCHI
A21: BI Template_EnergyHCHI | B21: BI_HCHI_AR_High | C21: 2024 Bill Impacts (High Consumption Level) - AR_HCHI | D21: AR-HCHI | E21: AR-HCHI
A22: BI Template_EnergyNPDI | B22: BI_NPDI_AGSe_Low | C22: 2024 Bill Impacts (Low Consumption Level) - AGSe_NPDI | D22: AGSe-NPDI | E22: AGSe-NPDI
A23: BI Template_EnergyNPDI | B23: BI_NPDI_AGSe_Typical | C23: 2024 Bill Impacts (Typical Consumption Level) - AGSe_NPDI | D23: AGSe-NPDI | E23: AGSe-NPDI
A24: BI Template_EnergyNPDI | B24: BI_NPDI_AGSe_Avg | C24: 2024 Bill Impacts (Average Consumption Level) - AGSe_NPDI | D24: AGSe-NPDI | E24: AGSe-NPDI
A25: BI Template_EnergyNPDI | B25: BI_NPDI_AGSe_High | C25: 2024 Bill Impacts (High Consumption Level) - AGSe_NPDI | D25: AGSe-NPDI | E25: AGSe-NPDI
A26: BI Template_EnergyHCHI | B26: BI_HCHI_AGSe_Low | C26: 2024 Bill Impacts (Low Consumption Level) - AGSe_HCHI | D26: AGSe-HCHI | E26: AGSe-HCHI
A27: BI Template_EnergyHCHI | B27: BI_HCHI_AGSe_Typical | C27: 2024 Bill Impacts (Typical Consumption Level) - AGSe_HCHI | D27: AGSe-HCHI | E27: AGSe-HCHI
A28: BI Template_EnergyHCHI | B28: BI_HCHI_AGSe_Avg | C28: 2024 Bill Impacts (Average Consumption Level) - AGSe_HCHI | D28: AGSe-HCHI | E28: AGSe-HCHI
A29: BI Template_EnergyHCHI | B29: BI_HCHI_AGSe_High | C29: 2024 Bill Impacts (High Consumption Level) - AGSe_HCHI | D29: AGSe-HCHI | E29: AGSe-HCHI
A30: BI Template_DemandNPDI | B30: BI_NPDI_AGSd_Low | C30: 2024 Bill Impacts (Low Consumption Level) - AGSd_NPDI | D30: AGSd-NPDI | E30: AGSd-NPDI
A31: BI Template_DemandNPDI | B31: BI_NPDI_AGSd_Avg | C31: 2024 Bill Impacts (Average Consumption Level) - AGSd_NPDI | D31: AGSd-NPDI | E31: AGSd-NPDI
A32: BI Template_DemandNPDI | B32: BI_NPDI_AGSd_High | C32: 2024 Bill Impacts (High Consumption Level) - AGSd_NPDI | D32: AGSd-NPDI | E32: AGSd-NPDI
A33: BI Template_DemandHCHI | B33: BI_HCHI_AGSd_Low | C33: 2024 Bill Impacts (Low Consumption Level) - AGSd_HCHI | D33: AGSd-HCHI | E33: AGSd-HCHI
A34: BI Template_DemandHCHI | B34: BI_HCHI_AGSd_Avg | C34: 2024 Bill Impacts (Average Consumption Level) - AGSd_HCHI | D34: AGSd-HCHI | E34: AGSd-HCHI
A35: BI Template_DemandHCHI | B35: BI_HCHI_AGSd_High | C35: 2024 Bill Impacts (High Consumption Level) - AGSd_HCHI | D35: AGSd-HCHI | E35: AGSd-HCHI
A36: BI Template_EnergyUNM | B36: BI_WHSI_USL_Avg | C36: 2024 Bill Impacts (Average Consumption Level) - USL_WHSI | D36: USL-WHSI | E36: USL-WHSI
A37: BI Template_unmNPDI | B37: BI_NPDI_USL_Avg | C37: 2024 Bill Impacts (Average Consumption Level) - USL_NPDI | D37: USL-NPDI | E37: USL-NPDI
A38: BI Template_unmHCHI | B38: BI_HCHI_USL_Avg | C38: 2024 Bill Impacts (Average Consumption Level) - USL_HCHI | D38: USL-HCHI | E38: USL-HCHI
A39: BI Template_unmWHSI | B39: BI_WHSI_StLgt_Avg | C39: 2024 Bill Impacts (Average Consumption Level) - St Lgt_WHSI | D39: St Lgt-WHSI | E39: St Lgt-WHSI
A40: BI Template_unmNPDI | B40: BI_NPDI_StLgt_Avg | C40: 2024 Bill Impacts (Average Consumption Level) - St Lgt_NPDI | D40: St Lgt-NPDI | E40: St Lgt-NPDI
A41: BI Template_unmHCHI | B41: BI_HCHI_StLgt_Avg | C41: 2024 Bill Impacts (Average Consumption Level) - St Lgt_HCHI | D41: St Lgt-HCHI | E41: St Lgt-HCHI
A42: BI Template_unmNPDI | B42: BI_NPDI_SenLgt_Avg | C42: 2024 Bill Impacts (Average Consumption Level) - Sen Lgt_NPDI | D42: Sen Lgt-NPDI | E42: Sen Lgt-NPDI
A43: BI Template_unmHCHI | B43: BI_HCHI_SenLgt_Avg | C43: 2024 Bill Impacts (Average Consumption Level) - Sen Lgt_HCHI | D43: Sen Lgt-HCHI | E43: Sen Lgt-HCHI

Sheet Bill Impact Summary (hidden)
A1: Rate Class | B1: Consumption Level | C1: Monthly Consumption (kWh) | D1: Monthly Peak (kW) | E1: BI Worksheet | F1: Template | G1: Current Total Bill | H1: Change in DX Bill ($) | I1: Change in DX Bill (%) | J1: Change in Total Bill ($) | K1: Change in Total Bill (%) | L1: Commodity Price Used | O1: List for Data Validation of cell L6; do not remove
A2: UR | B2: Low | C2: =VLOOKUP(A$2,'Data Billing Quantities'!A:P,MATCH(B2&" kWh",'Data Billing Quantities'!$4:$4,0),FALSE) -> 340 | E2: BI_UR_Low | F2: BI Template_Energy | G2: =VLOOKUP(VLOOKUP($F2,'Data BI Summary'!$A:$F,MATCH(G$1,'Data BI Summary'!$2:$2,0),FALSE),INDIRECT("'"&$E2&"'!"&"$A:$K"),4,FALSE) -> 77.32926237 | H2: =VLOOKUP(VLOOKUP($F2,'Data BI Summary'!$A:$F,MATCH(H$1,'Data BI Summary'!$2:$2,0),FALSE),INDIRECT("'"&$E2&"'!"&"$A:$K"),8,FALSE) -> 0.8 | I2: =VLOOKUP(VLOOKUP($F2,'Data BI Summary'!$A:$F,MATCH(I$1,'Data BI Summary'!$2:$2,0),FALSE),INDIRECT("'"&$E2&"'!"&"$A:$K"),9,FALSE) -> 0.02193944713 | J2: =VLOOKUP(VLOOKUP($F2,'Data BI Summary'!$A:$F,MATCH(J$1,'Data BI Summary'!$2:$2,0),FALSE),INDIRECT("'"&$E2&"'!"&"$A:$K"),8,FALSE) -> 0.7528 | K2: =VLOOKUP(VLOOKUP($F2,'Data BI Summary'!$A:$F,MATCH(K$1,'Data BI Summary'!$2:$2,0),FALSE),INDIRECT("'"&$E2&"'!"&"$A:$K"),9,FALSE) -> 0.009734995226 | L2: TOU
B3: Typical | C3: =VLOOKUP(A$2,'Data Billing Quantities'!A:P,MATCH(B3&" kWh",'Data Billing Quantities'!$4:$4,0),FALSE) -> 750 | E3: BI_UR_Typical | F3: BI Template_Energy | G3: =VLOOKUP(VLOOKUP($F3,'Data BI Summary'!$A:$F,MATCH(G$1,'Data BI Summary'!$2:$2,0),FALSE),INDIRECT("'"&$E3&"'!"&"$A:$K"),4,FALSE) -> 128.1174605 | H3: =VLOOKUP(VLOOKUP($F3,'Data BI Summary'!$A:$F,MATCH(H$1,'Data BI Summary'!$2:$2,0),FALSE),INDIRECT("'"&$E3&"'!"&"$A:$K"),8,FALSE) -> 0.8 | I3: =VLOOKUP(VLOOKUP($F3,'Data BI Summary'!$A:$F,MATCH(I$1,'Data BI Summary'!$2:$2,0),FALSE),INDIRECT("'"&$E3&"'!"&"$A:$K"),9,FALSE) -> 0.02203856749 | J3: =VLOOKUP(VLOOKUP($F3,'Data BI Summary'!$A:$F,MATCH(J$1,'Data BI Summary'!$2:$2,0),FALSE),INDIRECT("'"&$E3&"'!"&"$A:$K"),8,FALSE) -> 0.7528 | K3: =VLOOKUP(VLOOKUP($F3,'Data BI Summary'!$A:$F,MATCH(K$1,'Data BI Summary'!$2:$2,0),FALSE),INDIRECT("'"&$E3&"'!"&"$A:$K"),9,FALSE) -> 0.005875857958
B4: Average | C4: =VLOOKUP(A$2,'Data Billing Quantities'!A:P,MATCH(B4&" kWh",'Data Billing Quantities'!$4:$4,0),FALSE) -> 690 | E4: BI_UR_Avg | F4: BI Template_Energy | G4: =VLOOKUP(VLOOKUP($F4,'Data BI Summary'!$A:$F,MATCH(G$1,'Data BI Summary'!$2:$2,0),FALSE),INDIRECT("'"&$E4&"'!"&"$A:$K"),4,FALSE) -> 120.6850413 | H4: =VLOOKUP(VLOOKUP($F4,'Data BI Summary'!$A:$F,MATCH(H$1,'Data BI Summary'!$2:$2,0),FALSE),INDIRECT("'"&$E4&"'!"&"$A:$K"),8,FALSE) -> 0.8 | I4: =VLOOKUP(VLOOKUP($F4,'Data BI Summary'!$A:$F,MATCH(I$1,'Data BI Summary'!$2:$2,0),FALSE),INDIRECT("'"&$E4&"'!"&"$A:$K"),9,FALSE) -> 0.02202400617 | J4: =VLOOKUP(VLOOKUP($F4,'Data BI Summary'!$A:$F,MATCH(J$1,'Data BI Summary'!$2:$2,0),FALSE),INDIRECT("'"&$E4&"'!"&"$A:$K"),8,FALSE) -> 0.7528 | K4: =VLOOKUP(VLOOKUP($F4,'Data BI Summary'!$A:$F,MATCH(K$1,'Data BI Summary'!$2:$2,0),FALSE),INDIRECT("'"&$E4&"'!"&"$A:$K"),9,FALSE) -> 0.006237724178
B5: High | C5: =VLOOKUP(A$2,'Data Billing Quantities'!A:P,MATCH(B5&" kWh",'Data Billing Quantities'!$4:$4,0),FALSE) -> 1260 | E5: BI_UR_High | F5: BI Template_Energy | G5: =VLOOKUP(VLOOKUP($F5,'Data BI Summary'!$A:$F,MATCH(G$1,'Data BI Summary'!$2:$2,0),FALSE),INDIRECT("'"&$E5&"'!"&"$A:$K"),4,FALSE) -> 191.2930241 | H5: =VLOOKUP(VLOOKUP($F5,'Data BI Summary'!$A:$F,MATCH(H$1,'Data BI Summary'!$2:$2,0),FALSE),INDIRECT("'"&$E5&"'!"&"$A:$K"),8,FALSE) -> 0.8 | I5: =VLOOKUP(VLOOKUP($F5,'Data BI Summary'!$A:$F,MATCH(I$1,'Data BI Summary'!$2:$2,0),FALSE),INDIRECT("'"&$E5&"'!"&"$A:$K"),9,FALSE) -> 0.02216312057 | J5: =VLOOKUP(VLOOKUP($F5,'Data BI Summary'!$A:$F,MATCH(J$1,'Data BI Summary'!$2:$2,0),FALSE),INDIRECT("'"&$E5&"'!"&"$A:$K"),8,FALSE) -> 0.7528 | K5: =VLOOKUP(VLOOKUP($F5,'Data BI Summary'!$A:$F,MATCH(K$1,'Data BI Summary'!$2:$2,0),FALSE),INDIRECT("'"&$E5&"'!"&"$A:$K"),9,FALSE) -> 0.00393532385
A6: R1 | B6: Low | C6: =VLOOKUP(A$6,'Data Billing Quantities'!A:P,MATCH(B6&" kWh",'Data Billing Quantities'!$4:$4,0),FALSE) -> 370 | E6: BI_R1_Low | F6: BI Template_Energy | G6: =VLOOKUP(VLOOKUP($F6,'Data BI Summary'!$A:$F,MATCH(G$1,'Data BI Summary'!$2:$2,0),FALSE),INDIRECT("'"&$E6&"'!"&"$A:$K"),4,FALSE) -> 103.8594934 | H6: =VLOOKUP(VLOOKUP($F6,'Data BI Summary'!$A:$F,MATCH(H$1,'Data BI Summary'!$2:$2,0),FALSE),INDIRECT("'"&$E6&"'!"&"$A:$K"),8,FALSE) -> 3.466 | I6: =VLOOKUP(VLOOKUP($F6,'Data BI Summary'!$A:$F,MATCH(I$1,'Data BI Summary'!$2:$2,0),FALSE),INDIRECT("'"&$E6&"'!"&"$A:$K"),9,FALSE) -> 0.05748308345 | J6: =VLOOKUP(VLOOKUP($F6,'Data BI Summary'!$A:$F,MATCH(J$1,'Data BI Summary'!$2:$2,0),FALSE),INDIRECT("'"&$E6&"'!"&"$A:$K"),8,FALSE) -> 3.261506 | K6: =VLOOKUP(VLOOKUP($F6,'Data BI Summary'!$A:$F,MATCH(K$1,'Data BI Summary'!$2:$2,0),FALSE),INDIRECT("'"&$E6&"'!"&"$A:$K"),9,FALSE) -> 0.03140306093 | L6: TOU | O6: TOU
B7: Typical | C7: =VLOOKUP(A$6,'Data Billing Quantities'!A:P,MATCH(B7&" kWh",'Data Billing Quantities'!$4:$4,0),FALSE) -> 750 | E7: BI_R1_Typical | F7: BI Template_Energy | G7: =VLOOKUP(VLOOKUP($F7,'Data BI Summary'!$A:$F,MATCH(G$1,'Data BI Summary'!$2:$2,0),FALSE),INDIRECT("'"&$E7&"'!"&"$A:$K"),4,FALSE) -> 153.1778996 | H7: =VLOOKUP(VLOOKUP($F7,'Data BI Summary'!$A:$F,MATCH(H$1,'Data BI Summary'!$2:$2,0),FALSE),INDIRECT("'"&$E7&"'!"&"$A:$K"),8,FALSE) -> 1.49 | I7: =VLOOKUP(VLOOKUP($F7,'Data BI Summary'!$A:$F,MATCH(I$1,'Data BI Summary'!$2:$2,0),FALSE),INDIRECT("'"&$E7&"'!"&"$A:$K"),9,FALSE) -> 0.02398583387 | J7: =VLOOKUP(VLOOKUP($F7,'Data BI Summary'!$A:$F,MATCH(J$1,'Data BI Summary'!$2:$2,0),FALSE),INDIRECT("'"&$E7&"'!"&"$A:$K"),8,FALSE) -> 1.40209 | K7: =VLOOKUP(VLOOKUP($F7,'Data BI Summary'!$A:$F,MATCH(K$1,'Data BI Summary'!$2:$2,0),FALSE),INDIRECT("'"&$E7&"'!"&"$A:$K"),9,FALSE) -> 0.009153343944 | O7: TOU (DRP applied)
B8: Average | C8: =VLOOKUP(A$6,'Data Billing Quantities'!A:P,MATCH(B8&" kWh",'Data Billing Quantities'!$4:$4,0),FALSE) -> 784 | E8: BI_R1_Avg | F8: BI Template_Energy | G8: =VLOOKUP(VLOOKUP($F8,'Data BI Summary'!$A:$F,MATCH(G$1,'Data BI Summary'!$2:$2,0),FALSE),INDIRECT("'"&$E8&"'!"&"$A:$K"),4,FALSE) -> 157.5905991 | H8: =VLOOKUP(VLOOKUP($F8,'Data BI Summary'!$A:$F,MATCH(H$1,'Data BI Summary'!$2:$2,0),FALSE),INDIRECT("'"&$E8&"'!"&"$A:$K"),8,FALSE) -> 1.3132 | I8: =VLOOKUP(VLOOKUP($F8,'Data BI Summary'!$A:$F,MATCH(I$1,'Data BI Summary'!$2:$2,0),FALSE),INDIRECT("'"&$E8&"'!"&"$A:$K"),9,FALSE) -> 0.02108433735 | J8: =VLOOKUP(VLOOKUP($F8,'Data BI Summary'!$A:$F,MATCH(J$1,'Data BI Summary'!$2:$2,0),FALSE),INDIRECT("'"&$E8&"'!"&"$A:$K"),8,FALSE) -> 1.2357212 | K8: =VLOOKUP(VLOOKUP($F8,'Data BI Summary'!$A:$F,MATCH(K$1,'Data BI Summary'!$2:$2,0),FALSE),INDIRECT("'"&$E8&"'!"&"$A:$K"),9,FALSE) -> 0.007841338295
B9: High | C9: =VLOOKUP(A$6,'Data Billing Quantities'!A:P,MATCH(B9&" kWh",'Data Billing Quantities'!$4:$4,0),FALSE) -> 1650 | E9: BI_R1_High | F9: BI Template_Energy | G9: =VLOOKUP(VLOOKUP($F9,'Data BI Summary'!$A:$F,MATCH(G$1,'Data BI Summary'!$2:$2,0),FALSE),INDIRECT("'"&$E9&"'!"&"$A:$K"),4,FALSE) -> 269.9846512 | H9: =VLOOKUP(VLOOKUP($F9,'Data BI Summary'!$A:$F,MATCH(H$1,'Data BI Summary'!$2:$2,0),FALSE),INDIRECT("'"&$E9&"'!"&"$A:$K"),8,FALSE) -> -3.19 | I9: =VLOOKUP(VLOOKUP($F9,'Data BI Summary'!$A:$F,MATCH(I$1,'Data BI Summary'!$2:$2,0),FALSE),INDIRECT("'"&$E9&"'!"&"$A:$K"),9,FALSE) -> -0.04801324503 | J9: =VLOOKUP(VLOOKUP($F9,'Data BI Summary'!$A:$F,MATCH(J$1,'Data BI Summary'!$2:$2,0),FALSE),INDIRECT("'"&$E9&"'!"&"$A:$K"),8,FALSE) -> -3.00179 | K9: =VLOOKUP(VLOOKUP($F9,'Data BI Summary'!$A:$F,MATCH(K$1,'Data BI Summary'!$2:$2,0),FALSE),INDIRECT("'"&$E9&"'!"&"$A:$K"),9,FALSE) -> -0.01111837279
A10: R2 | B10: Low | C10: =VLOOKUP(A$10,'Data Billing Quantities'!A:P,MATCH(B10&" kWh",'Data Billing Quantities'!$4:$4,0),FALSE) -> 440 | E10: BI_R2_Low | F10: BI Template_Energy | G10: =VLOOKUP(VLOOKUP($F10,'Data BI Summary'!$A:$F,MATCH(G$1,'Data BI Summary'!$2:$2,0),FALSE),INDIRECT("'"&$E10&"'!"&"$A:$K"),4,FALSE) -> 116.3225092 | H10: =VLOOKUP(VLOOKUP($F10,'Data BI Summary'!$A:$F,MATCH(H$1,'Data BI Summary'!$2:$2,0),FALSE),INDIRECT("'"&$E10&"'!"&"$A:$K"),8,FALSE) -> 5.856 | I10: =VLOOKUP(VLOOKUP($F10,'Data BI Summary'!$A:$F,MATCH(I$1,'Data BI Summary'!$2:$2,0),FALSE),INDIRECT("'"&$E10&"'!"&"$A:$K"),9,FALSE) -> 0.09269049353 | J10: =VLOOKUP(VLOOKUP($F10,'Data BI Summary'!$A:$F,MATCH(J$1,'Data BI Summary'!$2:$2,0),FALSE),INDIRECT("'"&$E10&"'!"&"$A:$K"),8,FALSE) -> 5.510496 | K10: =VLOOKUP(VLOOKUP($F10,'Data BI Summary'!$A:$F,MATCH(K$1,'Data BI Summary'!$2:$2,0),FALSE),INDIRECT("'"&$E10&"'!"&"$A:$K"),9,FALSE) -> 0.0473725682 | L10: =L6 -> TOU
B11: Typical | C11: =VLOOKUP(A$10,'Data Billing Quantities'!A:P,MATCH(B11&" kWh",'Data Billing Quantities'!$4:$4,0),FALSE) -> 750 | E11: BI_R2_Typical | F11: BI Template_Energy | G11: =VLOOKUP(VLOOKUP($F11,'Data BI Summary'!$A:$F,MATCH(G$1,'Data BI Summary'!$2:$2,0),FALSE),INDIRECT("'"&$E11&"'!"&"$A:$K"),4,FALSE) -> 158.0939518 | H11: =VLOOKUP(VLOOKUP($F11,'Data BI Summary'!$A:$F,MATCH(H$1,'Data BI Summary'!$2:$2,0),FALSE),INDIRECT("'"&$E11&"'!"&"$A:$K"),8,FALSE) -> 3.345 | I11: =VLOOKUP(VLOOKUP($F11,'Data BI Summary'!$A:$F,MATCH(I$1,'Data BI Summary'!$2:$2,0),FALSE),INDIRECT("'"&$E11&"'!"&"$A:$K"),9,FALSE) -> 0.05101807367 | J11: =VLOOKUP(VLOOKUP($F11,'Data BI Summary'!$A:$F,MATCH(J$1,'Data BI Summary'!$2:$2,0),FALSE),INDIRECT("'"&$E11&"'!"&"$A:$K"),8,FALSE) -> 3.147645 | K11: =VLOOKUP(VLOOKUP($F11,'Data BI Summary'!$A:$F,MATCH(K$1,'Data BI Summary'!$2:$2,0),FALSE),INDIRECT("'"&$E11&"'!"&"$A:$K"),9,FALSE) -> 0.0199099647
B12: Average | C12: =VLOOKUP(A$10,'Data Billing Quantities'!A:P,MATCH(B12&" kWh",'Data Billing Quantities'!$4:$4,0),FALSE) -> 978 | E12: BI_R2_Avg | F12: BI Template_Energy | G12: =VLOOKUP(VLOOKUP($F12,'Data BI Summary'!$A:$F,MATCH(G$1,'Data BI Summary'!$2:$2,0),FALSE),INDIRECT("'"&$E12&"'!"&"$A:$K"),4,FALSE) -> 188.8161741 | H12: =VLOOKUP(VLOOKUP($F12,'Data BI Summary'!$A:$F,MATCH(H$1,'Data BI Summary'!$2:$2,0),FALSE),INDIRECT("'"&$E12&"'!"&"$A:$K"),8,FALSE) -> 1.4982 | I12: =VLOOKUP(VLOOKUP($F12,'Data BI Summary'!$A:$F,MATCH(I$1,'Data BI Summary'!$2:$2,0),FALSE),INDIRECT("'"&$E12&"'!"&"$A:$K"),9,FALSE) -> 0.02225470361 | J12: =VLOOKUP(VLOOKUP($F12,'Data BI Summary'!$A:$F,MATCH(J$1,'Data BI Summary'!$2:$2,0),FALSE),INDIRECT("'"&$E12&"'!"&"$A:$K"),8,FALSE) -> 1.4098062 | K12: =VLOOKUP(VLOOKUP($F12,'Data BI Summary'!$A:$F,MATCH(K$1,'Data BI Summary'!$2:$2,0),FALSE),INDIRECT("'"&$E12&"'!"&"$A:$K"),9,FALSE) -> 0.00746655421
B13: High | C13: =VLOOKUP(A$10,'Data Billing Quantities'!A:P,MATCH(B13&" kWh",'Data Billing Quantities'!$4:$4,0),FALSE) -> 2110 | E13: BI_R2_High | F13: BI Template_Energy | G13: =VLOOKUP(VLOOKUP($F13,'Data BI Summary'!$A:$F,MATCH(G$1,'Data BI Summary'!$2:$2,0),FALSE),INDIRECT("'"&$E13&"'!"&"$A:$K"),4,FALSE) -> 341.349313 | H13: =VLOOKUP(VLOOKUP($F13,'Data BI Summary'!$A:$F,MATCH(H$1,'Data BI Summary'!$2:$2,0),FALSE),INDIRECT("'"&$E13&"'!"&"$A:$K"),8,FALSE) -> -7.671 | I13: =VLOOKUP(VLOOKUP($F13,'Data BI Summary'!$A:$F,MATCH(I$1,'Data BI Summary'!$2:$2,0),FALSE),INDIRECT("'"&$E13&"'!"&"$A:$K"),9,FALSE) -> -0.1008850954 | J13: =VLOOKUP(VLOOKUP($F13,'Data BI Summary'!$A:$F,MATCH(J$1,'Data BI Summary'!$2:$2,0),FALSE),INDIRECT("'"&$E13&"'!"&"$A:$K"),8,FALSE) -> -7.218411 | K13: =VLOOKUP(VLOOKUP($F13,'Data BI Summary'!$A:$F,MATCH(K$1,'Data BI Summary'!$2:$2,0),FALSE),INDIRECT("'"&$E13&"'!"&"$A:$K"),9,FALSE) -> -0.02114669848
A14: GSe | B14: Low | C14: =VLOOKUP(A$14,'Data Billing Quantities'!A:P,MATCH(B14&" kWh",'Data Billing Quantities'!$4:$4,0),FALSE) -> 60 | E14: BI_GSe_Low | F14: BI Template_Energy | G14: =VLOOKUP(VLOOKUP($F14,'Data BI Summary'!$A:$F,MATCH(G$1,'Data BI Summary'!$2:$2,0),FALSE),INDIRECT("'"&$E14&"'!"&"$A:$K"),4,FALSE) -> 42.14978692 | H14: =VLOOKUP(VLOOKUP($F14,'Data BI Summary'!$A:$F,MATCH(H$1,'Data BI Summary'!$2:$2,0),FALSE),INDIRECT("'"&$E14&"'!"&"$A:$K"),8,FALSE) -> 0.162 | I14: =VLOOKUP(VLOOKUP($F14,'Data BI Summary'!$A:$F,MATCH(I$1,'Data BI Summary'!$2:$2,0),FALSE),INDIRECT("'"&$E14&"'!"&"$A:$K"),9,FALSE) -> 0.00449575401 | J14: =VLOOKUP(VLOOKUP($F14,'Data BI Summary'!$A:$F,MATCH(J$1,'Data BI Summary'!$2:$2,0),FALSE),INDIRECT("'"&$E14&"'!"&"$A:$K"),8,FALSE) -> 0.152442 | K14: =VLOOKUP(VLOOKUP($F14,'Data BI Summary'!$A:$F,MATCH(K$1,'Data BI Summary'!$2:$2,0),FALSE),INDIRECT("'"&$E14&"'!"&"$A:$K"),9,FALSE) -> 0.003616673088 | L14: TOU
B15: Typical | C15: =VLOOKUP(A$14,'Data Billing Quantities'!A:P,MATCH(B15&" kWh",'Data Billing Quantities'!$4:$4,0),FALSE) -> 2000 | E15: BI_GSe_Typical | F15: BI Template_Energy | G15: =VLOOKUP(VLOOKUP($F15,'Data BI Summary'!$A:$F,MATCH(G$1,'Data BI Summary'!$2:$2,0),FALSE),INDIRECT("'"&$E15&"'!"&"$A:$K"),4,FALSE) -> 404.9012338 | H15: =VLOOKUP(VLOOKUP($F15,'Data BI Summary'!$A:$F,MATCH(H$1,'Data BI Summary'!$2:$2,0),FALSE),INDIRECT("'"&$E15&"'!"&"$A:$K"),8,FALSE) -> 1.52 | I15: =VLOOKUP(VLOOKUP($F15,'Data BI Summary'!$A:$F,MATCH(I$1,'Data BI Summary'!$2:$2,0),FALSE),INDIRECT("'"&$E15&"'!"&"$A:$K"),9,FALSE) -> 0.009220503488 | J15: =VLOOKUP(VLOOKUP($F15,'Data BI Summary'!$A:$F,MATCH(J$1,'Data BI Summary'!$2:$2,0),FALSE),INDIRECT("'"&$E15&"'!"&"$A:$K"),8,FALSE) -> 1.43032 | K15: =VLOOKUP(VLOOKUP($F15,'Data BI Summary'!$A:$F,MATCH(K$1,'Data BI Summary'!$2:$2,0),FALSE),INDIRECT("'"&$E15&"'!"&"$A:$K"),9,FALSE) -> 0.003532515785
B16: Average | C16: =VLOOKUP(A$14,'Data Billing Quantities'!A:P,MATCH(B16&" kWh",'Data Billing Quantities'!$4:$4,0),FALSE) -> 1887 | E16: BI_GSe_Avg | F16: BI Template_Energy | G16: =VLOOKUP(VLOOKUP($F16,'Data BI Summary'!$A:$F,MATCH(G$1,'Data BI Summary'!$2:$2,0),FALSE),INDIRECT("'"&$E16&"'!"&"$A:$K"),4,FALSE) -> 383.771897 | H16: =VLOOKUP(VLOOKUP($F16,'Data BI Summary'!$A:$F,MATCH(H$1,'Data BI Summary'!$2:$2,0),FALSE),INDIRECT("'"&$E16&"'!"&"$A:$K"),8,FALSE) -> 1.4409 | I16: =VLOOKUP(VLOOKUP($F16,'Data BI Summary'!$A:$F,MATCH(I$1,'Data BI Summary'!$2:$2,0),FALSE),INDIRECT("'"&$E16&"'!"&"$A:$K"),9,FALSE) -> 0.009157478894 | J16: =VLOOKUP(VLOOKUP($F16,'Data BI Summary'!$A:$F,MATCH(J$1,'Data BI Summary'!$2:$2,0),FALSE),INDIRECT("'"&$E16&"'!"&"$A:$K"),8,FALSE) -> 1.3558869 | K16: =VLOOKUP(VLOOKUP($F16,'Data BI Summary'!$A:$F,MATCH(K$1,'Data BI Summary'!$2:$2,0),FALSE),INDIRECT("'"&$E16&"'!"&"$A:$K"),9,FALSE) -> 0.003533054167
B17: High | C17: =VLOOKUP(A$14,'Data Billing Quantities'!A:P,MATCH(B17&" kWh",'Data Billing Quantities'!$4:$4,0),FALSE) -> 5570 | E17: BI_GSe_High | F17: BI Template_Energy | G17: =VLOOKUP(VLOOKUP($F17,'Data BI Summary'!$A:$F,MATCH(G$1,'Data BI Summary'!$2:$2,0),FALSE),INDIRECT("'"&$E17&"'!"&"$A:$K"),4,FALSE) -> 1072.43869 | H17: =VLOOKUP(VLOOKUP($F17,'Data BI Summary'!$A:$F,MATCH(H$1,'Data BI Summary'!$2:$2,0),FALSE),INDIRECT("'"&$E17&"'!"&"$A:$K"),8,FALSE) -> 4.019 | I17: =VLOOKUP(VLOOKUP($F17,'Data BI Summary'!$A:$F,MATCH(I$1,'Data BI Summary'!$2:$2,0),FALSE),INDIRECT("'"&$E17&"'!"&"$A:$K"),9,FALSE) -> 0.01000004976 | J17: =VLOOKUP(VLOOKUP($F17,'Data BI Summary'!$A:$F,MATCH(J$1,'Data BI Summary'!$2:$2,0),FALSE),INDIRECT("'"&$E17&"'!"&"$A:$K"),8,FALSE) -> 3.781879 | K17: =VLOOKUP(VLOOKUP($F17,'Data BI Summary'!$A:$F,MATCH(K$1,'Data BI Summary'!$2:$2,0),FALSE),INDIRECT("'"&$E17&"'!"&"$A:$K"),9,FALSE) -> 0.003526429095
A18: UGe | B18: Low | C18: =VLOOKUP(A$18,'Data Billing Quantities'!A:P,MATCH(B18&" kWh",'Data Billing Quantities'!$4:$4,0),FALSE) -> 180 | E18: BI_UGe_Low | F18: BI Template_Energy | G18: =VLOOKUP(VLOOKUP($F18,'Data BI Summary'!$A:$F,MATCH(G$1,'Data BI Summary'!$2:$2,0),FALSE),INDIRECT("'"&$E18&"'!"&"$A:$K"),4,FALSE) -> 51.55280846 | H18: =VLOOKUP(VLOOKUP($F18,'Data BI Summary'!$A:$F,MATCH(H$1,'Data BI Summary'!$2:$2,0),FALSE),INDIRECT("'"&$E18&"'!"&"$A:$K"),8,FALSE) -> 0.224 | I18: =VLOOKUP(VLOOKUP($F18,'Data BI Summary'!$A:$F,MATCH(I$1,'Data BI Summary'!$2:$2,0),FALSE),INDIRECT("'"&$E18&"'!"&"$A:$K"),9,FALSE) -> 0.007314046888 | J18: =VLOOKUP(VLOOKUP($F18,'Data BI Summary'!$A:$F,MATCH(J$1,'Data BI Summary'!$2:$2,0),FALSE),INDIRECT("'"&$E18&"'!"&"$A:$K"),8,FALSE) -> 0.210784 | K18: =VLOOKUP(VLOOKUP($F18,'Data BI Summary'!$A:$F,MATCH(K$1,'Data BI Summary'!$2:$2,0),FALSE),INDIRECT("'"&$E18&"'!"&"$A:$K"),9,FALSE) -> 0.004088700622 | L18: TOU
B19: Typical | C19: =VLOOKUP(A$18,'Data Billing Quantities'!A:P,MATCH(B19&" kWh",'Data Billing Quantities'!$4:$4,0),FALSE) -> 2000 | E19: BI_UGe_Typical | F19: BI Template_Energy | G19: =VLOOKUP(VLOOKUP($F19,'Data BI Summary'!$A:$F,MATCH(G$1,'Data BI Summary'!$2:$2,0),FALSE),INDIRECT("'"&$E19&"'!"&"$A:$K"),4,FALSE) -> 327.9043229 | H19: =VLOOKUP(VLOOKUP($F19,'Data BI Summary'!$A:$F,MATCH(H$1,'Data BI Summary'!$2:$2,0),FALSE),INDIRECT("'"&$E19&"'!"&"$A:$K"),8,FALSE) -> 0.77 | I19: =VLOOKUP(VLOOKUP($F19,'Data BI Summary'!$A:$F,MATCH(I$1,'Data BI Summary'!$2:$2,0),FALSE),INDIRECT("'"&$E19&"'!"&"$A:$K"),9,FALSE) -> 0.008718297101 | J19: =VLOOKUP(VLOOKUP($F19,'Data BI Summary'!$A:$F,MATCH(J$1,'Data BI Summary'!$2:$2,0),FALSE),INDIRECT("'"&$E19&"'!"&"$A:$K"),8,FALSE) -> 0.72457 | K19: =VLOOKUP(VLOOKUP($F19,'Data BI Summary'!$A:$F,MATCH(K$1,'Data BI Summary'!$2:$2,0),FALSE),INDIRECT("'"&$E19&"'!"&"$A:$K"),9,FALSE) -> 0.002209699444
B20: Average | C20: =VLOOKUP(A$18,'Data Billing Quantities'!A:P,MATCH(B20&" kWh",'Data Billing Quantities'!$4:$4,0),FALSE) -> 2494 | E20: BI_UGe_Avg | F20: BI Template_Energy | G20: =VLOOKUP(VLOOKUP($F20,'Data BI Summary'!$A:$F,MATCH(G$1,'Data BI Summary'!$2:$2,0),FALSE),INDIRECT("'"&$E20&"'!"&"$A:$K"),4,FALSE) -> 402.9140197 | H20: =VLOOKUP(VLOOKUP($F20,'Data BI Summary'!$A:$F,MATCH(H$1,'Data BI Summary'!$2:$2,0),FALSE),INDIRECT("'"&$E20&"'!"&"$A:$K"),8,FALSE) -> 0.9182 | I20: =VLOOKUP(VLOOKUP($F20,'Data BI Summary'!$A:$F,MATCH(I$1,'Data BI Summary'!$2:$2,0),FALSE),INDIRECT("'"&$E20&"'!"&"$A:$K"),9,FALSE) -> 0.008830561321 | J20: =VLOOKUP(VLOOKUP($F20,'Data BI Summary'!$A:$F,MATCH(J$1,'Data BI Summary'!$2:$2,0),FALSE),INDIRECT("'"&$E20&"'!"&"$A:$K"),8,FALSE) -> 0.8640262 | K20: =VLOOKUP(VLOOKUP($F20,'Data BI Summary'!$A:$F,MATCH(K$1,'Data BI Summary'!$2:$2,0),FALSE),INDIRECT("'"&$E20&"'!"&"$A:$K"),9,FALSE) -> 0.002144443126
B21: High | C21: =VLOOKUP(A$18,'Data Billing Quantities'!A:P,MATCH(B21&" kWh",'Data Billing Quantities'!$4:$4,0),FALSE) -> 6930 | E21: BI_UGe_High | F21: BI Template_Energy | G21: =VLOOKUP(VLOOKUP($F21,'Data BI Summary'!$A:$F,MATCH(G$1,'Data BI Summary'!$2:$2,0),FALSE),INDIRECT("'"&$E21&"'!"&"$A:$K"),4,FALSE) -> 1076.482876 | H21: =VLOOKUP(VLOOKUP($F21,'Data BI Summary'!$A:$F,MATCH(H$1,'Data BI Summary'!$2:$2,0),FALSE),INDIRECT("'"&$E21&"'!"&"$A:$K"),8,FALSE) -> 2.249 | I21: =VLOOKUP(VLOOKUP($F21,'Data BI Summary'!$A:$F,MATCH(I$1,'Data BI Summary'!$2:$2,0),FALSE),INDIRECT("'"&$E21&"'!"&"$A:$K"),9,FALSE) -> 0.009194565844 | J21: =VLOOKUP(VLOOKUP($F21,'Data BI Summary'!$A:$F,MATCH(J$1,'Data BI Summary'!$2:$2,0),FALSE),INDIRECT("'"&$E21&"'!"&"$A:$K"),8,FALSE) -> 2.116309 | K21: =VLOOKUP(VLOOKUP($F21,'Data BI Summary'!$A:$F,MATCH(K$1,'Data BI Summary'!$2:$2,0),FALSE),INDIRECT("'"&$E21&"'!"&"$A:$K"),9,FALSE) -> 0.001965947669
A22: GSd | B22: Low | C22: =VLOOKUP(A$22,'Data Billing Quantities'!A:P,MATCH(B22&" kWh",'Data Billing Quantities'!$4:$4,0),FALSE) -> 9310 | D22: =VLOOKUP(A$22,'Data Billing Quantities'!A:P,MATCH(B22&" kW",'Data Billing Quantities'!$4:$4,0),FALSE) -> 55 | E22: BI_GSd_Low | F22: BI Template_Demand | G22: =VLOOKUP(VLOOKUP($F22,'Data BI Summary'!$A:$F,MATCH(G$1,'Data BI Summary'!$2:$2,0),FALSE),INDIRECT("'"&$E22&"'!"&"$A:$K"),4,FALSE) -> 2935.057637 | H22: =VLOOKUP(VLOOKUP($F22,'Data BI Summary'!$A:$F,MATCH(H$1,'Data BI Summary'!$2:$2,0),FALSE),INDIRECT("'"&$E22&"'!"&"$A:$K"),8,FALSE) -> -0.178 | I22: =VLOOKUP(VLOOKUP($F22,'Data BI Summary'!$A:$F,MATCH(I$1,'Data BI Summary'!$2:$2,0),FALSE),INDIRECT("'"&$E22&"'!"&"$A:$K"),9,FALSE) -> -0.0001553211002 | J22: =VLOOKUP(VLOOKUP($F22,'Data BI Summary'!$A:$F,MATCH(J$1,'Data BI Summary'!$2:$2,0),FALSE),INDIRECT("'"&$E22&"'!"&"$A:$K"),8,FALSE) -> -0.20114 | K22: =VLOOKUP(VLOOKUP($F22,'Data BI Summary'!$A:$F,MATCH(K$1,'Data BI Summary'!$2:$2,0),FALSE),INDIRECT("'"&$E22&"'!"&"$A:$K"),9,FALSE) -> -6.85301704e-05 | L22: WAHSP
B23: Average | C23: =VLOOKUP(A$22,'Data Billing Quantities'!A:P,MATCH(B23&" kWh",'Data Billing Quantities'!$4:$4,0),FALSE) -> 34334 | D23: =VLOOKUP(A$22,'Data Billing Quantities'!A:P,MATCH(B23&" kW",'Data Billing Quantities'!$4:$4,0),FALSE) -> 110 | E23: BI_GSd_Avg | F23: BI Template_Demand | G23: =VLOOKUP(VLOOKUP($F23,'Data BI Summary'!$A:$F,MATCH(G$1,'Data BI Summary'!$2:$2,0),FALSE),INDIRECT("'"&$E23&"'!"&"$A:$K"),4,FALSE) -> 8055.057382 | H23: =VLOOKUP(VLOOKUP($F23,'Data BI Summary'!$A:$F,MATCH(H$1,'Data BI Summary'!$2:$2,0),FALSE),INDIRECT("'"&$E23&"'!"&"$A:$K"),8,FALSE) -> 0.394 | I23: =VLOOKUP(VLOOKUP($F23,'Data BI Summary'!$A:$F,MATCH(I$1,'Data BI Summary'!$2:$2,0),FALSE),INDIRECT("'"&$E23&"'!"&"$A:$K"),9,FALSE) -> 0.0001809999485 | J23: =VLOOKUP(VLOOKUP($F23,'Data BI Summary'!$A:$F,MATCH(J$1,'Data BI Summary'!$2:$2,0),FALSE),INDIRECT("'"&$E23&"'!"&"$A:$K"),8,FALSE) -> 0.44522 | K23: =VLOOKUP(VLOOKUP($F23,'Data BI Summary'!$A:$F,MATCH(K$1,'Data BI Summary'!$2:$2,0),FALSE),INDIRECT("'"&$E23&"'!"&"$A:$K"),9,FALSE) -> 5.527210781e-05
B24: High | C24: =VLOOKUP(A$22,'Data Billing Quantities'!A:P,MATCH(B24&" kWh",'Data Billing Quantities'!$4:$4,0),FALSE) -> 75790 | D24: =VLOOKUP(A$22,'Data Billing Quantities'!A:P,MATCH(B24&" kW",'Data Billing Quantities'!$4:$4,0),FALSE) -> 250 | E24: BI_GSd_High | F24: BI Template_Demand | G24: =VLOOKUP(VLOOKUP($F24,'Data BI Summary'!$A:$F,MATCH(G$1,'Data BI Summary'!$2:$2,0),FALSE),INDIRECT("'"&$E24&"'!"&"$A:$K"),4,FALSE) -> 17828.1321 | H24: =VLOOKUP(VLOOKUP($F24,'Data BI Summary'!$A:$F,MATCH(H$1,'Data BI Summary'!$2:$2,0),FALSE),INDIRECT("'"&$E24&"'!"&"$A:$K"),8,FALSE) -> 1.85 | I24: =VLOOKUP(VLOOKUP($F24,'Data BI Summary'!$A:$F,MATCH(I$1,'Data BI Summary'!$2:$2,0),FALSE),INDIRECT("'"&$E24&"'!"&"$A:$K"),9,FALSE) -> 0.0003841220952 | J24: =VLOOKUP(VLOOKUP($F24,'Data BI Summary'!$A:$F,MATCH(J$1,'Data BI Summary'!$2:$2,0),FALSE),INDIRECT("'"&$E24&"'!"&"$A:$K"),8,FALSE) -> 2.0905 | K24: =VLOOKUP(VLOOKUP($F24,'Data BI Summary'!$A:$F,MATCH(K$1,'Data BI Summary'!$2:$2,0),FALSE),INDIRECT("'"&$E24&"'!"&"$A:$K"),9,FALSE) -> 0.0001172584985
A25: UGd | B25: Low | C25: =VLOOKUP(A$25,'Data Billing Quantities'!A:P,MATCH(B25&" kWh",'Data Billing Quantities'!$4:$4,0),FALSE) -> 13900 | D25: =VLOOKUP(A$25,'Data Billing Quantities'!A:P,MATCH(B25&" kW",'Data Billing Quantities'!$4:$4,0),FALSE) -> 55 | E25: BI_UGd_Low | F25: BI Template_Demand | G25: =VLOOKUP(VLOOKUP($F25,'Data BI Summary'!$A:$F,MATCH(G$1,'Data BI Summary'!$2:$2,0),FALSE),INDIRECT("'"&$E25&"'!"&"$A:$K"),4,FALSE) -> 3144.810905 | H25: =VLOOKUP(VLOOKUP($F25,'Data BI Summary'!$A:$F,MATCH(H$1,'Data BI Summary'!$2:$2,0),FALSE),INDIRECT("'"&$E25&"'!"&"$A:$K"),8,FALSE) -> 0.131 | I25: =VLOOKUP(VLOOKUP($F25,'Data BI Summary'!$A:$F,MATCH(I$1,'Data BI Summary'!$2:$2,0),FALSE),INDIRECT("'"&$E25&"'!"&"$A:$K"),9,FALSE) -> 0.0001903718354 | J25: =VLOOKUP(VLOOKUP($F25,'Data BI Summary'!$A:$F,MATCH(J$1,'Data BI Summary'!$2:$2,0),FALSE),INDIRECT("'"&$E25&"'!"&"$A:$K"),8,FALSE) -> 0.14803 | K25: =VLOOKUP(VLOOKUP($F25,'Data BI Summary'!$A:$F,MATCH(K$1,'Data BI Summary'!$2:$2,0),FALSE),INDIRECT("'"&$E25&"'!"&"$A:$K"),9,FALSE) -> 4.707119266e-05 | L25: WAHSP
B26: Average | C26: =VLOOKUP(A$25,'Data Billing Quantities'!A:P,MATCH(B26&" kWh",'Data Billing Quantities'!$4:$4,0),FALSE) -> 42592 | D26: =VLOOKUP(A$25,'Data Billing Quantities'!A:P,MATCH(B26&" kW",'Data Billing Quantities'!$4:$4,0),FALSE) -> 111 | E26: BI_UGd_Avg | F26: BI Template_Demand | G26: =VLOOKUP(VLOOKUP($F26,'Data BI Summary'!$A:$F,MATCH(G$1,'Data BI Summary'!$2:$2,0),FALSE),INDIRECT("'"&$E26&"'!"&"$A:$K"),4,FALSE) -> 8345.609169 | H26: =VLOOKUP(VLOOKUP($F26,'Data BI Summary'!$A:$F,MATCH(H$1,'Data BI Summary'!$2:$2,0),FALSE),INDIRECT("'"&$E26&"'!"&"$A:$K"),8,FALSE) -> 0.7022 | I26: =VLOOKUP(VLOOKUP($F26,'Data BI Summary'!$A:$F,MATCH(I$1,'Data BI Summary'!$2:$2,0),FALSE),INDIRECT("'"&$E26&"'!"&"$A:$K"),9,FALSE) -> 0.0005478844964 | J26: =VLOOKUP(VLOOKUP($F26,'Data BI Summary'!$A:$F,MATCH(J$1,'Data BI Summary'!$2:$2,0),FALSE),INDIRECT("'"&$E26&"'!"&"$A:$K"),8,FALSE) -> 0.793486 | K26: =VLOOKUP(VLOOKUP($F26,'Data BI Summary'!$A:$F,MATCH(K$1,'Data BI Summary'!$2:$2,0),FALSE),INDIRECT("'"&$E26&"'!"&"$A:$K"),9,FALSE) -> 9.507826019e-05
B27: High | C27: =VLOOKUP(A$25,'Data Billing Quantities'!A:P,MATCH(B27&" kWh",'Data Billing Quantities'!$4:$4,0),FALSE) -> 97610 | D27: =VLOOKUP(A$25,'Data Billing Quantities'!A:P,MATCH(B27&" kW",'Data Billing Quantities'!$4:$4,0),FALSE) -> 280 | E27: BI_UGd_High | F27: BI Template_Demand | G27: =VLOOKUP(VLOOKUP($F27,'Data BI Summary'!$A:$F,MATCH(G$1,'Data BI Summary'!$2:$2,0),FALSE),INDIRECT("'"&$E27&"'!"&"$A:$K"),4,FALSE) -> 19462.2312 | H27: =VLOOKUP(VLOOKUP($F27,'Data BI Summary'!$A:$F,MATCH(H$1,'Data BI Summary'!$2:$2,0),FALSE),INDIRECT("'"&$E27&"'!"&"$A:$K"),8,FALSE) -> 2.426 | I27: =VLOOKUP(VLOOKUP($F27,'Data BI Summary'!$A:$F,MATCH(I$1,'Data BI Summary'!$2:$2,0),FALSE),INDIRECT("'"&$E27&"'!"&"$A:$K"),9,FALSE) -> 0.0007838588408 | J27: =VLOOKUP(VLOOKUP($F27,'Data BI Summary'!$A:$F,MATCH(J$1,'Data BI Summary'!$2:$2,0),FALSE),INDIRECT("'"&$E27&"'!"&"$A:$K"),8,FALSE) -> 2.74138 | K27: =VLOOKUP(VLOOKUP($F27,'Data BI Summary'!$A:$F,MATCH(K$1,'Data BI Summary'!$2:$2,0),FALSE),INDIRECT("'"&$E27&"'!"&"$A:$K"),9,FALSE) -> 0.0001408564091
A28: St Lgt | B28: Low | C28: =VLOOKUP(A$28,'Data Billing Quantities'!A:P,MATCH(B28&" kWh",'Data Billing Quantities'!$4:$4,0),FALSE) -> 30 | E28: BI_StLgt_Low | F28: BI Template_EnergyUNM | G28: =VLOOKUP(VLOOKUP($F28,'Data BI Summary'!$A:$F,MATCH(G$1,'Data BI Summary'!$2:$2,0),FALSE),INDIRECT("'"&$E28&"'!"&"$A:$K"),4,FALSE) -> 9.676577772 | H28: =VLOOKUP(VLOOKUP($F28,'Data BI Summary'!$A:$F,MATCH(H$1,'Data BI Summary'!$2:$2,0),FALSE),INDIRECT("'"&$E28&"'!"&"$A:$K"),8,FALSE) -> 0.008 | I28: =VLOOKUP(VLOOKUP($F28,'Data BI Summary'!$A:$F,MATCH(I$1,'Data BI Summary'!$2:$2,0),FALSE),INDIRECT("'"&$E28&"'!"&"$A:$K"),9,FALSE) -> 0.001255098839 | J28: =VLOOKUP(VLOOKUP($F28,'Data BI Summary'!$A:$F,MATCH(J$1,'Data BI Summary'!$2:$2,0),FALSE),INDIRECT("'"&$E28&"'!"&"$A:$K"),8,FALSE) -> 0.007528 | K28: =VLOOKUP(VLOOKUP($F28,'Data BI Summary'!$A:$F,MATCH(K$1,'Data BI Summary'!$2:$2,0),FALSE),INDIRECT("'"&$E28&"'!"&"$A:$K"),9,FALSE) -> 0.0007779609876 | L28: Two-tier RPP
B29: Average | C29: =VLOOKUP(A$28,'Data Billing Quantities'!A:P,MATCH(B29&" kWh",'Data Billing Quantities'!$4:$4,0),FALSE) -> 1274 | E29: BI_StLgt_Avg | F29: BI Template_EnergyUNM | G29: =VLOOKUP(VLOOKUP($F29,'Data BI Summary'!$A:$F,MATCH(G$1,'Data BI Summary'!$2:$2,0),FALSE),INDIRECT("'"&$E29&"'!"&"$A:$K"),4,FALSE) -> 291.2523631 | H29: =VLOOKUP(VLOOKUP($F29,'Data BI Summary'!$A:$F,MATCH(H$1,'Data BI Summary'!$2:$2,0),FALSE),INDIRECT("'"&$E29&"'!"&"$A:$K"),8,FALSE) -> 0.7544 | I29: =VLOOKUP(VLOOKUP($F29,'Data BI Summary'!$A:$F,MATCH(I$1,'Data BI Summary'!$2:$2,0),FALSE),INDIRECT("'"&$E29&"'!"&"$A:$K"),9,FALSE) -> 0.005276808622 | J29: =VLOOKUP(VLOOKUP($F29,'Data BI Summary'!$A:$F,MATCH(J$1,'Data BI Summary'!$2:$2,0),FALSE),INDIRECT("'"&$E29&"'!"&"$A:$K"),8,FALSE) -> 0.7098904 | K29: =VLOOKUP(VLOOKUP($F29,'Data BI Summary'!$A:$F,MATCH(K$1,'Data BI Summary'!$2:$2,0),FALSE),INDIRECT("'"&$E29&"'!"&"$A:$K"),9,FALSE) -> 0.002437372155
B30: High | C30: =VLOOKUP(A$28,'Data Billing Quantities'!A:P,MATCH(B30&" kWh",'Data Billing Quantities'!$4:$4,0),FALSE) -> 2310 | E30: BI_StLgt_High | F30: BI Template_EnergyUNM | G30: =VLOOKUP(VLOOKUP($F30,'Data BI Summary'!$A:$F,MATCH(G$1,'Data BI Summary'!$2:$2,0),FALSE),INDIRECT("'"&$E30&"'!"&"$A:$K"),4,FALSE) -> 535.3032109 | H30: =VLOOKUP(VLOOKUP($F30,'Data BI Summary'!$A:$F,MATCH(H$1,'Data BI Summary'!$2:$2,0),FALSE),INDIRECT("'"&$E30&"'!"&"$A:$K"),8,FALSE) -> 1.376 | I30: =VLOOKUP(VLOOKUP($F30,'Data BI Summary'!$A:$F,MATCH(I$1,'Data BI Summary'!$2:$2,0),FALSE),INDIRECT("'"&$E30&"'!"&"$A:$K"),9,FALSE) -> 0.005359966968 | J30: =VLOOKUP(VLOOKUP($F30,'Data BI Summary'!$A:$F,MATCH(J$1,'Data BI Summary'!$2:$2,0),FALSE),INDIRECT("'"&$E30&"'!"&"$A:$K"),8,FALSE) -> 1.294816 | K30: =VLOOKUP(VLOOKUP($F30,'Data BI Summary'!$A:$F,MATCH(K$1,'Data BI Summary'!$2:$2,0),FALSE),INDIRECT("'"&$E30&"'!"&"$A:$K"),9,FALSE) -> 0.002418845943
A31: Sen Lgt | B31: Low | C31: =VLOOKUP(A$31,'Data Billing Quantities'!A:P,MATCH(B31&" kWh",'Data Billing Quantities'!$4:$4,0),FALSE) -> 20 | E31: BI_SenLgt_Low | F31: BI Template_EnergyUNM | G31: =VLOOKUP(VLOOKUP($F31,'Data BI Summary'!$A:$F,MATCH(G$1,'Data BI Summary'!$2:$2,0),FALSE),INDIRECT("'"&$E31&"'!"&"$A:$K"),4,FALSE) -> 8.408331848 | H31: =VLOOKUP(VLOOKUP($F31,'Data BI Summary'!$A:$F,MATCH(H$1,'Data BI Summary'!$2:$2,0),FALSE),INDIRECT("'"&$E31&"'!"&"$A:$K"),8,FALSE) -> -0.086 | I31: =VLOOKUP(VLOOKUP($F31,'Data BI Summary'!$A:$F,MATCH(I$1,'Data BI Summary'!$2:$2,0),FALSE),INDIRECT("'"&$E31&"'!"&"$A:$K"),9,FALSE) -> -0.01376881204 | J31: =VLOOKUP(VLOOKUP($F31,'Data BI Summary'!$A:$F,MATCH(J$1,'Data BI Summary'!$2:$2,0),FALSE),INDIRECT("'"&$E31&"'!"&"$A:$K"),8,FALSE) -> -0.080926 | K31: =VLOOKUP(VLOOKUP($F31,'Data BI Summary'!$A:$F,MATCH(K$1,'Data BI Summary'!$2:$2,0),FALSE),INDIRECT("'"&$E31&"'!"&"$A:$K"),9,FALSE) -> -0.009624501205 | L31: Two-tier RPP
B32: Average | C32: =VLOOKUP(A$31,'Data Billing Quantities'!A:P,MATCH(B32&" kWh",'Data Billing Quantities'!$4:$4,0),FALSE) -> 49 | E32: BI_SenLgt_Avg | F32: BI Template_EnergyUNM | G32: =VLOOKUP(VLOOKUP($F32,'Data BI Summary'!$A:$F,MATCH(G$1,'Data BI Summary'!$2:$2,0),FALSE),INDIRECT("'"&$E32&"'!"&"$A:$K"),4,FALSE) -> 16.17959503 | H32: =VLOOKUP(VLOOKUP($F32,'Data BI Summary'!$A:$F,MATCH(H$1,'Data BI Summary'!$2:$2,0),FALSE),INDIRECT("'"&$E32&"'!"&"$A:$K"),8,FALSE) -> -0.1382 | I32: =VLOOKUP(VLOOKUP($F32,'Data BI Summary'!$A:$F,MATCH(I$1,'Data BI Summary'!$2:$2,0),FALSE),INDIRECT("'"&$E32&"'!"&"$A:$K"),9,FALSE) -> -0.01260121088 | J32: =VLOOKUP(VLOOKUP($F32,'Data BI Summary'!$A:$F,MATCH(J$1,'Data BI Summary'!$2:$2,0),FALSE),INDIRECT("'"&$E32&"'!"&"$A:$K"),8,FALSE) -> -0.1300462 | K32: =VLOOKUP(VLOOKUP($F32,'Data BI Summary'!$A:$F,MATCH(K$1,'Data BI Summary'!$2:$2,0),FALSE),INDIRECT("'"&$E32&"'!"&"$A:$K"),9,FALSE) -> -0.008037667184
B33: High | C33: =VLOOKUP(A$31,'Data Billing Quantities'!A:P,MATCH(B33&" kWh",'Data Billing Quantities'!$4:$4,0),FALSE) -> 80 | E33: BI_SenLgt_High | F33: BI Template_EnergyUNM | G33: =VLOOKUP(VLOOKUP($F33,'Data BI Summary'!$A:$F,MATCH(G$1,'Data BI Summary'!$2:$2,0),FALSE),INDIRECT("'"&$E33&"'!"&"$A:$K"),4,FALSE) -> 24.48680739 | H33: =VLOOKUP(VLOOKUP($F33,'Data BI Summary'!$A:$F,MATCH(H$1,'Data BI Summary'!$2:$2,0),FALSE),INDIRECT("'"&$E33&"'!"&"$A:$K"),8,FALSE) -> -0.194 | I33: =VLOOKUP(VLOOKUP($F33,'Data BI Summary'!$A:$F,MATCH(I$1,'Data BI Summary'!$2:$2,0),FALSE),INDIRECT("'"&$E33&"'!"&"$A:$K"),9,FALSE) -> -0.0121143999 | J33: =VLOOKUP(VLOOKUP($F33,'Data BI Summary'!$A:$F,MATCH(J$1,'Data BI Summary'!$2:$2,0),FALSE),INDIRECT("'"&$E33&"'!"&"$A:$K"),8,FALSE) -> -0.182554 | K33: =VLOOKUP(VLOOKUP($F33,'Data BI Summary'!$A:$F,MATCH(K$1,'Data BI Summary'!$2:$2,0),FALSE),INDIRECT("'"&$E33&"'!"&"$A:$K"),9,FALSE) -> -0.007455198102
A34: USL | B34: Low | C34: =VLOOKUP(A$34,'Data Billing Quantities'!A:P,MATCH(B34&" kWh",'Data Billing Quantities'!$4:$4,0),FALSE) -> 100 | E34: BI_USL_Low | F34: BI Template_EnergyUNM | G34: =VLOOKUP(VLOOKUP($F34,'Data BI Summary'!$A:$F,MATCH(G$1,'Data BI Summary'!$2:$2,0),FALSE),INDIRECT("'"&$E34&"'!"&"$A:$K"),4,FALSE) -> 47.3225136 | H34: =VLOOKUP(VLOOKUP($F34,'Data BI Summary'!$A:$F,MATCH(H$1,'Data BI Summary'!$2:$2,0),FALSE),INDIRECT("'"&$E34&"'!"&"$A:$K"),8,FALSE) -> 0.31 | I34: =VLOOKUP(VLOOKUP($F34,'Data BI Summary'!$A:$F,MATCH(I$1,'Data BI Summary'!$2:$2,0),FALSE),INDIRECT("'"&$E34&"'!"&"$A:$K"),9,FALSE) -> 0.008222811671 | J34: =VLOOKUP(VLOOKUP($F34,'Data BI Summary'!$A:$F,MATCH(J$1,'Data BI Summary'!$2:$2,0),FALSE),INDIRECT("'"&$E34&"'!"&"$A:$K"),8,FALSE) -> 0.29171 | K34: =VLOOKUP(VLOOKUP($F34,'Data BI Summary'!$A:$F,MATCH(K$1,'Data BI Summary'!$2:$2,0),FALSE),INDIRECT("'"&$E34&"'!"&"$A:$K"),9,FALSE) -> 0.006164296395 | L34: Two-tier RPP
B35: Average | C35: =VLOOKUP(A$34,'Data Billing Quantities'!A:P,MATCH(B35&" kWh",'Data Billing Quantities'!$4:$4,0),FALSE) -> 477 | E35: BI_USL_Avg | F35: BI Template_EnergyUNM | G35: =VLOOKUP(VLOOKUP($F35,'Data BI Summary'!$A:$F,MATCH(G$1,'Data BI Summary'!$2:$2,0),FALSE),INDIRECT("'"&$E35&"'!"&"$A:$K"),4,FALSE) -> 98.72538387 | H35: =VLOOKUP(VLOOKUP($F35,'Data BI Summary'!$A:$F,MATCH(H$1,'Data BI Summary'!$2:$2,0),FALSE),INDIRECT("'"&$E35&"'!"&"$A:$K"),8,FALSE) -> 0.3854 | I35: =VLOOKUP(VLOOKUP($F35,'Data BI Summary'!$A:$F,MATCH(I$1,'Data BI Summary'!$2:$2,0),FALSE),INDIRECT("'"&$E35&"'!"&"$A:$K"),9,FALSE) -> 0.008413836766 | J35: =VLOOKUP(VLOOKUP($F35,'Data BI Summary'!$A:$F,MATCH(J$1,'Data BI Summary'!$2:$2,0),FALSE),INDIRECT("'"&$E35&"'!"&"$A:$K"),8,FALSE) -> 0.3626614 | K35: =VLOOKUP(VLOOKUP($F35,'Data BI Summary'!$A:$F,MATCH(K$1,'Data BI Summary'!$2:$2,0),FALSE),INDIRECT("'"&$E35&"'!"&"$A:$K"),9,FALSE) -> 0.00367343621
B36: High | C36: =VLOOKUP(A$34,'Data Billing Quantities'!A:P,MATCH(B36&" kWh",'Data Billing Quantities'!$4:$4,0),FALSE) -> 550 | E36: BI_USL_High | F36: BI Template_EnergyUNM | G36: =VLOOKUP(VLOOKUP($F36,'Data BI Summary'!$A:$F,MATCH(G$1,'Data BI Summary'!$2:$2,0),FALSE),INDIRECT("'"&$E36&"'!"&"$A:$K"),4,FALSE) -> 108.6787248 | H36: =VLOOKUP(VLOOKUP($F36,'Data BI Summary'!$A:$F,MATCH(H$1,'Data BI Summary'!$2:$2,0),FALSE),INDIRECT("'"&$E36&"'!"&"$A:$K"),8,FALSE) -> 0.4 | I36: =VLOOKUP(VLOOKUP($F36,'Data BI Summary'!$A:$F,MATCH(I$1,'Data BI Summary'!$2:$2,0),FALSE),INDIRECT("'"&$E36&"'!"&"$A:$K"),9,FALSE) -> 0.008443271768 | J36: =VLOOKUP(VLOOKUP($F36,'Data BI Summary'!$A:$F,MATCH(J$1,'Data BI Summary'!$2:$2,0),FALSE),INDIRECT("'"&$E36&"'!"&"$A:$K"),8,FALSE) -> 0.3764 | K36: =VLOOKUP(VLOOKUP($F36,'Data BI Summary'!$A:$F,MATCH(K$1,'Data BI Summary'!$2:$2,0),FALSE),INDIRECT("'"&$E36&"'!"&"$A:$K"),9,FALSE) -> 0.003463419365
A37: DGen | B37: Low | C37: =VLOOKUP(A$37,'Data Billing Quantities'!A:P,MATCH($B37&" kWh",'Data Billing Quantities'!$4:$4,0),FALSE) -> 10 | D37: =VLOOKUP(A$37,'Data Billing Quantities'!A:P,MATCH($B37&" kW",'Data Billing Quantities'!$4:$4,0),FALSE) -> 0.02941666667 | E37: BI_Dgen_Low | F37: BI Template_Demand | G37: =VLOOKUP(VLOOKUP($F37,'Data BI Summary'!$A:$F,MATCH(G$1,'Data BI Summary'!$2:$2,0),FALSE),INDIRECT("'"&$E37&"'!"&"$A:$K"),4,FALSE) -> 221.6895677 | H37: =VLOOKUP(VLOOKUP($F37,'Data BI Summary'!$A:$F,MATCH(H$1,'Data BI Summary'!$2:$2,0),FALSE),INDIRECT("'"&$E37&"'!"&"$A:$K"),8,FALSE) -> 4.835387858 | I37: =VLOOKUP(VLOOKUP($F37,'Data BI Summary'!$A:$F,MATCH(I$1,'Data BI Summary'!$2:$2,0),FALSE),INDIRECT("'"&$E37&"'!"&"$A:$K"),9,FALSE) -> 0.02485186111 | J37: =VLOOKUP(VLOOKUP($F37,'Data BI Summary'!$A:$F,MATCH(J$1,'Data BI Summary'!$2:$2,0),FALSE),INDIRECT("'"&$E37&"'!"&"$A:$K"),8,FALSE) -> 5.46398828 | K37: =VLOOKUP(VLOOKUP($F37,'Data BI Summary'!$A:$F,MATCH(K$1,'Data BI Summary'!$2:$2,0),FALSE),INDIRECT("'"&$E37&"'!"&"$A:$K"),9,FALSE) -> 0.02464702483 | L37: WAHSP
B38: Average | C38: =VLOOKUP(A$37,'Data Billing Quantities'!A:P,MATCH($B38&" kWh",'Data Billing Quantities'!$4:$4,0),FALSE) -> 1709 | D38: =VLOOKUP(A$37,'Data Billing Quantities'!A:P,MATCH($B38&" kW",'Data Billing Quantities'!$4:$4,0),FALSE) -> 12 | E38: BI_Dgen_Avg | F38: BI Template_Demand | G38: =VLOOKUP(VLOOKUP($F38,'Data BI Summary'!$A:$F,MATCH(G$1,'Data BI Summary'!$2:$2,0),FALSE),INDIRECT("'"&$E38&"'!"&"$A:$K"),4,FALSE) -> 635.5359584 | H38: =VLOOKUP(VLOOKUP($F38,'Data BI Summary'!$A:$F,MATCH(H$1,'Data BI Summary'!$2:$2,0),FALSE),INDIRECT("'"&$E38&"'!"&"$A:$K"),8,FALSE) -> 11.0972 | I38: =VLOOKUP(VLOOKUP($F38,'Data BI Summary'!$A:$F,MATCH(I$1,'Data BI Summary'!$2:$2,0),FALSE),INDIRECT("'"&$E38&"'!"&"$A:$K"),9,FALSE) -> 0.03538610723 | J38: =VLOOKUP(VLOOKUP($F38,'Data BI Summary'!$A:$F,MATCH(J$1,'Data BI Summary'!$2:$2,0),FALSE),INDIRECT("'"&$E38&"'!"&"$A:$K"),8,FALSE) -> 12.539836 | K38: =VLOOKUP(VLOOKUP($F38,'Data BI Summary'!$A:$F,MATCH(K$1,'Data BI Summary'!$2:$2,0),FALSE),INDIRECT("'"&$E38&"'!"&"$A:$K"),9,FALSE) -> 0.01973111959
B39: High | C39: =VLOOKUP(A$37,'Data Billing Quantities'!A:P,MATCH($B39&" kWh",'Data Billing Quantities'!$4:$4,0),FALSE) -> 8490 | D39: =VLOOKUP(A$37,'Data Billing Quantities'!A:P,MATCH($B39&" kW",'Data Billing Quantities'!$4:$4,0),FALSE) -> 45 | E39: BI_Dgen_High | F39: BI Template_Demand | G39: =VLOOKUP(VLOOKUP($F39,'Data BI Summary'!$A:$F,MATCH(G$1,'Data BI Summary'!$2:$2,0),FALSE),INDIRECT("'"&$E39&"'!"&"$A:$K"),4,FALSE) -> 2083.78066 | H39: =VLOOKUP(VLOOKUP($F39,'Data BI Summary'!$A:$F,MATCH(H$1,'Data BI Summary'!$2:$2,0),FALSE),INDIRECT("'"&$E39&"'!"&"$A:$K"),8,FALSE) -> 28.3595 | I39: =VLOOKUP(VLOOKUP($F39,'Data BI Summary'!$A:$F,MATCH(I$1,'Data BI Summary'!$2:$2,0),FALSE),INDIRECT("'"&$E39&"'!"&"$A:$K"),9,FALSE) -> 0.04429196038 | J39: =VLOOKUP(VLOOKUP($F39,'Data BI Summary'!$A:$F,MATCH(J$1,'Data BI Summary'!$2:$2,0),FALSE),INDIRECT("'"&$E39&"'!"&"$A:$K"),8,FALSE) -> 32.046235 | K39: =VLOOKUP(VLOOKUP($F39,'Data BI Summary'!$A:$F,MATCH(K$1,'Data BI Summary'!$2:$2,0),FALSE),INDIRECT("'"&$E39&"'!"&"$A:$K"),9,FALSE) -> 0.0153788907
A40: ST | B40: Low | C40: =VLOOKUP(A$40,'Data Billing Quantities'!A:P,MATCH($B40&" kWh",'Data Billing Quantities'!$4:$4,0),FALSE) -> 88780 | D40: =VLOOKUP(A$40,'Data Billing Quantities'!A:P,MATCH($B40&" kW",'Data Billing Quantities'!$4:$4,0),FALSE) -> 500 | E40: BI_ST_Low | F40: BI Template_Demand | G40: =VLOOKUP(VLOOKUP($F40,'Data BI Summary'!$A:$F,MATCH(G$1,'Data BI Summary'!$2:$2,0),FALSE),INDIRECT("'"&$E40&"'!"&"$A:$K"),4,FALSE) -> 18930.39518 | H40: =VLOOKUP(VLOOKUP($F40,'Data BI Summary'!$A:$F,MATCH(H$1,'Data BI Summary'!$2:$2,0),FALSE),INDIRECT("'"&$E40&"'!"&"$A:$K"),8,FALSE) -> 25.81 | I40: =VLOOKUP(VLOOKUP($F40,'Data BI Summary'!$A:$F,MATCH(I$1,'Data BI Summary'!$2:$2,0),FALSE),INDIRECT("'"&$E40&"'!"&"$A:$K"),9,FALSE) -> 0.01440512043 | J40: =VLOOKUP(VLOOKUP($F40,'Data BI Summary'!$A:$F,MATCH(J$1,'Data BI Summary'!$2:$2,0),FALSE),INDIRECT("'"&$E40&"'!"&"$A:$K"),8,FALSE) -> 29.1653 | K40: =VLOOKUP(VLOOKUP($F40,'Data BI Summary'!$A:$F,MATCH(K$1,'Data BI Summary'!$2:$2,0),FALSE),INDIRECT("'"&$E40&"'!"&"$A:$K"),9,FALSE) -> 0.00154065986 | L40: WAHSP
B41: Average | C41: =VLOOKUP(A$40,'Data Billing Quantities'!A:P,MATCH($B41&" kWh",'Data Billing Quantities'!$4:$4,0),FALSE) -> 1373443 | D41: =VLOOKUP(A$40,'Data Billing Quantities'!A:P,MATCH($B41&" kW",'Data Billing Quantities'!$4:$4,0),FALSE) -> 2808 | E41: BI_ST_Avg | F41: BI Template_Demand | G41: =VLOOKUP(VLOOKUP($F41,'Data BI Summary'!$A:$F,MATCH(G$1,'Data BI Summary'!$2:$2,0),FALSE),INDIRECT("'"&$E41&"'!"&"$A:$K"),4,FALSE) -> 225014.2797 | H41: =VLOOKUP(VLOOKUP($F41,'Data BI Summary'!$A:$F,MATCH(H$1,'Data BI Summary'!$2:$2,0),FALSE),INDIRECT("'"&$E41&"'!"&"$A:$K"),8,FALSE) -> 73.5856 | I41: =VLOOKUP(VLOOKUP($F41,'Data BI Summary'!$A:$F,MATCH(I$1,'Data BI Summary'!$2:$2,0),FALSE),INDIRECT("'"&$E41&"'!"&"$A:$K"),9,FALSE) -> 0.01870750249 | J41: =VLOOKUP(VLOOKUP($F41,'Data BI Summary'!$A:$F,MATCH(J$1,'Data BI Summary'!$2:$2,0),FALSE),INDIRECT("'"&$E41&"'!"&"$A:$K"),8,FALSE) -> 83.151728 | K41: =VLOOKUP(VLOOKUP($F41,'Data BI Summary'!$A:$F,MATCH(K$1,'Data BI Summary'!$2:$2,0),FALSE),INDIRECT("'"&$E41&"'!"&"$A:$K"),9,FALSE) -> 0.0003695397826
B42: High | C42: =VLOOKUP(A$40,'Data Billing Quantities'!A:P,MATCH($B42&" kWh",'Data Billing Quantities'!$4:$4,0),FALSE) -> 2641420 | D42: =VLOOKUP(A$40,'Data Billing Quantities'!A:P,MATCH($B42&" kW",'Data Billing Quantities'!$4:$4,0),FALSE) -> 13730 | E42: BI_ST_High | F42: BI Template_Demand | G42: =VLOOKUP(VLOOKUP($F42,'Data BI Summary'!$A:$F,MATCH(G$1,'Data BI Summary'!$2:$2,0),FALSE),INDIRECT("'"&$E42&"'!"&"$A:$K"),4,FALSE) -> 513153.2413 | H42: =VLOOKUP(VLOOKUP($F42,'Data BI Summary'!$A:$F,MATCH(H$1,'Data BI Summary'!$2:$2,0),FALSE),INDIRECT("'"&$E42&"'!"&"$A:$K"),8,FALSE) -> 299.671 | I42: =VLOOKUP(VLOOKUP($F42,'Data BI Summary'!$A:$F,MATCH(I$1,'Data BI Summary'!$2:$2,0),FALSE),INDIRECT("'"&$E42&"'!"&"$A:$K"),9,FALSE) -> 0.01718619851 | J42: =VLOOKUP(VLOOKUP($F42,'Data BI Summary'!$A:$F,MATCH(J$1,'Data BI Summary'!$2:$2,0),FALSE),INDIRECT("'"&$E42&"'!"&"$A:$K"),8,FALSE) -> 338.62823 | K42: =VLOOKUP(VLOOKUP($F42,'Data BI Summary'!$A:$F,MATCH(K$1,'Data BI Summary'!$2:$2,0),FALSE),INDIRECT("'"&$E42&"'!"&"$A:$K"),9,FALSE) -> 0.0006598968939

Sheet Bill Impact Summary_Acq (hidden)
A1: Rate Class | B1: Consumption Level | C1: Monthly Consumption (kWh) | D1: Monthly Peak (kW) | E1: BI Worksheet | F1: Template | G1: Current Total Bill | H1: Change in DX Bill ($) | I1: Change in DX Bill (%) | J1: Change in Total Bill ($) | K1: Change in Total Bill (%) | L1: Commodity Price Used
A2: WHSI to HONI
A3: AUR-WHSI | B3: Low | C3: =VLOOKUP(A$3,'Data Billing Quantities'!A:P,MATCH($B3&" kWh",'Data Billing Quantities'!$4:$4,0),FALSE) -> 310 | E3: BI_WHSI_AUR_Low | F3: BI Template_EnergyWHSI | G3: =VLOOKUP(VLOOKUP($F3,'Data BI Summary'!$A:$F,MATCH(G$1,'Data BI Summary'!$2:$2,0),FALSE),INDIRECT("'"&$E3&"'!"&"$A:$K"),4,FALSE) -> 66.65985809 | H3: =VLOOKUP(VLOOKUP($F3,'Data BI Summary'!$A:$F,MATCH(H$1,'Data BI Summary'!$2:$2,0),FALSE),INDIRECT("'"&$E3&"'!"&"$A:$K"),8,FALSE) -> 1.32 | I3: =VLOOKUP(VLOOKUP($F3,'Data BI Summary'!$A:$F,MATCH(I$1,'Data BI Summary'!$2:$2,0),FALSE),INDIRECT("'"&$E3&"'!"&"$A:$K"),9,FALSE) -> 0.04484457279 | J3: =VLOOKUP(VLOOKUP($F3,'Data BI Summary'!$A:$F,MATCH(J$1,'Data BI Summary'!$2:$2,0),FALSE),INDIRECT("'"&$E3&"'!"&"$A:$K"),8,FALSE) -> 1.24212 | K3: =VLOOKUP(VLOOKUP($F3,'Data BI Summary'!$A:$F,MATCH(K$1,'Data BI Summary'!$2:$2,0),FALSE),INDIRECT("'"&$E3&"'!"&"$A:$K"),9,FALSE) -> 0.01863370304 | L3: TOU
B4: Typical | C4: =VLOOKUP(A$3,'Data Billing Quantities'!A:P,MATCH($B4&" kWh",'Data Billing Quantities'!$4:$4,0),FALSE) -> 750 | E4: BI_WHSI_AUR_Typical | F4: BI Template_EnergyWHSI | G4: =VLOOKUP(VLOOKUP($F4,'Data BI Summary'!$A:$F,MATCH(G$1,'Data BI Summary'!$2:$2,0),FALSE),INDIRECT("'"&$E4&"'!"&"$A:$K"),4,FALSE) -> 120.6578618 | H4: =VLOOKUP(VLOOKUP($F4,'Data BI Summary'!$A:$F,MATCH(H$1,'Data BI Summary'!$2:$2,0),FALSE),INDIRECT("'"&$E4&"'!"&"$A:$K"),8,FALSE) -> 1.32 | I4: =VLOOKUP(VLOOKUP($F4,'Data BI Summary'!$A:$F,MATCH(I$1,'Data BI Summary'!$2:$2,0),FALSE),INDIRECT("'"&$E4&"'!"&"$A:$K"),9,FALSE) -> 0.04518226938 | J4: =VLOOKUP(VLOOKUP($F4,'Data BI Summary'!$A:$F,MATCH(J$1,'Data BI Summary'!$2:$2,0),FALSE),INDIRECT("'"&$E4&"'!"&"$A:$K"),8,FALSE) -> 1.24212 | K4: =VLOOKUP(VLOOKUP($F4,'Data BI Summary'!$A:$F,MATCH(K$1,'Data BI Summary'!$2:$2,0),FALSE),INDIRECT("'"&$E4&"'!"&"$A:$K"),9,FALSE) -> 0.01029456333
B5: Average | C5: =VLOOKUP(A$3,'Data Billing Quantities'!A:P,MATCH($B5&" kWh",'Data Billing Quantities'!$4:$4,0),FALSE) -> 636 | E5: BI_WHSI_AUR_Avg | F5: BI Template_EnergyWHSI | G5: =VLOOKUP(VLOOKUP($F5,'Data BI Summary'!$A:$F,MATCH(G$1,'Data BI Summary'!$2:$2,0),FALSE),INDIRECT("'"&$E5&"'!"&"$A:$K"),4,FALSE) -> 106.6674699 | H5: =VLOOKUP(VLOOKUP($F5,'Data BI Summary'!$A:$F,MATCH(H$1,'Data BI Summary'!$2:$2,0),FALSE),INDIRECT("'"&$E5&"'!"&"$A:$K"),8,FALSE) -> 1.32 | I5: =VLOOKUP(VLOOKUP($F5,'Data BI Summary'!$A:$F,MATCH(I$1,'Data BI Summary'!$2:$2,0),FALSE),INDIRECT("'"&$E5&"'!"&"$A:$K"),9,FALSE) -> 0.04509428806 | J5: =VLOOKUP(VLOOKUP($F5,'Data BI Summary'!$A:$F,MATCH(J$1,'Data BI Summary'!$2:$2,0),FALSE),INDIRECT("'"&$E5&"'!"&"$A:$K"),8,FALSE) -> 1.24212 | K5: =VLOOKUP(VLOOKUP($F5,'Data BI Summary'!$A:$F,MATCH(K$1,'Data BI Summary'!$2:$2,0),FALSE),INDIRECT("'"&$E5&"'!"&"$A:$K"),9,FALSE) -> 0.01164478731
B6: High | C6: =VLOOKUP(A$3,'Data Billing Quantities'!A:P,MATCH($B6&" kWh",'Data Billing Quantities'!$4:$4,0),FALSE) -> 1160 | E6: BI_WHSI_AUR_High | F6: BI Template_EnergyWHSI | G6: =VLOOKUP(VLOOKUP($F6,'Data BI Summary'!$A:$F,MATCH(G$1,'Data BI Summary'!$2:$2,0),FALSE),INDIRECT("'"&$E6&"'!"&"$A:$K"),4,FALSE) -> 170.9741835 | H6: =VLOOKUP(VLOOKUP($F6,'Data BI Summary'!$A:$F,MATCH(H$1,'Data BI Summary'!$2:$2,0),FALSE),INDIRECT("'"&$E6&"'!"&"$A:$K"),8,FALSE) -> 1.32 | I6: =VLOOKUP(VLOOKUP($F6,'Data BI Summary'!$A:$F,MATCH(I$1,'Data BI Summary'!$2:$2,0),FALSE),INDIRECT("'"&$E6&"'!"&"$A:$K"),9,FALSE) -> 0.04550155119 | J6: =VLOOKUP(VLOOKUP($F6,'Data BI Summary'!$A:$F,MATCH(J$1,'Data BI Summary'!$2:$2,0),FALSE),INDIRECT("'"&$E6&"'!"&"$A:$K"),8,FALSE) -> 1.24212 | K6: =VLOOKUP(VLOOKUP($F6,'Data BI Summary'!$A:$F,MATCH(K$1,'Data BI Summary'!$2:$2,0),FALSE),INDIRECT("'"&$E6&"'!"&"$A:$K"),9,FALSE) -> 0.007264956467
A7: AUGe-WHSI | B7: Low | C7: =VLOOKUP(A$7,'Data Billing Quantities'!A:P,MATCH($B7&" kWh",'Data Billing Quantities'!$4:$4,0),FALSE) -> 190 | E7: BI_WHSI_AUGe_Low | F7: BI Template_EnergyWHSI | G7: =VLOOKUP(VLOOKUP($F7,'Data BI Summary'!$A:$F,MATCH(G$1,'Data BI Summary'!$2:$2,0),FALSE),INDIRECT("'"&$E7&"'!"&"$A:$K"),4,FALSE) -> 49.85364871 | H7: =VLOOKUP(VLOOKUP($F7,'Data BI Summary'!$A:$F,MATCH(H$1,'Data BI Summary'!$2:$2,0),FALSE),INDIRECT("'"&$E7&"'!"&"$A:$K"),8,FALSE) -> 1.284 | I7: =VLOOKUP(VLOOKUP($F7,'Data BI Summary'!$A:$F,MATCH(I$1,'Data BI Summary'!$2:$2,0),FALSE),INDIRECT("'"&$E7&"'!"&"$A:$K"),9,FALSE) -> 0.04576234942 | J7: =VLOOKUP(VLOOKUP($F7,'Data BI Summary'!$A:$F,MATCH(J$1,'Data BI Summary'!$2:$2,0),FALSE),INDIRECT("'"&$E7&"'!"&"$A:$K"),8,FALSE) -> 1.208244 | K7: =VLOOKUP(VLOOKUP($F7,'Data BI Summary'!$A:$F,MATCH(K$1,'Data BI Summary'!$2:$2,0),FALSE),INDIRECT("'"&$E7&"'!"&"$A:$K"),9,FALSE) -> 0.02423581887 | L7: TOU
B8: Typical | C8: =VLOOKUP(A$7,'Data Billing Quantities'!A:P,MATCH($B8&" kWh",'Data Billing Quantities'!$4:$4,0),FALSE) -> 2000 | E8: BI_WHSI_AUGe_Typical | F8: BI Template_EnergyWHSI | G8: =VLOOKUP(VLOOKUP($F8,'Data BI Summary'!$A:$F,MATCH(G$1,'Data BI Summary'!$2:$2,0),FALSE),INDIRECT("'"&$E8&"'!"&"$A:$K"),4,FALSE) -> 290.0908401 | H8: =VLOOKUP(VLOOKUP($F8,'Data BI Summary'!$A:$F,MATCH(H$1,'Data BI Summary'!$2:$2,0),FALSE),INDIRECT("'"&$E8&"'!"&"$A:$K"),8,FALSE) -> 2.37 | I8: =VLOOKUP(VLOOKUP($F8,'Data BI Summary'!$A:$F,MATCH(I$1,'Data BI Summary'!$2:$2,0),FALSE),INDIRECT("'"&$E8&"'!"&"$A:$K"),9,FALSE) -> 0.04408482143 | J8: =VLOOKUP(VLOOKUP($F8,'Data BI Summary'!$A:$F,MATCH(J$1,'Data BI Summary'!$2:$2,0),FALSE),INDIRECT("'"&$E8&"'!"&"$A:$K"),8,FALSE) -> 2.23017 | K8: =VLOOKUP(VLOOKUP($F8,'Data BI Summary'!$A:$F,MATCH(K$1,'Data BI Summary'!$2:$2,0),FALSE),INDIRECT("'"&$E8&"'!"&"$A:$K"),9,FALSE) -> 0.007687833229
B9: Average | C9: =VLOOKUP(A$7,'Data Billing Quantities'!A:P,MATCH($B9&" kWh",'Data Billing Quantities'!$4:$4,0),FALSE) -> 2471 | E9: BI_WHSI_AUGe_Avg | F9: BI Template_EnergyWHSI | G9: =VLOOKUP(VLOOKUP($F9,'Data BI Summary'!$A:$F,MATCH(G$1,'Data BI Summary'!$2:$2,0),FALSE),INDIRECT("'"&$E9&"'!"&"$A:$K"),4,FALSE) -> 352.605601 | H9: =VLOOKUP(VLOOKUP($F9,'Data BI Summary'!$A:$F,MATCH(H$1,'Data BI Summary'!$2:$2,0),FALSE),INDIRECT("'"&$E9&"'!"&"$A:$K"),8,FALSE) -> 2.6526 | I9: =VLOOKUP(VLOOKUP($F9,'Data BI Summary'!$A:$F,MATCH(I$1,'Data BI Summary'!$2:$2,0),FALSE),INDIRECT("'"&$E9&"'!"&"$A:$K"),9,FALSE) -> 0.04388219997 | J9: =VLOOKUP(VLOOKUP($F9,'Data BI Summary'!$A:$F,MATCH(J$1,'Data BI Summary'!$2:$2,0),FALSE),INDIRECT("'"&$E9&"'!"&"$A:$K"),8,FALSE) -> 2.4960966 | K9: =VLOOKUP(VLOOKUP($F9,'Data BI Summary'!$A:$F,MATCH(K$1,'Data BI Summary'!$2:$2,0),FALSE),INDIRECT("'"&$E9&"'!"&"$A:$K"),9,FALSE) -> 0.007079004398
B10: High | C10: =VLOOKUP(A$7,'Data Billing Quantities'!A:P,MATCH($B10&" kWh",'Data Billing Quantities'!$4:$4,0),FALSE) -> 7240 | E10: BI_WHSI_AUGe_High | F10: BI Template_EnergyWHSI | G10: =VLOOKUP(VLOOKUP($F10,'Data BI Summary'!$A:$F,MATCH(G$1,'Data BI Summary'!$2:$2,0),FALSE),INDIRECT("'"&$E10&"'!"&"$A:$K"),4,FALSE) -> 985.5841456 | H10: =VLOOKUP(VLOOKUP($F10,'Data BI Summary'!$A:$F,MATCH(H$1,'Data BI Summary'!$2:$2,0),FALSE),INDIRECT("'"&$E10&"'!"&"$A:$K"),8,FALSE) -> 5.514 | I10: =VLOOKUP(VLOOKUP($F10,'Data BI Summary'!$A:$F,MATCH(I$1,'Data BI Summary'!$2:$2,0),FALSE),INDIRECT("'"&$E10&"'!"&"$A:$K"),9,FALSE) -> 0.04302165907 | J10: =VLOOKUP(VLOOKUP($F10,'Data BI Summary'!$A:$F,MATCH(J$1,'Data BI Summary'!$2:$2,0),FALSE),INDIRECT("'"&$E10&"'!"&"$A:$K"),8,FALSE) -> 5.188674 | K10: =VLOOKUP(VLOOKUP($F10,'Data BI Summary'!$A:$F,MATCH(K$1,'Data BI Summary'!$2:$2,0),FALSE),INDIRECT("'"&$E10&"'!"&"$A:$K"),9,FALSE) -> 0.005264567235
A11: AUGd-WHSI | B11: Low | C11: =VLOOKUP(A$11,'Data Billing Quantities'!A:P,MATCH($B11&" kWh",'Data Billing Quantities'!$4:$4,0),FALSE) -> 9370 | D11: =VLOOKUP(A$11,'Data Billing Quantities'!A:P,MATCH(B11&" kW",'Data Billing Quantities'!$4:$4,0),FALSE) -> 50 | E11: BI_WHSI_AUGd_Low | F11: BI Template_DemandWHSI | G11: =VLOOKUP(VLOOKUP($F11,'Data BI Summary'!$A:$F,MATCH(G$1,'Data BI Summary'!$2:$2,0),FALSE),INDIRECT("'"&$E11&"'!"&"$A:$K"),4,FALSE) -> 1920.402127 | H11: =VLOOKUP(VLOOKUP($F11,'Data BI Summary'!$A:$F,MATCH(H$1,'Data BI Summary'!$2:$2,0),FALSE),INDIRECT("'"&$E11&"'!"&"$A:$K"),8,FALSE) -> 11.9 | I11: =VLOOKUP(VLOOKUP($F11,'Data BI Summary'!$A:$F,MATCH(I$1,'Data BI Summary'!$2:$2,0),FALSE),INDIRECT("'"&$E11&"'!"&"$A:$K"),9,FALSE) -> 0.0455867086 | J11: =VLOOKUP(VLOOKUP($F11,'Data BI Summary'!$A:$F,MATCH(J$1,'Data BI Summary'!$2:$2,0),FALSE),INDIRECT("'"&$E11&"'!"&"$A:$K"),8,FALSE) -> 13.447 | K11: =VLOOKUP(VLOOKUP($F11,'Data BI Summary'!$A:$F,MATCH(K$1,'Data BI Summary'!$2:$2,0),FALSE),INDIRECT("'"&$E11&"'!"&"$A:$K"),9,FALSE) -> 0.007002179288 | L11: WAHSP
B12: Average | C12: =VLOOKUP(A$11,'Data Billing Quantities'!A:P,MATCH($B12&" kWh",'Data Billing Quantities'!$4:$4,0),FALSE) -> 47636 | D12: =VLOOKUP(A$11,'Data Billing Quantities'!A:P,MATCH(B12&" kW",'Data Billing Quantities'!$4:$4,0),FALSE) -> 134 | E12: BI_WHSI_AUGd_Avg | F12: BI Template_DemandWHSI | G12: =VLOOKUP(VLOOKUP($F12,'Data BI Summary'!$A:$F,MATCH(G$1,'Data BI Summary'!$2:$2,0),FALSE),INDIRECT("'"&$E12&"'!"&"$A:$K"),4,FALSE) -> 8073.380739 | H12: =VLOOKUP(VLOOKUP($F12,'Data BI Summary'!$A:$F,MATCH(H$1,'Data BI Summary'!$2:$2,0),FALSE),INDIRECT("'"&$E12&"'!"&"$A:$K"),8,FALSE) -> 20.6024 | I12: =VLOOKUP(VLOOKUP($F12,'Data BI Summary'!$A:$F,MATCH(I$1,'Data BI Summary'!$2:$2,0),FALSE),INDIRECT("'"&$E12&"'!"&"$A:$K"),9,FALSE) -> 0.04786673965 | J12: =VLOOKUP(VLOOKUP($F12,'Data BI Summary'!$A:$F,MATCH(J$1,'Data BI Summary'!$2:$2,0),FALSE),INDIRECT("'"&$E12&"'!"&"$A:$K"),8,FALSE) -> 23.280712 | K12: =VLOOKUP(VLOOKUP($F12,'Data BI Summary'!$A:$F,MATCH(K$1,'Data BI Summary'!$2:$2,0),FALSE),INDIRECT("'"&$E12&"'!"&"$A:$K"),9,FALSE) -> 0.002883638559
B13: High | C13: =VLOOKUP(A$11,'Data Billing Quantities'!A:P,MATCH($B13&" kWh",'Data Billing Quantities'!$4:$4,0),FALSE) -> 137890 | D13: =VLOOKUP(A$11,'Data Billing Quantities'!A:P,MATCH(B13&" kW",'Data Billing Quantities'!$4:$4,0),FALSE) -> 340 | E13: BI_WHSI_AUGd_High | F13: BI Template_DemandWHSI | G13: =VLOOKUP(VLOOKUP($F13,'Data BI Summary'!$A:$F,MATCH(G$1,'Data BI Summary'!$2:$2,0),FALSE),INDIRECT("'"&$E13&"'!"&"$A:$K"),4,FALSE) -> 22650.81663 | H13: =VLOOKUP(VLOOKUP($F13,'Data BI Summary'!$A:$F,MATCH(H$1,'Data BI Summary'!$2:$2,0),FALSE),INDIRECT("'"&$E13&"'!"&"$A:$K"),8,FALSE) -> 41.944 | I13: =VLOOKUP(VLOOKUP($F13,'Data BI Summary'!$A:$F,MATCH(I$1,'Data BI Summary'!$2:$2,0),FALSE),INDIRECT("'"&$E13&"'!"&"$A:$K"),9,FALSE) -> 0.04944564622 | J13: =VLOOKUP(VLOOKUP($F13,'Data BI Summary'!$A:$F,MATCH(J$1,'Data BI Summary'!$2:$2,0),FALSE),INDIRECT("'"&$E13&"'!"&"$A:$K"),8,FALSE) -> 47.39672 | K13: =VLOOKUP(VLOOKUP($F13,'Data BI Summary'!$A:$F,MATCH(K$1,'Data BI Summary'!$2:$2,0),FALSE),INDIRECT("'"&$E13&"'!"&"$A:$K"),9,FALSE) -> 0.002092494976
A14: St Lgt-WHSI | B14: Average | C14: =VLOOKUP(A14,'Data Billing Quantities'!A:P,MATCH($B14&" kWh",'Data Billing Quantities'!$4:$4,0),FALSE) -> 37079 | E14: BI_WHSI_StLgt_Avg | F14: BI Template_unmWHSI | G14: =VLOOKUP(VLOOKUP($F14,'Data BI Summary'!$A:$F,MATCH(G$1,'Data BI Summary'!$2:$2,0),FALSE),INDIRECT("'"&$E14&"'!"&"$A:$K"),4,FALSE) -> 10323.28381 | H14: =VLOOKUP(VLOOKUP($F14,'Data BI Summary'!$A:$F,MATCH(H$1,'Data BI Summary'!$2:$2,0),FALSE),INDIRECT("'"&$E14&"'!"&"$A:$K"),8,FALSE) -> 174.3713 | I14: =VLOOKUP(VLOOKUP($F14,'Data BI Summary'!$A:$F,MATCH(I$1,'Data BI Summary'!$2:$2,0),FALSE),INDIRECT("'"&$E14&"'!"&"$A:$K"),9,FALSE) -> 0.04428981492 | J14: =VLOOKUP(VLOOKUP($F14,'Data BI Summary'!$A:$F,MATCH(J$1,'Data BI Summary'!$2:$2,0),FALSE),INDIRECT("'"&$E14&"'!"&"$A:$K"),8,FALSE) -> 197.039569 | K14: =VLOOKUP(VLOOKUP($F14,'Data BI Summary'!$A:$F,MATCH(K$1,'Data BI Summary'!$2:$2,0),FALSE),INDIRECT("'"&$E14&"'!"&"$A:$K"),9,FALSE) -> 0.01908690806 | L14: Two-tier RPP
A15: USL-WHSI | B15: Average | C15: =VLOOKUP(A15,'Data Billing Quantities'!A:P,MATCH($B15&" kWh",'Data Billing Quantities'!$4:$4,0),FALSE) -> 1349 | E15: BI_WHSI_USL_Avg | F15: BI Template_unmWHSI | G15: =VLOOKUP(VLOOKUP($F15,'Data BI Summary'!$A:$F,MATCH(G$1,'Data BI Summary'!$2:$2,0),FALSE),INDIRECT("'"&$E15&"'!"&"$A:$K"),4,FALSE) -> 227.8612115 | H15: =VLOOKUP(VLOOKUP($F15,'Data BI Summary'!$A:$F,MATCH(H$1,'Data BI Summary'!$2:$2,0),FALSE),INDIRECT("'"&$E15&"'!"&"$A:$K"),8,FALSE) -> 2.1043 | I15: =VLOOKUP(VLOOKUP($F15,'Data BI Summary'!$A:$F,MATCH(I$1,'Data BI Summary'!$2:$2,0),FALSE),INDIRECT("'"&$E15&"'!"&"$A:$K"),9,FALSE) -> 0.0333254677 | J15: =VLOOKUP(VLOOKUP($F15,'Data BI Summary'!$A:$F,MATCH(J$1,'Data BI Summary'!$2:$2,0),FALSE),INDIRECT("'"&$E15&"'!"&"$A:$K"),8,FALSE) -> 1.9801463 | K15: =VLOOKUP(VLOOKUP($F15,'Data BI Summary'!$A:$F,MATCH(K$1,'Data BI Summary'!$2:$2,0),FALSE),INDIRECT("'"&$E15&"'!"&"$A:$K"),9,FALSE) -> 0.008690142068 | L15: Two-tier RPP
A16: ST-WHSI | B16: Average | C16: =VLOOKUP(A16,'Data Billing Quantities'!A:P,MATCH($B16&" kWh",'Data Billing Quantities'!$4:$4,0),FALSE) -> 895853 | D16: =VLOOKUP(A$16,'Data Billing Quantities'!A:P,MATCH(B16&" kW",'Data Billing Quantities'!$4:$4,0),FALSE) -> 3301 | E16: BI_WHSI_ST_Avg | F16: BI Template_DemandWHSI | G16: =VLOOKUP(VLOOKUP($F16,'Data BI Summary'!$A:$F,MATCH(G$1,'Data BI Summary'!$2:$2,0),FALSE),INDIRECT("'"&$E16&"'!"&"$A:$K"),4,FALSE) -> 162624.3598 | H16: =VLOOKUP(VLOOKUP($F16,'Data BI Summary'!$A:$F,MATCH(H$1,'Data BI Summary'!$2:$2,0),FALSE),INDIRECT("'"&$E16&"'!"&"$A:$K"),8,FALSE) -> 282.7011 | I16: =VLOOKUP(VLOOKUP($F16,'Data BI Summary'!$A:$F,MATCH(I$1,'Data BI Summary'!$2:$2,0),FALSE),INDIRECT("'"&$E16&"'!"&"$A:$K"),9,FALSE) -> 0.0488630484 | J16: =VLOOKUP(VLOOKUP($F16,'Data BI Summary'!$A:$F,MATCH(J$1,'Data BI Summary'!$2:$2,0),FALSE),INDIRECT("'"&$E16&"'!"&"$A:$K"),8,FALSE) -> 319.452243 | K16: =VLOOKUP(VLOOKUP($F16,'Data BI Summary'!$A:$F,MATCH(K$1,'Data BI Summary'!$2:$2,0),FALSE),INDIRECT("'"&$E16&"'!"&"$A:$K"),9,FALSE) -> 0.001964356652 | L16: WAHSP
A17: NPDI to HONI
A18: AR-NPDI | B18: Low | C18: =VLOOKUP(A$18,'Data Billing Quantities'!A:P,MATCH($B18&" kWh",'Data Billing Quantities'!$4:$4,0),FALSE) -> 290 | E18: BI_NPDI_AR_Low | F18: BI Template_EnergyNPDI | G18: =VLOOKUP(VLOOKUP($F18,'Data BI Summary'!$A:$F,MATCH(G$1,'Data BI Summary'!$2:$2,0),FALSE),INDIRECT("'"&$E18&"'!"&"$A:$K"),4,FALSE) -> 70.69682111 | H18: =VLOOKUP(VLOOKUP($F18,'Data BI Summary'!$A:$F,MATCH(H$1,'Data BI Summary'!$2:$2,0),FALSE),INDIRECT("'"&$E18&"'!"&"$A:$K"),8,FALSE) -> 1.6 | I18: =VLOOKUP(VLOOKUP($F18,'Data BI Summary'!$A:$F,MATCH(I$1,'Data BI Summary'!$2:$2,0),FALSE),INDIRECT("'"&$E18&"'!"&"$A:$K"),9,FALSE) -> 0.0446989803 | J18: =VLOOKUP(VLOOKUP($F18,'Data BI Summary'!$A:$F,MATCH(J$1,'Data BI Summary'!$2:$2,0),FALSE),INDIRECT("'"&$E18&"'!"&"$A:$K"),8,FALSE) -> 1.5056 | K18: =VLOOKUP(VLOOKUP($F18,'Data BI Summary'!$A:$F,MATCH(K$1,'Data BI Summary'!$2:$2,0),FALSE),INDIRECT("'"&$E18&"'!"&"$A:$K"),9,FALSE) -> 0.02129657284 | L18: TOU
B19: Typical | C19: =VLOOKUP(A$18,'Data Billing Quantities'!A:P,MATCH($B19&" kWh",'Data Billing Quantities'!$4:$4,0),FALSE) -> 750 | E19: BI_NPDI_AR_Typical | F19: BI Template_EnergyNPDI | G19: =VLOOKUP(VLOOKUP($F19,'Data BI Summary'!$A:$F,MATCH(G$1,'Data BI Summary'!$2:$2,0),FALSE),INDIRECT("'"&$E19&"'!"&"$A:$K"),4,FALSE) -> 127.9678698 | H19: =VLOOKUP(VLOOKUP($F19,'Data BI Summary'!$A:$F,MATCH(H$1,'Data BI Summary'!$2:$2,0),FALSE),INDIRECT("'"&$E19&"'!"&"$A:$K"),8,FALSE) -> 1.6 | I19: =VLOOKUP(VLOOKUP($F19,'Data BI Summary'!$A:$F,MATCH(I$1,'Data BI Summary'!$2:$2,0),FALSE),INDIRECT("'"&$E19&"'!"&"$A:$K"),9,FALSE) -> 0.04498805005 | J19: =VLOOKUP(VLOOKUP($F19,'Data BI Summary'!$A:$F,MATCH(J$1,'Data BI Summary'!$2:$2,0),FALSE),INDIRECT("'"&$E19&"'!"&"$A:$K"),8,FALSE) -> 1.5056 | K19: =VLOOKUP(VLOOKUP($F19,'Data BI Summary'!$A:$F,MATCH(K$1,'Data BI Summary'!$2:$2,0),FALSE),INDIRECT("'"&$E19&"'!"&"$A:$K"),9,FALSE) -> 0.01176545333
B20: Average | C20: =VLOOKUP(A$18,'Data Billing Quantities'!A:P,MATCH($B20&" kWh",'Data Billing Quantities'!$4:$4,0),FALSE) -> 692 | E20: BI_NPDI_AR_Avg | F20: BI Template_EnergyNPDI | G20: =VLOOKUP(VLOOKUP($F20,'Data BI Summary'!$A:$F,MATCH(G$1,'Data BI Summary'!$2:$2,0),FALSE),INDIRECT("'"&$E20&"'!"&"$A:$K"),4,FALSE) -> 120.7467375 | H20: =VLOOKUP(VLOOKUP($F20,'Data BI Summary'!$A:$F,MATCH(H$1,'Data BI Summary'!$2:$2,0),FALSE),INDIRECT("'"&$E20&"'!"&"$A:$K"),8,FALSE) -> 1.6 | I20: =VLOOKUP(VLOOKUP($F20,'Data BI Summary'!$A:$F,MATCH(I$1,'Data BI Summary'!$2:$2,0),FALSE),INDIRECT("'"&$E20&"'!"&"$A:$K"),9,FALSE) -> 0.0449513963 | J20: =VLOOKUP(VLOOKUP($F20,'Data BI Summary'!$A:$F,MATCH(J$1,'Data BI Summary'!$2:$2,0),FALSE),INDIRECT("'"&$E20&"'!"&"$A:$K"),8,FALSE) -> 1.5056 | K20: =VLOOKUP(VLOOKUP($F20,'Data BI Summary'!$A:$F,MATCH(K$1,'Data BI Summary'!$2:$2,0),FALSE),INDIRECT("'"&$E20&"'!"&"$A:$K"),9,FALSE) -> 0.01246907395
B21: High | C21: =VLOOKUP(A$18,'Data Billing Quantities'!A:P,MATCH($B21&" kWh",'Data Billing Quantities'!$4:$4,0),FALSE) -> 1230 | E21: BI_NPDI_AR_High | F21: BI Template_EnergyNPDI | G21: =VLOOKUP(VLOOKUP($F21,'Data BI Summary'!$A:$F,MATCH(G$1,'Data BI Summary'!$2:$2,0),FALSE),INDIRECT("'"&$E21&"'!"&"$A:$K"),4,FALSE) -> 187.728964 | H21: =VLOOKUP(VLOOKUP($F21,'Data BI Summary'!$A:$F,MATCH(H$1,'Data BI Summary'!$2:$2,0),FALSE),INDIRECT("'"&$E21&"'!"&"$A:$K"),8,FALSE) -> 1.6 | I21: =VLOOKUP(VLOOKUP($F21,'Data BI Summary'!$A:$F,MATCH(I$1,'Data BI Summary'!$2:$2,0),FALSE),INDIRECT("'"&$E21&"'!"&"$A:$K"),9,FALSE) -> 0.04529370134 | J21: =VLOOKUP(VLOOKUP($F21,'Data BI Summary'!$A:$F,MATCH(J$1,'Data BI Summary'!$2:$2,0),FALSE),INDIRECT("'"&$E21&"'!"&"$A:$K"),8,FALSE) -> 1.5056 | K21: =VLOOKUP(VLOOKUP($F21,'Data BI Summary'!$A:$F,MATCH(K$1,'Data BI Summary'!$2:$2,0),FALSE),INDIRECT("'"&$E21&"'!"&"$A:$K"),9,FALSE) -> 0.008020073024
A22: AGSe-NPDI | B22: Low | C22: =VLOOKUP(A$22,'Data Billing Quantities'!A:P,MATCH($B22&" kWh",'Data Billing Quantities'!$4:$4,0),FALSE) -> 110 | E22: BI_NPDI_AGSe_Low | F22: BI Template_EnergyNPDI | G22: =VLOOKUP(VLOOKUP($F22,'Data BI Summary'!$A:$F,MATCH(G$1,'Data BI Summary'!$2:$2,0),FALSE),INDIRECT("'"&$E22&"'!"&"$A:$K"),4,FALSE) -> 51.29108399 | H22: =VLOOKUP(VLOOKUP($F22,'Data BI Summary'!$A:$F,MATCH(H$1,'Data BI Summary'!$2:$2,0),FALSE),INDIRECT("'"&$E22&"'!"&"$A:$K"),8,FALSE) -> 1.639 | I22: =VLOOKUP(VLOOKUP($F22,'Data BI Summary'!$A:$F,MATCH(I$1,'Data BI Summary'!$2:$2,0),FALSE),INDIRECT("'"&$E22&"'!"&"$A:$K"),9,FALSE) -> 0.04151889756 | J22: =VLOOKUP(VLOOKUP($F22,'Data BI Summary'!$A:$F,MATCH(J$1,'Data BI Summary'!$2:$2,0),FALSE),INDIRECT("'"&$E22&"'!"&"$A:$K"),8,FALSE) -> 1.542299 | K22: =VLOOKUP(VLOOKUP($F22,'Data BI Summary'!$A:$F,MATCH(K$1,'Data BI Summary'!$2:$2,0),FALSE),INDIRECT("'"&$E22&"'!"&"$A:$K"),9,FALSE) -> 0.03006953412 | L22: TOU
B23: Typical | C23: =VLOOKUP(A$22,'Data Billing Quantities'!A:P,MATCH($B23&" kWh",'Data Billing Quantities'!$4:$4,0),FALSE) -> 2000 | E23: BI_NPDI_AGSe_Typical | F23: BI Template_EnergyNPDI | G23: =VLOOKUP(VLOOKUP($F23,'Data BI Summary'!$A:$F,MATCH(G$1,'Data BI Summary'!$2:$2,0),FALSE),INDIRECT("'"&$E23&"'!"&"$A:$K"),4,FALSE) -> 310.5787062 | H23: =VLOOKUP(VLOOKUP($F23,'Data BI Summary'!$A:$F,MATCH(H$1,'Data BI Summary'!$2:$2,0),FALSE),INDIRECT("'"&$E23&"'!"&"$A:$K"),8,FALSE) -> 3.34 | I23: =VLOOKUP(VLOOKUP($F23,'Data BI Summary'!$A:$F,MATCH(I$1,'Data BI Summary'!$2:$2,0),FALSE),INDIRECT("'"&$E23&"'!"&"$A:$K"),9,FALSE) -> 0.04714184898 | J23: =VLOOKUP(VLOOKUP($F23,'Data BI Summary'!$A:$F,MATCH(J$1,'Data BI Summary'!$2:$2,0),FALSE),INDIRECT("'"&$E23&"'!"&"$A:$K"),8,FALSE) -> 3.14294 | K23: =VLOOKUP(VLOOKUP($F23,'Data BI Summary'!$A:$F,MATCH(K$1,'Data BI Summary'!$2:$2,0),FALSE),INDIRECT("'"&$E23&"'!"&"$A:$K"),9,FALSE) -> 0.01011962487
B24: Average | C24: =VLOOKUP(A$22,'Data Billing Quantities'!A:P,MATCH($B24&" kWh",'Data Billing Quantities'!$4:$4,0),FALSE) -> 2377 | E24: BI_NPDI_AGSe_Avg | F24: BI Template_EnergyNPDI | G24: =VLOOKUP(VLOOKUP($F24,'Data BI Summary'!$A:$F,MATCH(G$1,'Data BI Summary'!$2:$2,0),FALSE),INDIRECT("'"&$E24&"'!"&"$A:$K"),4,FALSE) -> 362.2990414 | H24: =VLOOKUP(VLOOKUP($F24,'Data BI Summary'!$A:$F,MATCH(H$1,'Data BI Summary'!$2:$2,0),FALSE),INDIRECT("'"&$E24&"'!"&"$A:$K"),8,FALSE) -> 3.6793 | I24: =VLOOKUP(VLOOKUP($F24,'Data BI Summary'!$A:$F,MATCH(I$1,'Data BI Summary'!$2:$2,0),FALSE),INDIRECT("'"&$E24&"'!"&"$A:$K"),9,FALSE) -> 0.04771606651 | J24: =VLOOKUP(VLOOKUP($F24,'Data BI Summary'!$A:$F,MATCH(J$1,'Data BI Summary'!$2:$2,0),FALSE),INDIRECT("'"&$E24&"'!"&"$A:$K"),8,FALSE) -> 3.4622213 | K24: =VLOOKUP(VLOOKUP($F24,'Data BI Summary'!$A:$F,MATCH(K$1,'Data BI Summary'!$2:$2,0),FALSE),INDIRECT("'"&$E24&"'!"&"$A:$K"),9,FALSE) -> 0.009556252997
B25: High | C25: =VLOOKUP(A$22,'Data Billing Quantities'!A:P,MATCH($B25&" kWh",'Data Billing Quantities'!$4:$4,0),FALSE) -> 6410 | E25: BI_NPDI_AGSe_High | F25: BI Template_EnergyNPDI | G25: =VLOOKUP(VLOOKUP($F25,'Data BI Summary'!$A:$F,MATCH(G$1,'Data BI Summary'!$2:$2,0),FALSE),INDIRECT("'"&$E25&"'!"&"$A:$K"),4,FALSE) -> 915.5831579 | H25: =VLOOKUP(VLOOKUP($F25,'Data BI Summary'!$A:$F,MATCH(H$1,'Data BI Summary'!$2:$2,0),FALSE),INDIRECT("'"&$E25&"'!"&"$A:$K"),8,FALSE) -> 7.309 | I25: =VLOOKUP(VLOOKUP($F25,'Data BI Summary'!$A:$F,MATCH(I$1,'Data BI Summary'!$2:$2,0),FALSE),INDIRECT("'"&$E25&"'!"&"$A:$K"),9,FALSE) -> 0.05073721331 | J25: =VLOOKUP(VLOOKUP($F25,'Data BI Summary'!$A:$F,MATCH(J$1,'Data BI Summary'!$2:$2,0),FALSE),INDIRECT("'"&$E25&"'!"&"$A:$K"),8,FALSE) -> 6.877769 | K25: =VLOOKUP(VLOOKUP($F25,'Data BI Summary'!$A:$F,MATCH(K$1,'Data BI Summary'!$2:$2,0),FALSE),INDIRECT("'"&$E25&"'!"&"$A:$K"),9,FALSE) -> 0.007511899865
A26: AGSd-NPDI | B26: Low | C26: =VLOOKUP(A$26,'Data Billing Quantities'!A:P,MATCH($B26&" kWh",'Data Billing Quantities'!$4:$4,0),FALSE) -> 13020 | D26: =VLOOKUP(A$26,'Data Billing Quantities'!A:P,MATCH(B26&" kW",'Data Billing Quantities'!$4:$4,0),FALSE) -> 55 | E26: BI_NPDI_AGSd_Low | F26: BI Template_DemandNPDI | G26: =VLOOKUP(VLOOKUP($F26,'Data BI Summary'!$A:$F,MATCH(G$1,'Data BI Summary'!$2:$2,0),FALSE),INDIRECT("'"&$E26&"'!"&"$A:$K"),4,FALSE) -> 2608.312188 | H26: =VLOOKUP(VLOOKUP($F26,'Data BI Summary'!$A:$F,MATCH(H$1,'Data BI Summary'!$2:$2,0),FALSE),INDIRECT("'"&$E26&"'!"&"$A:$K"),8,FALSE) -> 19.9965 | I26: =VLOOKUP(VLOOKUP($F26,'Data BI Summary'!$A:$F,MATCH(I$1,'Data BI Summary'!$2:$2,0),FALSE),INDIRECT("'"&$E26&"'!"&"$A:$K"),9,FALSE) -> 0.05257118069 | J26: =VLOOKUP(VLOOKUP($F26,'Data BI Summary'!$A:$F,MATCH(J$1,'Data BI Summary'!$2:$2,0),FALSE),INDIRECT("'"&$E26&"'!"&"$A:$K"),8,FALSE) -> 22.596045 | K26: =VLOOKUP(VLOOKUP($F26,'Data BI Summary'!$A:$F,MATCH(K$1,'Data BI Summary'!$2:$2,0),FALSE),INDIRECT("'"&$E26&"'!"&"$A:$K"),9,FALSE) -> 0.008663090679 | L26: WAHSP
B27: Average | C27: =VLOOKUP(A$26,'Data Billing Quantities'!A:P,MATCH($B27&" kWh",'Data Billing Quantities'!$4:$4,0),FALSE) -> 70294 | D27: =VLOOKUP(A$26,'Data Billing Quantities'!A:P,MATCH(B27&" kW",'Data Billing Quantities'!$4:$4,0),FALSE) -> 181 | E27: BI_NPDI_AGSd_Avg | F27: BI Template_DemandNPDI | G27: =VLOOKUP(VLOOKUP($F27,'Data BI Summary'!$A:$F,MATCH(G$1,'Data BI Summary'!$2:$2,0),FALSE),INDIRECT("'"&$E27&"'!"&"$A:$K"),4,FALSE) -> 12131.85801 | H27: =VLOOKUP(VLOOKUP($F27,'Data BI Summary'!$A:$F,MATCH(H$1,'Data BI Summary'!$2:$2,0),FALSE),INDIRECT("'"&$E27&"'!"&"$A:$K"),8,FALSE) -> 49.7703 | I27: =VLOOKUP(VLOOKUP($F27,'Data BI Summary'!$A:$F,MATCH(I$1,'Data BI Summary'!$2:$2,0),FALSE),INDIRECT("'"&$E27&"'!"&"$A:$K"),9,FALSE) -> 0.05922589121 | J27: =VLOOKUP(VLOOKUP($F27,'Data BI Summary'!$A:$F,MATCH(J$1,'Data BI Summary'!$2:$2,0),FALSE),INDIRECT("'"&$E27&"'!"&"$A:$K"),8,FALSE) -> 56.240439 | K27: =VLOOKUP(VLOOKUP($F27,'Data BI Summary'!$A:$F,MATCH(K$1,'Data BI Summary'!$2:$2,0),FALSE),INDIRECT("'"&$E27&"'!"&"$A:$K"),9,FALSE) -> 0.004635764692
B28: High | C28: =VLOOKUP(A$26,'Data Billing Quantities'!A:P,MATCH($B28&" kWh",'Data Billing Quantities'!$4:$4,0),FALSE) -> 129420 | D28: =VLOOKUP(A$26,'Data Billing Quantities'!A:P,MATCH(B28&" kW",'Data Billing Quantities'!$4:$4,0),FALSE) -> 300 | E28: BI_NPDI_AGSd_High | F28: BI Template_DemandNPDI | G28: =VLOOKUP(VLOOKUP($F28,'Data BI Summary'!$A:$F,MATCH(G$1,'Data BI Summary'!$2:$2,0),FALSE),INDIRECT("'"&$E28&"'!"&"$A:$K"),4,FALSE) -> 21858.47937 | H28: =VLOOKUP(VLOOKUP($F28,'Data BI Summary'!$A:$F,MATCH(H$1,'Data BI Summary'!$2:$2,0),FALSE),INDIRECT("'"&$E28&"'!"&"$A:$K"),8,FALSE) -> 77.89 | I28: =VLOOKUP(VLOOKUP($F28,'Data BI Summary'!$A:$F,MATCH(I$1,'Data BI Summary'!$2:$2,0),FALSE),INDIRECT("'"&$E28&"'!"&"$A:$K"),9,FALSE) -> 0.06127059594 | J28: =VLOOKUP(VLOOKUP($F28,'Data BI Summary'!$A:$F,MATCH(J$1,'Data BI Summary'!$2:$2,0),FALSE),INDIRECT("'"&$E28&"'!"&"$A:$K"),8,FALSE) -> 88.0157 | K28: =VLOOKUP(VLOOKUP($F28,'Data BI Summary'!$A:$F,MATCH(K$1,'Data BI Summary'!$2:$2,0),FALSE),INDIRECT("'"&$E28&"'!"&"$A:$K"),9,FALSE) -> 0.004026615873
A29: St Lgt-NPDI | B29: Average | C29: =VLOOKUP(A$29,'Data Billing Quantities'!A:P,MATCH($B29&" kWh",'Data Billing Quantities'!$4:$4,0),FALSE) -> 11389 | E29: BI_NPDI_StLgt_Avg | F29: BI Template_unmNPDI | G29: =VLOOKUP(VLOOKUP($F29,'Data BI Summary'!$A:$F,MATCH(G$1,'Data BI Summary'!$2:$2,0),FALSE),INDIRECT("'"&$E29&"'!"&"$A:$K"),4,FALSE) -> 2630.002703 | H29: =VLOOKUP(VLOOKUP($F29,'Data BI Summary'!$A:$F,MATCH(H$1,'Data BI Summary'!$2:$2,0),FALSE),INDIRECT("'"&$E29&"'!"&"$A:$K"),8,FALSE) -> 53.6283 | I29: =VLOOKUP(VLOOKUP($F29,'Data BI Summary'!$A:$F,MATCH(I$1,'Data BI Summary'!$2:$2,0),FALSE),INDIRECT("'"&$E29&"'!"&"$A:$K"),9,FALSE) -> 0.04443889988 | J29: =VLOOKUP(VLOOKUP($F29,'Data BI Summary'!$A:$F,MATCH(J$1,'Data BI Summary'!$2:$2,0),FALSE),INDIRECT("'"&$E29&"'!"&"$A:$K"),8,FALSE) -> 50.4642303 | K29: =VLOOKUP(VLOOKUP($F29,'Data BI Summary'!$A:$F,MATCH(K$1,'Data BI Summary'!$2:$2,0),FALSE),INDIRECT("'"&$E29&"'!"&"$A:$K"),9,FALSE) -> 0.01918790055 | L29: Two-tier RPP
A30: Sen Lgt-NPDI | B30: Average | C30: =VLOOKUP(A$30,'Data Billing Quantities'!A:P,MATCH($B30&" kWh",'Data Billing Quantities'!$4:$4,0),FALSE) -> 108 | E30: BI_NPDI_SenLgt_Avg | F30: BI Template_unmNPDI | G30: =VLOOKUP(VLOOKUP($F30,'Data BI Summary'!$A:$F,MATCH(G$1,'Data BI Summary'!$2:$2,0),FALSE),INDIRECT("'"&$E30&"'!"&"$A:$K"),4,FALSE) -> 30.92488398 | H30: =VLOOKUP(VLOOKUP($F30,'Data BI Summary'!$A:$F,MATCH(H$1,'Data BI Summary'!$2:$2,0),FALSE),INDIRECT("'"&$E30&"'!"&"$A:$K"),8,FALSE) -> 0.8876 | I30: =VLOOKUP(VLOOKUP($F30,'Data BI Summary'!$A:$F,MATCH(I$1,'Data BI Summary'!$2:$2,0),FALSE),INDIRECT("'"&$E30&"'!"&"$A:$K"),9,FALSE) -> 0.04565749676 | J30: =VLOOKUP(VLOOKUP($F30,'Data BI Summary'!$A:$F,MATCH(J$1,'Data BI Summary'!$2:$2,0),FALSE),INDIRECT("'"&$E30&"'!"&"$A:$K"),8,FALSE) -> 0.8352316 | K30: =VLOOKUP(VLOOKUP($F30,'Data BI Summary'!$A:$F,MATCH(K$1,'Data BI Summary'!$2:$2,0),FALSE),INDIRECT("'"&$E30&"'!"&"$A:$K"),9,FALSE) -> 0.02700839882 | L30: Two-tier RPP
A31: USL-NPDI | B31: Average | C31: =VLOOKUP(A$31,'Data Billing Quantities'!A:P,MATCH($B31&" kWh",'Data Billing Quantities'!$4:$4,0),FALSE) -> 904 | E31: BI_NPDI_USL_Avg | F31: BI Template_unmNPDI | G31: =VLOOKUP(VLOOKUP($F31,'Data BI Summary'!$A:$F,MATCH(G$1,'Data BI Summary'!$2:$2,0),FALSE),INDIRECT("'"&$E31&"'!"&"$A:$K"),4,FALSE) -> 159.2403862 | H31: =VLOOKUP(VLOOKUP($F31,'Data BI Summary'!$A:$F,MATCH(H$1,'Data BI Summary'!$2:$2,0),FALSE),INDIRECT("'"&$E31&"'!"&"$A:$K"),8,FALSE) -> 1.7928 | I31: =VLOOKUP(VLOOKUP($F31,'Data BI Summary'!$A:$F,MATCH(I$1,'Data BI Summary'!$2:$2,0),FALSE),INDIRECT("'"&$E31&"'!"&"$A:$K"),9,FALSE) -> 0.03357756102 | J31: =VLOOKUP(VLOOKUP($F31,'Data BI Summary'!$A:$F,MATCH(J$1,'Data BI Summary'!$2:$2,0),FALSE),INDIRECT("'"&$E31&"'!"&"$A:$K"),8,FALSE) -> 1.6870248 | K31: =VLOOKUP(VLOOKUP($F31,'Data BI Summary'!$A:$F,MATCH(K$1,'Data BI Summary'!$2:$2,0),FALSE),INDIRECT("'"&$E31&"'!"&"$A:$K"),9,FALSE) -> 0.01059420188 | L31: Two-tier RPP
A32: HCHI to HONI
A33: AR-HCHI | B33: Low | C33: =VLOOKUP(A$33,'Data Billing Quantities'!A:P,MATCH($B33&" kWh",'Data Billing Quantities'!$4:$4,0),FALSE) -> 250 | E33: BI_HCHI_AR_Low | F33: BI Template_EnergyHCHI | G33: =VLOOKUP(VLOOKUP($F33,'Data BI Summary'!$A:$F,MATCH(G$1,'Data BI Summary'!$2:$2,0),FALSE),INDIRECT("'"&$E33&"'!"&"$A:$K"),4,FALSE) -> 65.74025492 | H33: =VLOOKUP(VLOOKUP($F33,'Data BI Summary'!$A:$F,MATCH(H$1,'Data BI Summary'!$2:$2,0),FALSE),INDIRECT("'"&$E33&"'!"&"$A:$K"),8,FALSE) -> 1.6 | I33: =VLOOKUP(VLOOKUP($F33,'Data BI Summary'!$A:$F,MATCH(I$1,'Data BI Summary'!$2:$2,0),FALSE),INDIRECT("'"&$E33&"'!"&"$A:$K"),9,FALSE) -> 0.04464285714 | J33: =VLOOKUP(VLOOKUP($F33,'Data BI Summary'!$A:$F,MATCH(J$1,'Data BI Summary'!$2:$2,0),FALSE),INDIRECT("'"&$E33&"'!"&"$A:$K"),8,FALSE) -> 1.5056 | K33: =VLOOKUP(VLOOKUP($F33,'Data BI Summary'!$A:$F,MATCH(K$1,'Data BI Summary'!$2:$2,0),FALSE),INDIRECT("'"&$E33&"'!"&"$A:$K"),9,FALSE) -> 0.02290225375 | L33: TOU
B34: Typical | C34: =VLOOKUP(A$33,'Data Billing Quantities'!A:P,MATCH($B34&" kWh",'Data Billing Quantities'!$4:$4,0),FALSE) -> 750 | E34: BI_HCHI_AR_Typical | F34: BI Template_EnergyHCHI | G34: =VLOOKUP(VLOOKUP($F34,'Data BI Summary'!$A:$F,MATCH(G$1,'Data BI Summary'!$2:$2,0),FALSE),INDIRECT("'"&$E34&"'!"&"$A:$K"),4,FALSE) -> 128.0384448 | H34: =VLOOKUP(VLOOKUP($F34,'Data BI Summary'!$A:$F,MATCH(H$1,'Data BI Summary'!$2:$2,0),FALSE),INDIRECT("'"&$E34&"'!"&"$A:$K"),8,FALSE) -> 1.6 | I34: =VLOOKUP(VLOOKUP($F34,'Data BI Summary'!$A:$F,MATCH(I$1,'Data BI Summary'!$2:$2,0),FALSE),INDIRECT("'"&$E34&"'!"&"$A:$K"),9,FALSE) -> 0.04489337823 | J34: =VLOOKUP(VLOOKUP($F34,'Data BI Summary'!$A:$F,MATCH(J$1,'Data BI Summary'!$2:$2,0),FALSE),INDIRECT("'"&$E34&"'!"&"$A:$K"),8,FALSE) -> 1.5056 | K34: =VLOOKUP(VLOOKUP($F34,'Data BI Summary'!$A:$F,MATCH(K$1,'Data BI Summary'!$2:$2,0),FALSE),INDIRECT("'"&$E34&"'!"&"$A:$K"),9,FALSE) -> 0.0117589682
B35: Average | C35: =VLOOKUP(A$33,'Data Billing Quantities'!A:P,MATCH($B35&" kWh",'Data Billing Quantities'!$4:$4,0),FALSE) -> 742 | E35: BI_HCHI_AR_Avg | F35: BI Template_EnergyHCHI | G35: =VLOOKUP(VLOOKUP($F35,'Data BI Summary'!$A:$F,MATCH(G$1,'Data BI Summary'!$2:$2,0),FALSE),INDIRECT("'"&$E35&"'!"&"$A:$K"),4,FALSE) -> 127.0416737 | H35: =VLOOKUP(VLOOKUP($F35,'Data BI Summary'!$A:$F,MATCH(H$1,'Data BI Summary'!$2:$2,0),FALSE),INDIRECT("'"&$E35&"'!"&"$A:$K"),8,FALSE) -> 1.6 | I35: =VLOOKUP(VLOOKUP($F35,'Data BI Summary'!$A:$F,MATCH(I$1,'Data BI Summary'!$2:$2,0),FALSE),INDIRECT("'"&$E35&"'!"&"$A:$K"),9,FALSE) -> 0.04488934776 | J35: =VLOOKUP(VLOOKUP($F35,'Data BI Summary'!$A:$F,MATCH(J$1,'Data BI Summary'!$2:$2,0),FALSE),INDIRECT("'"&$E35&"'!"&"$A:$K"),8,FALSE) -> 1.5056 | K35: =VLOOKUP(VLOOKUP($F35,'Data BI Summary'!$A:$F,MATCH(K$1,'Data BI Summary'!$2:$2,0),FALSE),INDIRECT("'"&$E35&"'!"&"$A:$K"),9,FALSE) -> 0.01185122925
B36: High | C36: =VLOOKUP(A$33,'Data Billing Quantities'!A:P,MATCH($B36&" kWh",'Data Billing Quantities'!$4:$4,0),FALSE) -> 1410 | E36: BI_HCHI_AR_High | F36: BI Template_EnergyHCHI | G36: =VLOOKUP(VLOOKUP($F36,'Data BI Summary'!$A:$F,MATCH(G$1,'Data BI Summary'!$2:$2,0),FALSE),INDIRECT("'"&$E36&"'!"&"$A:$K"),4,FALSE) -> 210.2720553 | H36: =VLOOKUP(VLOOKUP($F36,'Data BI Summary'!$A:$F,MATCH(H$1,'Data BI Summary'!$2:$2,0),FALSE),INDIRECT("'"&$E36&"'!"&"$A:$K"),8,FALSE) -> 1.6 | I36: =VLOOKUP(VLOOKUP($F36,'Data BI Summary'!$A:$F,MATCH(I$1,'Data BI Summary'!$2:$2,0),FALSE),INDIRECT("'"&$E36&"'!"&"$A:$K"),9,FALSE) -> 0.04522840344 | J36: =VLOOKUP(VLOOKUP($F36,'Data BI Summary'!$A:$F,MATCH(J$1,'Data BI Summary'!$2:$2,0),FALSE),INDIRECT("'"&$E36&"'!"&"$A:$K"),8,FALSE) -> 1.5056 | K36: =VLOOKUP(VLOOKUP($F36,'Data BI Summary'!$A:$F,MATCH(K$1,'Data BI Summary'!$2:$2,0),FALSE),INDIRECT("'"&$E36&"'!"&"$A:$K"),9,FALSE) -> 0.007160247697
A37: AGSe-HCHI | B37: Low | C37: =VLOOKUP(A$37,'Data Billing Quantities'!A:P,MATCH($B37&" kWh",'Data Billing Quantities'!$4:$4,0),FALSE) -> 90 | E37: BI_HCHI_AGSe_Low | F37: BI Template_EnergyHCHI | G37: =VLOOKUP(VLOOKUP($F37,'Data BI Summary'!$A:$F,MATCH(G$1,'Data BI Summary'!$2:$2,0),FALSE),INDIRECT("'"&$E37&"'!"&"$A:$K"),4,FALSE) -> 48.55576863 | H37: =VLOOKUP(VLOOKUP($F37,'Data BI Summary'!$A:$F,MATCH(H$1,'Data BI Summary'!$2:$2,0),FALSE),INDIRECT("'"&$E37&"'!"&"$A:$K"),8,FALSE) -> 1.621 | I37: =VLOOKUP(VLOOKUP($F37,'Data BI Summary'!$A:$F,MATCH(I$1,'Data BI Summary'!$2:$2,0),FALSE),INDIRECT("'"&$E37&"'!"&"$A:$K"),9,FALSE) -> 0.04140168059 | J37: =VLOOKUP(VLOOKUP($F37,'Data BI Summary'!$A:$F,MATCH(J$1,'Data BI Summary'!$2:$2,0),FALSE),INDIRECT("'"&$E37&"'!"&"$A:$K"),8,FALSE) -> 1.525361 | K37: =VLOOKUP(VLOOKUP($F37,'Data BI Summary'!$A:$F,MATCH(K$1,'Data BI Summary'!$2:$2,0),FALSE),INDIRECT("'"&$E37&"'!"&"$A:$K"),9,FALSE) -> 0.03141461958 | L37: TOU
B38: Typical | C38: =VLOOKUP(A$37,'Data Billing Quantities'!A:P,MATCH($B38&" kWh",'Data Billing Quantities'!$4:$4,0),FALSE) -> 2000 | E38: BI_HCHI_AGSe_Typical | F38: BI Template_EnergyHCHI | G38: =VLOOKUP(VLOOKUP($F38,'Data BI Summary'!$A:$F,MATCH(G$1,'Data BI Summary'!$2:$2,0),FALSE),INDIRECT("'"&$E38&"'!"&"$A:$K"),4,FALSE) -> 310.7669062 | H38: =VLOOKUP(VLOOKUP($F38,'Data BI Summary'!$A:$F,MATCH(H$1,'Data BI Summary'!$2:$2,0),FALSE),INDIRECT("'"&$E38&"'!"&"$A:$K"),8,FALSE) -> 3.34 | I38: =VLOOKUP(VLOOKUP($F38,'Data BI Summary'!$A:$F,MATCH(I$1,'Data BI Summary'!$2:$2,0),FALSE),INDIRECT("'"&$E38&"'!"&"$A:$K"),9,FALSE) -> 0.04700914849 | J38: =VLOOKUP(VLOOKUP($F38,'Data BI Summary'!$A:$F,MATCH(J$1,'Data BI Summary'!$2:$2,0),FALSE),INDIRECT("'"&$E38&"'!"&"$A:$K"),8,FALSE) -> 3.14294 | K38: =VLOOKUP(VLOOKUP($F38,'Data BI Summary'!$A:$F,MATCH(K$1,'Data BI Summary'!$2:$2,0),FALSE),INDIRECT("'"&$E38&"'!"&"$A:$K"),9,FALSE) -> 0.01011349644
B39: Average | C39: =VLOOKUP(A$37,'Data Billing Quantities'!A:P,MATCH($B39&" kWh",'Data Billing Quantities'!$4:$4,0),FALSE) -> 2261 | E39: BI_HCHI_AGSe_Avg | F39: BI Template_EnergyHCHI | G39: =VLOOKUP(VLOOKUP($F39,'Data BI Summary'!$A:$F,MATCH(G$1,'Data BI Summary'!$2:$2,0),FALSE),INDIRECT("'"&$E39&"'!"&"$A:$K"),4,FALSE) -> 346.5978522 | H39: =VLOOKUP(VLOOKUP($F39,'Data BI Summary'!$A:$F,MATCH(H$1,'Data BI Summary'!$2:$2,0),FALSE),INDIRECT("'"&$E39&"'!"&"$A:$K"),8,FALSE) -> 3.5749 | I39: =VLOOKUP(VLOOKUP($F39,'Data BI Summary'!$A:$F,MATCH(I$1,'Data BI Summary'!$2:$2,0),FALSE),INDIRECT("'"&$E39&"'!"&"$A:$K"),9,FALSE) -> 0.04740699681 | J39: =VLOOKUP(VLOOKUP($F39,'Data BI Summary'!$A:$F,MATCH(J$1,'Data BI Summary'!$2:$2,0),FALSE),INDIRECT("'"&$E39&"'!"&"$A:$K"),8,FALSE) -> 3.3639809 | K39: =VLOOKUP(VLOOKUP($F39,'Data BI Summary'!$A:$F,MATCH(K$1,'Data BI Summary'!$2:$2,0),FALSE),INDIRECT("'"&$E39&"'!"&"$A:$K"),9,FALSE) -> 0.009705717675
B40: High | C40: =VLOOKUP(A$37,'Data Billing Quantities'!A:P,MATCH($B40&" kWh",'Data Billing Quantities'!$4:$4,0),FALSE) -> 5430 | E40: BI_HCHI_AGSe_High | F40: BI Template_EnergyHCHI | G40: =VLOOKUP(VLOOKUP($F40,'Data BI Summary'!$A:$F,MATCH(G$1,'Data BI Summary'!$2:$2,0),FALSE),INDIRECT("'"&$E40&"'!"&"$A:$K"),4,FALSE) -> 781.6486872 | H40: =VLOOKUP(VLOOKUP($F40,'Data BI Summary'!$A:$F,MATCH(H$1,'Data BI Summary'!$2:$2,0),FALSE),INDIRECT("'"&$E40&"'!"&"$A:$K"),8,FALSE) -> 6.427 | I40: =VLOOKUP(VLOOKUP($F40,'Data BI Summary'!$A:$F,MATCH(I$1,'Data BI Summary'!$2:$2,0),FALSE),INDIRECT("'"&$E40&"'!"&"$A:$K"),9,FALSE) -> 0.05008143005 | J40: =VLOOKUP(VLOOKUP($F40,'Data BI Summary'!$A:$F,MATCH(J$1,'Data BI Summary'!$2:$2,0),FALSE),INDIRECT("'"&$E40&"'!"&"$A:$K"),8,FALSE) -> 6.047807 | K40: =VLOOKUP(VLOOKUP($F40,'Data BI Summary'!$A:$F,MATCH(K$1,'Data BI Summary'!$2:$2,0),FALSE),INDIRECT("'"&$E40&"'!"&"$A:$K"),9,FALSE) -> 0.007737244493
A41: AGSd-HCHI | B41: Low | C41: =VLOOKUP(A$41,'Data Billing Quantities'!A:P,MATCH($B41&" kWh",'Data Billing Quantities'!$4:$4,0),FALSE) -> 10880 | D41: =VLOOKUP(A$41,'Data Billing Quantities'!A:P,MATCH(B41&" kW",'Data Billing Quantities'!$4:$4,0),FALSE) -> 55 | E41: BI_HCHI_AGSd_Low | F41: BI Template_DemandHCHI | G41: =VLOOKUP(VLOOKUP($F41,'Data BI Summary'!$A:$F,MATCH(G$1,'Data BI Summary'!$2:$2,0),FALSE),INDIRECT("'"&$E41&"'!"&"$A:$K"),4,FALSE) -> 2295.838578 | H41: =VLOOKUP(VLOOKUP($F41,'Data BI Summary'!$A:$F,MATCH(H$1,'Data BI Summary'!$2:$2,0),FALSE),INDIRECT("'"&$E41&"'!"&"$A:$K"),8,FALSE) -> 19.9965 | I41: =VLOOKUP(VLOOKUP($F41,'Data BI Summary'!$A:$F,MATCH(I$1,'Data BI Summary'!$2:$2,0),FALSE),INDIRECT("'"&$E41&"'!"&"$A:$K"),9,FALSE) -> 0.05251319625 | J41: =VLOOKUP(VLOOKUP($F41,'Data BI Summary'!$A:$F,MATCH(J$1,'Data BI Summary'!$2:$2,0),FALSE),INDIRECT("'"&$E41&"'!"&"$A:$K"),8,FALSE) -> 22.596045 | K41: =VLOOKUP(VLOOKUP($F41,'Data BI Summary'!$A:$F,MATCH(K$1,'Data BI Summary'!$2:$2,0),FALSE),INDIRECT("'"&$E41&"'!"&"$A:$K"),9,FALSE) -> 0.009842174974 | L41: WAHSP
B42: Average | C42: =VLOOKUP(A$41,'Data Billing Quantities'!A:P,MATCH($B42&" kWh",'Data Billing Quantities'!$4:$4,0),FALSE) -> 57529 | D42: =VLOOKUP(A$41,'Data Billing Quantities'!A:P,MATCH(B42&" kW",'Data Billing Quantities'!$4:$4,0),FALSE) -> 175 | E42: BI_HCHI_AGSd_Avg | F42: BI Template_DemandHCHI | G42: =VLOOKUP(VLOOKUP($F42,'Data BI Summary'!$A:$F,MATCH(G$1,'Data BI Summary'!$2:$2,0),FALSE),INDIRECT("'"&$E42&"'!"&"$A:$K"),4,FALSE) -> 10214.53663 | H42: =VLOOKUP(VLOOKUP($F42,'Data BI Summary'!$A:$F,MATCH(H$1,'Data BI Summary'!$2:$2,0),FALSE),INDIRECT("'"&$E42&"'!"&"$A:$K"),8,FALSE) -> 48.3525 | I42: =VLOOKUP(VLOOKUP($F42,'Data BI Summary'!$A:$F,MATCH(I$1,'Data BI Summary'!$2:$2,0),FALSE),INDIRECT("'"&$E42&"'!"&"$A:$K"),9,FALSE) -> 0.05882015187 | J42: =VLOOKUP(VLOOKUP($F42,'Data BI Summary'!$A:$F,MATCH(J$1,'Data BI Summary'!$2:$2,0),FALSE),INDIRECT("'"&$E42&"'!"&"$A:$K"),8,FALSE) -> 54.638325 | K42: =VLOOKUP(VLOOKUP($F42,'Data BI Summary'!$A:$F,MATCH(K$1,'Data BI Summary'!$2:$2,0),FALSE),INDIRECT("'"&$E42&"'!"&"$A:$K"),9,FALSE) -> 0.005349075242
B43: High | C43: =VLOOKUP(A$41,'Data Billing Quantities'!A:P,MATCH($B43&" kWh",'Data Billing Quantities'!$4:$4,0),FALSE) -> 135160 | D43: =VLOOKUP(A$41,'Data Billing Quantities'!A:P,MATCH(B43&" kW",'Data Billing Quantities'!$4:$4,0),FALSE) -> 375 | E43: BI_HCHI_AGSd_High | F43: BI Template_DemandHCHI | G43: =VLOOKUP(VLOOKUP($F43,'Data BI Summary'!$A:$F,MATCH(G$1,'Data BI Summary'!$2:$2,0),FALSE),INDIRECT("'"&$E43&"'!"&"$A:$K"),4,FALSE) -> 23395.301 | H43: =VLOOKUP(VLOOKUP($F43,'Data BI Summary'!$A:$F,MATCH(H$1,'Data BI Summary'!$2:$2,0),FALSE),INDIRECT("'"&$E43&"'!"&"$A:$K"),8,FALSE) -> 95.6125 | I43: =VLOOKUP(VLOOKUP($F43,'Data BI Summary'!$A:$F,MATCH(I$1,'Data BI Summary'!$2:$2,0),FALSE),INDIRECT("'"&$E43&"'!"&"$A:$K"),9,FALSE) -> 0.06138694529 | J43: =VLOOKUP(VLOOKUP($F43,'Data BI Summary'!$A:$F,MATCH(J$1,'Data BI Summary'!$2:$2,0),FALSE),INDIRECT("'"&$E43&"'!"&"$A:$K"),8,FALSE) -> 108.042125 | K43: =VLOOKUP(VLOOKUP($F43,'Data BI Summary'!$A:$F,MATCH(K$1,'Data BI Summary'!$2:$2,0),FALSE),INDIRECT("'"&$E43&"'!"&"$A:$K"),9,FALSE) -> 0.004618112202
A44: St Lgt-HCHI | B44: Average | C44: =VLOOKUP(A$44,'Data Billing Quantities'!A:P,MATCH($B44&" kWh",'Data Billing Quantities'!$4:$4,0),FALSE) -> 31001 | E44: BI_HCHI_StLgt_Avg | F44: BI Template_unmHCHI | G44: =VLOOKUP(VLOOKUP($F44,'Data BI Summary'!$A:$F,MATCH(G$1,'Data BI Summary'!$2:$2,0),FALSE),INDIRECT("'"&$E44&"'!"&"$A:$K"),4,FALSE) -> 8625.819903 | H44: =VLOOKUP(VLOOKUP($F44,'Data BI Summary'!$A:$F,MATCH(H$1,'Data BI Summary'!$2:$2,0),FALSE),INDIRECT("'"&$E44&"'!"&"$A:$K"),8,FALSE) -> 145.8047 | I44: =VLOOKUP(VLOOKUP($F44,'Data BI Summary'!$A:$F,MATCH(I$1,'Data BI Summary'!$2:$2,0),FALSE),INDIRECT("'"&$E44&"'!"&"$A:$K"),9,FALSE) -> 0.04432998812 | J44: =VLOOKUP(VLOOKUP($F44,'Data BI Summary'!$A:$F,MATCH(J$1,'Data BI Summary'!$2:$2,0),FALSE),INDIRECT("'"&$E44&"'!"&"$A:$K"),8,FALSE) -> 164.759311 | K44: =VLOOKUP(VLOOKUP($F44,'Data BI Summary'!$A:$F,MATCH(K$1,'Data BI Summary'!$2:$2,0),FALSE),INDIRECT("'"&$E44&"'!"&"$A:$K"),9,FALSE) -> 0.01910071308 | L44: Two-tier RPP
A45: Sen Lgt-HCHI | B45: Average | C45: =VLOOKUP(A$45,'Data Billing Quantities'!A:P,MATCH($B45&" kWh",'Data Billing Quantities'!$4:$4,0),FALSE) -> 61 | E45: BI_HCHI_SenLgt_Avg | F45: BI Template_unmHCHI | G45: =VLOOKUP(VLOOKUP($F45,'Data BI Summary'!$A:$F,MATCH(G$1,'Data BI Summary'!$2:$2,0),FALSE),INDIRECT("'"&$E45&"'!"&"$A:$K"),4,FALSE) -> 18.74534144 | H45: =VLOOKUP(VLOOKUP($F45,'Data BI Summary'!$A:$F,MATCH(H$1,'Data BI Summary'!$2:$2,0),FALSE),INDIRECT("'"&$E45&"'!"&"$A:$K"),8,FALSE) -> 0.5492 | I45: =VLOOKUP(VLOOKUP($F45,'Data BI Summary'!$A:$F,MATCH(I$1,'Data BI Summary'!$2:$2,0),FALSE),INDIRECT("'"&$E45&"'!"&"$A:$K"),9,FALSE) -> 0.04490560175 | J45: =VLOOKUP(VLOOKUP($F45,'Data BI Summary'!$A:$F,MATCH(J$1,'Data BI Summary'!$2:$2,0),FALSE),INDIRECT("'"&$E45&"'!"&"$A:$K"),8,FALSE) -> 0.5167972 | K45: =VLOOKUP(VLOOKUP($F45,'Data BI Summary'!$A:$F,MATCH(K$1,'Data BI Summary'!$2:$2,0),FALSE),INDIRECT("'"&$E45&"'!"&"$A:$K"),9,FALSE) -> 0.02756936713 | L45: Two-tier RPP
A46: USL-HCHI | B46: Average | C46: =VLOOKUP(A$46,'Data Billing Quantities'!A:P,MATCH($B46&" kWh",'Data Billing Quantities'!$4:$4,0),FALSE) -> 471 | E46: BI_HCHI_USL_Avg | F46: BI Template_unmHCHI | G46: =VLOOKUP(VLOOKUP($F46,'Data BI Summary'!$A:$F,MATCH(G$1,'Data BI Summary'!$2:$2,0),FALSE),INDIRECT("'"&$E46&"'!"&"$A:$K"),4,FALSE) -> 96.95566776 | H46: =VLOOKUP(VLOOKUP($F46,'Data BI Summary'!$A:$F,MATCH(H$1,'Data BI Summary'!$2:$2,0),FALSE),INDIRECT("'"&$E46&"'!"&"$A:$K"),8,FALSE) -> 1.4897 | I46: =VLOOKUP(VLOOKUP($F46,'Data BI Summary'!$A:$F,MATCH(I$1,'Data BI Summary'!$2:$2,0),FALSE),INDIRECT("'"&$E46&"'!"&"$A:$K"),9,FALSE) -> 0.0333525877 | J46: =VLOOKUP(VLOOKUP($F46,'Data BI Summary'!$A:$F,MATCH(J$1,'Data BI Summary'!$2:$2,0),FALSE),INDIRECT("'"&$E46&"'!"&"$A:$K"),8,FALSE) -> 1.4018077 | K46: =VLOOKUP(VLOOKUP($F46,'Data BI Summary'!$A:$F,MATCH(K$1,'Data BI Summary'!$2:$2,0),FALSE),INDIRECT("'"&$E46&"'!"&"$A:$K"),9,FALSE) -> 0.01445823367 | L46: Two-tier RPP

Sheet BI Template_Energy (hidden)
A1: 2024 Bill Impacts (Low Consumption Level) - R1
A3: Rate Class | B3: =RIGHT(A1,LEN(A1)-FIND("- ",A1,1)-1) -> R1
A4: Monthly Consumption (kWh) | B4: =IF(COUNTIF(A1,"*Low*")>0,VLOOKUP(B3,'Data Billing Quantities'!$A:$Z,MATCH("Low kWh",'Data Billing Quantities'!4:4,0),FALSE),IF(COUNTIF(A1,"*Typical*")>0,VLOOKUP(B3,'Data Billing Quantities'!$A:$Z,MATCH("Typical kWh",'Data Billing Quantities'!4:4,0),FALSE),IF(COUNTIF(A1,"*Average*")>0,VLOOKUP(B3,'Data Billing Quantities'!$A:$Z,MATCH("Average kWh",'Data Billing Quantities'!4:4,0),FALSE),IF(COUNTIF(A1,"*High*")>0,VLOOKUP(B3,'Data Billing Quantities'!$A:$Z,MATCH("High kWh",'Data Billing Quantities'!4:4,0),FALSE),"error")))) -> 370
A5: Peak (kW) | B5: =IF(COUNTIF(A1,"*Low*")>0,VLOOKUP(B3,'Data Billing Quantities'!$A:$Z,MATCH("Low kW",'Data Billing Quantities'!4:4,0),FALSE),IF(COUNTIF(A1,"*Typical*")>0,VLOOKUP(B3,'Data Billing Quantities'!$A:$Z,MATCH("Typical kW",'Data Billing Quantities'!4:4,0),FALSE),IF(COUNTIF(A1,"*Average*")>0,VLOOKUP(B3,'Data Billing Quantities'!$A:$Z,MATCH("Average kW",'Data Billing Quantities'!4:4,0),FALSE),IF(COUNTIF(A1,"*High*")>0,VLOOKUP(B3,'Data Billing Quantities'!$A:$Z,MATCH("High kW",'Data Billing Quantities'!4:4,0),FALSE),"error")))) -> 0
A6: Loss factor | B6: =VLOOKUP(B3,'Data Billing Quantities'!A:D,MATCH(A6,'Data Billing Quantities'!4:4,0),FALSE) -> 1.076
A7: Commodity Threshold | B7: =VLOOKUP(B3,'Data Billing Quantities'!A:D,MATCH(A7,'Data Billing Quantities'!4:4,0),FALSE) -> 600
A8: Monthly Consumption (kWh) - Uplifted | B8: =B4*B6 -> 398.12
A9: Charge determinant | B9: =VLOOKUP(B3,'Data Billing Quantities'!A:D,MATCH(A9,'Data Billing Quantities'!4:4,0),FALSE) -> kWh
B11: Volume | C11: Current Rate ($) | D11: Current Charge ($) | E11: Volume | F11: Proposed Rate ($) | G11: Proposed Charge ($) | H11: Change ($) | I11: Change (%) | J11: % of Total Bill on RPP | K11: % of Total Bill
A12: Energy First Tier | B12: =IF(B4>B7,B7,B4) -> 370 | C12: =VLOOKUP($A12,'Data Pass Through'!$A:$D,2,FALSE) -> 0.098 | D12: =B12*C12 -> 36.26 | E12: =B12 -> 370 | F12: =VLOOKUP($A12,'Data Pass Through'!$A:$D,3,FALSE) -> 0.098 | G12: =E12*F12 -> 36.26 | H12: =G12-D12 -> 0 | I12: =IF(ISERROR(H12/ABS(D12)),"N/A",(H12/ABS(D12))) -> 0 | J12: =G12/$G$47 -> 0.3450359457
A13: Energy Second Tier | B13: =IF(B4>B7,(B4)-B7,0) -> 0 | C13: =VLOOKUP($A13,'Data Pass Through'!$A:$D,2,FALSE) -> 0.115 | D13: =B13*C13 -> 0 | E13: =B13 -> 0 | F13: =VLOOKUP($A13,'Data Pass Through'!$A:$D,3,FALSE) -> 0.115 | G13: =E13*F13 -> 0 | H13: 0 | I13: N/A | J13: =G13/$G$47 -> 0
A14: Sub-Total: Energy (RPP Tiered) | D14: =SUM(D12:D13) -> 36.26 | G14: =SUM(G12:G13) -> 36.26 | H14: 0 | I14: 0 | J14: =G14/$G$47 -> 0.3450359457
A15: TOU-Off Peak | B15: =B$4*VLOOKUP($B$3,'Data Billing Quantities'!$A:$O,MATCH('BI Template_Energy'!$A15,'Data Billing Quantities'!$4:$4,0),FALSE) -> 236.8 | C15: =VLOOKUP($A15,'Data Pass Through'!$A:$D,2,FALSE) -> 0.082 | D15: =B15*C15 -> 19.4176 | E15: 236.8 | F15: =VLOOKUP($A15,'Data Pass Through'!$A:$D,3,FALSE) -> 0.082 | G15: =E15*F15 -> 19.4176 | H15: 0 | I15: 0 | K15: =G15/$G$52 -> 0.181267913
A16: TOU-Mid Peak | B16: =B$4*VLOOKUP($B$3,'Data Billing Quantities'!$A:$O,MATCH('BI Template_Energy'!$A16,'Data Billing Quantities'!$4:$4,0),FALSE) -> 66.6 | C16: =VLOOKUP($A16,'Data Pass Through'!$A:$D,2,FALSE) -> 0.113 | D16: =B16*C16 -> 7.5258 | E16: 66.6 | F16: =VLOOKUP($A16,'Data Pass Through'!$A:$D,3,FALSE) -> 0.113 | G16: =E16*F16 -> 7.5258 | H16: 0 | I16: 0 | K16: 0.07025513243
A17: TOU-On Peak | B17: =B$4*VLOOKUP($B$3,'Data Billing Quantities'!$A:$O,MATCH('BI Template_Energy'!$A17,'Data Billing Quantities'!$4:$4,0),FALSE) -> 66.6 | C17: =VLOOKUP($A17,'Data Pass Through'!$A:$D,2,FALSE) -> 0.17 | D17: =B17*C17 -> 11.322 | E17: 66.6 | F17: =VLOOKUP($A17,'Data Pass Through'!$A:$D,3,FALSE) -> 0.17 | G17: =E17*F17 -> 11.322 | H17: 0 | I17: 0 | K17: 0.1056935621
A18: Sub-Total: Energy (RPP TOU) | D18: =SUM(D15:D17) -> 38.2654 | G18: =SUM(G15:G17) -> 38.2654 | H18: 0 | I18: 0 | J18: =G18/$G$47 -> 0.364118546 | K18: 0.3572166074
A19: Service Charge | B19: 1 | C19: =VLOOKUP($B$3,'Data Current Rates'!$A:$AN,MATCH('BI Template_Energy'!$A19,CurrentHeader,0),FALSE) -> 57.22 | D19: =B19*C19 -> 57.22 | E19: 1 | F19: =VLOOKUP($B$3,'Data Proposed Rates'!$A:$AZ,MATCH('BI Template_Energy'!$A19,ProposedHeader,0),FALSE) -> 64.05 | G19: =E19*F19 -> 64.05 | H19: 6.83 | I19: 0.1193638588 | J19: 0.6094746918 | K19: 0.5979219793
A20: Fixed Base Rate Adjustment to Recover Past Tax Amounts | B20: 1 | C20: =VLOOKUP($B$3,'Data Current Rates'!$A:$AN,MATCH('BI Template_Energy'!$A20,CurrentHeader,0),FALSE) -> 1.44 | D20: =B20*C20 -> 1.44 | E20: 1 | F20: =VLOOKUP($B$3,'Data Proposed Rates'!$A:$AZ,MATCH('BI Template_Energy'!$A20,ProposedHeader,0),FALSE) -> 0 | G20: 0 | H20: -1.44 | I20: -1 | J20: 0 | K20: 0
A21: Group 2 Fixed DVA Rider | B21: 1 | C21: =VLOOKUP($B$3,'Data Current Rates'!$A:$AN,MATCH('BI Template_Energy'!$A21,CurrentHeader,0),FALSE) -> -0.14 | D21: =B21*C21 -> -0.14 | E21: 1 | F21: =VLOOKUP($B$3,'Data Proposed Rates'!$A:$AZ,MATCH('BI Template_Energy'!$A21,ProposedHeader,0),FALSE) -> -0.14 | G21: -0.14 | H21: 0 | I21: 0 | J21: -0.001332185119 | K21: -0.001306933288
A22: Distribution Volumetric Charge | B22: =IF($B$9="kWh",$B$4,$B$5) -> 370 | C22: =VLOOKUP($B$3,'Data Current Rates'!$A:$AN,MATCH('BI Template_Energy'!$A22,CurrentHeader,0),FALSE) -> 0.0052 | D22: 1.924 | E22: 370 | F22: =VLOOKUP($B$3,'Data Proposed Rates'!$A:$AZ,MATCH('BI Template_Energy'!$A22,ProposedHeader,0),FALSE) -> 0 | G22: 0 | H22: -1.924 | I22: -1 | J22: 0 | K22: 0
A23: Volumetric Base Rate Adjustment to Recover Past Tax Amounts | B23: =IF($B$9="kWh",$B$4,$B$5) -> 370 | C23: =VLOOKUP($B$3,'Data Current Rates'!$A:$AN,MATCH('BI Template_Energy'!$A23,CurrentHeader,0),FALSE) -> 0 | D23: 0 | E23: 370 | F23: =VLOOKUP($B$3,'Data Proposed Rates'!$A:$AZ,MATCH('BI Template_Energy'!$A23,ProposedHeader,0),FALSE) -> 0 | G23: 0 | H23: 0 | I23: N/A | J23: 0 | K23: 0
A24: Group 1 Volumetric DVA Rider (General) | B24: 370 | C24: =VLOOKUP($B$3,'Data Current Rates'!$A:$AN,MATCH('BI Template_Energy'!$A24,CurrentHeader,0),FALSE) -> -0.0004 | D24: =B24*C24 -> -0.148 | E24: =B4 -> 370 | F24: =VLOOKUP($B$3,'Data Proposed Rates'!$A:$AZ,MATCH('BI Template_Energy'!$A24,ProposedHeader,0),FALSE) -> -0.0004 | G24: =E24*F24 -> -0.148 | H24: =G24-D24 -> 0 | I24: =IF(ISERROR(H24/ABS(D24)),"N/A",(H24/ABS(D24))) -> 0 | J24: -0.001408309983 | K24: -0.00138161519
A25: Group 2 Volumetric DVA Rider | B25: 370 | C25: =VLOOKUP($B$3,'Data Current Rates'!$A:$AN,MATCH('BI Template_Energy'!$A25,CurrentHeader,0),FALSE) -> 0 | D25: 0 | E25: =B4 -> 370 | F25: =VLOOKUP($B$3,'Data Proposed Rates'!$A:$AZ,MATCH('BI Template_Energy'!$A25,ProposedHeader,0),FALSE) -> 0 | G25: 0 | H25: 0 | I25: N/A | J25: 0 | K25: 0
A26: Fair Hydro Plan - Distribution Rate Protection Savings* | D26: =IF(AND(B3<>"R1",B3<>"R2"),0,IF(VLOOKUP($A26,'Data Pass Through'!$A:$D,2,FALSE)=0,0,IF(SUM(D19:D20,D22:D23)<VLOOKUP($A26,'Data Pass Through'!$A:$D,2,FALSE),0,VLOOKUP($A26,'Data Pass Through'!$A:$D,2,FALSE)-SUM(D19:D20,D22:D23)))) -> 0 | G26: =IF(AND(B3<>"R1",B3<>"R2"),0,IF(VLOOKUP($A26,'Data Pass Through'!$A:$D,2,FALSE)=0,0,IF(SUM(G19:G20,G22:G23)<VLOOKUP($A26,'Data Pass Through'!$A:$D,2,FALSE),0,VLOOKUP($A26,'Data Pass Through'!$A:$D,2,FALSE)-SUM(G19:G20,G22:G23)))) -> 0 | H26: 0 | I26: N/A | J26: 0 | K26: 0
A27: Sub-Total: Distribution (excluding pass through) | D27: =SUM(INDIRECT("D19:D"&ROW()-1)) -> 60.296 | G27: =SUM(INDIRECT("g19:g"&ROW()-1)) -> 63.762 | H27: =G27-D27 -> 3.466 | I27: =IF(ISERROR(H27/ABS(D27)),"N/A",(H27/ABS(D27))) -> 0.05748308345 | J27: 0.6067341967 | K27: 0.5952334308
A28: Smart Metering Entity Charge | B28: 1 | C28: =VLOOKUP($A28,'Data Pass Through'!$A:$D,2,FALSE) -> 0.57 | D28: =B28*C28 -> 0.57 | E28: 1 | F28: =VLOOKUP($A28,'Data Pass Through'!$A:$D,3,FALSE) -> 0.57 | G28: =E28*F28 -> 0.57 | H28: 0 | I28: 0 | J28: 0.005423896555 | K28: 0.00532108553
A29: Line Losses on Cost of Power (based on two-tier RPP prices) | B29: =B8-B4 -> 28.12 | C29: =IF(B4>B7,C13,C12) -> 0.098 | D29: =B29*C29 -> 2.75576 | E29: 28.12 | F29: =IF(B4>B7,F13,F12) -> 0.098 | G29: =E29*F29 -> 2.75576 | H29: 0 | I29: 0 | J29: 0.02622273188 | K29: 0.02572567484
A30: Line Losses on Cost of Power (based on TOU prices) | B30: =B8-B4 -> 28.12 | C30: =VLOOKUP($B$3,'Data Billing Quantities'!$A:$O,MATCH('BI Template_Energy'!$A15,'Data Billing Quantities'!$4:$4,0),FALSE)*C15+VLOOKUP($B$3,'Data Billing Quantities'!$A:$O,MATCH('BI Template_Energy'!$A16,'Data Billing Quantities'!$4:$4,0),FALSE)*C16+VLOOKUP($B$3,'Data Billing Quantities'!$A:$O,MATCH('BI Template_Energy'!$A17,'Data Billing Quantities'!$4:$4,0),FALSE)*C17 -> 0.10342 | D30: =B30*C30 -> 2.9081704 | E30: 28.12 | F30: =VLOOKUP($B$3,'Data Billing Quantities'!$A:$O,MATCH('BI Template_Energy'!$A15,'Data Billing Quantities'!$4:$4,0),FALSE)*F15+VLOOKUP($B$3,'Data Billing Quantities'!$A:$O,MATCH('BI Template_Energy'!$A16,'Data Billing Quantities'!$4:$4,0),FALSE)*F16+VLOOKUP($B$3,'Data Billing Quantities'!$A:$O,MATCH('BI Template_Energy'!$A17,'Data Billing Quantities'!$4:$4,0),FALSE)*F17 -> 0.10342 | G30: =E30*F30 -> 2.9081704 | H30: 0 | I30: 0 | J30: 0.0276730095 | K30: 0.02714846217
A31: Sub-Total: Distribution (based on two-tier RPP prices) | D31: =SUM(D27,D28:D29) -> 63.62176 | G31: =SUM(G27,G28:G29) -> 67.08776 | H31: 3.466 | I31: 0.05447821626 | J31: 0.6383808251 | K31: 0.6262801912
A32: Sub-Total: Distribution (based on TOU prices) | D32: =SUM(D27,D28,D30) -> 63.7741704 | G32: =SUM(G27,G28,G30) -> 67.2401704 | H32: 3.466 | I32: 0.05434802175 | J32: 0.6398311028 | K32: 0.6277029785
A33: Retail Transmission Rate – Network Service Rate | B33: =B8 -> 398.12 | C33: =VLOOKUP($B$3,'Data Current Rates'!$A:$AN,MATCH('BI Template_Energy'!$A33,CurrentHeader,0),FALSE) -> 0.0095 | D33: =B33*C33 -> 3.78214 | E33: 398.12 | F33: =VLOOKUP($B$3,'Data Proposed Rates'!$A:$AZ,MATCH('BI Template_Energy'!$A33,ProposedHeader,0),FALSE) -> 0.0095 | G33: =E33*F33 -> 3.78214 | H33: =G33-D33 -> 0 | I33: 0 | J33: 0.03598936161 | K33: 0.03530717619
A34: Retail Transmission Rate – Line and Transformation Connection Service Rate | B34: =B8 -> 398.12 | C34: =VLOOKUP($B$3,'Data Current Rates'!$A:$AN,MATCH('BI Template_Energy'!$A34,CurrentHeader,0),FALSE) -> 0.0069 | D34: =B34*C34 -> 2.747028 | E34: 398.12 | F34: =VLOOKUP($B$3,'Data Proposed Rates'!$A:$AZ,MATCH('BI Template_Energy'!$A34,ProposedHeader,0),FALSE) -> 0.0069 | G34: =E34*F34 -> 2.747028 | H34: =G34-D34 -> 0 | I34: 0 | J34: 0.02613964159 | K34: 0.02564415955
A35: Sub-Total: Retail Transmission | D35: =SUM(D33:D34) -> 6.529168 | G35: =SUM(G33:G34) -> 6.529168 | H35: =G35-D35 -> 0 | I35: 0 | J35: 0.06212900319 | K35: 0.06095133573
A36: Sub-Total: Delivery (based on two-tier RPP prices) | D36: =D31+D35 -> 70.150928 | G36: =G31+G35 -> 73.616928 | H36: =G36-D36 -> 3.466 | I36: 0.04940775694 | J36: 0.7005098283 | K36: 0.6872315269
A37: Sub-Total: Delivery (based on TOU prices) | D37: =D32+D35 -> 70.3033384 | G37: =G32+G35 -> 73.7693384 | H37: =G37-D37 -> 3.466 | I37: 0.04930064601 | J37: 0.701960106 | K37: 0.6886543143
A38: Wholesale Market Service Rate (WMS) - not including CBR | B38: =B8 -> 398.12 | C38: =VLOOKUP($A38,'Data Pass Through'!$A:$D,2,FALSE) -> 0.003 | D38: =B38*C38 -> 1.19436 | E38: =$B$8 -> 398.12 | F38: =VLOOKUP($A38,'Data Pass Through'!$A:$D,3,FALSE) -> 0.003 | G38: =E38*F38 -> 1.19436 | H38: 0 | I38: 0 | J38: 0.01136506156 | K38: 0.01114963459
A39: Capacity Based Recovery (CBR) - Applicable for Class B Customers | B39: =B8 -> 398.12 | C39: =VLOOKUP($A39,'Data Pass Through'!$A:$D,2,FALSE) -> 0.0004 | D39: =B39*C39 -> 0.159248 | E39: =$B$8 -> 398.12 | F39: =VLOOKUP($A39,'Data Pass Through'!$A:$D,3,FALSE) -> 0.0004 | G39: =E39*F39 -> 0.159248 | H39: =G39-D39 -> 0 | I39: =IF(ISERROR(H39/ABS(D39)),"N/A",(H39/ABS(D39))) -> 0 | J39: 0.001515341541 | K39: 0.001486617945
A40: Rural Rate Protection Charge | B40: =B8 -> 398.12 | C40: =VLOOKUP($A40,'Data Pass Through'!$A:$D,2,FALSE) -> 0.0005 | D40: 0.19906 | E40: 398.12 | F40: =VLOOKUP($A40,'Data Pass Through'!$A:$D,3,FALSE) -> 0.0005 | G40: 0.19906 | H40: 0 | I40: 0 | J40: 0.001894176927 | K40: 0.001858272431
A41: Standard Supply Service – Administration Charge (if applicable) | B41: 1 | C41: =VLOOKUP($A41,'Data Pass Through'!$A:$D,2,FALSE) -> 0.25 | D41: =B41*C41 -> 0.25 | E41: 1 | F41: =VLOOKUP($A41,'Data Pass Through'!$A:$D,3,FALSE) -> 0.25 | G41: 0.25 | H41: 0 | I41: 0 | J41: 0.002378901998 | K41: 0.002333809443
A42: Sub-Total: Regulatory | D42: =SUM(D38:D41) -> 1.802668 | G42: =SUM(G38:G41) -> 1.802668 | H42: 0 | I42: 0 | J42: 0.01715348203 | K42: 0.0168283344
A43: Total Electricty Charge on Two-Tier RPP | D43: =SUM(D14,D27,D28,D29,D35,D42) -> 108.213596 | G43: =SUM(G14,G27,G28,G29,G35,G42) -> 111.679596 | H43: 3.466 | I43: 0.03202924705 | J43: 1.062699256
A44: HST | C44: 0.13 | D44: =D43*C44 -> 14.06776748 | F44: =C44 -> 0.13 | G44: =G43*F44 -> 14.51834748 | H44: 0.45058 | I44: 0.03202924705 | J44: 0.1381509033
A45: Total Electricity Charge on Two-Tier RPP (including HST) | D45: =SUM(D43:D44) -> 122.2813635 | G45: =SUM(G43:G44) -> 126.1979435 | H45: 3.91658 | I45: 0.03202924705 | J45: 1.200850159
A46: Ontario Electricity Rebate (OER) | C46: =IF(($B$4*12)<250000,VLOOKUP(A46,'Data Pass Through'!$A$4:$C$20,2,0),0) -> -0.189 | D46: =D43*C46 -> -20.45236964 | F46: =C46 -> -0.189 | G46: =G43*F46 -> -21.10744364 | H46: -0.655074 | I46: -0.03202924705 | J46: -0.2008501594
A47: Total Amount on Two-Tier RPP | D47: =SUM(D45:D46) -> 101.8289938 | G47: =SUM(G45:G46) -> 105.0904998 | H47: 3.261506 | I47: 0.03202924705 | J47: 1
A48: Total Electricty Charge on TOU (before HST) | D48: =SUM(D18,D27,D28,D30,D35,D42) -> 110.3714064 | G48: =SUM(G18,G27,G28,G30,G35,G42) -> 113.8374064 | H48: 3.466 | I48: 0.03140306093 | K48: =G48/$G$52 -> 1.062699256
A49: HST | C49: 0.13 | D49: =D48*C49 -> 14.34828283 | F49: =C49 -> 0.13 | G49: =G48*F49 -> 14.79886283 | H49: 0.45058 | I49: 0.03140306093 | K49: =G49/$G$52 -> 0.1381509033
A50: Total Electricity Charge on TOU (including HST) | D50: =SUM(D48:D49) -> 124.7196892 | G50: =SUM(G48:G49) -> 128.6362692 | H50: 3.91658 | I50: 0.03140306093 | K50: =G50/$G$52 -> 1.200850159
A51: Ontario Electricity Rebate (OER) | C51: =IF(($B$4*12)<250000,VLOOKUP(A51,'Data Pass Through'!$A$4:$C$20,2,0),0) -> -0.189 | D51: =D48*C51 -> -20.86019581 | F51: =C51 -> -0.189 | G51: =G48*F51 -> -21.51526981 | H51: -0.655074 | I51: -0.03140306093 | K51: =G51/$G$52 -> -0.2008501594
A52: Total Amount on TOU | D52: =SUM(D50:D51) -> 103.8594934 | G52: =SUM(G50:G51) -> 107.1209994 | H52: 3.261506 | I52: 0.03140306093 | K52: =G52/$G$52 -> 1
A53: * Distribution rate protection applies to R1 and R2 customers

Sheet BI Template_EnergyNPDI (hidden)
A1: 2024 Bill Impacts (Low Consumption Level) - AR_NPDI
A3: Rate Class | B3: =VLOOKUP(A1,'Data BI List Acq_Seas'!C:E,2,FALSE) -> AR-NPDI | C3: =VLOOKUP(A1,'Data BI List Acq_Seas'!C:E,3,FALSE) -> AR-NPDI
A4: Monthly Consumption (kWh) | B4: =IF(COUNTIF(A1,"*Low*")>0,VLOOKUP(B3,'Data Billing Quantities'!$A:$Z,MATCH("Low kWh",'Data Billing Quantities'!4:4,0),FALSE),IF(COUNTIF(A1,"*Typical*")>0,VLOOKUP(B3,'Data Billing Quantities'!$A:$Z,MATCH("Typical kWh",'Data Billing Quantities'!4:4,0),FALSE),IF(COUNTIF(A1,"*Average*")>0,VLOOKUP(B3,'Data Billing Quantities'!$A:$Z,MATCH("Average kWh",'Data Billing Quantities'!4:4,0),FALSE),IF(COUNTIF(A1,"*High*")>0,VLOOKUP(B3,'Data Billing Quantities'!$A:$Z,MATCH("High kWh",'Data Billing Quantities'!4:4,0),FALSE),"error")))) -> 290 | C4: =B4 -> 290
A5: Peak (kW) | B5: =IF(COUNTIF(A1,"*Low*")>0,VLOOKUP(B3,'Data Billing Quantities'!$A:$Z,MATCH("Low kW",'Data Billing Quantities'!4:4,0),FALSE),IF(COUNTIF(A1,"*Typical*")>0,VLOOKUP(B3,'Data Billing Quantities'!$A:$Z,MATCH("Typical kW",'Data Billing Quantities'!4:4,0),FALSE),IF(COUNTIF(A1,"*Average*")>0,VLOOKUP(B3,'Data Billing Quantities'!$A:$Z,MATCH("Average kW",'Data Billing Quantities'!4:4,0),FALSE),IF(COUNTIF(A1,"*High*")>0,VLOOKUP(B3,'Data Billing Quantities'!$A:$Z,MATCH("High kW",'Data Billing Quantities'!4:4,0),FALSE),"error")))) -> 0 | C5: =B5 -> 0
A6: Loss factor | B6: =VLOOKUP(B3,'Data Billing Quantities'!A:D,MATCH(A6,'Data Billing Quantities'!4:4,0),FALSE) -> 1.064 | C6: =VLOOKUP(C3,'Data Billing Quantities'!A:D,MATCH(A6,'Data Billing Quantities'!4:4,0),FALSE) -> 1.064
A7: Commodity Threshold | B7: =VLOOKUP(B3,'Data Billing Quantities'!A:D,MATCH(A7,'Data Billing Quantities'!4:4,0),FALSE) -> 750 | C7: =B7 -> 750
A8: Monthly Consumption (kWh) - Uplifted | B8: =B4*B6 -> 308.56 | C8: =C4*C6 -> 308.56
A9: Charge determinant | B9: =VLOOKUP(B3,'Data Billing Quantities'!A:D,MATCH(A9,'Data Billing Quantities'!4:4,0),FALSE) -> kWh | C9: =VLOOKUP(C3,'Data Billing Quantities'!A:D,MATCH(A9,'Data Billing Quantities'!4:4,0),FALSE) -> kWh
B11: Volume | C11: Current Rate ($) | D11: Current Charge ($) | E11: Volume | F11: Proposed Rate ($) | G11: Proposed Charge ($) | H11: Change ($) | I11: Change (%) | J11: % of Total Bill on RPP | K11: % of Total Bill
A12: Energy First Tier | B12: =IF(B4>B7,B7,B4) -> 290 | C12: =VLOOKUP($A12,'Data Pass Through'!$A:$D,2,FALSE) -> 0.098 | D12: =B12*C12 -> 28.42 | E12: =B12 -> 290 | F12: =VLOOKUP($A12,'Data Pass Through'!$A:$D,3,FALSE) -> 0.098 | G12: =E12*F12 -> 28.42 | H12: =G12-D12 -> 0 | I12: =IF(ISERROR(H12/ABS(D12)),"N/A",(H12/ABS(D12))) -> 0 | J12: =G12/$G$42 -> 0.4023860147
A13: Energy Second Tier | B13: =IF(B4>B7,(B4)-B7,0) -> 0 | C13: =VLOOKUP($A13,'Data Pass Through'!$A:$D,2,FALSE) -> 0.115 | D13: =B13*C13 -> 0 | E13: =B13 -> 0 | F13: =VLOOKUP($A13,'Data Pass Through'!$A:$D,3,FALSE) -> 0.115 | G13: =E13*F13 -> 0 | H13: 0 | I13: N/A | J13: =G13/$G$42 -> 0
A14: Sub-Total: Energy (RPP Tiered) | D14: =SUM(D12:D13) -> 28.42 | G14: =SUM(G12:G13) -> 28.42 | H14: 0 | I14: 0 | J14: =G14/$G$42 -> 0.4023860147
A15: TOU-Off Peak | B15: =B$4*VLOOKUP($B$3,'Data Billing Quantities'!$A:$O,MATCH('BI Template_EnergyNPDI'!$A15,'Data Billing Quantities'!$4:$4,0),FALSE) -> 185.6 | C15: =VLOOKUP($A15,'Data Pass Through'!$A:$D,2,FALSE) -> 0.082 | D15: =B15*C15 -> 15.2192 | E15: 185.6 | F15: =VLOOKUP($A15,'Data Pass Through'!$A:$D,3,FALSE) -> 0.082 | G15: =E15*F15 -> 15.2192 | H15: 0 | I15: 0 | K15: =G15/$G$47 -> 0.2107851754
A16: TOU-Mid Peak | B16: =B$4*VLOOKUP($B$3,'Data Billing Quantities'!$A:$O,MATCH('BI Template_EnergyNPDI'!$A16,'Data Billing Quantities'!$4:$4,0),FALSE) -> 52.2 | C16: =VLOOKUP($A16,'Data Pass Through'!$A:$D,2,FALSE) -> 0.113 | D16: =B16*C16 -> 5.8986 | E16: 52.2 | F16: =VLOOKUP($A16,'Data Pass Through'!$A:$D,3,FALSE) -> 0.113 | G16: =E16*F16 -> 5.8986 | H16: 0 | I16: 0 | K16: 0.08169532142
A17: TOU-On Peak | B17: =B$4*VLOOKUP($B$3,'Data Billing Quantities'!$A:$O,MATCH('BI Template_EnergyNPDI'!$A17,'Data Billing Quantities'!$4:$4,0),FALSE) -> 52.2 | C17: =VLOOKUP($A17,'Data Pass Through'!$A:$D,2,FALSE) -> 0.17 | D17: =B17*C17 -> 8.874 | E17: 52.2 | F17: =VLOOKUP($A17,'Data Pass Through'!$A:$D,3,FALSE) -> 0.17 | G17: =E17*F17 -> 8.874 | H17: 0 | I17: 0 | K17: 0.1229044659
A18: Sub-Total: Energy (RPP TOU) | D18: =SUM(D15:D17) -> 29.9918 | G18: =SUM(G15:G17) -> 29.9918 | H18: 0 | I18: 0 | J18: =G18/$G$42 -> 0.4246404249 | K18: 0.4153849627
A19: Service Charge | B19: 1 | C19: =VLOOKUP($B$3,'Data Current Rates'!$A:$AN,MATCH('BI Template_EnergyNPDI'!$A19,CurrentHeader,0),FALSE) -> 35.94 | D19: =B19*C19 -> 35.94 | E19: 1 | F19: =VLOOKUP($C$3,'Data Proposed Rates'!$A:$AZ,MATCH('BI Template_EnergyNPDI'!$A19,ProposedHeader,0),FALSE) -> 37.54 | G19: =E19*F19 -> 37.54 | H19: 1.6 | I19: 0.04451864218 | J19: =G19/$G$42 -> 0.5315119983 | K19: 0.5199271634
A20: Distribution Volumetric Charge | B20: =IF($B$9="kWh",$B$4,$B$5) -> 290 | C20: =VLOOKUP($B$3,'Data Current Rates'!$A:$AN,MATCH('BI Template_EnergyNPDI'!$A20,CurrentHeader,0),FALSE) -> 0 | D20: =B20*C20 -> 0 | E20: =IF($C$9="kWh",$C$4,$C$5) -> 290 | F20: =VLOOKUP($C$3,'Data Proposed Rates'!$A:$AZ,MATCH('BI Template_EnergyNPDI'!$A20,ProposedHeader,0),FALSE) -> 0 | G20: 0 | H20: 0 | I20: N/A | J20: =G20/$G$42 -> 0 | K20: 0
A21: Group 1 Volumetric DVA Rider (General) | B21: =IF($B$9="kWh",$B$4,$B$5) -> 290 | C21: =VLOOKUP($B$3,'Data Current Rates'!$A:$AN,MATCH('BI Template_EnergyNPDI'!$A21,CurrentHeader,0),FALSE) -> -0.0005 | D21: =B21*C21 -> -0.145 | E21: =IF($C$9="kWh",$C$4,$C$5) -> 290 | F21: =VLOOKUP($C$3,'Data Proposed Rates'!$A:$AZ,MATCH('BI Template_EnergyNPDI'!$A21,ProposedHeader,0),FALSE) -> -0.0005 | G21: -0.145 | H21: 0 | I21: 0 | J21: =G21/$G$42 -> -0.002052989871 | K21: -0.002008242906
A22: Sub-Total: Distribution (excluding pass through) | D22: =SUM(INDIRECT("D19:D"&ROW()-1)) -> 35.795 | G22: =SUM(INDIRECT("g19:g"&ROW()-1)) -> 37.395 | H22: =G22-D22 -> 1.6 | I22: 0.0446989803 | J22: =G22/$G$42 -> 0.5294590084 | K22: =G22/$G$47 -> 0.5179189205
A23: Smart Metering Entity Charge | B23: =B19 -> 1 | C23: =VLOOKUP($A23,'Data Pass Through'!$A:$D,2,FALSE) -> 0.57 | D23: =B23*C23 -> 0.57 | E23: =E19 -> 1 | F23: =VLOOKUP($A23,'Data Pass Through'!$A:$D,3,FALSE) -> 0.57 | G23: =E23*F23 -> 0.57 | H23: 0 | I23: 0 | J23: 0.008070373975 | K23: 0.007894472114
A24: Line Losses on Cost of Power (based on two-tier RPP prices) | B24: =B8-B4 -> 18.56 | C24: =IF(B4>B7,C13,C12) -> 0.098 | D24: =B24*C24 -> 1.81888 | E24: =C8-C4 -> 18.56 | F24: =IF(C4>C7,F13,F12) -> 0.098 | G24: =E24*F24 -> 1.81888 | H24: 0 | I24: 0 | J24: 0.02575270494 | K24: 0.02519139902
A25: Line Losses on Cost of Power (based on TOU prices) | B25: =B8-B4 -> 18.56 | C25: =VLOOKUP($B$3,'Data Billing Quantities'!$A:$O,MATCH('BI Template_EnergyNPDI'!$A15,'Data Billing Quantities'!$4:$4,0),FALSE)*C15+VLOOKUP($B$3,'Data Billing Quantities'!$A:$O,MATCH('BI Template_EnergyNPDI'!$A16,'Data Billing Quantities'!$4:$4,0),FALSE)*C16+VLOOKUP($B$3,'Data Billing Quantities'!$A:$O,MATCH('BI Template_EnergyNPDI'!$A17,'Data Billing Quantities'!$4:$4,0),FALSE)*C17 -> 0.10342 | D25: =B25*C25 -> 1.9194752 | E25: =C8-C4 -> 18.56 | F25: =VLOOKUP($C$3,'Data Billing Quantities'!$A:$O,MATCH('BI Template_EnergyNPDI'!$A15,'Data Billing Quantities'!$4:$4,0),FALSE)*F15+VLOOKUP($C$3,'Data Billing Quantities'!$A:$O,MATCH('BI Template_EnergyNPDI'!$A16,'Data Billing Quantities'!$4:$4,0),FALSE)*F16+VLOOKUP($C$3,'Data Billing Quantities'!$A:$O,MATCH('BI Template_EnergyNPDI'!$A17,'Data Billing Quantities'!$4:$4,0),FALSE)*F17 -> 0.10342 | G25: =E25*F25 -> 1.9194752 | H25: 0 | I25: 0 | J25: 0.02717698719 | K25: 0.02658463761
A26: Sub-Total: Distribution (based on two-tier RPP prices) | D26: =SUM(D22,D23:D24) -> 38.18388 | G26: =SUM(G22,G23:G24) -> 39.78388 | H26: 1.6 | I26: 0.04190249917 | J26: 0.5632820874 | K26: 0.5510047917
A27: Sub-Total: Distribution (based on TOU prices) | D27: =SUM(D22,D23,D25) -> 38.2844752 | G27: =SUM(G22,G23,G25) -> 39.8844752 | H27: 1.6 | I27: 0.04179239735 | J27: 0.5647063696 | K27: 0.5523980303
A28: Retail Transmission Rate – Network Service Rate | B28: =IF($B$9="kWh",$B$8,$B$5) -> 308.56 | C28: =VLOOKUP($B$3,'Data Current Rates'!$A:$AN,MATCH('BI Template_EnergyNPDI'!$A28,CurrentHeader,0),FALSE) -> 0.0101 | D28: =B28*C28 -> 3.116456 | E28: =IF($C$9="kWh",$C$8,$C$5) -> 308.56 | F28: =VLOOKUP($C$3,'Data Proposed Rates'!$A:$AZ,MATCH('BI Template_EnergyNPDI'!$A28,ProposedHeader,0),FALSE) -> 0.0101 | G28: =E28*F28 -> 3.116456 | H28: =G28-D28 -> 0 | I28: 0 | J28: 0.0441245007 | K28: 0.04316276313
A29: Retail Transmission Rate – Line and Transformation Connection Service Rate | B29: =IF($B$9="kWh",$B$8,$B$5) -> 308.56 | C29: =VLOOKUP($B$3,'Data Current Rates'!$A:$AN,MATCH('BI Template_EnergyNPDI'!$A29,CurrentHeader,0),FALSE) -> 0.0074 | D29: =B29*C29 -> 2.283344 | E29: =IF($C$9="kWh",$C$8,$C$5) -> 308.56 | F29: =VLOOKUP($C$3,'Data Proposed Rates'!$A:$AZ,MATCH('BI Template_EnergyNPDI'!$A29,ProposedHeader,0),FALSE) -> 0.0074 | G29: =E29*F29 -> 2.283344 | H29: =G29-D29 -> 0 | I29: 0 | J29: 0.0323288421 | K29: 0.03162420269
A30: Sub-Total: Retail Transmission | D30: =SUM(D28:D29) -> 5.3998 | G30: =SUM(G28:G29) -> 5.3998 | H30: =G30-D30 -> 0 | I30: 0 | J30: 0.07645334279 | K30: 0.07478696583
A31: Sub-Total: Delivery (based on two-tier RPP prices) | D31: =D26+D30 -> 43.58368 | G31: =G26+G30 -> 45.18368 | H31: =G31-D31 -> 1.6 | I31: 0.03671098907 | J31: 0.6397354302 | K31: 0.6257917575
A32: Sub-Total: Delivery (based on TOU prices) | D32: =D27+D30 -> 43.6842752 | G32: =G27+G30 -> 45.2842752 | H32: =G32-D32 -> 1.6 | I32: 0.0366264518 | J32: 0.6411597124 | K32: 0.6271849961
A33: Wholesale Market Service Rate (WMS) - not including CBR | B33: =B8 -> 308.56 | C33: =VLOOKUP($A33,'Data Pass Through'!$A:$D,2,FALSE) -> 0.003 | D33: =B33*C33 -> 0.92568 | E33: =$C$8 -> 308.56 | F33: =VLOOKUP($A33,'Data Pass Through'!$A:$D,3,FALSE) -> 0.003 | G33: =E33*F33 -> 0.92568 | H33: 0 | I33: 0 | J33: 0.01310628734 | K33: 0.01282062271
A34: Capacity Based Recovery (CBR) - Applicable for Class B Customers | B34: =B8 -> 308.56 | C34: =VLOOKUP($A34,'Data Pass Through'!$A:$D,2,FALSE) -> 0.0004 | D34: =B34*C34 -> 0.123424 | E34: =$C$8 -> 308.56 | F34: =VLOOKUP($A34,'Data Pass Through'!$A:$D,3,FALSE) -> 0.0004 | G34: =E34*F34 -> 0.123424 | H34: 0 | I34: 0 | J34: 0.001747504978 | K34: 0.001709416362
A35: Rural Rate Protection Charge | B35: =B8 -> 308.56 | C35: =VLOOKUP($A35,'Data Pass Through'!$A:$D,2,FALSE) -> 0.0005 | D35: 0.15428 | E35: 308.56 | F35: =VLOOKUP($A35,'Data Pass Through'!$A:$D,3,FALSE) -> 0.0005 | G35: 0.15428 | H35: 0 | I35: 0 | J35: 0.002184381223 | K35: 0.002136770452
A36: Standard Supply Service – Administration Charge (if applicable) | B36: 1 | C36: =VLOOKUP($A36,'Data Pass Through'!$A:$D,2,FALSE) -> 0.25 | D36: =B36*C36 -> 0.25 | E36: 1 | F36: =VLOOKUP($A36,'Data Pass Through'!$A:$D,3,FALSE) -> 0.25 | G36: 0.25 | H36: 0 | I36: 0 | J36: 0.003539637709 | K36: 0.003462487769
A37: Sub-Total: Regulatory | D37: =SUM(D33:D36) -> 1.453384 | G37: =SUM(G33:G36) -> 1.453384 | H37: 0 | I37: 0 | J37: 0.02057781125 | K37: 0.0201292973
A38: Total Electricty Charge on Two-Tier RPP | D38: =SUM(D14,D22,D23,D24,D30,D37) -> 73.457064 | G38: =SUM(G14,G22,G23,G24,G30,G37) -> 75.057064 | H38: 1.6 | I38: 0.0217814314 | J38: 1.062699256
A39: HST | C39: 0.13 | D39: =D38*C39 -> 9.54941832 | F39: =C39 -> 0.13 | G39: =G38*F39 -> 9.75741832 | H39: 0.208 | I39: 0.0217814314 | J39: 0.1381509033
A40: Total Electricity Charge on Two-Tier RPP (including HST) | D40: =SUM(D38:D39) -> 83.00648232 | G40: =SUM(G38:G39) -> 84.81448232 | H40: 1.808 | I40: 0.0217814314 | J40: 1.200850159
A41: Ontario Electricity Rebate (OER) | C41: =IF(($B$4*12)<250000,VLOOKUP(A41,'Data Pass Through'!$A$4:$C$20,2,0),0) -> -0.189 | D41: =D38*C41 -> -13.8833851 | F41: =C41 -> -0.189 | G41: =G38*F41 -> -14.1857851 | H41: -0.3024 | I41: -0.0217814314 | J41: -0.2008501594
A42: Total Amount on Two-Tier RPP | D42: =SUM(D40:D41) -> 69.12309722 | G42: =SUM(G40:G41) -> 70.62869722 | H42: 1.5056 | I42: 0.0217814314 | J42: 1
A43: Total Electricty Charge on TOU (before HST) | D43: =SUM(D18,D22,D23,D25,D30,D37) -> 75.1294592 | G43: =SUM(G18,G22,G23,G25,G30,G37) -> 76.7294592 | H43: 1.6 | I43: 0.02129657284 | K43: =G43/$G$47 -> 1.062699256
A44: HST | C44: 0.13 | D44: =D43*C44 -> 9.766829696 | F44: =C44 -> 0.13 | G44: =G43*F44 -> 9.974829696 | H44: 0.208 | I44: 0.02129657284 | K44: =G44/$G$47 -> 0.1381509033
A45: Total Electricity Charge on TOU (including HST) | D45: =SUM(D43:D44) -> 84.8962889 | G45: =SUM(G43:G44) -> 86.7042889 | H45: 1.808 | I45: 0.02129657284 | K45: =G45/$G$47 -> 1.200850159
A46: Ontario Electricity Rebate (OER) | C46: =IF(($B$4*12)<250000,VLOOKUP(A46,'Data Pass Through'!$A$4:$C$20,2,0),0) -> -0.189 | D46: =D43*C46 -> -14.19946779 | F46: =C46 -> -0.189 | G46: =G43*F46 -> -14.50186779 | H46: -0.3024 | I46: -0.02129657284 | K46: =G46/$G$47 -> -0.2008501594
A47: Total Amount on TOU | D47: =SUM(D45:D46) -> 70.69682111 | G47: =SUM(G45:G46) -> 72.20242111 | H47: 1.5056 | I47: 0.02129657284 | K47: =G47/$G$47 -> 1

Sheet BI Template_DemandNPDI (hidden)
A1: 2024 Bill Impacts (Low Consumption Level) - AGSd_NPDI
A3: Rate Class | B3: =VLOOKUP(A1,'Data BI List Acq_Seas'!C:E,2,FALSE) -> AGSd-NPDI | C3: =VLOOKUP(A1,'Data BI List Acq_Seas'!C:E,3,FALSE) -> AGSd-NPDI
A4: Monthly Consumption (kWh) | B4: =IF(COUNTIF(A1,"*Low*")>0,VLOOKUP(B3,'Data Billing Quantities'!$A:$Z,MATCH("Low kWh",'Data Billing Quantities'!4:4,0),FALSE),IF(COUNTIF(A1,"*Typical*")>0,VLOOKUP(B3,'Data Billing Quantities'!$A:$Z,MATCH("Typical kWh",'Data Billing Quantities'!4:4,0),FALSE),IF(COUNTIF(A1,"*Average*")>0,VLOOKUP(B3,'Data Billing Quantities'!$A:$Z,MATCH("Average kWh",'Data Billing Quantities'!4:4,0),FALSE),IF(COUNTIF(A1,"*High*")>0,VLOOKUP(B3,'Data Billing Quantities'!$A:$Z,MATCH("High kWh",'Data Billing Quantities'!4:4,0),FALSE),"error")))) -> 13020 | C4: =B4 -> 13020
A5: Peak (kW) | B5: =IF(COUNTIF(A1,"*Low*")>0,VLOOKUP(B3,'Data Billing Quantities'!$A:$Z,MATCH("Low kW",'Data Billing Quantities'!4:4,0),FALSE),IF(COUNTIF(A1,"*Typical*")>0,VLOOKUP(B3,'Data Billing Quantities'!$A:$Z,MATCH("Typical kW",'Data Billing Quantities'!4:4,0),FALSE),IF(COUNTIF(A1,"*Average*")>0,VLOOKUP(B3,'Data Billing Quantities'!$A:$Z,MATCH("Average kW",'Data Billing Quantities'!4:4,0),FALSE),IF(COUNTIF(A1,"*High*")>0,VLOOKUP(B3,'Data Billing Quantities'!$A:$Z,MATCH("High kW",'Data Billing Quantities'!4:4,0),FALSE),"error")))) -> 55 | C5: =B5 -> 55
A6: Loss factor | B6: =VLOOKUP(B3,'Data Billing Quantities'!A:D,MATCH(A6,'Data Billing Quantities'!4:4,0),FALSE) -> 1.053 | C6: =VLOOKUP(C3,'Data Billing Quantities'!A:D,MATCH(A6,'Data Billing Quantities'!4:4,0),FALSE) -> 1.053
A7: Commodity Threshold | B7: =VLOOKUP(B3,'Data Billing Quantities'!A:D,MATCH(A7,'Data Billing Quantities'!4:4,0),FALSE) -> 0 | C7: =B7 -> 0
A8: Monthly Consumption (kWh) - Uplifted | B8: =B4*B6 -> 13710.06 | C8: =C4*C6 -> 13710.06
A9: Charge determinant | B9: =VLOOKUP(B3,'Data Billing Quantities'!A:D,MATCH(A9,'Data Billing Quantities'!4:4,0),FALSE) -> kW | C9: =VLOOKUP(C3,'Data Billing Quantities'!A:D,MATCH(A9,'Data Billing Quantities'!4:4,0),FALSE) -> kW
B11: Volume | C11: Current Rate ($) | D11: Current Charge ($) | E11: Volume | F11: Proposed Rate ($) | G11: Proposed Charge ($) | H11: Change ($) | I11: Change (%) | J11: % of Total Bill
A12: Weighted Average Hourly Spot Price | B12: =B8 -> 13710.06 | C12: =VLOOKUP($A12,'Data Pass Through'!$A:$D,2,FALSE) -> 0.119 | D12: =B12*C12 -> 1631.49714 | E12: =C8 -> 13710.06 | F12: =VLOOKUP($A12,'Data Pass Through'!$A:$D,3,FALSE) -> 0.119 | G12: =E12*F12 -> 1631.49714 | H12: =G12-D12 -> 0 | I12: =IF(ISERROR(H12/ABS(D12)),"N/A",(H12/ABS(D12))) -> 0 | J12: =G12/G$31 -> 0.620126966
A13: Sub-Total: Energy (WASHP) | D13: =SUM(D12:D12) -> 1631.49714 | G13: =SUM(G12:G12) -> 1631.49714 | H13: 0 | I13: 0 | J13: 0.620126966
A14: Service Charge | B14: 1 | C14: =VLOOKUP($B$3,'Data Current Rates'!$A:$AN,MATCH('BI Template_DemandNPDI'!$A14,CurrentHeader,0),FALSE) -> 171.2 | D14: =B14*C14 -> 171.2 | E14: 1 | F14: =VLOOKUP($C$3,'Data Proposed Rates'!$A:$AZ,MATCH('BI Template_DemandNPDI'!$A14,ProposedHeader,0),FALSE) -> 178.2 | G14: =E14*F14 -> 178.2 | H14: 7 | I14: 0.04088785047 | J14: 0.06773326329
A15: Distribution Volumetric Charge | B15: =IF($B$9="kWh",$B$4,$B$5) -> 55 | C15: =VLOOKUP($B$3,'Data Current Rates'!$A:$AN,MATCH('BI Template_DemandNPDI'!$A15,CurrentHeader,0),FALSE) -> 4.0886 | D15: =B15*C15 -> 224.873 | E15: =IF($C$9="kWh",$C$4,$C$5) -> 55 | F15: =VLOOKUP($C$3,'Data Proposed Rates'!$A:$AZ,MATCH('BI Template_DemandNPDI'!$A15,ProposedHeader,0),FALSE) -> 4.3249 | G15: 237.8695 | H15: 12.9965 | I15: 0.0577948442 | J15: 0.09041345382
A16: Group 1 Volumetric DVA Rider (General) | B16: =IF($B$9="kWh",$B$4,$B$5) -> 55 | C16: =VLOOKUP($B$3,'Data Current Rates'!$A:$AN,MATCH('BI Template_DemandNPDI'!$A16,CurrentHeader,0),FALSE) -> -0.0388 | D16: =B16*C16 -> -2.134 | E16: =IF($C$9="kWh",$C$4,$C$5) -> 55 | F16: =VLOOKUP($C$3,'Data Proposed Rates'!$A:$AZ,MATCH('BI Template_DemandNPDI'!$A16,ProposedHeader,0),FALSE) -> -0.0388 | G16: -2.134 | H16: 0 | I16: 0 | J16: -0.0008111267332
A17: Group 1 Volumetric Deferral/Variance Account Rider (Sub-Account RSVA Wholesale Market Service Charge & RSVA Power) | B17: 55 | C17: =VLOOKUP($B$3,'Data Current Rates'!$A:$AN,MATCH('BI Template_DemandNPDI'!$A17,CurrentHeader,0),FALSE) -> -0.081 | D17: -4.455 | E17: 55 | F17: =VLOOKUP($C$3,'Data Proposed Rates'!$A:$AZ,MATCH('BI Template_DemandNPDI'!$A17,ProposedHeader,0),FALSE) -> -0.081 | G17: -4.455 | H17: 0 | I17: 0 | J17: -0.001693331582
A18: Group 1 Volumetric Deferral/Variance Account Rider (Sub-Account Global Adjustment) | B18: =B4 -> 13020 | C18: =VLOOKUP($B$3,'Data Current Rates'!$A:$AN,MATCH('BI Template_DemandNPDI'!$A18,CurrentHeader,0),FALSE) -> -0.0007 | D18: -9.114 | E18: =C4 -> 13020 | F18: =VLOOKUP($C$3,'Data Proposed Rates'!$A:$AZ,MATCH('BI Template_DemandNPDI'!$A18,ProposedHeader,0),FALSE) -> -0.0007 | G18: -9.114 | H18: 0 | I18: 0 | J18: -0.003464202927
A19: Sub-Total: Distribution | D19: =SUM(INDIRECT("D14:D"&ROW()-1)) -> 380.37 | G19: =SUM(INDIRECT("g14:g"&ROW()-1)) -> 400.3665 | H19: =G19-D19 -> 19.9965 | I19: 0.05257118069 | J19: 0.1521780559
A20: Retail Transmission Rate – Network Service Rate | B20: =IF($B$9="kWh",$B$4,$B$5) -> 55 | C20: =VLOOKUP($B$3,'Data Current Rates'!$A:$AN,MATCH('BI Template_DemandNPDI'!$A20,CurrentHeader,0),FALSE) -> 2.4941 | D20: =B20*C20 -> 137.1755 | E20: =IF($C$9="kWh",$C$4,$C$5) -> 55 | F20: =VLOOKUP($C$3,'Data Proposed Rates'!$A:$AZ,MATCH('BI Template_DemandNPDI'!$A20,ProposedHeader,0),FALSE) -> 2.4941 | G20: =E20*F20 -> 137.1755 | H20: =G20-D20 -> 0 | I20: 0 | J20: 0.052139979
A21: Retail Transmission Rate – Line and Transformation Connection Service Rate | B21: =IF($B$9="kWh",$B$4,$B$5) -> 55 | C21: =VLOOKUP($B$3,'Data Current Rates'!$A:$AN,MATCH('BI Template_DemandNPDI'!$A21,CurrentHeader,0),FALSE) -> 1.9178 | D21: =B21*C21 -> 105.479 | E21: =IF($C$9="kWh",$C$4,$C$5) -> 55 | F21: =VLOOKUP($C$3,'Data Proposed Rates'!$A:$AZ,MATCH('BI Template_DemandNPDI'!$A21,ProposedHeader,0),FALSE) -> 1.9178 | G21: =E21*F21 -> 105.479 | H21: =G21-D21 -> 0 | I21: 0 | J21: 0.04009223837
A22: Sub-Total: Retail Transmission | D22: =SUM(D20:D21) -> 242.6545 | G22: =SUM(G20:G21) -> 242.6545 | H22: =G22-D22 -> 0 | I22: 0 | J22: 0.09223221737
A23: Sub-Total: Delivery (based on two-tier RPP prices) | D23: =SUM(D19,D22) -> 623.0245 | G23: =SUM(G19,G22) -> 643.021 | H23: =G23-D23 -> 19.9965 | I23: 0.03209584856 | J23: 0.2444102732
A24: Wholesale Market Service Rate (WMS) - not including CBR | B24: =B8 -> 13710.06 | C24: =VLOOKUP($A24,'Data Pass Through'!$A:$D,2,FALSE) -> 0.003 | D24: =B24*C24 -> 41.13018 | E24: =$C$8 -> 13710.06 | F24: =VLOOKUP($A24,'Data Pass Through'!$A:$D,3,FALSE) -> 0.003 | G24: =E24*F24 -> 41.13018 | H24: =G24-D24 -> 0 | I24: 0 | J24: 0.01563345292
A25: Capacity Based Recovery (CBR) - Applicable for Class B Customers | B25: =B8 -> 13710.06 | C25: =VLOOKUP($A25,'Data Pass Through'!$A:$D,2,FALSE) -> 0.0004 | D25: =B25*C25 -> 5.484024 | E25: =$C$8 -> 13710.06 | F25: =VLOOKUP($A25,'Data Pass Through'!$A:$D,3,FALSE) -> 0.0004 | G25: =E25*F25 -> 5.484024 | H25: 0 | I25: 0 | J25: 0.00208446039
A26: Rural Rate Protection Charge | B26: =B8 -> 13710.06 | C26: =VLOOKUP($A26,'Data Pass Through'!$A:$D,2,FALSE) -> 0.0005 | D26: 6.85503 | E26: 13710.06 | F26: =VLOOKUP($A26,'Data Pass Through'!$A:$D,3,FALSE) -> 0.0005 | G26: 6.85503 | H26: 0 | I26: 0 | J26: 0.002605575487
A27: Standard Supply Service – Administration Charge (if applicable) | B27: 1 | C27: =VLOOKUP($A27,'Data Pass Through'!$A:$D,2,FALSE) -> 0.25 | D27: =B27*C27 -> 0.25 | E27: =B27 -> 1 | F27: =VLOOKUP($A27,'Data Pass Through'!$A:$D,3,FALSE) -> 0.25 | G27: 0.25 | H27: 0 | I27: 0 | J27: 9.502421898e-05
A28: Sub-Total: Regulatory | D28: =SUM(D24:D27) -> 53.719234 | G28: =SUM(G24:G27) -> 53.719234 | H28: 0 | I28: 0 | J28: 0.02041851302
A29: Total Electricity Charge on WAHSP | D29: =SUM(D13,D23,D28) -> 2308.240874 | G29: =SUM(G13,G23,G28) -> 2328.237374 | H29: 19.9965 | I29: 0.008663090679 | J29: 0.8849557522
A30: HST | C30: 0.13 | D30: =D29*C30 -> 300.0713136 | F30: =C30 -> 0.13 | G30: =G29*F30 -> 302.6708586 | H30: 2.599545 | I30: 0.008663090679 | J30: 0.1150442478
A31: Total Amount on WAHSP | D31: =SUM(D29:D30) -> 2608.312188 | G31: =SUM(G29:G30) -> 2630.908233 | H31: 22.596045 | I31: 0.008663090679 | J31: 1

Sheet BI Template_unmNPDI (hidden)
A1: 2024 Bill Impacts (Average Consumption Level) - St Lgt_NPDI
A3: Rate Class | B3: =VLOOKUP(A1,'Data BI List Acq_Seas'!C:E,2,FALSE) -> St Lgt-NPDI | C3: =VLOOKUP(A1,'Data BI List Acq_Seas'!C:E,3,FALSE) -> St Lgt-NPDI
A4: Monthly Consumption (kWh) | B4: =IF(COUNTIF(A1,"*Low*")>0,VLOOKUP(B3,'Data Billing Quantities'!$A:$Z,MATCH("Low kWh",'Data Billing Quantities'!4:4,0),FALSE),IF(COUNTIF(A1,"*Typical*")>0,VLOOKUP(B3,'Data Billing Quantities'!$A:$Z,MATCH("Typical kWh",'Data Billing Quantities'!4:4,0),FALSE),IF(COUNTIF(A1,"*Average*")>0,VLOOKUP(B3,'Data Billing Quantities'!$A:$Z,MATCH("Average kWh",'Data Billing Quantities'!4:4,0),FALSE),IF(COUNTIF(A1,"*High*")>0,VLOOKUP(B3,'Data Billing Quantities'!$A:$Z,MATCH("High kWh",'Data Billing Quantities'!4:4,0),FALSE),"error")))) -> 11389 | C4: =B4 -> 11389
A5: Peak (kW) | B5: =IF(COUNTIF(A1,"*Low*")>0,VLOOKUP(B3,'Data Billing Quantities'!$A:$Z,MATCH("Low kW",'Data Billing Quantities'!4:4,0),FALSE),IF(COUNTIF(A1,"*Typical*")>0,VLOOKUP(B3,'Data Billing Quantities'!$A:$Z,MATCH("Typical kW",'Data Billing Quantities'!4:4,0),FALSE),IF(COUNTIF(A1,"*Average*")>0,VLOOKUP(B3,'Data Billing Quantities'!$A:$Z,MATCH("Average kW",'Data Billing Quantities'!4:4,0),FALSE),IF(COUNTIF(A1,"*High*")>0,VLOOKUP(B3,'Data Billing Quantities'!$A:$Z,MATCH("High kW",'Data Billing Quantities'!4:4,0),FALSE),"error")))) -> 0 | C5: =B5 -> 0
A6: Loss factor | B6: =VLOOKUP(B3,'Data Billing Quantities'!A:D,MATCH(A6,'Data Billing Quantities'!4:4,0),FALSE) -> 1.092 | C6: =VLOOKUP(C3,'Data Billing Quantities'!A:D,MATCH(A6,'Data Billing Quantities'!4:4,0),FALSE) -> 1.092
A7: Commodity Threshold | B7: =VLOOKUP(B3,'Data Billing Quantities'!A:D,MATCH(A7,'Data Billing Quantities'!4:4,0),FALSE) -> 750 | C7: =B7 -> 750
A8: Monthly Consumption (kWh) - Uplifted | B8: =B4*B6 -> 12436.788 | C8: =C4*C6 -> 12436.788
A9: Charge determinant | B9: =VLOOKUP(B3,'Data Billing Quantities'!A:D,MATCH(A9,'Data Billing Quantities'!4:4,0),FALSE) -> kWh | C9: =VLOOKUP(C3,'Data Billing Quantities'!A:D,MATCH(A9,'Data Billing Quantities'!4:4,0),FALSE) -> kWh
B11: Volume | C11: Current Rate ($) | D11: Current Charge ($) | E11: Volume | F11: Proposed Rate ($) | G11: Proposed Charge ($) | H11: Change ($) | I11: Change (%) | J11: % of Total Bill
A12: Energy First Tier | B12: =IF(B4>B7,B7,B4) -> 750 | C12: =VLOOKUP($A12,'Data Pass Through'!$A:$D,2,FALSE) -> 0.098 | D12: =B12*C12 -> 73.5 | E12: =B12 -> 750 | F12: =VLOOKUP($A12,'Data Pass Through'!$A:$D,3,FALSE) -> 0.098 | G12: =E12*F12 -> 73.5 | H12: =G12-D12 -> 0 | I12: =IF(ISERROR(H12/ABS(D12)),"N/A",(H12/ABS(D12))) -> 0 | J12: =G12/$G$34 -> 0.02742059568
A13: Energy Second Tier | B13: =IF(B4>B7,(B4)-B7,0) -> 10639 | C13: =VLOOKUP($A13,'Data Pass Through'!$A:$D,2,FALSE) -> 0.115 | D13: =B13*C13 -> 1223.485 | E13: =B13 -> 10639 | F13: =VLOOKUP($A13,'Data Pass Through'!$A:$D,3,FALSE) -> 0.115 | G13: =E13*F13 -> 1223.485 | H13: 0 | I13: 0 | J13: 0.456444728
A14: Sub-Total: Energy (RPP Tiered) | D14: =SUM(D12:D13) -> 1296.985 | G14: =SUM(G12:G13) -> 1296.985 | H14: 0 | I14: 0 | J14: 0.4838653236
A15: Service Charge | B15: =IF(VLOOKUP(B$3,'Data Billing Quantities'!A:P,MATCH("Acquired Street Light Service Charge",'Data Billing Quantities'!$4:$4,0),FALSE)>0,VLOOKUP(B$3,'Data Billing Quantities'!A:P,MATCH("Acquired Street Light Service Charge",'Data Billing Quantities'!$4:$4,0),FALSE),1) -> 1 | C15: =VLOOKUP($B$3,'Data Current Rates'!$A:$AN,MATCH('BI Template_unmNPDI'!$A15,CurrentHeader,0),FALSE) -> 2.97 | D15: =B15*C15 -> 2.97 | E15: 1 | F15: =VLOOKUP($C$3,'Data Proposed Rates'!$A:$AZ,MATCH('BI Template_unmNPDI'!$A15,ProposedHeader,0),FALSE) -> 3.07 | G15: =E15*F15 -> 3.07 | H15: 0.1 | I15: 0.03367003367 | J15: 0.00114532284
A16: Distribution Volumetric Charge | B16: =IF($B$9="kWh",$B$4,$B$5) -> 11389 | C16: =VLOOKUP($B$3,'Data Current Rates'!$A:$AN,MATCH('BI Template_unmNPDI'!$A16,CurrentHeader,0),FALSE) -> 0.1064 | D16: =B16*C16 -> 1211.7896 | E16: =IF($C$9="kWh",$C$4,$C$5) -> 11389 | F16: =VLOOKUP($C$3,'Data Proposed Rates'!$A:$AZ,MATCH('BI Template_unmNPDI'!$A16,ProposedHeader,0),FALSE) -> 0.1111 | G16: 1265.3179 | H16: 53.5283 | I16: 0.04417293233 | J16: 0.4720512999
A17: Group 1 Volumetric DVA Rider (General) | B17: =IF($B$9="kWh",$B$4,$B$5) -> 11389 | C17: =VLOOKUP($B$3,'Data Current Rates'!$A:$AN,MATCH('BI Template_unmNPDI'!$A17,CurrentHeader,0),FALSE) -> -0.0007 | D17: =B17*C17 -> -7.9723 | E17: =IF($C$9="kWh",$C$4,$C$5) -> 11389 | F17: =VLOOKUP($C$3,'Data Proposed Rates'!$A:$AZ,MATCH('BI Template_unmNPDI'!$A17,ProposedHeader,0),FALSE) -> -0.0007 | G17: -7.9723 | H17: 0 | I17: 0 | J17: -0.002974220611
A18: Sub-Total: Distribution (excluding pass through) | D18: =SUM(INDIRECT("D15:D"&ROW()-1)) -> 1206.7873 | G18: =SUM(INDIRECT("g15:g"&ROW()-1)) -> 1260.4156 | H18: =G18-D18 -> 53.6283 | I18: 0.04443889988 | J18: 0.4702224021
A19: Line Losses on Cost of Power (based on two-tier RPP prices) | B19: =B8-B4 -> 1047.788 | C19: =IF(B4>B7,C13,C12) -> 0.115 | D19: =B19*C19 -> 120.49562 | E19: =C8-C4 -> 1047.788 | F19: =IF(C4>C7,F13,F12) -> 0.115 | G19: =E19*F19 -> 120.49562 | H19: 0 | I19: 0 | J19: 0.0449532201
A20: Sub-Total: Distribution (based on two-tier RPP prices) | D20: =SUM(D18,D19:D19) -> 1327.28292 | G20: =SUM(G18,G19:G19) -> 1380.91122 | H20: 53.6283 | I20: 0.04040457328 | J20: 0.5151756222
A21: Retail Transmission Rate – Network Service Rate | B21: =IF($B$9="kWh",$B$8,$B$5) -> 12436.788 | C21: =VLOOKUP($B$3,'Data Current Rates'!$A:$AN,MATCH('BI Template_unmNPDI'!$A21,CurrentHeader,0),FALSE) -> 0.0055 | D21: =B21*C21 -> 68.402334 | E21: =IF($C$9="kWh",$C$8,$C$5) -> 12436.788 | F21: =VLOOKUP($C$3,'Data Proposed Rates'!$A:$AZ,MATCH('BI Template_unmNPDI'!$A21,ProposedHeader,0),FALSE) -> 0.0055 | G21: =E21*F21 -> 68.402334 | H21: =G21-D21 -> 0 | I21: 0 | J21: 0.02551881285
A22: Retail Transmission Rate – Line and Transformation Connection Service Rate | B22: =IF($B$9="kWh",$B$8,$B$5) -> 12436.788 | C22: =VLOOKUP($B$3,'Data Current Rates'!$A:$AN,MATCH('BI Template_unmNPDI'!$A22,CurrentHeader,0),FALSE) -> 0.0043 | D22: =B22*C22 -> 53.4781884 | E22: =IF($C$9="kWh",$C$8,$C$5) -> 12436.788 | F22: =VLOOKUP($C$3,'Data Proposed Rates'!$A:$AZ,MATCH('BI Template_unmNPDI'!$A22,ProposedHeader,0),FALSE) -> 0.0043 | G22: =E22*F22 -> 53.4781884 | H22: =G22-D22 -> 0 | I22: 0 | J22: 0.01995107186
A23: Sub-Total: Retail Transmission | D23: =SUM(D21:D22) -> 121.8805224 | G23: =SUM(G21:G22) -> 121.8805224 | H23: =G23-D23 -> 0 | I23: 0 | J23: 0.04546988471
A24: Sub-Total: Delivery (based on two-tier RPP prices) | D24: =D20+D23 -> 1449.163442 | G24: =G20+G23 -> 1502.791742 | H24: =G24-D24 -> 53.6283 | I24: 0.03700638481 | J24: 0.5606455069
A25: Wholesale Market Service Rate (WMS) - not including CBR | B25: =B8 -> 12436.788 | C25: =VLOOKUP($A25,'Data Pass Through'!$A:$D,2,FALSE) -> 0.003 | D25: =B25*C25 -> 37.310364 | E25: =$C$8 -> 12436.788 | F25: =VLOOKUP($A25,'Data Pass Through'!$A:$D,3,FALSE) -> 0.003 | G25: =E25*F25 -> 37.310364 | H25: =G25-D25 -> 0 | I25: 0 | J25: 0.01391935246
A26: Capacity Based Recovery (CBR) - Applicable for Class B Customers | B26: =B8 -> 12436.788 | C26: =VLOOKUP($A26,'Data Pass Through'!$A:$D,2,FALSE) -> 0.0004 | D26: =B26*C26 -> 4.9747152 | E26: =$C$8 -> 12436.788 | F26: =VLOOKUP($A26,'Data Pass Through'!$A:$D,3,FALSE) -> 0.0004 | G26: =E26*F26 -> 4.9747152 | H26: 0 | I26: 0 | J26: 0.001855913662
A27: Rural Rate Protection Charge | B27: =B8 -> 12436.788 | C27: =VLOOKUP($A27,'Data Pass Through'!$A:$D,2,FALSE) -> 0.0005 | D27: 6.218394 | E27: 12436.788 | F27: =VLOOKUP($A27,'Data Pass Through'!$A:$D,3,FALSE) -> 0.0005 | G27: 6.218394 | H27: 0 | I27: 0 | J27: 0.002319892077
A28: Standard Supply Service – Administration Charge (if applicable) | B28: 1 | C28: =VLOOKUP($A28,'Data Pass Through'!$A:$D,2,FALSE) -> 0.25 | D28: =B28*C28 -> 0.25 | E28: 1 | F28: =VLOOKUP($A28,'Data Pass Through'!$A:$D,3,FALSE) -> 0.25 | G28: 0.25 | H28: 0 | I28: 0 | J28: 9.326733224e-05
A29: Sub-Total: Regulatory | D29: =SUM(D25:D28) -> 48.7534732 | G29: =SUM(G25:G28) -> 48.7534732 | H29: 0 | I29: 0 | J29: 0.01818842553
A30: Total Electricty Charge on Two-Tier RPP | D30: =SUM(D24,D29,D14) -> 2794.901916 | G30: =SUM(G24,G29,G14) -> 2848.530216 | H30: 53.6283 | I30: 0.01918790055 | J30: 1.062699256
A31: HST | C31: 0.13 | D31: =D30*C31 -> 363.337249 | F31: =C31 -> 0.13 | G31: =G30*F31 -> 370.308928 | H31: 6.971679 | I31: 0.01918790055 | J31: 0.1381509033
A32: Total Electricity Charge on Two-Tier RPP (including HST) | D32: =SUM(D30:D31) -> 3158.239165 | G32: =SUM(G30:G31) -> 3218.839144 | H32: 60.599979 | I32: 0.01918790055 | J32: 1.200850159
A33: Ontario Electricity Rebate (OER) | C33: =IF(($B$4*12)<250000,VLOOKUP(A33,'Data Pass Through'!$A$4:$C$20,2,0),0) -> -0.189 | D33: =D30*C33 -> -528.236462 | F33: =C33 -> -0.189 | G33: =G30*F33 -> -538.3722107 | H33: -10.1357487 | I33: -0.01918790055 | J33: -0.2008501594
A34: Total Amount on Two-Tier RPP | D34: =SUM(D32:D33) -> 2630.002703 | G34: =SUM(G32:G33) -> 2680.466933 | H34: 50.4642303 | I34: 0.01918790055 | J34: 1

Sheet BI Template_EnergyHCHI (hidden)
A1: 2024 Bill Impacts (Low Consumption Level) - AR_HCHI
A3: Rate Class | B3: =VLOOKUP(A1,'Data BI List Acq_Seas'!C:E,2,FALSE) -> AR-HCHI | C3: =VLOOKUP(A1,'Data BI List Acq_Seas'!C:E,3,FALSE) -> AR-HCHI
A4: Monthly Consumption (kWh) | B4: =IF(COUNTIF(A1,"*Low*")>0,VLOOKUP(B3,'Data Billing Quantities'!$A:$Z,MATCH("Low kWh",'Data Billing Quantities'!4:4,0),FALSE),IF(COUNTIF(A1,"*Typical*")>0,VLOOKUP(B3,'Data Billing Quantities'!$A:$Z,MATCH("Typical kWh",'Data Billing Quantities'!4:4,0),FALSE),IF(COUNTIF(A1,"*Average*")>0,VLOOKUP(B3,'Data Billing Quantities'!$A:$Z,MATCH("Average kWh",'Data Billing Quantities'!4:4,0),FALSE),IF(COUNTIF(A1,"*High*")>0,VLOOKUP(B3,'Data Billing Quantities'!$A:$Z,MATCH("High kWh",'Data Billing Quantities'!4:4,0),FALSE),"error")))) -> 250 | C4: =B4 -> 250
A5: Peak (kW) | B5: =IF(COUNTIF(A1,"*Low*")>0,VLOOKUP(B3,'Data Billing Quantities'!$A:$Z,MATCH("Low kW",'Data Billing Quantities'!4:4,0),FALSE),IF(COUNTIF(A1,"*Typical*")>0,VLOOKUP(B3,'Data Billing Quantities'!$A:$Z,MATCH("Typical kW",'Data Billing Quantities'!4:4,0),FALSE),IF(COUNTIF(A1,"*Average*")>0,VLOOKUP(B3,'Data Billing Quantities'!$A:$Z,MATCH("Average kW",'Data Billing Quantities'!4:4,0),FALSE),IF(COUNTIF(A1,"*High*")>0,VLOOKUP(B3,'Data Billing Quantities'!$A:$Z,MATCH("High kW",'Data Billing Quantities'!4:4,0),FALSE),"error")))) -> 0 | C5: =B5 -> 0
A6: Loss factor | B6: =VLOOKUP(B3,'Data Billing Quantities'!A:D,MATCH(A6,'Data Billing Quantities'!4:4,0),FALSE) -> 1.064 | C6: =VLOOKUP(C3,'Data Billing Quantities'!A:D,MATCH(A6,'Data Billing Quantities'!4:4,0),FALSE) -> 1.064
A7: Commodity Threshold | B7: =VLOOKUP(B3,'Data Billing Quantities'!A:D,MATCH(A7,'Data Billing Quantities'!4:4,0),FALSE) -> 750 | C7: =B7 -> 750
A8: Monthly Consumption (kWh) - Uplifted | B8: =B4*B6 -> 266 | C8: =C4*C6 -> 266
A9: Charge determinant | B9: =VLOOKUP(B3,'Data Billing Quantities'!A:D,MATCH(A9,'Data Billing Quantities'!4:4,0),FALSE) -> kWh | C9: =VLOOKUP(C3,'Data Billing Quantities'!A:D,MATCH(A9,'Data Billing Quantities'!4:4,0),FALSE) -> kWh
B11: Volume | C11: Current Rate ($) | D11: Current Charge ($) | E11: Volume | F11: Proposed Rate ($) | G11: Proposed Charge ($) | H11: Change ($) | I11: Change (%) | J11: % of Total Bill on RPP | K11: % of Total Bill
A12: Energy First Tier | B12: =IF(B4>B7,B7,B4) -> 250 | C12: =VLOOKUP($A12,'Data Pass Through'!$A:$D,2,FALSE) -> 0.098 | D12: =B12*C12 -> 24.5 | E12: =B12 -> 250 | F12: =VLOOKUP($A12,'Data Pass Through'!$A:$D,3,FALSE) -> 0.098 | G12: =E12*F12 -> 24.5 | H12: =G12-D12 -> 0 | I12: =IF(ISERROR(H12/ABS(D12)),"N/A",(H12/ABS(D12))) -> 0 | J12: =G12/$G$42 -> 0.3718363759
A13: Energy Second Tier | B13: =IF(B4>B7,(B4)-B7,0) -> 0 | C13: =VLOOKUP($A13,'Data Pass Through'!$A:$D,2,FALSE) -> 0.115 | D13: =B13*C13 -> 0 | E13: =B13 -> 0 | F13: =VLOOKUP($A13,'Data Pass Through'!$A:$D,3,FALSE) -> 0.115 | G13: =E13*F13 -> 0 | H13: 0 | I13: N/A | J13: =G13/$G$42 -> 0
A14: Sub-Total: Energy (RPP Tiered) | D14: =SUM(D12:D13) -> 24.5 | G14: =SUM(G12:G13) -> 24.5 | H14: 0 | I14: 0 | J14: =G14/$G$42 -> 0.3718363759
A15: TOU-Off Peak | B15: =B$4*VLOOKUP($B$3,'Data Billing Quantities'!$A:$O,MATCH('BI Template_EnergyHCHI'!$A15,'Data Billing Quantities'!$4:$4,0),FALSE) -> 160 | C15: =VLOOKUP($A15,'Data Pass Through'!$A:$D,2,FALSE) -> 0.082 | D15: =B15*C15 -> 13.12 | E15: 160 | F15: =VLOOKUP($A15,'Data Pass Through'!$A:$D,3,FALSE) -> 0.082 | G15: =E15*F15 -> 13.12 | H15: 0 | I15: 0 | K15: =G15/$G$47 -> 0.1951049625
A16: TOU-Mid Peak | B16: =B$4*VLOOKUP($B$3,'Data Billing Quantities'!$A:$O,MATCH('BI Template_EnergyHCHI'!$A16,'Data Billing Quantities'!$4:$4,0),FALSE) -> 45 | C16: =VLOOKUP($A16,'Data Pass Through'!$A:$D,2,FALSE) -> 0.113 | D16: =B16*C16 -> 5.085 | E16: 45 | F16: =VLOOKUP($A16,'Data Pass Through'!$A:$D,3,FALSE) -> 0.113 | G16: =E16*F16 -> 5.085 | H16: 0 | I16: 0 | K16: 0.07561804376
A17: TOU-On Peak | B17: =B$4*VLOOKUP($B$3,'Data Billing Quantities'!$A:$O,MATCH('BI Template_EnergyHCHI'!$A17,'Data Billing Quantities'!$4:$4,0),FALSE) -> 45 | C17: =VLOOKUP($A17,'Data Pass Through'!$A:$D,2,FALSE) -> 0.17 | D17: =B17*C17 -> 7.65 | E17: 45 | F17: =VLOOKUP($A17,'Data Pass Through'!$A:$D,3,FALSE) -> 0.17 | G17: =E17*F17 -> 7.65 | H17: 0 | I17: 0 | K17: 0.1137616588
A18: Sub-Total: Energy (RPP TOU) | D18: =SUM(D15:D17) -> 25.855 | G18: =SUM(G15:G17) -> 25.855 | H18: 0 | I18: 0 | J18: =G18/$G$42 -> 0.392401204 | K18: 0.384484665
A19: Service Charge | B19: 1 | C19: =VLOOKUP($B$3,'Data Current Rates'!$A:$AN,MATCH('BI Template_EnergyHCHI'!$A19,CurrentHeader,0),FALSE) -> 35.94 | D19: =B19*C19 -> 35.94 | E19: 1 | F19: =VLOOKUP($C$3,'Data Proposed Rates'!$A:$AZ,MATCH('BI Template_EnergyHCHI'!$A19,ProposedHeader,0),FALSE) -> 37.54 | G19: =E19*F19 -> 37.54 | H19: 1.6 | I19: 0.04451864218 | J19: 0.5697443898 | K19: 0.5582500222
A20: Distribution Volumetric Charge | B20: =IF($B$9="kWh",$B$4,$B$5) -> 250 | C20: =VLOOKUP($B$3,'Data Current Rates'!$A:$AN,MATCH('BI Template_EnergyHCHI'!$A20,CurrentHeader,0),FALSE) -> 0 | D20: =B20*C20 -> 0 | E20: =IF($C$9="kWh",$C$4,$C$5) -> 250 | F20: =VLOOKUP($C$3,'Data Proposed Rates'!$A:$AZ,MATCH('BI Template_EnergyHCHI'!$A20,ProposedHeader,0),FALSE) -> 0 | G20: 0 | H20: 0 | I20: N/A | J20: 0 | K20: 0
A21: Group 1 Volumetric DVA Rider (General) | B21: =IF($B$9="kWh",$B$4,$B$5) -> 250 | C21: =VLOOKUP($B$3,'Data Current Rates'!$A:$AN,MATCH('BI Template_EnergyHCHI'!$A21,CurrentHeader,0),FALSE) -> -0.0004 | D21: =B21*C21 -> -0.1 | E21: =IF($C$9="kWh",$C$4,$C$5) -> 250 | F21: =VLOOKUP($C$3,'Data Proposed Rates'!$A:$AZ,MATCH('BI Template_EnergyHCHI'!$A21,ProposedHeader,0),FALSE) -> -0.0004 | G21: -0.1 | H21: 0 | I21: 0 | J21: -0.001517699493 | K21: -0.001487080507
A22: Sub-Total: Distribution (excluding pass through) | D22: =SUM(INDIRECT("D19:D"&ROW()-1)) -> 35.84 | G22: =SUM(INDIRECT("g19:g"&ROW()-1)) -> 37.44 | H22: =G22-D22 -> 1.6 | I22: 0.04464285714 | J22: 0.5682266903 | K22: 0.5567629417
A23: Smart Metering Entity Charge | B23: =B19 -> 1 | C23: =VLOOKUP($A23,'Data Pass Through'!$A:$D,2,FALSE) -> 0.57 | D23: =B23*C23 -> 0.57 | E23: =E19 -> 1 | F23: =VLOOKUP($A23,'Data Pass Through'!$A:$D,3,FALSE) -> 0.57 | G23: =E23*F23 -> 0.57 | H23: 0 | I23: 0 | J23: 0.008650887113 | K23: 0.008476358888
A24: Line Losses on Cost of Power (based on two-tier RPP prices) | B24: =B8-B4 -> 16 | C24: =IF(B4>B7,C13,C12) -> 0.098 | D24: =B24*C24 -> 1.568 | E24: =C8-C4 -> 16 | F24: =IF(C4>C7,F13,F12) -> 0.098 | G24: =E24*F24 -> 1.568 | H24: 0 | I24: 0 | J24: 0.02379752806 | K24: 0.02331742234
A25: Line Losses on Cost of Power (based on TOU prices) | B25: =B8-B4 -> 16 | C25: =VLOOKUP($B$3,'Data Billing Quantities'!$A:$O,MATCH('BI Template_EnergyHCHI'!$A15,'Data Billing Quantities'!$4:$4,0),FALSE)*C15+VLOOKUP($B$3,'Data Billing Quantities'!$A:$O,MATCH('BI Template_EnergyHCHI'!$A16,'Data Billing Quantities'!$4:$4,0),FALSE)*C16+VLOOKUP($B$3,'Data Billing Quantities'!$A:$O,MATCH('BI Template_EnergyHCHI'!$A17,'Data Billing Quantities'!$4:$4,0),FALSE)*C17 -> 0.10342 | D25: =B25*C25 -> 1.65472 | E25: =C8-C4 -> 16 | F25: =VLOOKUP($C$3,'Data Billing Quantities'!$A:$O,MATCH('BI Template_EnergyHCHI'!$A15,'Data Billing Quantities'!$4:$4,0),FALSE)*F15+VLOOKUP($C$3,'Data Billing Quantities'!$A:$O,MATCH('BI Template_EnergyHCHI'!$A16,'Data Billing Quantities'!$4:$4,0),FALSE)*F16+VLOOKUP($C$3,'Data Billing Quantities'!$A:$O,MATCH('BI Template_EnergyHCHI'!$A17,'Data Billing Quantities'!$4:$4,0),FALSE)*F17 -> 0.10342 | G25: =E25*F25 -> 1.65472 | H25: 0 | I25: 0 | J25: 0.02511367706 | K25: 0.02460701856
A26: Sub-Total: Distribution (based on two-tier RPP prices) | D26: =SUM(D22,D23:D24) -> 37.978 | G26: =SUM(G22,G23:G24) -> 39.578 | H26: 1.6 | I26: 0.04212965401 | J26: 0.6006751055 | K26: 0.5885567229
A27: Sub-Total: Distribution (based on TOU prices) | D27: =SUM(D22,D23,D25) -> 38.06472 | G27: =SUM(G22,G23,G25) -> 39.66472 | H27: 1.6 | I27: 0.04203367318 | J27: 0.6019912545 | K27: 0.5898463191
A28: Retail Transmission Rate – Network Service Rate | B28: =IF($B$9="kWh",$B$8,$B$5) -> 266 | C28: =VLOOKUP($B$3,'Data Current Rates'!$A:$AN,MATCH('BI Template_EnergyHCHI'!$A28,CurrentHeader,0),FALSE) -> 0.0101 | D28: =B28*C28 -> 2.6866 | E28: =IF($C$9="kWh",$C$8,$C$5) -> 266 | F28: =VLOOKUP($C$3,'Data Proposed Rates'!$A:$AZ,MATCH('BI Template_EnergyHCHI'!$A28,ProposedHeader,0),FALSE) -> 0.0101 | G28: =E28*F28 -> 2.6866 | H28: =G28-D28 -> 0 | I28: 0 | J28: 0.04077451459 | K28: 0.03995190489
A29: Retail Transmission Rate – Line and Transformation Connection Service Rate | B29: =IF($B$9="kWh",$B$8,$B$5) -> 266 | C29: =VLOOKUP($B$3,'Data Current Rates'!$A:$AN,MATCH('BI Template_EnergyHCHI'!$A29,CurrentHeader,0),FALSE) -> 0.0074 | D29: =B29*C29 -> 1.9684 | E29: =IF($C$9="kWh",$C$8,$C$5) -> 266 | F29: =VLOOKUP($C$3,'Data Proposed Rates'!$A:$AZ,MATCH('BI Template_EnergyHCHI'!$A29,ProposedHeader,0),FALSE) -> 0.0074 | G29: =E29*F29 -> 1.9684 | H29: =G29-D29 -> 0 | I29: 0 | J29: 0.02987439683 | K29: 0.02927169269
A30: Sub-Total: Retail Transmission | D30: =SUM(D28:D29) -> 4.655 | G30: =SUM(G28:G29) -> 4.655 | H30: =G30-D30 -> 0 | I30: 0 | J30: 0.07064891142 | K30: 0.06922359758
A31: Sub-Total: Delivery (based on two-tier RPP prices) | D31: =D26+D30 -> 42.633 | G31: =G26+G30 -> 44.233 | H31: =G31-D31 -> 1.6 | I31: 0.03752961321 | J31: 0.6713240169 | K31: 0.6577803205
A32: Sub-Total: Delivery (based on TOU prices) | D32: =D27+D30 -> 42.71972 | G32: =G27+G30 -> 44.31972 | H32: =G32-D32 -> 1.6 | I32: 0.037453429 | J32: 0.6726401659 | K32: 0.6590699167
A33: Wholesale Market Service Rate (WMS) - not including CBR | B33: =B8 -> 266 | C33: =VLOOKUP($A33,'Data Pass Through'!$A:$D,2,FALSE) -> 0.003 | D33: =B33*C33 -> 0.798 | E33: =$C$8 -> 266 | F33: =VLOOKUP($A33,'Data Pass Through'!$A:$D,3,FALSE) -> 0.003 | G33: =E33*F33 -> 0.798 | H33: 0 | I33: 0 | J33: 0.01211124196 | K33: 0.01186690244
A34: Capacity Based Recovery (CBR) - Applicable for Class B Customers | B34: =B8 -> 266 | C34: =VLOOKUP($A34,'Data Pass Through'!$A:$D,2,FALSE) -> 0.0004 | D34: =B34*C34 -> 0.1064 | E34: =$C$8 -> 266 | F34: =VLOOKUP($A34,'Data Pass Through'!$A:$D,3,FALSE) -> 0.0004 | G34: =E34*F34 -> 0.1064 | H34: 0 | I34: 0 | J34: 0.001614832261 | K34: 0.001582253659
A35: Rural Rate Protection Charge | B35: =B8 -> 266 | C35: =VLOOKUP($A35,'Data Pass Through'!$A:$D,2,FALSE) -> 0.0005 | D35: 0.133 | E35: 266 | F35: =VLOOKUP($A35,'Data Pass Through'!$A:$D,3,FALSE) -> 0.0005 | G35: 0.133 | H35: 0 | I35: 0 | J35: 0.002018540326 | K35: 0.001977817074
A36: Standard Supply Service – Administration Charge (if applicable) | B36: 1 | C36: =VLOOKUP($A36,'Data Pass Through'!$A:$D,2,FALSE) -> 0.25 | D36: =B36*C36 -> 0.25 | E36: 1 | F36: =VLOOKUP($A36,'Data Pass Through'!$A:$D,3,FALSE) -> 0.25 | G36: 0.25 | H36: 0 | I36: 0 | J36: 0.003794248734 | K36: 0.003717701266
A37: Sub-Total: Regulatory | D37: =SUM(D33:D36) -> 1.2874 | G37: =SUM(G33:G36) -> 1.2874 | H37: 0 | I37: 0 | J37: 0.01953886328 | K37: 0.01914467444
A38: Total Electricty Charge on Two-Tier RPP | D38: =SUM(D14,D22,D23,D24,D30,D37) -> 68.4204 | G38: =SUM(G14,G22,G23,G24,G30,G37) -> 70.0204 | H38: 1.6 | I38: 0.02338483844 | J38: 1.062699256
A39: HST | C39: 0.13 | D39: =D38*C39 -> 8.894652 | F39: =C39 -> 0.13 | G39: =G38*F39 -> 9.102652 | H39: 0.208 | I39: 0.02338483844 | J39: 0.1381509033
A40: Total Electricity Charge on Two-Tier RPP (including HST) | D40: =SUM(D38:D39) -> 77.315052 | G40: =SUM(G38:G39) -> 79.123052 | H40: 1.808 | I40: 0.02338483844 | J40: 1.200850159
A41: Ontario Electricity Rebate (OER) | C41: =IF(($B$4*12)<250000,VLOOKUP(A41,'Data Pass Through'!$A$4:$C$20,2,0),0) -> -0.189 | D41: =D38*C41 -> -12.9314556 | F41: =C41 -> -0.189 | G41: =G38*F41 -> -13.2338556 | H41: -0.3024 | I41: -0.02338483844 | J41: -0.2008501594
A42: Total Amount on Two-Tier RPP | D42: =SUM(D40:D41) -> 64.3835964 | G42: =SUM(G40:G41) -> 65.8891964 | H42: 1.5056 | I42: 0.02338483844 | J42: 1
A43: Total Electricty Charge on TOU (before HST) | D43: =SUM(D18,D22,D23,D25,D30,D37) -> 69.86212 | G43: =SUM(G18,G22,G23,G25,G30,G37) -> 71.46212 | H43: 1.6 | I43: 0.02290225375 | K43: =G43/$G$47 -> 1.062699256
A44: HST | C44: 0.13 | D44: =D43*C44 -> 9.0820756 | F44: =C44 -> 0.13 | G44: =G43*F44 -> 9.2900756 | H44: 0.208 | I44: 0.02290225375 | K44: =G44/$G$47 -> 0.1381509033
A45: Total Electricity Charge on TOU (including HST) | D45: =SUM(D43:D44) -> 78.9441956 | G45: =SUM(G43:G44) -> 80.7521956 | H45: 1.808 | I45: 0.02290225375 | K45: =G45/$G$47 -> 1.200850159
A46: Ontario Electricity Rebate (OER) | C46: =IF(($B$4*12)<250000,VLOOKUP(A46,'Data Pass Through'!$A$4:$C$20,2,0),0) -> -0.189 | D46: =D43*C46 -> -13.20394068 | F46: =C46 -> -0.189 | G46: =G43*F46 -> -13.50634068 | H46: -0.3024 | I46: -0.02290225375 | K46: =G46/$G$47 -> -0.2008501594
A47: Total Amount on TOU | D47: =SUM(D45:D46) -> 65.74025492 | G47: =SUM(G45:G46) -> 67.24585492 | H47: 1.5056 | I47: 0.02290225375 | K47: =G47/$G$47 -> 1

Sheet BI Template_DemandHCHI (hidden)
A1: 2024 Bill Impacts (Low Consumption Level) - AGSd_HCHI
A3: Rate Class | B3: =VLOOKUP(A1,'Data BI List Acq_Seas'!C:E,2,FALSE) -> AGSd-HCHI | C3: =VLOOKUP(A1,'Data BI List Acq_Seas'!C:E,3,FALSE) -> AGSd-HCHI
A4: Monthly Consumption (kWh) | B4: =IF(COUNTIF(A1,"*Low*")>0,VLOOKUP(B3,'Data Billing Quantities'!$A:$Z,MATCH("Low kWh",'Data Billing Quantities'!4:4,0),FALSE),IF(COUNTIF(A1,"*Typical*")>0,VLOOKUP(B3,'Data Billing Quantities'!$A:$Z,MATCH("Typical kWh",'Data Billing Quantities'!4:4,0),FALSE),IF(COUNTIF(A1,"*Average*")>0,VLOOKUP(B3,'Data Billing Quantities'!$A:$Z,MATCH("Average kWh",'Data Billing Quantities'!4:4,0),FALSE),IF(COUNTIF(A1,"*High*")>0,VLOOKUP(B3,'Data Billing Quantities'!$A:$Z,MATCH("High kWh",'Data Billing Quantities'!4:4,0),FALSE),"error")))) -> 10880 | C4: =B4 -> 10880
A5: Peak (kW) | B5: =IF(COUNTIF(A1,"*Low*")>0,VLOOKUP(B3,'Data Billing Quantities'!$A:$Z,MATCH("Low kW",'Data Billing Quantities'!4:4,0),FALSE),IF(COUNTIF(A1,"*Typical*")>0,VLOOKUP(B3,'Data Billing Quantities'!$A:$Z,MATCH("Typical kW",'Data Billing Quantities'!4:4,0),FALSE),IF(COUNTIF(A1,"*Average*")>0,VLOOKUP(B3,'Data Billing Quantities'!$A:$Z,MATCH("Average kW",'Data Billing Quantities'!4:4,0),FALSE),IF(COUNTIF(A1,"*High*")>0,VLOOKUP(B3,'Data Billing Quantities'!$A:$Z,MATCH("High kW",'Data Billing Quantities'!4:4,0),FALSE),"error")))) -> 55 | C5: =B5 -> 55
A6: Loss factor | B6: =VLOOKUP(B3,'Data Billing Quantities'!A:D,MATCH(A6,'Data Billing Quantities'!4:4,0),FALSE) -> 1.053 | C6: =VLOOKUP(C3,'Data Billing Quantities'!A:D,MATCH(A6,'Data Billing Quantities'!4:4,0),FALSE) -> 1.053
A7: Commodity Threshold | B7: =VLOOKUP(B3,'Data Billing Quantities'!A:D,MATCH(A7,'Data Billing Quantities'!4:4,0),FALSE) -> 0 | C7: =B7 -> 0
A8: Monthly Consumption (kWh) - Uplifted | B8: =B4*B6 -> 11456.64 | C8: =C4*C6 -> 11456.64
A9: Charge determinant | B9: =VLOOKUP(B3,'Data Billing Quantities'!A:D,MATCH(A9,'Data Billing Quantities'!4:4,0),FALSE) -> kW | C9: =VLOOKUP(C3,'Data Billing Quantities'!A:D,MATCH(A9,'Data Billing Quantities'!4:4,0),FALSE) -> kW
B11: Volume | C11: Current Rate ($) | D11: Current Charge ($) | E11: Volume | F11: Proposed Rate ($) | G11: Proposed Charge ($) | H11: Change ($) | I11: Change (%) | J11: % of Total Bill
A12: Weighted Average Hourly Spot Price | B12: =B8 -> 11456.64 | C12: =VLOOKUP($A12,'Data Pass Through'!$A:$D,2,FALSE) -> 0.119 | D12: =B12*C12 -> 1363.34016 | E12: =C8 -> 11456.64 | F12: =VLOOKUP($A12,'Data Pass Through'!$A:$D,3,FALSE) -> 0.119 | G12: =E12*F12 -> 1363.34016 | H12: =G12-D12 -> 0 | I12: =IF(ISERROR(H12/ABS(D12)),"N/A",(H12/ABS(D12))) -> 0 | J12: =G12/G$31 -> 0.588043392
A13: Sub-Total: Energy (WAHSP) | D13: =SUM(D12:D12) -> 1363.34016 | G13: =SUM(G12:G12) -> 1363.34016 | H13: 0 | I13: 0 | J13: 0.588043392
A14: Service Charge | B14: 1 | C14: =VLOOKUP($B$3,'Data Current Rates'!$A:$AN,MATCH('BI Template_DemandHCHI'!$A14,CurrentHeader,0),FALSE) -> 171.2 | D14: =B14*C14 -> 171.2 | E14: 1 | F14: =VLOOKUP($C$3,'Data Proposed Rates'!$A:$AZ,MATCH('BI Template_DemandHCHI'!$A14,ProposedHeader,0),FALSE) -> 178.2 | G14: =E14*F14 -> 178.2 | H14: 7 | I14: 0.04088785047 | J14: 0.07686220617
A15: Distribution Volumetric Charge | B15: =IF($B$9="kWh",$B$4,$B$5) -> 55 | C15: =VLOOKUP($B$3,'Data Current Rates'!$A:$AN,MATCH('BI Template_DemandHCHI'!$A15,CurrentHeader,0),FALSE) -> 4.0886 | D15: =B15*C15 -> 224.873 | E15: =IF($C$9="kWh",$C$4,$C$5) -> 55 | F15: =VLOOKUP($C$3,'Data Proposed Rates'!$A:$AZ,MATCH('BI Template_DemandHCHI'!$A15,ProposedHeader,0),FALSE) -> 4.3249 | G15: 237.8695 | H15: 12.9965 | I15: 0.0577948442 | J15: 0.1025991838
A16: Group 1 Volumetric DVA Rider (General) | B16: =IF($B$9="kWh",$B$4,$B$5) -> 55 | C16: =VLOOKUP($B$3,'Data Current Rates'!$A:$AN,MATCH('BI Template_DemandHCHI'!$A16,CurrentHeader,0),FALSE) -> -0.0584 | D16: =B16*C16 -> -3.212 | E16: =IF($C$9="kWh",$C$4,$C$5) -> 55 | F16: =VLOOKUP($C$3,'Data Proposed Rates'!$A:$AZ,MATCH('BI Template_DemandHCHI'!$A16,ProposedHeader,0),FALSE) -> -0.0584 | G16: -3.212 | H16: 0 | I16: 0 | J16: -0.001385417543
A17: Group 1 Volumetric Deferral/Variance Account Rider (Sub-Account RSVA Wholesale Market Service Charge & RSVA Power) | B17: 55 | C17: =VLOOKUP($B$3,'Data Current Rates'!$A:$AN,MATCH('BI Template_DemandHCHI'!$A17,CurrentHeader,0),FALSE) -> -0.081 | D17: -4.455 | E17: 55 | F17: =VLOOKUP($C$3,'Data Proposed Rates'!$A:$AZ,MATCH('BI Template_DemandHCHI'!$A17,ProposedHeader,0),FALSE) -> -0.081 | G17: -4.455 | H17: 0 | I17: 0 | J17: -0.001921555154
A18: Group 1 Volumetric Deferral/Variance Account Rider (Sub-Account Global Adjustment) | B18: =B4 -> 10880 | C18: =VLOOKUP($B$3,'Data Current Rates'!$A:$AN,MATCH('BI Template_DemandHCHI'!$A18,CurrentHeader,0),FALSE) -> -0.0007 | D18: -7.616 | E18: =C4 -> 10880 | F18: =VLOOKUP($C$3,'Data Proposed Rates'!$A:$AZ,MATCH('BI Template_DemandHCHI'!$A18,ProposedHeader,0),FALSE) -> -0.0007 | G18: -7.616 | H18: 0 | I18: 0 | J18: -0.003284975096
A19: Sub-Total: Distribution | D19: =SUM(INDIRECT("D14:D"&ROW()-1)) -> 380.79 | G19: =SUM(INDIRECT("g14:g"&ROW()-1)) -> 400.7865 | H19: =G19-D19 -> 19.9965 | I19: 0.05251319625 | J19: 0.1728694422
A20: Retail Transmission Rate – Network Service Rate | B20: =IF($B$9="kWh",$B$4,$B$5) -> 55 | C20: =VLOOKUP($B$3,'Data Current Rates'!$A:$AN,MATCH('BI Template_DemandHCHI'!$A20,CurrentHeader,0),FALSE) -> 2.4941 | D20: =B20*C20 -> 137.1755 | E20: =IF($C$9="kWh",$C$4,$C$5) -> 55 | F20: =VLOOKUP($C$3,'Data Proposed Rates'!$A:$AZ,MATCH('BI Template_DemandHCHI'!$A20,ProposedHeader,0),FALSE) -> 2.4941 | G20: =E20*F20 -> 137.1755 | H20: =G20-D20 -> 0 | I20: 0 | J20: 0.05916729272
A21: Retail Transmission Rate – Line and Transformation Connection Service Rate | B21: =IF($B$9="kWh",$B$4,$B$5) -> 55 | C21: =VLOOKUP($B$3,'Data Current Rates'!$A:$AN,MATCH('BI Template_DemandHCHI'!$A21,CurrentHeader,0),FALSE) -> 1.9178 | D21: =B21*C21 -> 105.479 | E21: =IF($C$9="kWh",$C$4,$C$5) -> 55 | F21: =VLOOKUP($C$3,'Data Proposed Rates'!$A:$AZ,MATCH('BI Template_DemandHCHI'!$A21,ProposedHeader,0),FALSE) -> 1.9178 | G21: =E21*F21 -> 105.479 | H21: =G21-D21 -> 0 | I21: 0 | J21: 0.04549578364
A22: Sub-Total: Retail Transmission | D22: =SUM(D20:D21) -> 242.6545 | G22: =SUM(G20:G21) -> 242.6545 | H22: =G22-D22 -> 0 | I22: 0 | J22: 0.1046630764
A23: Sub-Total: Delivery (based on two-tier RPP prices) | D23: =SUM(D19,D22) -> 623.4445 | G23: =SUM(G19,G22) -> 643.441 | H23: =G23-D23 -> 19.9965 | I23: 0.03207422633 | J23: 0.2775325185
A24: Wholesale Market Service Rate (WMS) - not including CBR | B24: =B8 -> 11456.64 | C24: =VLOOKUP($A24,'Data Pass Through'!$A:$D,2,FALSE) -> 0.003 | D24: =B24*C24 -> 34.36992 | E24: =$C$8 -> 11456.64 | F24: =VLOOKUP($A24,'Data Pass Through'!$A:$D,3,FALSE) -> 0.003 | G24: =E24*F24 -> 34.36992 | H24: =G24-D24 -> 0 | I24: 0 | J24: 0.01482462333
A25: Capacity Based Recovery (CBR) - Applicable for Class B Customers | B25: =B8 -> 11456.64 | C25: =VLOOKUP($A25,'Data Pass Through'!$A:$D,2,FALSE) -> 0.0004 | D25: =B25*C25 -> 4.582656 | E25: =$C$8 -> 11456.64 | F25: =VLOOKUP($A25,'Data Pass Through'!$A:$D,3,FALSE) -> 0.0004 | G25: =E25*F25 -> 4.582656 | H25: 0 | I25: 0 | J25: 0.001976616444
A26: Rural Rate Protection Charge | B26: =B8 -> 11456.64 | C26: =VLOOKUP($A26,'Data Pass Through'!$A:$D,2,FALSE) -> 0.0005 | D26: 5.72832 | E26: 11456.64 | F26: =VLOOKUP($A26,'Data Pass Through'!$A:$D,3,FALSE) -> 0.0005 | G26: 5.72832 | H26: 0 | I26: 0 | J26: 0.002470770555
A27: Standard Supply Service – Administration Charge (if applicable) | B27: 1 | C27: =VLOOKUP($A27,'Data Pass Through'!$A:$D,2,FALSE) -> 0.25 | D27: =B27*C27 -> 0.25 | E27: =B27 -> 1 | F27: =VLOOKUP($A27,'Data Pass Through'!$A:$D,3,FALSE) -> 0.25 | G27: 0.25 | H27: 0 | I27: 0 | J27: 0.0001078313779
A28: Sub-Total: Regulatory | D28: =SUM(D24:D27) -> 44.930896 | G28: =SUM(G24:G27) -> 44.930896 | H28: 0 | I28: 0 | J28: 0.0193798417
A29: Total Electricty Charge on WAHSP | D29: =SUM(D13,D23,D28) -> 2031.715556 | G29: =SUM(G13,G23,G28) -> 2051.712056 | H29: 19.9965 | I29: 0.009842174974 | J29: 0.8849557522
A30: HST | C30: 0.13 | D30: =D29*C30 -> 264.1230223 | F30: =C30 -> 0.13 | G30: =G29*F30 -> 266.7225673 | H30: 2.599545 | I30: 0.009842174974 | J30: 0.1150442478
A31: Total Amount on WAHSP | D31: =SUM(D29:D30) -> 2295.838578 | G31: =SUM(G29:G30) -> 2318.434623 | H31: 22.596045 | I31: 0.009842174974 | J31: 1

Sheet BI Template_unmHCHI (hidden)
A1: 2024 Bill Impacts (Average Consumption Level) - St Lgt_HCHI
A3: Rate Class | B3: =VLOOKUP(A1,'Data BI List Acq_Seas'!C:E,2,FALSE) -> St Lgt-HCHI | C3: =VLOOKUP(A1,'Data BI List Acq_Seas'!C:E,3,FALSE) -> St Lgt-HCHI
A4: Monthly Consumption (kWh) | B4: =IF(COUNTIF(A1,"*Low*")>0,VLOOKUP(B3,'Data Billing Quantities'!$A:$Z,MATCH("Low kWh",'Data Billing Quantities'!4:4,0),FALSE),IF(COUNTIF(A1,"*Typical*")>0,VLOOKUP(B3,'Data Billing Quantities'!$A:$Z,MATCH("Typical kWh",'Data Billing Quantities'!4:4,0),FALSE),IF(COUNTIF(A1,"*Average*")>0,VLOOKUP(B3,'Data Billing Quantities'!$A:$Z,MATCH("Average kWh",'Data Billing Quantities'!4:4,0),FALSE),IF(COUNTIF(A1,"*High*")>0,VLOOKUP(B3,'Data Billing Quantities'!$A:$Z,MATCH("High kWh",'Data Billing Quantities'!4:4,0),FALSE),"error")))) -> 31001 | C4: =B4 -> 31001
A5: Peak (kW) | B5: =IF(COUNTIF(A1,"*Low*")>0,VLOOKUP(B3,'Data Billing Quantities'!$A:$Z,MATCH("Low kW",'Data Billing Quantities'!4:4,0),FALSE),IF(COUNTIF(A1,"*Typical*")>0,VLOOKUP(B3,'Data Billing Quantities'!$A:$Z,MATCH("Typical kW",'Data Billing Quantities'!4:4,0),FALSE),IF(COUNTIF(A1,"*Average*")>0,VLOOKUP(B3,'Data Billing Quantities'!$A:$Z,MATCH("Average kW",'Data Billing Quantities'!4:4,0),FALSE),IF(COUNTIF(A1,"*High*")>0,VLOOKUP(B3,'Data Billing Quantities'!$A:$Z,MATCH("High kW",'Data Billing Quantities'!4:4,0),FALSE),"error")))) -> 0 | C5: =B5 -> 0
A6: Loss factor | B6: =VLOOKUP(B3,'Data Billing Quantities'!A:D,MATCH(A6,'Data Billing Quantities'!4:4,0),FALSE) -> 1.092 | C6: =VLOOKUP(C3,'Data Billing Quantities'!A:D,MATCH(A6,'Data Billing Quantities'!4:4,0),FALSE) -> 1.092
A7: Commodity Threshold | B7: =VLOOKUP(B3,'Data Billing Quantities'!A:D,MATCH(A7,'Data Billing Quantities'!4:4,0),FALSE) -> 750 | C7: =B7 -> 750
A8: Monthly Consumption (kWh) - Uplifted | B8: =B4*B6 -> 33853.092 | C8: =C4*C6 -> 33853.092
A9: Charge determinant | B9: =VLOOKUP(B3,'Data Billing Quantities'!A:D,MATCH(A9,'Data Billing Quantities'!4:4,0),FALSE) -> kWh | C9: =VLOOKUP(C3,'Data Billing Quantities'!A:D,MATCH(A9,'Data Billing Quantities'!4:4,0),FALSE) -> kWh
B11: Volume | C11: Current Rate ($) | D11: Current Charge ($) | E11: Volume | F11: Proposed Rate ($) | G11: Proposed Charge ($) | H11: Change ($) | I11: Change (%) | J11: % of Total Bill
A12: Energy First Tier | B12: =IF(B4>B7,B7,B4) -> 750 | C12: =VLOOKUP($A12,'Data Pass Through'!$A:$D,2,FALSE) -> 0.098 | D12: =B12*C12 -> 73.5 | E12: =B12 -> 750 | F12: =VLOOKUP($A12,'Data Pass Through'!$A:$D,3,FALSE) -> 0.098 | G12: =E12*F12 -> 73.5 | H12: =G12-D12 -> 0 | I12: =IF(ISERROR(H12/ABS(D12)),"N/A",(H12/ABS(D12))) -> 0 | J12: =G12/$G$34 -> 0.008361223784
A13: Energy Second Tier | B13: =IF(B4>B7,(B4)-B7,0) -> 30251 | C13: =VLOOKUP($A13,'Data Pass Through'!$A:$D,2,FALSE) -> 0.115 | D13: =B13*C13 -> 3478.865 | E13: =B13 -> 30251 | F13: =VLOOKUP($A13,'Data Pass Through'!$A:$D,3,FALSE) -> 0.115 | G13: =E13*F13 -> 3478.865 | H13: 0 | I13: 0 | J13: 0.3957492351
A14: Sub-Total: Energy (RPP Tiered) | D14: =SUM(D12:D13) -> 3552.365 | G14: =SUM(G12:G13) -> 3552.365 | H14: 0 | I14: 0 | J14: 0.4041104589
A15: Service Charge | B15: =IF(VLOOKUP(B$3,'Data Billing Quantities'!A:P,MATCH("Acquired Street Light Service Charge",'Data Billing Quantities'!$4:$4,0),FALSE)>0,VLOOKUP(B$3,'Data Billing Quantities'!A:P,MATCH("Acquired Street Light Service Charge",'Data Billing Quantities'!$4:$4,0),FALSE),1) -> 1 | C15: =VLOOKUP($B$3,'Data Current Rates'!$A:$AN,MATCH('BI Template_unmHCHI'!$A15,CurrentHeader,0),FALSE) -> 2.97 | D15: =B15*C15 -> 2.97 | E15: 1 | F15: =VLOOKUP($C$3,'Data Proposed Rates'!$A:$AZ,MATCH('BI Template_unmHCHI'!$A15,ProposedHeader,0),FALSE) -> 3.07 | G15: =E15*F15 -> 3.07 | H15: 0.1 | I15: 0.03367003367 | J15: 0.0003492375105
A16: Distribution Volumetric Charge | B16: =IF($B$9="kWh",$B$4,$B$5) -> 31001 | C16: =VLOOKUP($B$3,'Data Current Rates'!$A:$AN,MATCH('BI Template_unmHCHI'!$A16,CurrentHeader,0),FALSE) -> 0.1064 | D16: =B16*C16 -> 3298.5064 | E16: =IF($C$9="kWh",$C$4,$C$5) -> 31001 | F16: =VLOOKUP($C$3,'Data Proposed Rates'!$A:$AZ,MATCH('BI Template_unmHCHI'!$A16,ProposedHeader,0),FALSE) -> 0.1111 | G16: 3444.2111 | H16: 145.7047 | I16: 0.04417293233 | J16: 0.3918070717
A17: Group 1 Volumetric DVA Rider (General) | B17: =IF($B$9="kWh",$B$4,$B$5) -> 31001 | C17: =VLOOKUP($B$3,'Data Current Rates'!$A:$AN,MATCH('BI Template_unmHCHI'!$A17,CurrentHeader,0),FALSE) -> -0.0004 | D17: =B17*C17 -> -12.4004 | E17: =IF($C$9="kWh",$C$4,$C$5) -> 31001 | F17: =VLOOKUP($C$3,'Data Proposed Rates'!$A:$AZ,MATCH('BI Template_unmHCHI'!$A17,ProposedHeader,0),FALSE) -> -0.0004 | G17: -12.4004 | H17: 0 | I17: 0 | J17: -0.001410646523
A18: Sub-Total: Distribution (excluding pass through) | D18: =SUM(INDIRECT("D15:D"&ROW()-1)) -> 3289.076 | G18: =SUM(INDIRECT("g15:g"&ROW()-1)) -> 3434.8807 | H18: =G18-D18 -> 145.8047 | I18: 0.04432998812 | J18: 0.3907456627
A19: Line Losses on Cost of Power (based on two-tier RPP prices) | B19: =B8-B4 -> 2852.092 | C19: =IF(B4>B7,C13,C12) -> 0.115 | D19: =B19*C19 -> 327.99058 | E19: =C8-C4 -> 2852.092 | F19: =IF(C4>C7,F13,F12) -> 0.115 | G19: =E19*F19 -> 327.99058 | H19: 0 | I19: 0 | J19: 0.03731160052
A20: Sub-Total: Distribution (based on two-tier RPP prices) | D20: =SUM(D18,D19:D19) -> 3617.06658 | G20: =SUM(G18,G19:G19) -> 3762.87128 | H20: 145.8047 | I20: 0.04031020629 | J20: 0.4280572632
A21: Retail Transmission Rate – Network Service Rate | B21: =IF($B$9="kWh",$B$8,$B$5) -> 33853.092 | C21: =VLOOKUP($B$3,'Data Current Rates'!$A:$AN,MATCH('BI Template_unmHCHI'!$A21,CurrentHeader,0),FALSE) -> 0.0055 | D21: =B21*C21 -> 186.192006 | E21: =IF($C$9="kWh",$C$8,$C$5) -> 33853.092 | F21: =VLOOKUP($C$3,'Data Proposed Rates'!$A:$AZ,MATCH('BI Template_unmHCHI'!$A21,ProposedHeader,0),FALSE) -> 0.0055 | G21: =E21*F21 -> 186.192006 | H21: =G21-D21 -> 0 | I21: 0 | J21: 0.02118085754
A22: Retail Transmission Rate – Line and Transformation Connection Service Rate | B22: =IF($B$9="kWh",$B$8,$B$5) -> 33853.092 | C22: =VLOOKUP($B$3,'Data Current Rates'!$A:$AN,MATCH('BI Template_unmHCHI'!$A22,CurrentHeader,0),FALSE) -> 0.0043 | D22: =B22*C22 -> 145.5682956 | E22: =IF($C$9="kWh",$C$8,$C$5) -> 33853.092 | F22: =VLOOKUP($C$3,'Data Proposed Rates'!$A:$AZ,MATCH('BI Template_unmHCHI'!$A22,ProposedHeader,0),FALSE) -> 0.0043 | G22: =E22*F22 -> 145.5682956 | H22: =G22-D22 -> 0 | I22: 0 | J22: 0.01655957953
A23: Sub-Total: Retail Transmission | D23: =SUM(D21:D22) -> 331.7603016 | G23: =SUM(G21:G22) -> 331.7603016 | H23: =G23-D23 -> 0 | I23: 0 | J23: 0.03774043707
A24: Sub-Total: Delivery (based on two-tier RPP prices) | D24: =D20+D23 -> 3948.826882 | G24: =G20+G23 -> 4094.631582 | H24: =G24-D24 -> 145.8047 | I24: 0.03692354828 | J24: 0.4657977003
A25: Wholesale Market Service Rate (WMS) - not including CBR | B25: =B8 -> 33853.092 | C25: =VLOOKUP($A25,'Data Pass Through'!$A:$D,2,FALSE) -> 0.003 | D25: =B25*C25 -> 101.559276 | E25: =$C$8 -> 33853.092 | F25: =VLOOKUP($A25,'Data Pass Through'!$A:$D,3,FALSE) -> 0.003 | G25: =E25*F25 -> 101.559276 | H25: =G25-D25 -> 0 | I25: 0 | J25: 0.01155319502
A26: Capacity Based Recovery (CBR) - Applicable for Class B Customers | B26: =B8 -> 33853.092 | C26: =VLOOKUP($A26,'Data Pass Through'!$A:$D,2,FALSE) -> 0.0004 | D26: =B26*C26 -> 13.5412368 | E26: =$C$8 -> 33853.092 | F26: =VLOOKUP($A26,'Data Pass Through'!$A:$D,3,FALSE) -> 0.0004 | G26: =E26*F26 -> 13.5412368 | H26: 0 | I26: 0 | J26: 0.001540426003
A27: Rural Rate Protection Charge | B27: =B8 -> 33853.092 | C27: =VLOOKUP($A27,'Data Pass Through'!$A:$D,2,FALSE) -> 0.0005 | D27: 16.926546 | E27: 33853.092 | F27: =VLOOKUP($A27,'Data Pass Through'!$A:$D,3,FALSE) -> 0.0005 | G27: 16.926546 | H27: 0 | I27: 0 | J27: 0.001925532503
A28: Standard Supply Service – Administration Charge (if applicable) | B28: 1 | C28: =VLOOKUP($A28,'Data Pass Through'!$A:$D,2,FALSE) -> 0.25 | D28: =B28*C28 -> 0.25 | E28: 1 | F28: =VLOOKUP($A28,'Data Pass Through'!$A:$D,3,FALSE) -> 0.25 | G28: 0.25 | H28: 0 | I28: 0 | J28: 2.843953668e-05
A29: Sub-Total: Regulatory | D29: =SUM(D25:D28) -> 132.2770588 | G29: =SUM(G25:G28) -> 132.2770588 | H29: 0 | I29: 0 | J29: 0.01504759306
A30: Total Electricty Charge on Two-Tier RPP | D30: =SUM(D24,D29,D14) -> 7633.46894 | G30: =SUM(G24,G29,G14) -> 7779.27364 | H30: 145.8047 | I30: 0.01910071308 | J30: 0.8849557522
A31: HST | C31: 0.13 | D31: =D30*C31 -> 992.3509623 | F31: =C31 -> 0.13 | G31: =G30*F31 -> 1011.305573 | H31: 18.954611 | I31: 0.01910071308 | J31: 0.1150442478
A32: Total Electricity Charge on Two-Tier RPP (including HST) | D32: =SUM(D30:D31) -> 8625.819903 | G32: =SUM(G30:G31) -> 8790.579214 | H32: 164.759311 | I32: 0.01910071308 | J32: 1
A33: Ontario Electricity Rebate (OER) | C33: =IF(($B$4*12)<250000,VLOOKUP(A33,'Data Pass Through'!$A$4:$C$20,2,0),0) -> 0 | D33: =D30*C33 -> 0 | F33: =C33 -> 0 | G33: =G30*F33 -> 0 | H33: 0 | I33: N/A | J33: 0
A34: Total Amount on Two-Tier RPP | D34: =SUM(D32:D33) -> 8625.819903 | G34: =SUM(G32:G33) -> 8790.579214 | H34: 164.759311 | I34: 0.01910071308 | J34: 1

Sheet BI Template_EnergyWHSI (hidden)
A1: 2024 Bill Impacts (Low Consumption Level) - AUR_WHSI
A3: Rate Class | B3: =VLOOKUP(A1,'Data BI List Acq_Seas'!C:E,2,FALSE) -> AUR-WHSI | C3: =VLOOKUP(A1,'Data BI List Acq_Seas'!C:E,3,FALSE) -> AUR-WHSI
A4: Monthly Consumption (kWh) | B4: =IF(COUNTIF(A1,"*Low*")>0,VLOOKUP(B3,'Data Billing Quantities'!$A:$Z,MATCH("Low kWh",'Data Billing Quantities'!4:4,0),FALSE),IF(COUNTIF(A1,"*Typical*")>0,VLOOKUP(B3,'Data Billing Quantities'!$A:$Z,MATCH("Typical kWh",'Data Billing Quantities'!4:4,0),FALSE),IF(COUNTIF(A1,"*Average*")>0,VLOOKUP(B3,'Data Billing Quantities'!$A:$Z,MATCH("Average kWh",'Data Billing Quantities'!4:4,0),FALSE),IF(COUNTIF(A1,"*High*")>0,VLOOKUP(B3,'Data Billing Quantities'!$A:$Z,MATCH("High kWh",'Data Billing Quantities'!4:4,0),FALSE),"error")))) -> 310 | C4: =B4 -> 310
A5: Peak (kW) | B5: =IF(COUNTIF(A1,"*Low*")>0,VLOOKUP(B3,'Data Billing Quantities'!$A:$Z,MATCH("Low kW",'Data Billing Quantities'!4:4,0),FALSE),IF(COUNTIF(A1,"*Typical*")>0,VLOOKUP(B3,'Data Billing Quantities'!$A:$Z,MATCH("Typical kW",'Data Billing Quantities'!4:4,0),FALSE),IF(COUNTIF(A1,"*Average*")>0,VLOOKUP(B3,'Data Billing Quantities'!$A:$Z,MATCH("Average kW",'Data Billing Quantities'!4:4,0),FALSE),IF(COUNTIF(A1,"*High*")>0,VLOOKUP(B3,'Data Billing Quantities'!$A:$Z,MATCH("High kW",'Data Billing Quantities'!4:4,0),FALSE),"error")))) -> 0 | C5: =B5 -> 0
A6: Loss factor | B6: =VLOOKUP(B3,'Data Billing Quantities'!A:D,MATCH(A6,'Data Billing Quantities'!4:4,0),FALSE) -> 1.043 | C6: =VLOOKUP(C3,'Data Billing Quantities'!A:D,MATCH(A6,'Data Billing Quantities'!4:4,0),FALSE) -> 1.043
A7: Commodity Threshold | B7: =VLOOKUP(B3,'Data Billing Quantities'!A:D,MATCH(A7,'Data Billing Quantities'!4:4,0),FALSE) -> 750 | C7: =B7 -> 750
A8: Monthly Consumption (kWh) - Uplifted | B8: =B4*B6 -> 323.33 | C8: =C4*C6 -> 323.33
A9: Charge determinant | B9: =VLOOKUP(B3,'Data Billing Quantities'!A:D,MATCH(A9,'Data Billing Quantities'!4:4,0),FALSE) -> kWh | C9: =VLOOKUP(C3,'Data Billing Quantities'!A:D,MATCH(A9,'Data Billing Quantities'!4:4,0),FALSE) -> kWh
B11: Volume | C11: Current Rate ($) | D11: Current Charge ($) | E11: Volume | F11: Proposed Rate ($) | G11: Proposed Charge ($) | H11: Change ($) | I11: Change (%) | J11: % of Total Bill on RPP | K11: % of Total Bill
A12: Energy First Tier | B12: =IF(B4>B7,B7,B4) -> 310 | C12: =VLOOKUP($A12,'Data Pass Through'!$A:$D,2,FALSE) -> 0.098 | D12: =B12*C12 -> 30.38 | E12: =B12 -> 310 | F12: =VLOOKUP($A12,'Data Pass Through'!$A:$D,3,FALSE) -> 0.098 | G12: =E12*F12 -> 30.38 | H12: =G12-D12 -> 0 | I12: =IF(ISERROR(H12/ABS(D12)),"N/A",(H12/ABS(D12))) -> 0 | J12: =G12/$G$42 -> 0.4585457998
A13: Energy Second Tier | B13: =IF(B4>B7,(B4)-B7,0) -> 0 | C13: =VLOOKUP($A13,'Data Pass Through'!$A:$D,2,FALSE) -> 0.115 | D13: =B13*C13 -> 0 | E13: =B13 -> 0 | F13: =VLOOKUP($A13,'Data Pass Through'!$A:$D,3,FALSE) -> 0.115 | G13: =E13*F13 -> 0 | H13: 0 | I13: N/A | J13: =G13/$G$42 -> 0
A14: Sub-Total: Energy (RPP Tiered) | D14: =SUM(D12:D13) -> 30.38 | G14: =SUM(G12:G13) -> 30.38 | H14: 0 | I14: 0 | J14: =G14/$G$42 -> 0.4585457998
A15: TOU-Off Peak | B15: =B$4*VLOOKUP($B$3,'Data Billing Quantities'!$A:$O,MATCH('BI Template_EnergyWHSI'!$A15,'Data Billing Quantities'!$4:$4,0),FALSE) -> 198.4 | C15: =VLOOKUP($A15,'Data Pass Through'!$A:$D,2,FALSE) -> 0.082 | D15: =B15*C15 -> 16.2688 | E15: 198.4 | F15: =VLOOKUP($A15,'Data Pass Through'!$A:$D,3,FALSE) -> 0.082 | G15: =E15*F15 -> 16.2688 | H15: 0 | I15: 0 | K15: =G15/$G$47 -> 0.239592431
A16: TOU-Mid Peak | B16: =B$4*VLOOKUP($B$3,'Data Billing Quantities'!$A:$O,MATCH('BI Template_EnergyWHSI'!$A16,'Data Billing Quantities'!$4:$4,0),FALSE) -> 55.8 | C16: =VLOOKUP($A16,'Data Pass Through'!$A:$D,2,FALSE) -> 0.113 | D16: =B16*C16 -> 6.3054 | E16: 55.8 | F16: =VLOOKUP($A16,'Data Pass Through'!$A:$D,3,FALSE) -> 0.113 | G16: =E16*F16 -> 6.3054 | H16: 0 | I16: 0 | K16: 0.09286032864
A17: TOU-On Peak | B17: =B$4*VLOOKUP($B$3,'Data Billing Quantities'!$A:$O,MATCH('BI Template_EnergyWHSI'!$A17,'Data Billing Quantities'!$4:$4,0),FALSE) -> 55.8 | C17: =VLOOKUP($A17,'Data Pass Through'!$A:$D,2,FALSE) -> 0.17 | D17: =B17*C17 -> 9.486 | E17: 55.8 | F17: =VLOOKUP($A17,'Data Pass Through'!$A:$D,3,FALSE) -> 0.17 | G17: =E17*F17 -> 9.486 | H17: 0 | I17: 0 | K17: 0.1397013794
A18: Sub-Total: Energy (RPP TOU) | D18: =SUM(D15:D17) -> 32.0602 | G18: =SUM(G15:G17) -> 32.0602 | H18: 0 | I18: 0 | J18: =G18/$G$42 -> 0.4839061899 | K18: 0.472154139
A19: Service Charge | B19: 1 | C19: =VLOOKUP($B$3,'Data Current Rates'!$A:$AN,MATCH('BI Template_EnergyWHSI'!$A19,CurrentHeader,0),FALSE) -> 29.59 | D19: =B19*C19 -> 29.59 | E19: 1 | F19: =VLOOKUP($C$3,'Data Proposed Rates'!$A:$AZ,MATCH('BI Template_EnergyWHSI'!$A19,ProposedHeader,0),FALSE) -> 30.91 | G19: =E19*F19 -> 30.91 | H19: 1.32 | I19: 0.04460966543 | J19: 0.4665454467 | K19: 0.4552150154
A20: Distribution Volumetric Charge | B20: =IF($B$9="kWh",$B$4,$B$5) -> 310 | C20: =VLOOKUP($B$3,'Data Current Rates'!$A:$AN,MATCH('BI Template_EnergyWHSI'!$A20,CurrentHeader,0),FALSE) -> 0 | D20: =B20*C20 -> 0 | E20: =IF($C$9="kWh",$C$4,$C$5) -> 310 | F20: =VLOOKUP($C$3,'Data Proposed Rates'!$A:$AZ,MATCH('BI Template_EnergyWHSI'!$A20,ProposedHeader,0),FALSE) -> 0 | G20: 0 | H20: 0 | I20: N/A | J20: 0 | K20: 0
A21: Group 1 Volumetric DVA Rider (General) | B21: =IF($B$9="kWh",$B$4,$B$5) -> 310 | C21: =VLOOKUP($B$3,'Data Current Rates'!$A:$AN,MATCH('BI Template_EnergyWHSI'!$A21,CurrentHeader,0),FALSE) -> -0.0005 | D21: =B21*C21 -> -0.155 | E21: =IF($C$9="kWh",$C$4,$C$5) -> 310 | F21: =VLOOKUP($C$3,'Data Proposed Rates'!$A:$AZ,MATCH('BI Template_EnergyWHSI'!$A21,ProposedHeader,0),FALSE) -> -0.0005 | G21: -0.155 | H21: 0 | I21: 0 | J21: -0.002339519386 | K21: -0.002282702277
A22: Sub-Total: Distribution (excluding pass through) | D22: =SUM(INDIRECT("D19:D"&ROW()-1)) -> 29.435 | G22: =SUM(INDIRECT("g19:g"&ROW()-1)) -> 30.755 | H22: =G22-D22 -> 1.32 | I22: 0.04484457279 | J22: 0.4642059273 | K22: 0.4529323131
A23: Smart Metering Entity Charge | B23: =B19 -> 1 | C23: =VLOOKUP($A23,'Data Pass Through'!$A:$D,2,FALSE) -> 0.57 | D23: =B23*C23 -> 0.57 | E23: =E19 -> 1 | F23: =VLOOKUP($A23,'Data Pass Through'!$A:$D,3,FALSE) -> 0.57 | G23: =E23*F23 -> 0.57 | H23: 0 | I23: 0 | J23: 0.008603393873 | K23: 0.008394453535
A24: Line Losses on Cost of Power (based on two-tier RPP prices) | B24: =B8-B4 -> 13.33 | C24: =IF(B4>B7,C13,C12) -> 0.098 | D24: =B24*C24 -> 1.30634 | E24: =C8-C4 -> 13.33 | F24: =IF(C4>C7,F13,F12) -> 0.098 | G24: =E24*F24 -> 1.30634 | H24: 0 | I24: 0 | J24: 0.01971746939 | K24: 0.01923861479
A25: Line Losses on Cost of Power (based on TOU prices) | B25: =B8-B4 -> 13.33 | C25: =VLOOKUP($B$3,'Data Billing Quantities'!$A:$O,MATCH('BI Template_EnergyWHSI'!$A15,'Data Billing Quantities'!$4:$4,0),FALSE)*C15+VLOOKUP($B$3,'Data Billing Quantities'!$A:$O,MATCH('BI Template_EnergyWHSI'!$A16,'Data Billing Quantities'!$4:$4,0),FALSE)*C16+VLOOKUP($B$3,'Data Billing Quantities'!$A:$O,MATCH('BI Template_EnergyWHSI'!$A17,'Data Billing Quantities'!$4:$4,0),FALSE)*C17 -> 0.10342 | D25: =B25*C25 -> 1.3785886 | E25: =C8-C4 -> 13.33 | F25: =VLOOKUP($C$3,'Data Billing Quantities'!$A:$O,MATCH('BI Template_EnergyWHSI'!$A15,'Data Billing Quantities'!$4:$4,0),FALSE)*F15+VLOOKUP($C$3,'Data Billing Quantities'!$A:$O,MATCH('BI Template_EnergyWHSI'!$A16,'Data Billing Quantities'!$4:$4,0),FALSE)*F16+VLOOKUP($C$3,'Data Billing Quantities'!$A:$O,MATCH('BI Template_EnergyWHSI'!$A17,'Data Billing Quantities'!$4:$4,0),FALSE)*F17 -> 0.10342 | G25: =E25*F25 -> 1.3785886 | H25: 0 | I25: 0 | J25: 0.02080796617 | K25: 0.02030262798
A26: Sub-Total: Distribution (based on two-tier RPP prices) | D26: =SUM(D22,D23:D24) -> 31.31134 | G26: =SUM(G22,G23:G24) -> 32.63134 | H26: 1.32 | I26: 0.04215725038 | J26: 0.4925267906 | K26: 0.4805653815
A27: Sub-Total: Distribution (based on TOU prices) | D27: =SUM(D22,D23,D25) -> 31.3835886 | G27: =SUM(G22,G23,G25) -> 32.7035886 | H27: 1.32 | I27: 0.04206019958 | J27: 0.4936172873 | K27: 0.4816293946
A28: Retail Transmission Rate – Network Service Rate | B28: =IF($B$9="kWh",$B$8,$B$5) -> 323.33 | C28: =VLOOKUP($B$3,'Data Current Rates'!$A:$AN,MATCH('BI Template_EnergyWHSI'!$A28,CurrentHeader,0),FALSE) -> 0.0106 | D28: =B28*C28 -> 3.427298 | E28: =IF($C$9="kWh",$C$8,$C$5) -> 323.33 | F28: =VLOOKUP($C$3,'Data Proposed Rates'!$A:$AZ,MATCH('BI Template_EnergyWHSI'!$A28,ProposedHeader,0),FALSE) -> 0.0106 | G28: =E28*F28 -> 3.427298 | H28: =G28-D28 -> 0 | I28: 0 | J28: 0.05173051687 | K28: 0.05047419967
A29: Retail Transmission Rate – Line and Transformation Connection Service Rate | B29: =IF($B$9="kWh",$B$8,$B$5) -> 323.33 | C29: =VLOOKUP($B$3,'Data Current Rates'!$A:$AN,MATCH('BI Template_EnergyWHSI'!$A29,CurrentHeader,0),FALSE) -> 0.0076 | D29: =B29*C29 -> 2.457308 | E29: =IF($C$9="kWh",$C$8,$C$5) -> 323.33 | F29: =VLOOKUP($C$3,'Data Proposed Rates'!$A:$AZ,MATCH('BI Template_EnergyWHSI'!$A29,ProposedHeader,0),FALSE) -> 0.0076 | G29: =E29*F29 -> 2.457308 | H29: =G29-D29 -> 0 | I29: 0 | J29: 0.03708980455 | K29: 0.03618904882
A30: Sub-Total: Retail Transmission | D30: =SUM(D28:D29) -> 5.884606 | G30: =SUM(G28:G29) -> 5.884606 | H30: =G30-D30 -> 0 | I30: 0 | J30: 0.08882032141 | K30: 0.08666324849
A31: Sub-Total: Delivery (based on two-tier RPP prices) | D31: =D26+D30 -> 37.195946 | G31: =G26+G30 -> 38.515946 | H31: =G31-D31 -> 1.32 | I31: 0.03548773837 | J31: 0.581347112 | K31: 0.5672286299
A32: Sub-Total: Delivery (based on TOU prices) | D32: =D27+D30 -> 37.2681946 | G32: =G27+G30 -> 38.5881946 | H32: =G32-D32 -> 1.32 | I32: 0.03541894138 | J32: 0.5824376088 | K32: 0.5682926431
A33: Wholesale Market Service Rate (WMS) - not including CBR | B33: =B8 -> 323.33 | C33: =VLOOKUP($A33,'Data Pass Through'!$A:$D,2,FALSE) -> 0.003 | D33: =B33*C33 -> 0.96999 | E33: =$C$8 -> 323.33 | F33: =VLOOKUP($A33,'Data Pass Through'!$A:$D,3,FALSE) -> 0.003 | G33: =E33*F33 -> 0.96999 | H33: 0 | I33: 0 | J33: 0.01464071232 | K33: 0.01428515085
A34: Capacity Based Recovery (CBR) - Applicable for Class B Customers | B34: =B8 -> 323.33 | C34: =VLOOKUP($A34,'Data Pass Through'!$A:$D,2,FALSE) -> 0.0004 | D34: =B34*C34 -> 0.129332 | E34: =$C$8 -> 323.33 | F34: =VLOOKUP($A34,'Data Pass Through'!$A:$D,3,FALSE) -> 0.0004 | G34: =E34*F34 -> 0.129332 | H34: 0 | I34: 0 | J34: 0.001952094976 | K34: 0.00190468678
A35: Rural Rate Protection Charge | B35: =B8 -> 323.33 | C35: =VLOOKUP($A35,'Data Pass Through'!$A:$D,2,FALSE) -> 0.0005 | D35: 0.161665 | E35: 323.33 | F35: =VLOOKUP($A35,'Data Pass Through'!$A:$D,3,FALSE) -> 0.0005 | G35: 0.161665 | H35: 0 | I35: 0 | J35: 0.00244011872 | K35: 0.002380858475
A36: Standard Supply Service – Administration Charge (if applicable) | B36: 1 | C36: =VLOOKUP($A36,'Data Pass Through'!$A:$D,2,FALSE) -> 0.25 | D36: =B36*C36 -> 0.25 | E36: 1 | F36: =VLOOKUP($A36,'Data Pass Through'!$A:$D,3,FALSE) -> 0.25 | G36: 0.25 | H36: 0 | I36: 0 | J36: 0.003773418365 | K36: 0.003681777866
A37: Sub-Total: Regulatory | D37: =SUM(D33:D36) -> 1.510987 | G37: =SUM(G33:G36) -> 1.510987 | H37: 0 | I37: 0 | J37: 0.02280634438 | K37: 0.02225247397
A38: Total Electricty Charge on Two-Tier RPP | D38: =SUM(D14,D22,D23,D24,D30,D37) -> 69.086933 | G38: =SUM(G14,G22,G23,G24,G30,G37) -> 70.406933 | H38: 1.32 | I38: 0.0191063627 | J38: 1.062699256
A39: HST | C39: 0.13 | D39: =D38*C39 -> 8.98130129 | F39: =C39 -> 0.13 | G39: =G38*F39 -> 9.15290129 | H39: 0.1716 | I39: 0.0191063627 | J39: 0.1381509033
A40: Total Electricity Charge on Two-Tier RPP (including HST) | D40: =SUM(D38:D39) -> 78.06823429 | G40: =SUM(G38:G39) -> 79.55983429 | H40: 1.4916 | I40: 0.0191063627 | J40: 1.200850159
A41: Ontario Electricity Rebate (OER) | C41: =IF(($B$4*12)<250000,VLOOKUP(A41,'Data Pass Through'!$A$4:$C$20,2,0),0) -> -0.189 | D41: =D38*C41 -> -13.05743034 | F41: =C41 -> -0.189 | G41: =G38*F41 -> -13.30691034 | H41: -0.24948 | I41: -0.0191063627 | J41: -0.2008501594
A42: Total Amount on Two-Tier RPP | D42: =SUM(D40:D41) -> 65.01080395 | G42: =SUM(G40:G41) -> 66.25292395 | H42: 1.24212 | I42: 0.0191063627 | J42: 1
A43: Total Electricty Charge on TOU (before HST) | D43: =SUM(D18,D22,D23,D25,D30,D37) -> 70.8393816 | G43: =SUM(G18,G22,G23,G25,G30,G37) -> 72.1593816 | H43: 1.32 | I43: 0.01863370304 | K43: =G43/$G$47 -> 1.062699256
A44: HST | C44: 0.13 | D44: =D43*C44 -> 9.209119608 | F44: =C44 -> 0.13 | G44: =G43*F44 -> 9.380719608 | H44: 0.1716 | I44: 0.01863370304 | K44: =G44/$G$47 -> 0.1381509033
A45: Total Electricity Charge on TOU (including HST) | D45: =SUM(D43:D44) -> 80.04850121 | G45: =SUM(G43:G44) -> 81.54010121 | H45: 1.4916 | I45: 0.01863370304 | K45: =G45/$G$47 -> 1.200850159
A46: Ontario Electricity Rebate (OER) | C46: =IF(($B$4*12)<250000,VLOOKUP(A46,'Data Pass Through'!$A$4:$C$20,2,0),0) -> -0.189 | D46: =D43*C46 -> -13.38864312 | F46: =C46 -> -0.189 | G46: =G43*F46 -> -13.63812312 | H46: -0.24948 | I46: -0.01863370304 | K46: =G46/$G$47 -> -0.2008501594
A47: Total Amount on TOU | D47: =SUM(D45:D46) -> 66.65985809 | G47: =SUM(G45:G46) -> 67.90197809 | H47: 1.24212 | I47: 0.01863370304 | K47: =G47/$G$47 -> 1

Sheet BI Template_DemandWHSI (hidden)
A1: 2024 Bill Impacts (Low Consumption Level) - AUGd_WHSI
A3: Rate Class | B3: =VLOOKUP(A1,'Data BI List Acq_Seas'!C:E,2,FALSE) -> AUGd-WHSI | C3: =VLOOKUP(A1,'Data BI List Acq_Seas'!C:E,3,FALSE) -> AUGd-WHSI
A4: Monthly Consumption (kWh) | B4: =IF(COUNTIF(A1,"*Low*")>0,VLOOKUP(B3,'Data Billing Quantities'!$A:$Z,MATCH("Low kWh",'Data Billing Quantities'!4:4,0),FALSE),IF(COUNTIF(A1,"*Typical*")>0,VLOOKUP(B3,'Data Billing Quantities'!$A:$Z,MATCH("Typical kWh",'Data Billing Quantities'!4:4,0),FALSE),IF(COUNTIF(A1,"*Average*")>0,VLOOKUP(B3,'Data Billing Quantities'!$A:$Z,MATCH("Average kWh",'Data Billing Quantities'!4:4,0),FALSE),IF(COUNTIF(A1,"*High*")>0,VLOOKUP(B3,'Data Billing Quantities'!$A:$Z,MATCH("High kWh",'Data Billing Quantities'!4:4,0),FALSE),"error")))) -> 9370 | C4: =B4 -> 9370
A5: Peak (kW) | B5: =IF(COUNTIF(A1,"*Low*")>0,VLOOKUP(B3,'Data Billing Quantities'!$A:$Z,MATCH("Low kW",'Data Billing Quantities'!4:4,0),FALSE),IF(COUNTIF(A1,"*Typical*")>0,VLOOKUP(B3,'Data Billing Quantities'!$A:$Z,MATCH("Typical kW",'Data Billing Quantities'!4:4,0),FALSE),IF(COUNTIF(A1,"*Average*")>0,VLOOKUP(B3,'Data Billing Quantities'!$A:$Z,MATCH("Average kW",'Data Billing Quantities'!4:4,0),FALSE),IF(COUNTIF(A1,"*High*")>0,VLOOKUP(B3,'Data Billing Quantities'!$A:$Z,MATCH("High kW",'Data Billing Quantities'!4:4,0),FALSE),"error")))) -> 50 | C5: =B5 -> 50
A6: Loss factor | B6: =VLOOKUP(B3,'Data Billing Quantities'!A:D,MATCH(A6,'Data Billing Quantities'!4:4,0),FALSE) -> 1.033 | C6: =VLOOKUP(C3,'Data Billing Quantities'!A:D,MATCH(A6,'Data Billing Quantities'!4:4,0),FALSE) -> 1.033
A7: Commodity Threshold | B7: =VLOOKUP(B3,'Data Billing Quantities'!A:D,MATCH(A7,'Data Billing Quantities'!4:4,0),FALSE) -> 0 | C7: =B7 -> 0
A8: Monthly Consumption (kWh) - Uplifted | B8: =B4*B6 -> 9679.21 | C8: =C4*C6 -> 9679.21
A9: Charge determinant | B9: =VLOOKUP(B3,'Data Billing Quantities'!A:D,MATCH(A9,'Data Billing Quantities'!4:4,0),FALSE) -> kW | C9: =VLOOKUP(C3,'Data Billing Quantities'!A:D,MATCH(A9,'Data Billing Quantities'!4:4,0),FALSE) -> kW
B11: Volume | C11: Current Rate ($) | D11: Current Charge ($) | E11: Volume | F11: Proposed Rate ($) | G11: Proposed Charge ($) | H11: Change ($) | I11: Change (%) | J11: % of Total Bill
A12: Weighted Average Hourly Spot Price | B12: =B8 -> 9679.21 | C12: =VLOOKUP($A12,'Data Pass Through'!$A:$D,2,FALSE) -> 0.119 | D12: =B12*C12 -> 1151.82599 | E12: =C8 -> 9679.21 | F12: =VLOOKUP($A12,'Data Pass Through'!$A:$D,3,FALSE) -> 0.119 | G12: =E12*F12 -> 1151.82599 | H12: =G12-D12 -> 0 | I12: =IF(ISERROR(H12/ABS(D12)),"N/A",(H12/ABS(D12))) -> 0 | J12: =G12/G$31 -> 0.5956131602
A13: Sub-Total: Energy (WAHSP) | D13: =SUM(D12:D12) -> 1151.82599 | G13: =SUM(G12:G12) -> 1151.82599 | H13: 0 | I13: 0 | J13: 0.5956131602
A14: Service Charge | B14: 1 | C14: =VLOOKUP($B$3,'Data Current Rates'!$A:$AN,MATCH('BI Template_DemandWHSI'!$A14,CurrentHeader,0),FALSE) -> 150.84 | D14: =B14*C14 -> 150.84 | E14: 1 | F14: =VLOOKUP($C$3,'Data Proposed Rates'!$A:$AZ,MATCH('BI Template_DemandWHSI'!$A14,ProposedHeader,0),FALSE) -> 157.56 | G14: =E14*F14 -> 157.56 | H14: 6.72 | I14: 0.0445505171 | J14: 0.08147481507
A15: Distribution Volumetric Charge | B15: =IF($B$9="kWh",$B$4,$B$5) -> 50 | C15: =VLOOKUP($B$3,'Data Current Rates'!$A:$AN,MATCH('BI Template_DemandWHSI'!$A15,CurrentHeader,0),FALSE) -> 2.4538 | D15: =B15*C15 -> 122.69 | E15: =IF($C$9="kWh",$C$4,$C$5) -> 50 | F15: =VLOOKUP($C$3,'Data Proposed Rates'!$A:$AZ,MATCH('BI Template_DemandWHSI'!$A15,ProposedHeader,0),FALSE) -> 2.5574 | G15: 127.87 | H15: 5.18 | I15: 0.04222022985 | J15: 0.06612201449
A16: Group 1 Volumetric DVA Rider (General) | B16: =IF($B$9="kWh",$B$4,$B$5) -> 50 | C16: =VLOOKUP($B$3,'Data Current Rates'!$A:$AN,MATCH('BI Template_DemandWHSI'!$A16,CurrentHeader,0),FALSE) -> -0.0383 | D16: =B16*C16 -> -1.915 | E16: =IF($C$9="kWh",$C$4,$C$5) -> 50 | F16: =VLOOKUP($C$3,'Data Proposed Rates'!$A:$AZ,MATCH('BI Template_DemandWHSI'!$A16,ProposedHeader,0),FALSE) -> -0.0383 | G16: -1.915 | H16: 0 | I16: 0 | J16: -0.0009902530519
A17: Group 1 Volumetric Deferral/Variance Account Rider (Sub-Account RSVA Wholesale Market Service Charge & RSVA Power) | B17: 50 | C17: =VLOOKUP($B$3,'Data Current Rates'!$A:$AN,MATCH('BI Template_DemandWHSI'!$A17,CurrentHeader,0),FALSE) -> -0.0803 | D17: -4.015 | E17: 50 | F17: =VLOOKUP($C$3,'Data Proposed Rates'!$A:$AZ,MATCH('BI Template_DemandWHSI'!$A17,ProposedHeader,0),FALSE) -> -0.0803 | G17: -4.015 | H17: 0 | I17: 0 | J17: -0.002076170237
A18: Group 1 Volumetric Deferral/Variance Account Rider (Sub-Account Global Adjustment) | B18: =B4 -> 9370 | C18: =VLOOKUP($B$3,'Data Current Rates'!$A:$AN,MATCH('BI Template_DemandWHSI'!$A18,CurrentHeader,0),FALSE) -> -0.0007 | D18: -6.559 | E18: =C4 -> 9370 | F18: =VLOOKUP($C$3,'Data Proposed Rates'!$A:$AZ,MATCH('BI Template_DemandWHSI'!$A18,ProposedHeader,0),FALSE) -> -0.0007 | G18: -6.559 | H18: 0 | I18: 0 | J18: -0.003391681341
A19: Sub-Total: Distribution | D19: =SUM(INDIRECT("D14:D"&ROW()-1)) -> 261.041 | G19: =SUM(INDIRECT("g14:g"&ROW()-1)) -> 272.941 | H19: =G19-D19 -> 11.9 | I19: 0.0455867086 | J19: 0.1411387249
A20: Retail Transmission Rate – Network Service Rate | B20: =IF($B$9="kWh",$B$4,$B$5) -> 50 | C20: =VLOOKUP($B$3,'Data Current Rates'!$A:$AN,MATCH('BI Template_DemandWHSI'!$A20,CurrentHeader,0),FALSE) -> 2.8411 | D20: =B20*C20 -> 142.055 | E20: =IF($C$9="kWh",$C$4,$C$5) -> 50 | F20: =VLOOKUP($C$3,'Data Proposed Rates'!$A:$AZ,MATCH('BI Template_DemandWHSI'!$A20,ProposedHeader,0),FALSE) -> 2.8411 | G20: =E20*F20 -> 142.055 | H20: =G20-D20 -> 0 | I20: 0 | J20: 0.07345712652
A21: Retail Transmission Rate – Line and Transformation Connection Service Rate | B21: =IF($B$9="kWh",$B$4,$B$5) -> 50 | C21: =VLOOKUP($B$3,'Data Current Rates'!$A:$AN,MATCH('BI Template_DemandWHSI'!$A21,CurrentHeader,0),FALSE) -> 2.131 | D21: =B21*C21 -> 106.55 | E21: =IF($C$9="kWh",$C$4,$C$5) -> 50 | F21: =VLOOKUP($C$3,'Data Proposed Rates'!$A:$AZ,MATCH('BI Template_DemandWHSI'!$A21,ProposedHeader,0),FALSE) -> 2.131 | G21: =E21*F21 -> 106.55 | H21: =G21-D21 -> 0 | I21: 0 | J21: 0.05509736954
A22: Sub-Total: Retail Transmission | D22: =SUM(D20:D21) -> 248.605 | G22: =SUM(G20:G21) -> 248.605 | H22: =G22-D22 -> 0 | I22: 0 | J22: 0.1285544961
A23: Sub-Total: Delivery (based on two-tier RPP prices) | D23: =SUM(D19,D22) -> 509.646 | G23: =SUM(G19,G22) -> 521.546 | H23: =G23-D23 -> 11.9 | I23: 0.02334954066 | J23: 0.269693221
A24: Wholesale Market Service Rate (WMS) - not including CBR | B24: =B8 -> 9679.21 | C24: =VLOOKUP($A24,'Data Pass Through'!$A:$D,2,FALSE) -> 0.003 | D24: =B24*C24 -> 29.03763 | E24: =$C$8 -> 9679.21 | F24: =VLOOKUP($A24,'Data Pass Through'!$A:$D,3,FALSE) -> 0.003 | G24: =E24*F24 -> 29.03763 | H24: =G24-D24 -> 0 | I24: 0 | J24: 0.01501545782
A25: Capacity Based Recovery (CBR) - Applicable for Class B Customers | B25: =B8 -> 9679.21 | C25: =VLOOKUP($A25,'Data Pass Through'!$A:$D,2,FALSE) -> 0.0004 | D25: =B25*C25 -> 3.871684 | E25: =$C$8 -> 9679.21 | F25: =VLOOKUP($A25,'Data Pass Through'!$A:$D,3,FALSE) -> 0.0004 | G25: =E25*F25 -> 3.871684 | H25: 0 | I25: 0 | J25: 0.002002061043
A26: Rural Rate Protection Charge | B26: =B8 -> 9679.21 | C26: =VLOOKUP($A26,'Data Pass Through'!$A:$D,2,FALSE) -> 0.0005 | D26: 4.839605 | E26: 9679.21 | F26: =VLOOKUP($A26,'Data Pass Through'!$A:$D,3,FALSE) -> 0.0005 | G26: 4.839605 | H26: 0 | I26: 0 | J26: 0.002502576303
A27: Standard Supply Service – Administration Charge (if applicable) | B27: 1 | C27: =VLOOKUP($A27,'Data Pass Through'!$A:$D,2,FALSE) -> 0.25 | D27: =B27*C27 -> 0.25 | E27: =B27 -> 1 | F27: =VLOOKUP($A27,'Data Pass Through'!$A:$D,3,FALSE) -> 0.25 | G27: 0.25 | H27: 0 | I27: 0 | J27: 0.0001292758553
A28: Sub-Total: Regulatory | D28: =SUM(D24:D27) -> 37.998919 | G28: =SUM(G24:G27) -> 37.998919 | H28: 0 | I28: 0 | J28: 0.01964937102
A29: Total Electricty Charge on WAHSP | D29: =SUM(D13,D23,D28) -> 1699.470909 | G29: =SUM(G13,G23,G28) -> 1711.370909 | H29: 11.9 | I29: 0.007002179288 | J29: 0.8849557522
A30: HST | C30: 0.13 | D30: =D29*C30 -> 220.9312182 | F30: =C30 -> 0.13 | G30: =G29*F30 -> 222.4782182 | H30: 1.547 | I30: 0.007002179288 | J30: 0.1150442478
A31: Total Amount on WAHSP | D31: =SUM(D29:D30) -> 1920.402127 | G31: =SUM(G29:G30) -> 1933.849127 | H31: 13.447 | I31: 0.007002179288 | J31: 1

Sheet BI Template_unmWHSI (hidden)
A1: 2024 Bill Impacts (Average Consumption Level) - St Lgt_WHSI
A3: Rate Class | B3: =VLOOKUP(A1,'Data BI List Acq_Seas'!C:E,2,FALSE) -> St Lgt-WHSI | C3: =VLOOKUP(A1,'Data BI List Acq_Seas'!C:E,3,FALSE) -> St Lgt-WHSI
A4: Monthly Consumption (kWh) | B4: =IF(COUNTIF(A1,"*Low*")>0,VLOOKUP(B3,'Data Billing Quantities'!$A:$Z,MATCH("Low kWh",'Data Billing Quantities'!4:4,0),FALSE),IF(COUNTIF(A1,"*Typical*")>0,VLOOKUP(B3,'Data Billing Quantities'!$A:$Z,MATCH("Typical kWh",'Data Billing Quantities'!4:4,0),FALSE),IF(COUNTIF(A1,"*Average*")>0,VLOOKUP(B3,'Data Billing Quantities'!$A:$Z,MATCH("Average kWh",'Data Billing Quantities'!4:4,0),FALSE),IF(COUNTIF(A1,"*High*")>0,VLOOKUP(B3,'Data Billing Quantities'!$A:$Z,MATCH("High kWh",'Data Billing Quantities'!4:4,0),FALSE),"error")))) -> 37079 | C4: =B4 -> 37079
A5: Peak (kW) | B5: =IF(COUNTIF(A1,"*Low*")>0,VLOOKUP(B3,'Data Billing Quantities'!$A:$Z,MATCH("Low kW",'Data Billing Quantities'!4:4,0),FALSE),IF(COUNTIF(A1,"*Typical*")>0,VLOOKUP(B3,'Data Billing Quantities'!$A:$Z,MATCH("Typical kW",'Data Billing Quantities'!4:4,0),FALSE),IF(COUNTIF(A1,"*Average*")>0,VLOOKUP(B3,'Data Billing Quantities'!$A:$Z,MATCH("Average kW",'Data Billing Quantities'!4:4,0),FALSE),IF(COUNTIF(A1,"*High*")>0,VLOOKUP(B3,'Data Billing Quantities'!$A:$Z,MATCH("High kW",'Data Billing Quantities'!4:4,0),FALSE),"error")))) -> 0 | C5: =B5 -> 0
A6: Loss factor | B6: =VLOOKUP(B3,'Data Billing Quantities'!A:D,MATCH(A6,'Data Billing Quantities'!4:4,0),FALSE) -> 1.092 | C6: =VLOOKUP(C3,'Data Billing Quantities'!A:D,MATCH(A6,'Data Billing Quantities'!4:4,0),FALSE) -> 1.092
A7: Commodity Threshold | B7: =VLOOKUP(B3,'Data Billing Quantities'!A:D,MATCH(A7,'Data Billing Quantities'!4:4,0),FALSE) -> 750 | C7: =B7 -> 750
A8: Monthly Consumption (kWh) - Uplifted | B8: =B4*B6 -> 40490.268 | C8: =C4*C6 -> 40490.268
A9: Charge determinant | B9: =VLOOKUP(B3,'Data Billing Quantities'!A:D,MATCH(A9,'Data Billing Quantities'!4:4,0),FALSE) -> kWh | C9: =VLOOKUP(C3,'Data Billing Quantities'!A:D,MATCH(A9,'Data Billing Quantities'!4:4,0),FALSE) -> kWh
B11: Volume | C11: Current Rate ($) | D11: Current Charge ($) | E11: Volume | F11: Proposed Rate ($) | G11: Proposed Charge ($) | H11: Change ($) | I11: Change (%) | J11: % of Total Bill
A12: Energy First Tier | B12: =IF(B4>B7,B7,B4) -> 750 | C12: =VLOOKUP($A12,'Data Pass Through'!$A:$D,2,FALSE) -> 0.098 | D12: =B12*C12 -> 73.5 | E12: =B12 -> 750 | F12: =VLOOKUP($A12,'Data Pass Through'!$A:$D,3,FALSE) -> 0.098 | G12: =E12*F12 -> 73.5 | H12: =G12-D12 -> 0 | I12: =IF(ISERROR(H12/ABS(D12)),"N/A",(H12/ABS(D12))) -> 0 | J12: =G12/$G$34 -> 0.006986477253
A13: Energy Second Tier | B13: =IF(B4>B7,(B4)-B7,0) -> 36329 | C13: =VLOOKUP($A13,'Data Pass Through'!$A:$D,2,FALSE) -> 0.115 | D13: =B13*C13 -> 4177.835 | E13: =B13 -> 36329 | F13: =VLOOKUP($A13,'Data Pass Through'!$A:$D,3,FALSE) -> 0.115 | G13: =E13*F13 -> 4177.835 | H13: 0 | I13: 0 | J13: 0.3971203972
A14: Sub-Total: Energy (RPP Tiered) | D14: =SUM(D12:D13) -> 4251.335 | G14: =SUM(G12:G13) -> 4251.335 | H14: 0 | I14: 0 | J14: 0.4041068745
A15: Service Charge | B15: =IF(VLOOKUP(B$3,'Data Billing Quantities'!A:P,MATCH("Acquired Street Light Service Charge",'Data Billing Quantities'!$4:$4,0),FALSE)>0,VLOOKUP(B$3,'Data Billing Quantities'!A:P,MATCH("Acquired Street Light Service Charge",'Data Billing Quantities'!$4:$4,0),FALSE),1) -> 1 | C15: =VLOOKUP($B$3,'Data Current Rates'!$A:$AN,MATCH('BI Template_unmWHSI'!$A15,CurrentHeader,0),FALSE) -> 2.97 | D15: =B15*C15 -> 2.97 | E15: 1 | F15: =VLOOKUP($C$3,'Data Proposed Rates'!$A:$AZ,MATCH('BI Template_unmWHSI'!$A15,ProposedHeader,0),FALSE) -> 3.07 | G15: =E15*F15 -> 3.07 | H15: 0.1 | I15: 0.03367003367 | J15: 0.0002918161247
A16: Distribution Volumetric Charge | B16: =IF($B$9="kWh",$B$4,$B$5) -> 37079 | C16: =VLOOKUP($B$3,'Data Current Rates'!$A:$AN,MATCH('BI Template_unmWHSI'!$A16,CurrentHeader,0),FALSE) -> 0.1064 | D16: =B16*C16 -> 3945.2056 | E16: =IF($C$9="kWh",$C$4,$C$5) -> 37079 | F16: =VLOOKUP($C$3,'Data Proposed Rates'!$A:$AZ,MATCH('BI Template_unmWHSI'!$A16,ProposedHeader,0),FALSE) -> 0.1111 | G16: 4119.4769 | H16: 174.2713 | I16: 0.04417293233 | J16: 0.3915732198
A17: Group 1 Volumetric DVA Rider (General) | B17: =IF($B$9="kWh",$B$4,$B$5) -> 37079 | C17: =VLOOKUP($B$3,'Data Current Rates'!$A:$AN,MATCH('BI Template_unmWHSI'!$A17,CurrentHeader,0),FALSE) -> -0.0003 | D17: =B17*C17 -> -11.1237 | E17: =IF($C$9="kWh",$C$4,$C$5) -> 37079 | F17: =VLOOKUP($C$3,'Data Proposed Rates'!$A:$AZ,MATCH('BI Template_unmWHSI'!$A17,ProposedHeader,0),FALSE) -> -0.0003 | G17: -11.1237 | H17: 0 | I17: 0 | J17: -0.001057353429
A18: Sub-Total: Distribution (excluding pass through) | D18: =SUM(INDIRECT("D15:D"&ROW()-1)) -> 3937.0519 | G18: =SUM(INDIRECT("g15:g"&ROW()-1)) -> 4111.4232 | H18: =G18-D18 -> 174.3713 | I18: 0.04428981492 | J18: 0.3908076825
A19: Line Losses on Cost of Power (based on two-tier RPP prices) | B19: =B8-B4 -> 3411.268 | C19: =IF(B4>B7,C13,C12) -> 0.115 | D19: =B19*C19 -> 392.29582 | E19: =C8-C4 -> 3411.268 | F19: =IF(C4>C7,F13,F12) -> 0.115 | G19: =E19*F19 -> 392.29582 | H19: 0 | I19: 0 | J19: 0.03728933092
A20: Sub-Total: Distribution (based on two-tier RPP prices) | D20: =SUM(D18,D19:D19) -> 4329.34772 | G20: =SUM(G18,G19:G19) -> 4503.71902 | H20: 174.3713 | I20: 0.04027657543 | J20: 0.4280970134
A21: Retail Transmission Rate – Network Service Rate | B21: =IF($B$9="kWh",$B$8,$B$5) -> 40490.268 | C21: =VLOOKUP($B$3,'Data Current Rates'!$A:$AN,MATCH('BI Template_unmWHSI'!$A21,CurrentHeader,0),FALSE) -> 0.0055 | D21: =B21*C21 -> 222.696474 | E21: =IF($C$9="kWh",$C$8,$C$5) -> 40490.268 | F21: =VLOOKUP($C$3,'Data Proposed Rates'!$A:$AZ,MATCH('BI Template_unmWHSI'!$A21,ProposedHeader,0),FALSE) -> 0.0055 | G21: =E21*F21 -> 222.696474 | H21: =G21-D21 -> 0 | I21: 0 | J21: 0.02116821565
A22: Retail Transmission Rate – Line and Transformation Connection Service Rate | B22: =IF($B$9="kWh",$B$8,$B$5) -> 40490.268 | C22: =VLOOKUP($B$3,'Data Current Rates'!$A:$AN,MATCH('BI Template_unmWHSI'!$A22,CurrentHeader,0),FALSE) -> 0.0043 | D22: =B22*C22 -> 174.1081524 | E22: =IF($C$9="kWh",$C$8,$C$5) -> 40490.268 | F22: =VLOOKUP($C$3,'Data Proposed Rates'!$A:$AZ,MATCH('BI Template_unmWHSI'!$A22,ProposedHeader,0),FALSE) -> 0.0043 | G22: =E22*F22 -> 174.1081524 | H22: =G22-D22 -> 0 | I22: 0 | J22: 0.01654969587
A23: Sub-Total: Retail Transmission | D23: =SUM(D21:D22) -> 396.8046264 | G23: =SUM(G21:G22) -> 396.8046264 | H23: =G23-D23 -> 0 | I23: 0 | J23: 0.03771791151
A24: Sub-Total: Delivery (based on two-tier RPP prices) | D24: =D20+D23 -> 4726.152346 | G24: =G20+G23 -> 4900.523646 | H24: =G24-D24 -> 174.3713 | I24: 0.03689498078 | J24: 0.4658149249
A25: Wholesale Market Service Rate (WMS) - not including CBR | B25: =B8 -> 40490.268 | C25: =VLOOKUP($A25,'Data Pass Through'!$A:$D,2,FALSE) -> 0.003 | D25: =B25*C25 -> 121.470804 | E25: =$C$8 -> 40490.268 | F25: =VLOOKUP($A25,'Data Pass Through'!$A:$D,3,FALSE) -> 0.003 | G25: =E25*F25 -> 121.470804 | H25: =G25-D25 -> 0 | I25: 0 | J25: 0.01154629944
A26: Capacity Based Recovery (CBR) - Applicable for Class B Customers | B26: =B8 -> 40490.268 | C26: =VLOOKUP($A26,'Data Pass Through'!$A:$D,2,FALSE) -> 0.0004 | D26: =B26*C26 -> 16.1961072 | E26: =$C$8 -> 40490.268 | F26: =VLOOKUP($A26,'Data Pass Through'!$A:$D,3,FALSE) -> 0.0004 | G26: =E26*F26 -> 16.1961072 | H26: 0 | I26: 0 | J26: 0.001539506592
A27: Rural Rate Protection Charge | B27: =B8 -> 40490.268 | C27: =VLOOKUP($A27,'Data Pass Through'!$A:$D,2,FALSE) -> 0.0005 | D27: 20.245134 | E27: 40490.268 | F27: =VLOOKUP($A27,'Data Pass Through'!$A:$D,3,FALSE) -> 0.0005 | G27: 20.245134 | H27: 0 | I27: 0 | J27: 0.00192438324
A28: Standard Supply Service – Administration Charge (if applicable) | B28: 1 | C28: =VLOOKUP($A28,'Data Pass Through'!$A:$D,2,FALSE) -> 0.25 | D28: =B28*C28 -> 0.25 | E28: 1 | F28: =VLOOKUP($A28,'Data Pass Through'!$A:$D,3,FALSE) -> 0.25 | G28: 0.25 | H28: 0 | I28: 0 | J28: 2.376352807e-05
A29: Sub-Total: Regulatory | D29: =SUM(D25:D28) -> 158.1620452 | G29: =SUM(G25:G28) -> 158.1620452 | H29: 0 | I29: 0 | J29: 0.0150339528
A30: Total Electricty Charge on Two-Tier RPP | D30: =SUM(D24,D29,D14) -> 9135.649392 | G30: =SUM(G24,G29,G14) -> 9310.020692 | H30: 174.3713 | I30: 0.01908690806 | J30: 0.8849557522
A31: HST | C31: 0.13 | D31: =D30*C31 -> 1187.634421 | F31: =C31 -> 0.13 | G31: =G30*F31 -> 1210.30269 | H31: 22.668269 | I31: 0.01908690806 | J31: 0.1150442478
A32: Total Electricity Charge on Two-Tier RPP (including HST) | D32: =SUM(D30:D31) -> 10323.28381 | G32: =SUM(G30:G31) -> 10520.32338 | H32: 197.039569 | I32: 0.01908690806 | J32: 1
A33: Ontario Electricity Rebate (OER) | C33: =IF(($B$4*12)<250000,VLOOKUP(A33,'Data Pass Through'!$A$4:$C$20,2,0),0) -> 0 | D33: =D30*C33 -> 0 | F33: =C33 -> 0 | G33: =G30*F33 -> 0 | H33: 0 | I33: N/A | J33: 0
A34: Total Amount on Two-Tier RPP | D34: =SUM(D32:D33) -> 10323.28381 | G34: =SUM(G32:G33) -> 10520.32338 | H34: 197.039569 | I34: 0.01908690806 | J34: 1

Sheet BI Template_EnergyUNM (hidden)
A1: 2024 Bill Impacts (Average Consumption Level) - USL
A3: Rate Class | B3: =RIGHT(A1,LEN(A1)-FIND("- ",A1,1)-1) -> USL
A4: Monthly Consumption (kWh) | B4: =IF(COUNTIF(A1,"*Low*")>0,VLOOKUP(B3,'Data Billing Quantities'!$A:$Z,MATCH("Low kWh",'Data Billing Quantities'!4:4,0),FALSE),IF(COUNTIF(A1,"*Typical*")>0,VLOOKUP(B3,'Data Billing Quantities'!$A:$Z,MATCH("Typical kWh",'Data Billing Quantities'!4:4,0),FALSE),IF(COUNTIF(A1,"*Average*")>0,VLOOKUP(B3,'Data Billing Quantities'!$A:$Z,MATCH("Average kWh",'Data Billing Quantities'!4:4,0),FALSE),IF(COUNTIF(A1,"*High*")>0,VLOOKUP(B3,'Data Billing Quantities'!$A:$Z,MATCH("High kWh",'Data Billing Quantities'!4:4,0),FALSE),"error")))) -> 477
A5: Peak (kW) | B5: =IF(COUNTIF(A1,"*Low*")>0,VLOOKUP(B3,'Data Billing Quantities'!$A:$Z,MATCH("Low kW",'Data Billing Quantities'!4:4,0),FALSE),IF(COUNTIF(A1,"*Typical*")>0,VLOOKUP(B3,'Data Billing Quantities'!$A:$Z,MATCH("Typical kW",'Data Billing Quantities'!4:4,0),FALSE),IF(COUNTIF(A1,"*Average*")>0,VLOOKUP(B3,'Data Billing Quantities'!$A:$Z,MATCH("Average kW",'Data Billing Quantities'!4:4,0),FALSE),IF(COUNTIF(A1,"*High*")>0,VLOOKUP(B3,'Data Billing Quantities'!$A:$Z,MATCH("High kW",'Data Billing Quantities'!4:4,0),FALSE),"error")))) -> 0
A6: Loss factor | B6: =VLOOKUP(B3,'Data Billing Quantities'!A:D,MATCH(A6,'Data Billing Quantities'!4:4,0),FALSE) -> 1.092
A7: Commodity Threshold | B7: =VLOOKUP(B3,'Data Billing Quantities'!A:D,MATCH(A7,'Data Billing Quantities'!4:4,0),FALSE) -> 750
A8: Monthly Consumption (kWh) - Uplifted | B8: =B4*B6 -> 520.884
A9: Charge determinant | B9: =VLOOKUP(B3,'Data Billing Quantities'!A:D,MATCH(A9,'Data Billing Quantities'!4:4,0),FALSE) -> kWh
B11: Volume | C11: Current Rate ($) | D11: Current Charge ($) | E11: Volume | F11: Proposed Rate ($) | G11: Proposed Charge ($) | H11: Change ($) | I11: Change (%) | J11: % of Total Bill
A12: Energy First Tier | B12: =IF(B4>B7,B7,B4) -> 477 | C12: =VLOOKUP($A12,'Data Pass Through'!$A:$D,2,FALSE) -> 0.098 | D12: =B12*C12 -> 46.746 | E12: =B12 -> 477 | F12: =VLOOKUP($A12,'Data Pass Through'!$A:$D,3,FALSE) -> 0.098 | G12: =E12*F12 -> 46.746 | H12: =G12-D12 -> 0 | I12: =IF(ISERROR(H12/ABS(D12)),"N/A",(H12/ABS(D12))) -> 0 | J12: =G12/$G$37 -> 0.4717622582
A13: Energy Second Tier | B13: =IF(B4>B7,(B4)-B7,0) -> 0 | C13: =VLOOKUP($A13,'Data Pass Through'!$A:$D,2,FALSE) -> 0.115 | D13: =B13*C13 -> 0 | E13: =B13 -> 0 | F13: =VLOOKUP($A13,'Data Pass Through'!$A:$D,3,FALSE) -> 0.115 | G13: =E13*F13 -> 0 | H13: 0 | I13: N/A | J13: =G13/$G$37 -> 0
A14: Sub-Total: Energy (RPP Tiered) | D14: =SUM(D12:D13) -> 46.746 | G14: =SUM(G12:G13) -> 46.746 | H14: 0 | I14: 0 | J14: =G14/$G$37 -> 0.4717622582
A15: Service Charge | B15: 1 | C15: =VLOOKUP($B$3,'Data Current Rates'!$A:$AN,MATCH('BI Template_EnergyUNM'!$A15,CurrentHeader,0),FALSE) -> 34.68 | D15: =B15*C15 -> 34.68 | E15: 1 | F15: =VLOOKUP($B$3,'Data Proposed Rates'!$A:$AZ,MATCH('BI Template_EnergyUNM'!$A15,ProposedHeader,0),FALSE) -> 35.84 | G15: =E15*F15 -> 35.84 | H15: 1.16 | I15: 0.03344867359 | J15: =G15/$G$37 -> 0.3616985268
A16: Fixed Base Rate Adjustment to Recover Past Tax Amounts | B16: 1 | C16: =VLOOKUP($B$3,'Data Current Rates'!$A:$AN,MATCH('BI Template_EnergyUNM'!$A16,CurrentHeader,0),FALSE) -> 0.87 | D16: =B16*C16 -> 0.87 | E16: 1 | F16: =VLOOKUP($B$3,'Data Proposed Rates'!$A:$AZ,MATCH('BI Template_EnergyUNM'!$A16,ProposedHeader,0),FALSE) -> 0 | G16: =E16*F16 -> 0 | H16: =G16-D16 -> -0.87 | I16: =IF(ISERROR(H16/ABS(D16)),"N/A",(H16/ABS(D16))) -> -1
A17: Distribution Volumetric Charge | B17: =IF($B$9="kWh",$B$4,$B$5) -> 477 | C17: =VLOOKUP($B$3,'Data Current Rates'!$A:$AN,MATCH('BI Template_EnergyUNM'!$A17,CurrentHeader,0),FALSE) -> 0.0216 | D17: 10.3032 | E17: 477 | F17: =VLOOKUP($B$3,'Data Proposed Rates'!$A:$AZ,MATCH('BI Template_EnergyUNM'!$A17,ProposedHeader,0),FALSE) -> 0.0223 | G17: 10.6371 | H17: 0.3339 | I17: 0.03240740741 | J17: =G17/$G$37 -> 0.1073499832
A18: Volumetric Base Rate Adjustment to Recover Past Tax Amounts | B18: =IF($B$9="kWh",$B$4,$B$5) -> 477 | C18: =VLOOKUP($B$3,'Data Current Rates'!$A:$AN,MATCH('BI Template_EnergyUNM'!$A18,CurrentHeader,0),FALSE) -> 0.0005 | D18: =B18*C18 -> 0.2385 | E18: =B18 -> 477 | F18: =VLOOKUP($B$3,'Data Proposed Rates'!$A:$AZ,MATCH('BI Template_EnergyUNM'!$A18,ProposedHeader,0),FALSE) -> 0 | G18: =E18*F18 -> 0 | H18: =G18-D18 -> -0.2385 | I18: =IF(ISERROR(H18/ABS(D18)),"N/A",(H18/ABS(D18))) -> -1 | J18: 0
A19: Group 1 Volumetric DVA Rider (General) | B19: =IF($B$9="kWh",$B$4,$B$5) -> 477 | C19: =VLOOKUP($B$3,'Data Current Rates'!$A:$AN,MATCH('BI Template_EnergyUNM'!$A19,CurrentHeader,0),FALSE) -> -0.0004 | D19: =B19*C19 -> -0.1908 | E19: =B4 -> 477 | F19: =VLOOKUP($B$3,'Data Proposed Rates'!$A:$AZ,MATCH('BI Template_EnergyUNM'!$A19,ProposedHeader,0),FALSE) -> -0.0004 | G19: =E19*F19 -> -0.1908 | H19: =G19-D19 -> 0 | I19: =IF(ISERROR(H19/ABS(D19)),"N/A",(H19/ABS(D19))) -> 0 | J19: -0.001925560238
A20: Group 2 Volumetric DVA Rider | B20: 477 | C20: =VLOOKUP($B$3,'Data Current Rates'!$A:$AN,MATCH('BI Template_EnergyUNM'!$A20,CurrentHeader,0),FALSE) -> -0.0002 | D20: -0.0954 | E20: =B4 -> 477 | F20: =VLOOKUP($B$3,'Data Proposed Rates'!$A:$AZ,MATCH('BI Template_EnergyUNM'!$A20,ProposedHeader,0),FALSE) -> -0.0002 | G20: -0.0954 | H20: 0 | I20: 0 | J20: -0.0009627801188
A21: Sub-Total: Distribution (excluding pass through) | D21: =SUM(INDIRECT("D15:D"&ROW()-1)) -> 45.8055 | G21: =SUM(INDIRECT("g15:g"&ROW()-1)) -> 46.1909 | H21: =G21-D21 -> 0.3854 | I21: 0.008413836766 | J21: 0.4661601697
A22: Line Losses on Cost of Power (based on two-tier RPP prices) | B22: =B8-B4 -> 43.884 | C22: =IF(B4>B7,C13,C12) -> 0.098 | D22: =B22*C22 -> 4.300632 | E22: 43.884 | F22: =IF(B4>B7,F13,F12) -> 0.098 | G22: =E22*F22 -> 4.300632 | H22: 0 | I22: 0 | J22: 0.04340212776
A23: Sub-Total: Distribution (based on two-tier RPP prices) | D23: =SUM(D21,D22:D22) -> 50.106132 | G23: =SUM(G21,G22:G22) -> 50.491532 | H23: 0.3854 | I23: 0.007691673346 | J23: 0.5095622975
A24: Retail Transmission Rate – Network Service Rate | B24: =B8 -> 520.884 | C24: =VLOOKUP($B$3,'Data Current Rates'!$A:$AN,MATCH('BI Template_EnergyUNM'!$A24,CurrentHeader,0),FALSE) -> 0.0064 | D24: =B24*C24 -> 3.3336576 | E24: 520.884 | F24: =VLOOKUP($B$3,'Data Proposed Rates'!$A:$AZ,MATCH('BI Template_EnergyUNM'!$A24,ProposedHeader,0),FALSE) -> 0.0064 | G24: =E24*F24 -> 3.3336576 | H24: =G24-D24 -> 0 | I24: 0 | J24: 0.03364338847
A25: Retail Transmission Rate – Line and Transformation Connection Service Rate | B25: =B8 -> 520.884 | C25: =VLOOKUP($B$3,'Data Current Rates'!$A:$AN,MATCH('BI Template_EnergyUNM'!$A25,CurrentHeader,0),FALSE) -> 0.0047 | D25: =B25*C25 -> 2.4481548 | E25: 520.884 | F25: =VLOOKUP($B$3,'Data Proposed Rates'!$A:$AZ,MATCH('BI Template_EnergyUNM'!$A25,ProposedHeader,0),FALSE) -> 0.0047 | G25: =E25*F25 -> 2.4481548 | H25: =G25-D25 -> 0 | I25: 0 | J25: 0.02470686341
A26: Sub-Total: Retail Transmission | D26: =SUM(D24:D25) -> 5.7818124 | G26: =SUM(G24:G25) -> 5.7818124 | H26: =G26-D26 -> 0 | I26: 0 | J26: 0.05835025188
A27: Sub-Total: Delivery (based on two-tier RPP prices) | D27: =D23+D26 -> 55.8879444 | G27: =G23+G26 -> 56.2733444 | H27: =G27-D27 -> 0.3854 | I27: 0.006895941587 | J27: 0.5679125493
A28: Wholesale Market Service Rate (WMS) - not including CBR | B28: =B8 -> 520.884 | C28: =VLOOKUP($A28,'Data Pass Through'!$A:$D,2,FALSE) -> 0.003 | D28: =B28*C28 -> 1.562652 | E28: =$B$8 -> 520.884 | F28: =VLOOKUP($A28,'Data Pass Through'!$A:$D,3,FALSE) -> 0.003 | G28: =E28*F28 -> 1.562652 | H28: =G28-D28 -> 0 | I28: 0 | J28: 0.01577033835
A29: Capacity Based Recovery (CBR) - Applicable for Class B Customers | B29: =B8 -> 520.884 | C29: =VLOOKUP($A29,'Data Pass Through'!$A:$D,2,FALSE) -> 0.0004 | D29: =B29*C29 -> 0.2083536 | E29: =$B$8 -> 520.884 | F29: =VLOOKUP($A29,'Data Pass Through'!$A:$D,3,FALSE) -> 0.0004 | G29: =E29*F29 -> 0.2083536 | H29: 0 | I29: 0 | J29: 0.002102711779
A30: Rural Rate Protection Charge | B30: =B8 -> 520.884 | C30: =VLOOKUP($A30,'Data Pass Through'!$A:$D,2,FALSE) -> 0.0005 | D30: 0.260442 | E30: 520.884 | F30: =VLOOKUP($A30,'Data Pass Through'!$A:$D,3,FALSE) -> 0.0005 | G30: 0.260442 | H30: 0 | I30: 0 | J30: 0.002628389724
A31: Standard Supply Service – Administration Charge (if applicable) | B31: 1 | C31: =VLOOKUP($A31,'Data Pass Through'!$A:$D,2,FALSE) -> 0.25 | D31: =B31*C31 -> 0.25 | E31: 1 | F31: =VLOOKUP($A31,'Data Pass Through'!$A:$D,3,FALSE) -> 0.25 | G31: 0.25 | H31: 0 | I31: 0 | J31: 0.002523008697
A32: Sub-Total: Regulatory | D32: =SUM(D28:D31) -> 2.2814476 | G32: =SUM(G28:G31) -> 2.2814476 | H32: 0 | I32: 0 | J32: 0.02302444855
A33: Total Electricty Charge on Two-Tier RPP | D33: =SUM(D14,D21,D22,D26,D32) -> 104.915392 | G33: =SUM(G14,G21,G22,G26,G32) -> 105.300792 | H33: 0.3854 | I33: 0.00367343621 | J33: 1.062699256
A34: HST | C34: 0.13 | D34: =D33*C34 -> 13.63900096 | F34: =C34 -> 0.13 | G34: =G33*F34 -> 13.68910296 | H34: 0.050102 | I34: 0.00367343621 | J34: 0.1381509033
A35: Total Electricity Charge on Two-Tier RPP (including HST) | D35: =SUM(D33:D34) -> 118.554393 | G35: =SUM(G33:G34) -> 118.989895 | H35: 0.435502 | I35: 0.00367343621 | J35: 1.200850159
A36: Ontario Electricity Rebate (OER) | C36: =IF(($B$4*12)<250000,VLOOKUP(A36,'Data Pass Through'!$A$4:$C$20,2,0),0) -> -0.189 | D36: =D33*C36 -> -19.82900909 | F36: =C36 -> -0.189 | G36: =G33*F36 -> -19.90184969 | H36: -0.0728406 | I36: -0.00367343621 | J36: -0.2008501594
A37: Total Amount on Two-Tier RPP | D37: =SUM(D35:D36) -> 98.72538387 | G37: =SUM(G35:G36) -> 99.08804527 | H37: 0.3626614 | I37: 0.00367343621 | J37: 1

Sheet BI Template_Demand (hidden)
A1: 2024 Bill Impacts (Average Consumption Level) - GSd
A3: Rate Class | B3: =RIGHT(A1,LEN(A1)-FIND("- ",A1,1)-1) -> GSd
A4: Monthly Consumption (kWh) | B4: =IF(COUNTIF(A1,"*Low*")>0,VLOOKUP(B3,'Data Billing Quantities'!$A:$Z,MATCH("Low kWh",'Data Billing Quantities'!4:4,0),FALSE),IF(COUNTIF(A1,"*Typical*")>0,VLOOKUP(B3,'Data Billing Quantities'!$A:$Z,MATCH("Typical kWh",'Data Billing Quantities'!4:4,0),FALSE),IF(COUNTIF(A1,"*Average*")>0,VLOOKUP(B3,'Data Billing Quantities'!$A:$Z,MATCH("Average kWh",'Data Billing Quantities'!4:4,0),FALSE),IF(COUNTIF(A1,"*High*")>0,VLOOKUP(B3,'Data Billing Quantities'!$A:$Z,MATCH("High kWh",'Data Billing Quantities'!4:4,0),FALSE),"error")))) -> 34334
A5: Peak (kW) | B5: =IF(COUNTIF(A1,"*Low*")>0,VLOOKUP(B3,'Data Billing Quantities'!$A:$Z,MATCH("Low kW",'Data Billing Quantities'!4:4,0),FALSE),IF(COUNTIF(A1,"*Typical*")>0,VLOOKUP(B3,'Data Billing Quantities'!$A:$Z,MATCH("Typical kW",'Data Billing Quantities'!4:4,0),FALSE),IF(COUNTIF(A1,"*Average*")>0,VLOOKUP(B3,'Data Billing Quantities'!$A:$Z,MATCH("Average kW",'Data Billing Quantities'!4:4,0),FALSE),IF(COUNTIF(A1,"*High*")>0,VLOOKUP(B3,'Data Billing Quantities'!$A:$Z,MATCH("High kW",'Data Billing Quantities'!4:4,0),FALSE),"error")))) -> 110
A6: Loss factor | B6: =VLOOKUP(B3,'Data Billing Quantities'!A:D,MATCH(A6,'Data Billing Quantities'!4:4,0),FALSE) -> 1.061
A7: Load factor | B7: =B4/(B5*730) -> 0.4275716065
A8: Monthly Consumption (kWh) - Uplifted | B8: =B4*B6 -> 36428.374
A9: Charge determinant | B9: =VLOOKUP(B3,'Data Billing Quantities'!A:D,MATCH(A9,'Data Billing Quantities'!4:4,0),FALSE) -> kW
B11: Volume | C11: Current Rate ($) | D11: Current Charge ($) | E11: Volume | F11: Proposed Rate ($) | G11: Proposed Charge ($) | H11: Change ($) | I11: Change (%) | J11: % of Total Bill
A12: Weighted Average Hourly Spot Price | B12: =B8 -> 36428.374 | C12: =VLOOKUP($A12,'Data Pass Through'!$A:$D,2,FALSE) -> 0.119 | D12: =B12*C12 -> 4334.976506 | E12: =B8 -> 36428.374 | F12: =VLOOKUP($A12,'Data Pass Through'!$A:$D,3,FALSE) -> 0.119 | G12: =E12*F12 -> 4334.976506 | H12: =G12-D12 -> 0 | I12: =IF(ISERROR(H12/ABS(D12)),"N/A",(H12/ABS(D12))) -> 0 | J12: =G12/$G$34 -> 0.538138552
A13: Sub-Total: Energy (WAHSP) | D13: =SUM(D12:D12) -> 4334.976506 | G13: =SUM(G12:G12) -> 4334.976506 | H13: =G13-D13 -> 0 | I13: 0 | J13: 0.538138552
A14: Service Charge | B14: 1 | C14: =VLOOKUP($B$3,'Data Current Rates'!$A:$AO,MATCH($A14,CurrentHeader,0),FALSE) -> 99.8 | D14: =B14*C14 -> 99.8 | E14: =B14 -> 1 | F14: =VLOOKUP($B$3,'Data Proposed Rates'!$A:$AZ,MATCH($A14,ProposedHeader,0),FALSE) -> 103.48 | G14: =E14*F14 -> 103.48 | H14: 3.68 | I14: 0.03687374749 | J14: 0.01284587755
A15: Fixed Base Rate Adjustment to Recover Past Tax Amounts | B15: 1 | C15: =VLOOKUP($B$3,'Data Current Rates'!$A:$AO,MATCH($A15,CurrentHeader,0),FALSE) -> 4.43 | D15: =B15*C15 -> 4.43 | E15: 1 | F15: =VLOOKUP($B$3,'Data Proposed Rates'!$A:$AZ,MATCH($A15,ProposedHeader,0),FALSE) -> 0 | G15: =E15*F15 -> 0 | H15: -4.43 | I15: -1 | J15: 0
A16: Distribution Volumetric Charge | B16: =IF($B$9="kWh",$B$4,$B$5) -> 110 | C16: =VLOOKUP($B$3,'Data Current Rates'!$A:$AO,MATCH($A16,CurrentHeader,0),FALSE) -> 18.4174 | D16: =B16*C16 -> 2025.914 | E16: =$B$5 -> 110 | F16: =VLOOKUP($B$3,'Data Proposed Rates'!$A:$AZ,MATCH($A16,ProposedHeader,0),FALSE) -> 19.2389 | G16: 2116.279 | H16: 90.365 | I16: =IF(ISERROR(H16/ABS(D16)),"N/A",(H16/ABS(D16))) -> 0.04460455873 | J16: 0.2627122235
A17: Volumetric Base Rate Adjustment to Recover Past Tax Amounts | B17: =IF($B$9="kWh",$B$4,$B$5) -> 110 | C17: =VLOOKUP($B$3,'Data Current Rates'!$A:$AO,MATCH($A17,CurrentHeader,0),FALSE) -> 0.8111 | D17: 89.221 | E17: =$B$5 -> 110 | F17: =VLOOKUP($B$3,'Data Proposed Rates'!$A:$AZ,MATCH($A17,ProposedHeader,0),FALSE) -> 0 | G17: 0 | H17: -89.221 | I17: =IF(ISERROR(H17/ABS(D17)),"N/A",(H17/ABS(D17))) -> -1 | J17: 0
A18: Group 1 Volumetric DVA Rider (General) | B18: 110 | C18: =VLOOKUP($B$3,'Data Current Rates'!$A:$AO,MATCH($A18,CurrentHeader,0),FALSE) -> -0.0509 | D18: =B18*C18 -> -5.599 | E18: 110 | F18: =VLOOKUP($B$3,'Data Proposed Rates'!$A:$AZ,MATCH($A18,ProposedHeader,0),FALSE) -> -0.0509 | G18: -5.599 | H18: 0 | I18: 0 | J18: -0.0006950528448
A19: Group 1 Volumetric Deferral/Variance Account Rider (Sub-Account RSVA Wholesale Market Service Charge & RSVA Power) | B19: 110 | C19: =VLOOKUP($B$3,'Data Current Rates'!$A:$AO,MATCH($A19,CurrentHeader,0),FALSE) -> -0.071 | D19: -7.81 | E19: 110 | F19: =VLOOKUP($B$3,'Data Proposed Rates'!$A:$AZ,MATCH($A19,ProposedHeader,0),FALSE) -> -0.071 | G19: -7.81 | H19: 0 | I19: 0 | J19: -0.0009695236146
A20: Group 1 Volumetric Deferral/Variance Account Rider (Sub-Account Global Adjustment) | B20: =B4 -> 34334 | C20: =VLOOKUP($B$3,'Data Current Rates'!$A:$AO,MATCH($A20,CurrentHeader,0),FALSE) -> -0.0007 | D20: -24.0338 | E20: =B4 -> 34334 | F20: =VLOOKUP($B$3,'Data Proposed Rates'!$A:$AZ,MATCH($A20,ProposedHeader,0),FALSE) -> -0.0007 | G20: -24.0338 | H20: 0 | I20: 0 | J20: -0.002983525819
A21: Group 2 Volumetric DVA Rider | B21: 110 | C21: =VLOOKUP($B$3,'Data Current Rates'!$A:$AO,MATCH($A21,CurrentHeader,0),FALSE) -> -0.0466 | D21: -5.126 | E21: =B5 -> 110 | F21: =VLOOKUP($B$3,'Data Proposed Rates'!$A:$AZ,MATCH($A21,ProposedHeader,0),FALSE) -> -0.0466 | G21: =E21*F21 -> -5.126 | H21: =G21-D21 -> 0 | I21: =IF(ISERROR(H21/ABS(D21)),"N/A",(H21/ABS(D21))) -> 0 | J21: -0.0006363352175
A22: Sub-Total: Distribution | D22: =SUM(INDIRECT("D14:D"&ROW()-1)) -> 2176.7962 | G22: =SUM(INDIRECT("g14:g"&ROW()-1)) -> 2177.1902 | H22: 0.394 | I22: 0.0001809999485 | J22: 0.2702736636
A23: Retail Transmission Rate – Network Service Rate | B23: =IF($B$9="kWh",$B$4,$B$5) -> 110 | C23: =VLOOKUP($B$3,'Data Current Rates'!$A:$AO,MATCH($A23,CurrentHeader,0),FALSE) -> 2.442 | D23: =B23*C23 -> 268.62 | E23: 110 | F23: =VLOOKUP($B$3,'Data Proposed Rates'!$A:$AZ,MATCH($A23,ProposedHeader,0),FALSE) -> 2.442 | G23: =E23*F23 -> 268.62 | H23: 0 | I23: 0 | J23: 0.03334615024
A24: Retail Transmission Rate – Line and Transformation Connection Service Rate | B24: =IF($B$9="kWh",$B$4,$B$5) -> 110 | C24: =VLOOKUP($B$3,'Data Current Rates'!$A:$AO,MATCH($A24,CurrentHeader,0),FALSE) -> 1.8696 | D24: =B24*C24 -> 205.656 | E24: 110 | F24: =VLOOKUP($B$3,'Data Proposed Rates'!$A:$AZ,MATCH($A24,ProposedHeader,0),FALSE) -> 1.8696 | G24: =E24*F24 -> 205.656 | H24: 0 | I24: 0 | J24: 0.02552987817
A25: Sub-Total: Retail Transmission | D25: =SUM(D23:D24) -> 474.276 | G25: =SUM(G23:G24) -> 474.276 | H25: 0 | I25: 0 | J25: 0.0588760284
A26: Sub-Total: Delivery | D26: =D22+D25 -> 2651.0722 | G26: =G22+G25 -> 2651.4662 | H26: 0.394 | I26: 0.0001486191134 | J26: 0.329149692
A27: Wholesale Market Service Rate (WMS) - not including CBR | B27: =$B$8 -> 36428.374 | C27: =VLOOKUP($A27,'Data Pass Through'!$A:$D,2,FALSE) -> 0.003 | D27: =B27*C27 -> 109.285122 | E27: =$B$8 -> 36428.374 | F27: =VLOOKUP($A27,'Data Pass Through'!$A:$D,3,FALSE) -> 0.003 | G27: =E27*F27 -> 109.285122 | H27: 0 | I27: 0 | J27: 0.01356651812
A28: Capacity Based Recovery (CBR) - Applicable for Class B Customers | B28: =$B$8 -> 36428.374 | C28: =VLOOKUP($A28,'Data Pass Through'!$A:$D,2,FALSE) -> 0.0004 | D28: =B28*C28 -> 14.5713496 | E28: =$B$8 -> 36428.374 | F28: =VLOOKUP($A28,'Data Pass Through'!$A:$D,3,FALSE) -> 0.0004 | G28: =E28*F28 -> 14.5713496 | H28: =G28-D28 -> 0 | I28: 0 | J28: 0.001808869082
A29: Rural Rate Protection Charge | B29: =$B$8 -> 36428.374 | C29: =VLOOKUP($A29,'Data Pass Through'!$A:$D,2,FALSE) -> 0.0005 | D29: =B29*C29 -> 18.214187 | E29: =$B$8 -> 36428.374 | F29: =VLOOKUP($A29,'Data Pass Through'!$A:$D,3,FALSE) -> 0.0005 | G29: =E29*F29 -> 18.214187 | H29: =G29-D29 -> 0 | I29: 0 | J29: 0.002261086353
A30: Standard Supply Service – Administration Charge (if applicable) | B30: 1 | C30: =VLOOKUP($A30,'Data Pass Through'!$A:$D,2,FALSE) -> 0.25 | D30: =B30*C30 -> 0.25 | E30: 1 | F30: =VLOOKUP($A30,'Data Pass Through'!$A:$D,3,FALSE) -> 0.25 | G30: =E30*F30 -> 0.25 | H30: 0 | I30: 0 | J30: 3.103468677e-05
A31: Sub-Total: Regulatory | D31: =SUM(D27:D30) -> 142.3206586 | G31: =SUM(G27:G30) -> 142.3206586 | H31: 0 | I31: 0 | J31: 0.01766750824
A32: Total Electricity Charge on Two-Tier RPP (before HST) | D32: =SUM(D13,D22,D25,D31) -> 7128.369365 | G32: =SUM(G13,G22,G25,G31) -> 7128.763365 | H32: 0.394 | I32: 5.527210781e-05 | J32: 0.8849557522
A33: HST | C33: 0.13 | D33: =D32*C33 -> 926.6880174 | F33: =C33 -> 0.13 | G33: =G32*F33 -> 926.7392374 | H33: 0.05122 | I33: 5.527210781e-05 | J33: 0.1150442478
A34: Total Amount on WAHSP | D34: =SUM(D32:D33) -> 8055.057382 | G34: =SUM(G32:G33) -> 8055.502602 | H34: 0.44522 | I34: 5.527210781e-05 | J34: 1

Sheet BI_UR_Low
A1: 2024 Bill Impacts (Low Consumption Level) - UR
A3: Rate Class | B3: =RIGHT(A1,LEN(A1)-FIND("- ",A1,1)-1) -> UR
A4: Monthly Consumption (kWh) | B4: =IF(COUNTIF(A1,"*Low*")>0,VLOOKUP(B3,'Data Billing Quantities'!$A:$Z,MATCH("Low kWh",'Data Billing Quantities'!4:4,0),FALSE),IF(COUNTIF(A1,"*Typical*")>0,VLOOKUP(B3,'Data Billing Quantities'!$A:$Z,MATCH("Typical kWh",'Data Billing Quantities'!4:4,0),FALSE),IF(COUNTIF(A1,"*Average*")>0,VLOOKUP(B3,'Data Billing Quantities'!$A:$Z,MATCH("Average kWh",'Data Billing Quantities'!4:4,0),FALSE),IF(COUNTIF(A1,"*High*")>0,VLOOKUP(B3,'Data Billing Quantities'!$A:$Z,MATCH("High kWh",'Data Billing Quantities'!4:4,0),FALSE),"error")))) -> 340
A5: Peak (kW) | B5: =IF(COUNTIF(A1,"*Low*")>0,VLOOKUP(B3,'Data Billing Quantities'!$A:$Z,MATCH("Low kW",'Data Billing Quantities'!4:4,0),FALSE),IF(COUNTIF(A1,"*Typical*")>0,VLOOKUP(B3,'Data Billing Quantities'!$A:$Z,MATCH("Typical kW",'Data Billing Quantities'!4:4,0),FALSE),IF(COUNTIF(A1,"*Average*")>0,VLOOKUP(B3,'Data Billing Quantities'!$A:$Z,MATCH("Average kW",'Data Billing Quantities'!4:4,0),FALSE),IF(COUNTIF(A1,"*High*")>0,VLOOKUP(B3,'Data Billing Quantities'!$A:$Z,MATCH("High kW",'Data Billing Quantities'!4:4,0),FALSE),"error")))) -> 0
A6: Loss factor | B6: =VLOOKUP(B3,'Data Billing Quantities'!A:D,MATCH(A6,'Data Billing Quantities'!4:4,0),FALSE) -> 1.057
A7: Commodity Threshold | B7: =VLOOKUP(B3,'Data Billing Quantities'!A:D,MATCH(A7,'Data Billing Quantities'!4:4,0),FALSE) -> 600
A8: Monthly Consumption (kWh) - Uplifted | B8: =B4*B6 -> 359.38
A9: Charge determinant | B9: =VLOOKUP(B3,'Data Billing Quantities'!A:D,MATCH(A9,'Data Billing Quantities'!4:4,0),FALSE) -> kWh
B11: Volume | C11: Current Rate ($) | D11: Current Charge ($) | E11: Volume | F11: Proposed Rate ($) | G11: Proposed Charge ($) | H11: Change ($) | I11: Change (%) | J11: % of Total Bill on RPP | K11: % of Total Bill
A12: Energy First Tier | B12: =IF(B4>B7,B7,B4) -> 340 | C12: =VLOOKUP($A12,'Data Pass Through'!$A:$D,2,FALSE) -> 0.098 | D12: =B12*C12 -> 33.32 | E12: =B12 -> 340 | F12: =VLOOKUP($A12,'Data Pass Through'!$A:$D,3,FALSE) -> 0.098 | G12: =E12*F12 -> 33.32 | H12: =G12-D12 -> 0 | I12: =IF(ISERROR(H12/ABS(D12)),"N/A",(H12/ABS(D12))) -> 0 | J12: =G12/$G$47 -> 0.4369885048
A13: Energy Second Tier | B13: =IF(B4>B7,(B4)-B7,0) -> 0 | C13: =VLOOKUP($A13,'Data Pass Through'!$A:$D,2,FALSE) -> 0.115 | D13: =B13*C13 -> 0 | E13: =B13 -> 0 | F13: =VLOOKUP($A13,'Data Pass Through'!$A:$D,3,FALSE) -> 0.115 | G13: =E13*F13 -> 0 | H13: 0 | I13: N/A | J13: =G13/$G$47 -> 0
A14: Sub-Total: Energy (RPP Tiered) | D14: =SUM(D12:D13) -> 33.32 | G14: =SUM(G12:G13) -> 33.32 | H14: 0 | I14: 0 | J14: =G14/$G$47 -> 0.4369885048
A15: TOU-Off Peak | B15: =B$4*VLOOKUP($B$3,'Data Billing Quantities'!$A:$O,MATCH(BI_UR_Low!$A15,'Data Billing Quantities'!$4:$4,0),FALSE) -> 217.6 | C15: =VLOOKUP($A15,'Data Pass Through'!$A:$D,2,FALSE) -> 0.082 | D15: =B15*C15 -> 17.8432 | E15: 217.6 | F15: =VLOOKUP($A15,'Data Pass Through'!$A:$D,3,FALSE) -> 0.082 | G15: =E15*F15 -> 17.8432 | H15: 0 | I15: 0 | K15: =G15/$G$52 -> 0.2285185542
A16: TOU-Mid Peak | B16: =B$4*VLOOKUP($B$3,'Data Billing Quantities'!$A:$O,MATCH(BI_UR_Low!$A16,'Data Billing Quantities'!$4:$4,0),FALSE) -> 61.2 | C16: =VLOOKUP($A16,'Data Pass Through'!$A:$D,2,FALSE) -> 0.113 | D16: =B16*C16 -> 6.9156 | E16: 61.2 | F16: =VLOOKUP($A16,'Data Pass Through'!$A:$D,3,FALSE) -> 0.113 | G16: =E16*F16 -> 6.9156 | H16: 0 | I16: 0 | K16: 0.08856835731
A17: TOU-On Peak | B17: =B$4*VLOOKUP($B$3,'Data Billing Quantities'!$A:$O,MATCH(BI_UR_Low!$A17,'Data Billing Quantities'!$4:$4,0),FALSE) -> 61.2 | C17: =VLOOKUP($A17,'Data Pass Through'!$A:$D,2,FALSE) -> 0.17 | D17: =B17*C17 -> 10.404 | E17: 61.2 | F17: =VLOOKUP($A17,'Data Pass Through'!$A:$D,3,FALSE) -> 0.17 | G17: =E17*F17 -> 10.404 | H17: 0 | I17: 0 | K17: 0.1332444314
A18: Sub-Total: Energy (RPP TOU) | D18: =SUM(D15:D17) -> 35.1628 | G18: =SUM(G15:G17) -> 35.1628 | H18: 0 | I18: 0 | J18: =G18/$G$47 -> 0.4611566445 | K18: 0.4503313428
A19: Service Charge | B19: 1 | C19: =VLOOKUP($B$3,'Data Current Rates'!$A:$AN,MATCH(BI_UR_Low!$A19,CurrentHeader,0),FALSE) -> 35.88 | D19: =B19*C19 -> 35.88 | E19: 1 | F19: =VLOOKUP($B$3,'Data Proposed Rates'!$A:$AZ,MATCH(BI_UR_Low!$A19,ProposedHeader,0),FALSE) -> 37.48 | G19: =E19*F19 -> 37.48 | H19: 1.6 | I19: 0.04459308807 | J19: 0.4915464934 | K19: 0.4800078131
A20: Fixed Base Rate Adjustment to Recover Past Tax Amounts | B20: 1 | C20: =VLOOKUP($B$3,'Data Current Rates'!$A:$AN,MATCH(BI_UR_Low!$A20,CurrentHeader,0),FALSE) -> 0.8 | D20: 0.8 | E20: 1 | F20: =VLOOKUP($B$3,'Data Proposed Rates'!$A:$AZ,MATCH(BI_UR_Low!$A20,ProposedHeader,0),FALSE) -> 0 | G20: 0 | H20: -0.8 | I20: -1 | J20: 0 | K20: 0
A21: Group 2 Fixed DVA Rider | B21: 1 | C21: =VLOOKUP($B$3,'Data Current Rates'!$A:$AN,MATCH(BI_UR_Low!$A21,CurrentHeader,0),FALSE) -> -0.08 | D21: -0.08 | E21: 1 | F21: =VLOOKUP($B$3,'Data Proposed Rates'!$A:$AZ,MATCH(BI_UR_Low!$A21,ProposedHeader,0),FALSE) -> -0.08 | G21: -0.08 | H21: 0 | I21: 0 | J21: -0.001049192088 | K21: -0.001024563102
A22: Distribution Volumetric Charge | B22: =IF($B$9="kWh",$B$4,$B$5) -> 340 | C22: =VLOOKUP($B$3,'Data Current Rates'!$A:$AN,MATCH(BI_UR_Low!$A22,CurrentHeader,0),FALSE) -> 0 | D22: 0 | E22: 340 | F22: =VLOOKUP($B$3,'Data Proposed Rates'!$A:$AZ,MATCH(BI_UR_Low!$A22,ProposedHeader,0),FALSE) -> 0 | G22: 0 | H22: 0 | I22: N/A | J22: 0 | K22: 0
A23: Volumetric Base Rate Adjustment to Recover Past Tax Amounts | B23: =IF($B$9="kWh",$B$4,$B$5) -> 340 | C23: =VLOOKUP($B$3,'Data Current Rates'!$A:$AN,MATCH(BI_UR_Low!$A23,CurrentHeader,0),FALSE) -> 0 | D23: 0 | E23: 340 | F23: =VLOOKUP($B$3,'Data Proposed Rates'!$A:$AZ,MATCH(BI_UR_Low!$A23,ProposedHeader,0),FALSE) -> 0 | G23: 0 | H23: 0 | I23: N/A | J23: 0 | K23: 0
A24: Group 1 Volumetric DVA Rider (General) | B24: 340 | C24: =VLOOKUP($B$3,'Data Current Rates'!$A:$AN,MATCH(BI_UR_Low!$A24,CurrentHeader,0),FALSE) -> -0.0004 | D24: -0.136 | E24: =B4 -> 340 | F24: =VLOOKUP($B$3,'Data Proposed Rates'!$A:$AZ,MATCH(BI_UR_Low!$A24,ProposedHeader,0),FALSE) -> -0.0004 | G24: -0.136 | H24: 0 | I24: 0 | J24: -0.00178362655 | K24: -0.001741757273
A25: Group 2 Volumetric DVA Rider | B25: 340 | C25: =VLOOKUP($B$3,'Data Current Rates'!$A:$AN,MATCH(BI_UR_Low!$A25,CurrentHeader,0),FALSE) -> 0 | D25: 0 | E25: =B4 -> 340 | F25: =VLOOKUP($B$3,'Data Proposed Rates'!$A:$AZ,MATCH(BI_UR_Low!$A25,ProposedHeader,0),FALSE) -> 0 | G25: 0 | H25: 0 | I25: N/A | J25: 0 | K25: 0
A26: Fair Hydro Plan - Distribution Rate Protection Savings* | D26: =IF(AND(B3<>"R1",B3<>"R2"),0,IF(VLOOKUP($A26,'Data Pass Through'!$A:$D,2,FALSE)=0,0,IF(SUM(D19:D20,D22:D23)<VLOOKUP($A26,'Data Pass Through'!$A:$D,2,FALSE),0,VLOOKUP($A26,'Data Pass Through'!$A:$D,2,FALSE)-SUM(D19:D20,D22:D23)))) -> 0 | G26: =IF(AND(B3<>"R1",B3<>"R2"),0,IF(VLOOKUP($A26,'Data Pass Through'!$A:$D,2,FALSE)=0,0,IF(SUM(G19:G20,G22:G23)<VLOOKUP($A26,'Data Pass Through'!$A:$D,2,FALSE),0,VLOOKUP($A26,'Data Pass Through'!$A:$D,2,FALSE)-SUM(G19:G20,G22:G23)))) -> 0 | H26: 0 | I26: N/A | J26: 0 | K26: 0
A27: Sub-Total: Distribution (excluding pass through) | D27: =SUM(INDIRECT("D19:D"&ROW()-1)) -> 36.464 | G27: =SUM(INDIRECT("g19:g"&ROW()-1)) -> 37.264 | H27: =G27-D27 -> 0.8 | I27: 0.02193944713 | J27: 0.4887136747 | K27: 0.4772414927
A28: Smart Metering Entity Charge | B28: 1 | C28: =VLOOKUP($A28,'Data Pass Through'!$A:$D,2,FALSE) -> 0.57 | D28: =B28*C28 -> 0.57 | E28: 1 | F28: =VLOOKUP($A28,'Data Pass Through'!$A:$D,3,FALSE) -> 0.57 | G28: =E28*F28 -> 0.57 | H28: 0 | I28: 0 | J28: 0.007475493629 | K28: 0.007300012098
A29: Line Losses on Cost of Power (based on two-tier RPP prices) | B29: =B8-B4 -> 19.38 | C29: =IF(B4>B7,C13,C12) -> 0.098 | D29: =B29*C29 -> 1.89924 | E29: 19.38 | F29: =IF(B4>B7,F13,F12) -> 0.098 | G29: =E29*F29 -> 1.89924 | H29: 0 | I29: 0 | J29: 0.02490834477 | K29: 0.02432364031
A30: Line Losses on Cost of Power (based on TOU prices) | B30: =B8-B4 -> 19.38 | C30: =VLOOKUP($B$3,'Data Billing Quantities'!$A:$O,MATCH(BI_UR_Low!$A15,'Data Billing Quantities'!$4:$4,0),FALSE)*C15+VLOOKUP($B$3,'Data Billing Quantities'!$A:$O,MATCH(BI_UR_Low!$A16,'Data Billing Quantities'!$4:$4,0),FALSE)*C16+VLOOKUP($B$3,'Data Billing Quantities'!$A:$O,MATCH(BI_UR_Low!$A17,'Data Billing Quantities'!$4:$4,0),FALSE)*C17 -> 0.10342 | D30: =B30*C30 -> 2.0042796 | E30: 19.38 | F30: =VLOOKUP($B$3,'Data Billing Quantities'!$A:$O,MATCH(BI_UR_Low!$A15,'Data Billing Quantities'!$4:$4,0),FALSE)*F15+VLOOKUP($B$3,'Data Billing Quantities'!$A:$O,MATCH(BI_UR_Low!$A16,'Data Billing Quantities'!$4:$4,0),FALSE)*F16+VLOOKUP($B$3,'Data Billing Quantities'!$A:$O,MATCH(BI_UR_Low!$A17,'Data Billing Quantities'!$4:$4,0),FALSE)*F17 -> 0.10342 | G30: =E30*F30 -> 2.0042796 | H30: 0 | I30: 0 | J30: 0.02628592874 | K30: 0.02566888654
A31: Sub-Total: Distribution (based on two-tier RPP prices) | D31: =SUM(D27,D28:D29) -> 38.93324 | G31: =SUM(G27,G28:G29) -> 39.73324 | H31: 0.8 | I31: 0.02054799446 | J31: 0.5210975131 | K31: 0.5088651451
A32: Sub-Total: Distribution (based on TOU prices) | D32: =SUM(D27,D28,D30) -> 39.0382796 | G32: =SUM(G27,G28,G30) -> 39.8382796 | H32: 0.8 | I32: 0.02049270634 | J32: 0.5224750971 | K32: 0.5102103913
A33: Retail Transmission Rate – Network Service Rate | B33: =B8 -> 359.38 | C33: =VLOOKUP($B$3,'Data Current Rates'!$A:$AN,MATCH(BI_UR_Low!$A33,CurrentHeader,0),FALSE) -> 0.0102 | D33: =B33*C33 -> 3.665676 | E33: 359.38 | F33: =VLOOKUP($B$3,'Data Proposed Rates'!$A:$AZ,MATCH(BI_UR_Low!$A33,ProposedHeader,0),FALSE) -> 0.0102 | G33: =E33*F33 -> 3.665676 | H33: =G33-D33 -> 0 | I33: 0 | J33: 0.04807497822 | K33: 0.04694645465
A34: Retail Transmission Rate – Line and Transformation Connection Service Rate | B34: =B8 -> 359.38 | C34: =VLOOKUP($B$3,'Data Current Rates'!$A:$AN,MATCH(BI_UR_Low!$A34,CurrentHeader,0),FALSE) -> 0.0074 | D34: =B34*C34 -> 2.659412 | E34: 359.38 | F34: =VLOOKUP($B$3,'Data Proposed Rates'!$A:$AZ,MATCH(BI_UR_Low!$A34,ProposedHeader,0),FALSE) -> 0.0074 | G34: =E34*F34 -> 2.659412 | H34: =G34-D34 -> 0 | I34: 0 | J34: 0.03487792537 | K34: 0.03405919259
A35: Sub-Total: Retail Transmission | D35: =SUM(D33:D34) -> 6.325088 | G35: =SUM(G33:G34) -> 6.325088 | H35: =G35-D35 -> 0 | I35: 0 | J35: 0.08295290359 | K35: 0.08100564723
A36: Sub-Total: Delivery (based on two-tier RPP prices) | D36: =D31+D35 -> 45.258328 | G36: =G31+G35 -> 46.058328 | H36: =G36-D36 -> 0.8 | I36: 0.01767630479 | J36: 0.6040504167 | K36: 0.5898707923
A37: Sub-Total: Delivery (based on TOU prices) | D37: =D32+D35 -> 45.3633676 | G37: =G32+G35 -> 46.1633676 | H37: =G37-D37 -> 0.8 | I37: 0.01763537502 | J37: 0.6054280007 | K37: 0.5912160386
A38: Wholesale Market Service Rate (WMS) - not including CBR | B38: =B8 -> 359.38 | C38: =VLOOKUP($A38,'Data Pass Through'!$A:$D,2,FALSE) -> 0.003 | D38: =B38*C38 -> 1.07814 | E38: =$B$8 -> 359.38 | F38: =VLOOKUP($A38,'Data Pass Through'!$A:$D,3,FALSE) -> 0.003 | G38: =E38*F38 -> 1.07814 | H38: 0 | I38: 0 | J38: 0.01413969948 | K38: 0.01380778078
A39: Capacity Based Recovery (CBR) - Applicable for Class B Customers | B39: =B8 -> 359.38 | C39: =VLOOKUP($A39,'Data Pass Through'!$A:$D,2,FALSE) -> 0.0004 | D39: =B39*C39 -> 0.143752 | E39: =$B$8 -> 359.38 | F39: =VLOOKUP($A39,'Data Pass Through'!$A:$D,3,FALSE) -> 0.0004 | G39: =E39*F39 -> 0.143752 | H39: 0 | I39: 0 | J39: 0.001885293263 | K39: 0.001841037437
A40: Rural Rate Protection Charge | B40: =B8 -> 359.38 | C40: =VLOOKUP($A40,'Data Pass Through'!$A:$D,2,FALSE) -> 0.0005 | D40: 0.17969 | E40: 359.38 | F40: =VLOOKUP($A40,'Data Pass Through'!$A:$D,3,FALSE) -> 0.0005 | G40: 0.17969 | H40: 0 | I40: 0 | J40: 0.002356616579 | K40: 0.002301296796
A41: Standard Supply Service – Administration Charge (if applicable) | B41: 1 | C41: =VLOOKUP($A41,'Data Pass Through'!$A:$D,2,FALSE) -> 0.25 | D41: =B41*C41 -> 0.25 | E41: 1 | F41: =VLOOKUP($A41,'Data Pass Through'!$A:$D,3,FALSE) -> 0.25 | G41: 0.25 | H41: 0 | I41: 0 | J41: 0.003278725276 | K41: 0.003201759692
A42: Sub-Total: Regulatory | D42: =SUM(D38:D41) -> 1.651582 | G42: =SUM(G38:G41) -> 1.651582 | H42: 0 | I42: 0 | J42: 0.0216603346 | K42: 0.0211518747
A43: Total Electricty Charge on Two-Tier RPP | D43: =SUM(D14,D27,D28,D29,D35,D42) -> 80.22991 | G43: =SUM(G14,G27,G28,G29,G35,G42) -> 81.02991 | H43: 0.8 | I43: 0.009971343605 | J43: 1.062699256
A44: HST | C44: 0.13 | D44: =D43*C44 -> 10.4298883 | F44: =C44 -> 0.13 | G44: =G43*F44 -> 10.5338883 | H44: 0.104 | I44: 0.009971343605 | J44: 0.1381509033
A45: Total Electricity Charge on Two-Tier RPP (including HST) | D45: =SUM(D43:D44) -> 90.6597983 | G45: =SUM(G43:G44) -> 91.5637983 | H45: 0.904 | I45: 0.009971343605 | J45: 1.200850159
A46: Ontario Electricity Rebate (OER) | C46: =IF(($B$4*12)<250000,VLOOKUP(A46,'Data Pass Through'!$A$4:$C$20,2,0),0) -> -0.189 | D46: =D43*C46 -> -15.16345299 | F46: =C46 -> -0.189 | G46: =G43*F46 -> -15.31465299 | H46: -0.1512 | I46: -0.009971343605 | J46: -0.2008501594
A47: Total Amount on Two-Tier RPP | D47: =SUM(D45:D46) -> 75.49634531 | G47: =SUM(G45:G46) -> 76.24914531 | H47: 0.7528 | I47: 0.009971343605 | J47: 1
A48: Total Electricty Charge on TOU (before HST) | D48: =SUM(D18,D27,D28,D30,D35,D42) -> 82.1777496 | G48: =SUM(G18,G27,G28,G30,G35,G42) -> 82.9777496 | H48: 0.8 | I48: 0.009734995226 | K48: =G48/$G$52 -> 1.062699256
A49: HST | C49: 0.13 | D49: =D48*C49 -> 10.68310745 | F49: =C49 -> 0.13 | G49: =G48*F49 -> 10.78710745 | H49: 0.104 | I49: 0.009734995226 | K49: =G49/$G$52 -> 0.1381509033
A50: Total Electricity Charge on TOU (including HST) | D50: =SUM(D48:D49) -> 92.86085705 | G50: =SUM(G48:G49) -> 93.76485705 | H50: 0.904 | I50: 0.009734995226 | K50: =G50/$G$52 -> 1.200850159
A51: Ontario Electricity Rebate (OER) | C51: =IF(($B$4*12)<250000,VLOOKUP(A51,'Data Pass Through'!$A$4:$C$20,2,0),0) -> -0.189 | D51: =D48*C51 -> -15.53159467 | F51: =C51 -> -0.189 | G51: =G48*F51 -> -15.68279467 | H51: -0.1512 | I51: -0.009734995226 | K51: =G51/$G$52 -> -0.2008501594
A52: Total Amount on TOU | D52: =SUM(D50:D51) -> 77.32926237 | G52: =SUM(G50:G51) -> 78.08206237 | H52: 0.7528 | I52: 0.009734995226 | K52: =G52/$G$52 -> 1
A53: * Distribution rate protection applies to R1 and R2 customers

Sheet BI_UR_Typical
A1: 2024 Bill Impacts (Typical Consumption Level) - UR
A3: Rate Class | B3: =RIGHT(A1,LEN(A1)-FIND("- ",A1,1)-1) -> UR
A4: Monthly Consumption (kWh) | B4: =IF(COUNTIF(A1,"*Low*")>0,VLOOKUP(B3,'Data Billing Quantities'!$A:$Z,MATCH("Low kWh",'Data Billing Quantities'!4:4,0),FALSE),IF(COUNTIF(A1,"*Typical*")>0,VLOOKUP(B3,'Data Billing Quantities'!$A:$Z,MATCH("Typical kWh",'Data Billing Quantities'!4:4,0),FALSE),IF(COUNTIF(A1,"*Average*")>0,VLOOKUP(B3,'Data Billing Quantities'!$A:$Z,MATCH("Average kWh",'Data Billing Quantities'!4:4,0),FALSE),IF(COUNTIF(A1,"*High*")>0,VLOOKUP(B3,'Data Billing Quantities'!$A:$Z,MATCH("High kWh",'Data Billing Quantities'!4:4,0),FALSE),"error")))) -> 750
A5: Peak (kW) | B5: =IF(COUNTIF(A1,"*Low*")>0,VLOOKUP(B3,'Data Billing Quantities'!$A:$Z,MATCH("Low kW",'Data Billing Quantities'!4:4,0),FALSE),IF(COUNTIF(A1,"*Typical*")>0,VLOOKUP(B3,'Data Billing Quantities'!$A:$Z,MATCH("Typical kW",'Data Billing Quantities'!4:4,0),FALSE),IF(COUNTIF(A1,"*Average*")>0,VLOOKUP(B3,'Data Billing Quantities'!$A:$Z,MATCH("Average kW",'Data Billing Quantities'!4:4,0),FALSE),IF(COUNTIF(A1,"*High*")>0,VLOOKUP(B3,'Data Billing Quantities'!$A:$Z,MATCH("High kW",'Data Billing Quantities'!4:4,0),FALSE),"error")))) -> 0
A6: Loss factor | B6: =VLOOKUP(B3,'Data Billing Quantities'!A:D,MATCH(A6,'Data Billing Quantities'!4:4,0),FALSE) -> 1.057
A7: Commodity Threshold | B7: =VLOOKUP(B3,'Data Billing Quantities'!A:D,MATCH(A7,'Data Billing Quantities'!4:4,0),FALSE) -> 600
A8: Monthly Consumption (kWh) - Uplifted | B8: =B4*B6 -> 792.75
A9: Charge determinant | B9: =VLOOKUP(B3,'Data Billing Quantities'!A:D,MATCH(A9,'Data Billing Quantities'!4:4,0),FALSE) -> kWh
B11: Volume | C11: Current Rate ($) | D11: Current Charge ($) | E11: Volume | F11: Proposed Rate ($) | G11: Proposed Charge ($) | H11: Change ($) | I11: Change (%) | J11: % of Total Bill on RPP | K11: % of Total Bill
A12: Energy First Tier | B12: =IF(B4>B7,B7,B4) -> 600 | C12: =VLOOKUP($A12,'Data Pass Through'!$A:$D,2,FALSE) -> 0.098 | D12: =B12*C12 -> 58.8 | E12: =B12 -> 600 | F12: =VLOOKUP($A12,'Data Pass Through'!$A:$D,3,FALSE) -> 0.098 | G12: =E12*F12 -> 58.8 | H12: =G12-D12 -> 0 | I12: =IF(ISERROR(H12/ABS(D12)),"N/A",(H12/ABS(D12))) -> 0 | J12: =G12/$G$47 -> 0.4596964899
A13: Energy Second Tier | B13: =IF(B4>B7,(B4)-B7,0) -> 150 | C13: =VLOOKUP($A13,'Data Pass Through'!$A:$D,2,FALSE) -> 0.115 | D13: =B13*C13 -> 17.25 | E13: =B13 -> 150 | F13: =VLOOKUP($A13,'Data Pass Through'!$A:$D,3,FALSE) -> 0.115 | G13: =E13*F13 -> 17.25 | H13: 0 | I13: 0 | J13: =G13/$G$47 -> 0.1348599396
A14: Sub-Total: Energy (RPP Tiered) | D14: =SUM(D12:D13) -> 76.05 | G14: =SUM(G12:G13) -> 76.05 | H14: 0 | I14: 0 | J14: =G14/$G$47 -> 0.5945564295
A15: TOU-Off Peak | B15: =B$4*VLOOKUP($B$3,'Data Billing Quantities'!$A:$O,MATCH(BI_UR_Typical!$A15,'Data Billing Quantities'!$4:$4,0),FALSE) -> 480 | C15: =VLOOKUP($A15,'Data Pass Through'!$A:$D,2,FALSE) -> 0.082 | D15: =B15*C15 -> 39.36 | E15: 480 | F15: =VLOOKUP($A15,'Data Pass Through'!$A:$D,3,FALSE) -> 0.082 | G15: =E15*F15 -> 39.36 | H15: 0 | I15: 0 | K15: =G15/$G$52 -> 0.3054234533
A16: TOU-Mid Peak | B16: =B$4*VLOOKUP($B$3,'Data Billing Quantities'!$A:$O,MATCH(BI_UR_Typical!$A16,'Data Billing Quantities'!$4:$4,0),FALSE) -> 135 | C16: =VLOOKUP($A16,'Data Pass Through'!$A:$D,2,FALSE) -> 0.113 | D16: =B16*C16 -> 15.255 | E16: 135 | F16: =VLOOKUP($A16,'Data Pass Through'!$A:$D,3,FALSE) -> 0.113 | G16: =E16*F16 -> 15.255 | H16: 0 | I16: 0 | K16: 0.1183748674
A17: TOU-On Peak | B17: =B$4*VLOOKUP($B$3,'Data Billing Quantities'!$A:$O,MATCH(BI_UR_Typical!$A17,'Data Billing Quantities'!$4:$4,0),FALSE) -> 135 | C17: =VLOOKUP($A17,'Data Pass Through'!$A:$D,2,FALSE) -> 0.17 | D17: =B17*C17 -> 22.95 | E17: 135 | F17: =VLOOKUP($A17,'Data Pass Through'!$A:$D,3,FALSE) -> 0.17 | G17: =E17*F17 -> 22.95 | H17: 0 | I17: 0 | K17: 0.1780860837
A18: Sub-Total: Energy (RPP TOU) | D18: =SUM(D15:D17) -> 77.565 | G18: =SUM(G15:G17) -> 77.565 | H18: 0 | I18: 0 | J18: =G18/$G$47 -> 0.6064006503 | K18: 0.6018844044
A19: Service Charge | B19: 1 | C19: =VLOOKUP($B$3,'Data Current Rates'!$A:$AN,MATCH(BI_UR_Typical!$A19,CurrentHeader,0),FALSE) -> 35.88 | D19: =B19*C19 -> 35.88 | E19: 1 | F19: =VLOOKUP($B$3,'Data Proposed Rates'!$A:$AZ,MATCH(BI_UR_Typical!$A19,ProposedHeader,0),FALSE) -> 37.48 | G19: =E19*F19 -> 37.48 | H19: 1.6 | I19: 0.04459308807 | J19: 0.2930174225 | K19: 0.290835138
A20: Fixed Base Rate Adjustment to Recover Past Tax Amounts | B20: 1 | C20: =VLOOKUP($B$3,'Data Current Rates'!$A:$AN,MATCH(BI_UR_Typical!$A20,CurrentHeader,0),FALSE) -> 0.8 | D20: 0.8 | E20: 1 | F20: =VLOOKUP($B$3,'Data Proposed Rates'!$A:$AZ,MATCH(BI_UR_Typical!$A20,ProposedHeader,0),FALSE) -> 0 | G20: 0 | H20: -0.8 | I20: -1 | J20: 0 | K20: 0
A21: Group 2 Fixed DVA Rider | B21: 1 | C21: =VLOOKUP($B$3,'Data Current Rates'!$A:$AN,MATCH(BI_UR_Typical!$A21,CurrentHeader,0),FALSE) -> -0.08 | D21: -0.08 | E21: 1 | F21: =VLOOKUP($B$3,'Data Proposed Rates'!$A:$AZ,MATCH(BI_UR_Typical!$A21,ProposedHeader,0),FALSE) -> -0.08 | G21: -0.08 | H21: 0 | I21: 0 | J21: -0.0006254374012 | K21: -0.0006207793766
A22: Distribution Volumetric Charge | B22: =IF($B$9="kWh",$B$4,$B$5) -> 750 | C22: =VLOOKUP($B$3,'Data Current Rates'!$A:$AN,MATCH(BI_UR_Typical!$A22,CurrentHeader,0),FALSE) -> 0 | D22: 0 | E22: 750 | F22: =VLOOKUP($B$3,'Data Proposed Rates'!$A:$AZ,MATCH(BI_UR_Typical!$A22,ProposedHeader,0),FALSE) -> 0 | G22: 0 | H22: 0 | I22: N/A | J22: 0 | K22: 0
A23: Volumetric Base Rate Adjustment to Recover Past Tax Amounts | B23: =IF($B$9="kWh",$B$4,$B$5) -> 750 | C23: =VLOOKUP($B$3,'Data Current Rates'!$A:$AN,MATCH(BI_UR_Typical!$A23,CurrentHeader,0),FALSE) -> 0 | D23: 0 | E23: 750 | F23: =VLOOKUP($B$3,'Data Proposed Rates'!$A:$AZ,MATCH(BI_UR_Typical!$A23,ProposedHeader,0),FALSE) -> 0 | G23: 0 | H23: 0 | I23: N/A | J23: 0 | K23: 0
A24: Group 1 Volumetric DVA Rider (General) | B24: 750 | C24: =VLOOKUP($B$3,'Data Current Rates'!$A:$AN,MATCH(BI_UR_Typical!$A24,CurrentHeader,0),FALSE) -> -0.0004 | D24: -0.3 | E24: =B4 -> 750 | F24: =VLOOKUP($B$3,'Data Proposed Rates'!$A:$AZ,MATCH(BI_UR_Typical!$A24,ProposedHeader,0),FALSE) -> -0.0004 | G24: -0.3 | H24: 0 | I24: 0 | J24: -0.002345390255 | K24: -0.002327922662
A25: Group 2 Volumetric DVA Rider | B25: 750 | C25: =VLOOKUP($B$3,'Data Current Rates'!$A:$AN,MATCH(BI_UR_Typical!$A25,CurrentHeader,0),FALSE) -> 0 | D25: 0 | E25: =B4 -> 750 | F25: =VLOOKUP($B$3,'Data Proposed Rates'!$A:$AZ,MATCH(BI_UR_Typical!$A25,ProposedHeader,0),FALSE) -> 0 | G25: 0 | H25: 0 | I25: N/A | J25: 0 | K25: 0
A26: Fair Hydro Plan - Distribution Rate Protection Savings* | D26: =IF(AND(B3<>"R1",B3<>"R2"),0,IF(VLOOKUP($A26,'Data Pass Through'!$A:$D,2,FALSE)=0,0,IF(SUM(D19:D20,D22:D23)<VLOOKUP($A26,'Data Pass Through'!$A:$D,2,FALSE),0,VLOOKUP($A26,'Data Pass Through'!$A:$D,2,FALSE)-SUM(D19:D20,D22:D23)))) -> 0 | G26: =IF(AND(B3<>"R1",B3<>"R2"),0,IF(VLOOKUP($A26,'Data Pass Through'!$A:$D,2,FALSE)=0,0,IF(SUM(G19:G20,G22:G23)<VLOOKUP($A26,'Data Pass Through'!$A:$D,2,FALSE),0,VLOOKUP($A26,'Data Pass Through'!$A:$D,2,FALSE)-SUM(G19:G20,G22:G23)))) -> 0 | H26: 0 | I26: N/A | J26: 0 | K26: 0
A27: Sub-Total: Distribution (excluding pass through) | D27: =SUM(INDIRECT("D19:D"&ROW()-1)) -> 36.3 | G27: =SUM(INDIRECT("g19:g"&ROW()-1)) -> 37.1 | H27: =G27-D27 -> 0.8 | I27: 0.02203856749 | J27: 0.2900465948 | K27: 0.2878864359
A28: Smart Metering Entity Charge | B28: 1 | C28: =VLOOKUP($A28,'Data Pass Through'!$A:$D,2,FALSE) -> 0.57 | D28: =B28*C28 -> 0.57 | E28: 1 | F28: =VLOOKUP($A28,'Data Pass Through'!$A:$D,3,FALSE) -> 0.57 | G28: =E28*F28 -> 0.57 | H28: 0 | I28: 0 | J28: 0.004456241484 | K28: 0.004423053059
A29: Line Losses on Cost of Power (based on two-tier RPP prices) | B29: =B8-B4 -> 42.75 | C29: =IF(B4>B7,C13,C12) -> 0.115 | D29: =B29*C29 -> 4.91625 | E29: 42.75 | F29: =IF(B4>B7,F13,F12) -> 0.115 | G29: =E29*F29 -> 4.91625 | H29: 0 | I29: 0 | J29: 0.0384350828 | K29: 0.03814883263
A30: Line Losses on Cost of Power (based on TOU prices) | B30: =B8-B4 -> 42.75 | C30: =VLOOKUP($B$3,'Data Billing Quantities'!$A:$O,MATCH(BI_UR_Typical!$A15,'Data Billing Quantities'!$4:$4,0),FALSE)*C15+VLOOKUP($B$3,'Data Billing Quantities'!$A:$O,MATCH(BI_UR_Typical!$A16,'Data Billing Quantities'!$4:$4,0),FALSE)*C16+VLOOKUP($B$3,'Data Billing Quantities'!$A:$O,MATCH(BI_UR_Typical!$A17,'Data Billing Quantities'!$4:$4,0),FALSE)*C17 -> 0.10342 | D30: =B30*C30 -> 4.421205 | E30: 42.75 | F30: =VLOOKUP($B$3,'Data Billing Quantities'!$A:$O,MATCH(BI_UR_Typical!$A15,'Data Billing Quantities'!$4:$4,0),FALSE)*F15+VLOOKUP($B$3,'Data Billing Quantities'!$A:$O,MATCH(BI_UR_Typical!$A16,'Data Billing Quantities'!$4:$4,0),FALSE)*F16+VLOOKUP($B$3,'Data Billing Quantities'!$A:$O,MATCH(BI_UR_Typical!$A17,'Data Billing Quantities'!$4:$4,0),FALSE)*F17 -> 0.10342 | G30: =E30*F30 -> 4.421205 | H30: 0 | I30: 0 | J30: 0.03456483707 | K30: 0.03430741105
A31: Sub-Total: Distribution (based on two-tier RPP prices) | D31: =SUM(D27,D28:D29) -> 41.78625 | G31: =SUM(G27,G28:G29) -> 42.58625 | H31: 0.8 | I31: 0.0191450537 | J31: 0.3329379191 | K31: 0.3304583216
A32: Sub-Total: Distribution (based on TOU prices) | D32: =SUM(D27,D28,D30) -> 41.291205 | G32: =SUM(G27,G28,G30) -> 42.091205 | H32: 0.8 | I32: 0.01937458594 | J32: 0.3290676734 | K32: 0.3266169
A33: Retail Transmission Rate – Network Service Rate | B33: =B8 -> 792.75 | C33: =VLOOKUP($B$3,'Data Current Rates'!$A:$AN,MATCH(BI_UR_Typical!$A33,CurrentHeader,0),FALSE) -> 0.0102 | D33: =B33*C33 -> 8.08605 | E33: 792.75 | F33: =VLOOKUP($B$3,'Data Proposed Rates'!$A:$AZ,MATCH(BI_UR_Typical!$A33,ProposedHeader,0),FALSE) -> 0.0102 | G33: =E33*F33 -> 8.08605 | H33: =G33-D33 -> 0 | I33: 0 | J33: 0.06321647623 | K33: 0.06274566348
A34: Retail Transmission Rate – Line and Transformation Connection Service Rate | B34: =B8 -> 792.75 | C34: =VLOOKUP($B$3,'Data Current Rates'!$A:$AN,MATCH(BI_UR_Typical!$A34,CurrentHeader,0),FALSE) -> 0.0074 | D34: =B34*C34 -> 5.86635 | E34: 792.75 | F34: =VLOOKUP($B$3,'Data Proposed Rates'!$A:$AZ,MATCH(BI_UR_Typical!$A34,ProposedHeader,0),FALSE) -> 0.0074 | G34: =E34*F34 -> 5.86635 | H34: =G34-D34 -> 0 | I34: 0 | J34: 0.04586293373 | K34: 0.0455213637
A35: Sub-Total: Retail Transmission | D35: =SUM(D33:D34) -> 13.9524 | G35: =SUM(G33:G34) -> 13.9524 | H35: =G35-D35 -> 0 | I35: 0 | J35: 0.10907941 | K35: 0.1082670272
A36: Sub-Total: Delivery (based on two-tier RPP prices) | D36: =D31+D35 -> 55.73865 | G36: =G31+G35 -> 56.53865 | H36: =G36-D36 -> 0.8 | I36: 0.01435269781 | J36: 0.4420173291 | K36: 0.4387253488
A37: Sub-Total: Delivery (based on TOU prices) | D37: =D32+D35 -> 55.243605 | G37: =G32+G35 -> 56.043605 | H37: =G37-D37 -> 0.8 | I37: 0.01448131417 | J37: 0.4381470833 | K37: 0.4348839272
A38: Wholesale Market Service Rate (WMS) - not including CBR | B38: =B8 -> 792.75 | C38: =VLOOKUP($A38,'Data Pass Through'!$A:$D,2,FALSE) -> 0.003 | D38: =B38*C38 -> 2.37825 | E38: =$B$8 -> 792.75 | F38: =VLOOKUP($A38,'Data Pass Through'!$A:$D,3,FALSE) -> 0.003 | G38: =E38*F38 -> 2.37825 | H38: 0 | I38: 0 | J38: 0.01859308124 | K38: 0.01845460691
A39: Capacity Based Recovery (CBR) - Applicable for Class B Customers | B39: =B8 -> 792.75 | C39: =VLOOKUP($A39,'Data Pass Through'!$A:$D,2,FALSE) -> 0.0004 | D39: =B39*C39 -> 0.3171 | E39: =$B$8 -> 792.75 | F39: =VLOOKUP($A39,'Data Pass Through'!$A:$D,3,FALSE) -> 0.0004 | G39: =E39*F39 -> 0.3171 | H39: 0 | I39: 0 | J39: 0.002479077499 | K39: 0.002460614254
A40: Rural Rate Protection Charge | B40: =B8 -> 792.75 | C40: =VLOOKUP($A40,'Data Pass Through'!$A:$D,2,FALSE) -> 0.0005 | D40: 0.396375 | E40: 792.75 | F40: =VLOOKUP($A40,'Data Pass Through'!$A:$D,3,FALSE) -> 0.0005 | G40: 0.396375 | H40: 0 | I40: 0 | J40: 0.003098846874 | K40: 0.003075767818
A41: Standard Supply Service – Administration Charge (if applicable) | B41: 1 | C41: =VLOOKUP($A41,'Data Pass Through'!$A:$D,2,FALSE) -> 0.25 | D41: =B41*C41 -> 0.25 | E41: 1 | F41: =VLOOKUP($A41,'Data Pass Through'!$A:$D,3,FALSE) -> 0.25 | G41: 0.25 | H41: 0 | I41: 0 | J41: 0.001954491879 | K41: 0.001939935552
A42: Sub-Total: Regulatory | D42: =SUM(D38:D41) -> 3.341725 | G42: =SUM(G38:G41) -> 3.341725 | H42: 0 | I42: 0 | J42: 0.0261254975 | K42: 0.02593092453
A43: Total Electricty Charge on Two-Tier RPP | D43: =SUM(D14,D27,D28,D29,D35,D42) -> 135.130375 | G43: =SUM(G14,G27,G28,G29,G35,G42) -> 135.930375 | H43: 0.8 | I43: 0.005920208539 | J43: 1.062699256
A44: HST | C44: 0.13 | D44: =D43*C44 -> 17.56694875 | F44: =C44 -> 0.13 | G44: =G43*F44 -> 17.67094875 | H44: 0.104 | I44: 0.005920208539 | J44: 0.1381509033
A45: Total Electricity Charge on Two-Tier RPP (including HST) | D45: =SUM(D43:D44) -> 152.6973238 | G45: =SUM(G43:G44) -> 153.6013238 | H45: 0.904 | I45: 0.005920208539 | J45: 1.200850159
A46: Ontario Electricity Rebate (OER) | C46: =IF(($B$4*12)<250000,VLOOKUP(A46,'Data Pass Through'!$A$4:$C$20,2,0),0) -> -0.189 | D46: =D43*C46 -> -25.53964088 | F46: =C46 -> -0.189 | G46: =G43*F46 -> -25.69084087 | H46: -0.1512 | I46: -0.005920208539 | J46: -0.2008501594
A47: Total Amount on Two-Tier RPP | D47: =SUM(D45:D46) -> 127.1576829 | G47: =SUM(G45:G46) -> 127.9104829 | H47: 0.7528 | I47: 0.005920208539 | J47: 1
A48: Total Electricty Charge on TOU (before HST) | D48: =SUM(D18,D27,D28,D30,D35,D42) -> 136.15033 | G48: =SUM(G18,G27,G28,G30,G35,G42) -> 136.95033 | H48: 0.8 | I48: 0.005875857958 | K48: =G48/$G$52 -> 1.062699256
A49: HST | C49: 0.13 | D49: =D48*C49 -> 17.6995429 | F49: =C49 -> 0.13 | G49: =G48*F49 -> 17.8035429 | H49: 0.104 | I49: 0.005875857958 | K49: =G49/$G$52 -> 0.1381509033
A50: Total Electricity Charge on TOU (including HST) | D50: =SUM(D48:D49) -> 153.8498729 | G50: =SUM(G48:G49) -> 154.7538729 | H50: 0.904 | I50: 0.005875857958 | K50: =G50/$G$52 -> 1.200850159
A51: Ontario Electricity Rebate (OER) | C51: =IF(($B$4*12)<250000,VLOOKUP(A51,'Data Pass Through'!$A$4:$C$20,2,0),0) -> -0.189 | D51: =D48*C51 -> -25.73241237 | F51: =C51 -> -0.189 | G51: =G48*F51 -> -25.88361237 | H51: -0.1512 | I51: -0.005875857958 | K51: =G51/$G$52 -> -0.2008501594
A52: Total Amount on TOU | D52: =SUM(D50:D51) -> 128.1174605 | G52: =SUM(G50:G51) -> 128.8702605 | H52: 0.7528 | I52: 0.005875857958 | K52: =G52/$G$52 -> 1
A53: * Distribution rate protection applies to R1 and R2 customers

Sheet BI_UR_Avg
A1: 2024 Bill Impacts (Average Consumption Level) - UR
A3: Rate Class | B3: =RIGHT(A1,LEN(A1)-FIND("- ",A1,1)-1) -> UR
A4: Monthly Consumption (kWh) | B4: =IF(COUNTIF(A1,"*Low*")>0,VLOOKUP(B3,'Data Billing Quantities'!$A:$Z,MATCH("Low kWh",'Data Billing Quantities'!4:4,0),FALSE),IF(COUNTIF(A1,"*Typical*")>0,VLOOKUP(B3,'Data Billing Quantities'!$A:$Z,MATCH("Typical kWh",'Data Billing Quantities'!4:4,0),FALSE),IF(COUNTIF(A1,"*Average*")>0,VLOOKUP(B3,'Data Billing Quantities'!$A:$Z,MATCH("Average kWh",'Data Billing Quantities'!4:4,0),FALSE),IF(COUNTIF(A1,"*High*")>0,VLOOKUP(B3,'Data Billing Quantities'!$A:$Z,MATCH("High kWh",'Data Billing Quantities'!4:4,0),FALSE),"error")))) -> 690
A5: Peak (kW) | B5: =IF(COUNTIF(A1,"*Low*")>0,VLOOKUP(B3,'Data Billing Quantities'!$A:$Z,MATCH("Low kW",'Data Billing Quantities'!4:4,0),FALSE),IF(COUNTIF(A1,"*Typical*")>0,VLOOKUP(B3,'Data Billing Quantities'!$A:$Z,MATCH("Typical kW",'Data Billing Quantities'!4:4,0),FALSE),IF(COUNTIF(A1,"*Average*")>0,VLOOKUP(B3,'Data Billing Quantities'!$A:$Z,MATCH("Average kW",'Data Billing Quantities'!4:4,0),FALSE),IF(COUNTIF(A1,"*High*")>0,VLOOKUP(B3,'Data Billing Quantities'!$A:$Z,MATCH("High kW",'Data Billing Quantities'!4:4,0),FALSE),"error")))) -> 0
A6: Loss factor | B6: =VLOOKUP(B3,'Data Billing Quantities'!A:D,MATCH(A6,'Data Billing Quantities'!4:4,0),FALSE) -> 1.057
A7: Commodity Threshold | B7: =VLOOKUP(B3,'Data Billing Quantities'!A:D,MATCH(A7,'Data Billing Quantities'!4:4,0),FALSE) -> 600
A8: Monthly Consumption (kWh) - Uplifted | B8: =B4*B6 -> 729.33
A9: Charge determinant | B9: =VLOOKUP(B3,'Data Billing Quantities'!A:D,MATCH(A9,'Data Billing Quantities'!4:4,0),FALSE) -> kWh
B11: Volume | C11: Current Rate ($) | D11: Current Charge ($) | E11: Volume | F11: Proposed Rate ($) | G11: Proposed Charge ($) | H11: Change ($) | I11: Change (%) | J11: % of Total Bill on RPP | K11: % of Total Bill
A12: Energy First Tier | B12: =IF(B4>B7,B7,B4) -> 600 | C12: =VLOOKUP($A12,'Data Pass Through'!$A:$D,2,FALSE) -> 0.098 | D12: =B12*C12 -> 58.8 | E12: =B12 -> 600 | F12: =VLOOKUP($A12,'Data Pass Through'!$A:$D,3,FALSE) -> 0.098 | G12: =E12*F12 -> 58.8 | H12: =G12-D12 -> 0 | I12: =IF(ISERROR(H12/ABS(D12)),"N/A",(H12/ABS(D12))) -> 0 | J12: =G12/$G$47 -> 0.4908713382
A13: Energy Second Tier | B13: =IF(B4>B7,(B4)-B7,0) -> 90 | C13: =VLOOKUP($A13,'Data Pass Through'!$A:$D,2,FALSE) -> 0.115 | D13: =B13*C13 -> 10.35 | E13: =B13 -> 90 | F13: =VLOOKUP($A13,'Data Pass Through'!$A:$D,3,FALSE) -> 0.115 | G13: =E13*F13 -> 10.35 | H13: 0 | I13: 0 | J13: =G13/$G$47 -> 0.0864033733
A14: Sub-Total: Energy (RPP Tiered) | D14: =SUM(D12:D13) -> 69.15 | G14: =SUM(G12:G13) -> 69.15 | H14: 0 | I14: 0 | J14: =G14/$G$47 -> 0.5772747115
A15: TOU-Off Peak | B15: =B$4*VLOOKUP($B$3,'Data Billing Quantities'!$A:$O,MATCH(BI_UR_Avg!$A15,'Data Billing Quantities'!$4:$4,0),FALSE) -> 441.6 | C15: =VLOOKUP($A15,'Data Pass Through'!$A:$D,2,FALSE) -> 0.082 | D15: =B15*C15 -> 36.2112 | E15: 441.6 | F15: =VLOOKUP($A15,'Data Pass Through'!$A:$D,3,FALSE) -> 0.082 | G15: =E15*F15 -> 36.2112 | H15: 0 | I15: 0 | K15: =G15/$G$52 -> 0.2981871187
A16: TOU-Mid Peak | B16: =B$4*VLOOKUP($B$3,'Data Billing Quantities'!$A:$O,MATCH(BI_UR_Avg!$A16,'Data Billing Quantities'!$4:$4,0),FALSE) -> 124.2 | C16: =VLOOKUP($A16,'Data Pass Through'!$A:$D,2,FALSE) -> 0.113 | D16: =B16*C16 -> 14.0346 | E16: 124.2 | F16: =VLOOKUP($A16,'Data Pass Through'!$A:$D,3,FALSE) -> 0.113 | G16: =E16*F16 -> 14.0346 | H16: 0 | I16: 0 | K16: 0.1155702362
A17: TOU-On Peak | B17: =B$4*VLOOKUP($B$3,'Data Billing Quantities'!$A:$O,MATCH(BI_UR_Avg!$A17,'Data Billing Quantities'!$4:$4,0),FALSE) -> 124.2 | C17: =VLOOKUP($A17,'Data Pass Through'!$A:$D,2,FALSE) -> 0.17 | D17: =B17*C17 -> 21.114 | E17: 124.2 | F17: =VLOOKUP($A17,'Data Pass Through'!$A:$D,3,FALSE) -> 0.17 | G17: =E17*F17 -> 21.114 | H17: 0 | I17: 0 | K17: 0.173866727
A18: Sub-Total: Energy (RPP TOU) | D18: =SUM(D15:D17) -> 71.3598 | G18: =SUM(G15:G17) -> 71.3598 | H18: 0 | I18: 0 | J18: =G18/$G$47 -> 0.5957224578 | K18: 0.5876240819
A19: Service Charge | B19: 1 | C19: =VLOOKUP($B$3,'Data Current Rates'!$A:$AN,MATCH(BI_UR_Avg!$A19,CurrentHeader,0),FALSE) -> 35.88 | D19: =B19*C19 -> 35.88 | E19: 1 | F19: =VLOOKUP($B$3,'Data Proposed Rates'!$A:$AZ,MATCH(BI_UR_Avg!$A19,ProposedHeader,0),FALSE) -> 37.48 | G19: =E19*F19 -> 37.48 | H19: 1.6 | I19: 0.04459308807 | J19: 0.3128887373 | K19: 0.3086352623
A20: Fixed Base Rate Adjustment to Recover Past Tax Amounts | B20: 1 | C20: =VLOOKUP($B$3,'Data Current Rates'!$A:$AN,MATCH(BI_UR_Avg!$A20,CurrentHeader,0),FALSE) -> 0.8 | D20: 0.8 | E20: 1 | F20: =VLOOKUP($B$3,'Data Proposed Rates'!$A:$AZ,MATCH(BI_UR_Avg!$A20,ProposedHeader,0),FALSE) -> 0 | G20: 0 | H20: -0.8 | I20: -1 | J20: 0 | K20: 0
A21: Group 2 Fixed DVA Rider | B21: 1 | C21: =VLOOKUP($B$3,'Data Current Rates'!$A:$AN,MATCH(BI_UR_Avg!$A21,CurrentHeader,0),FALSE) -> -0.08 | D21: -0.08 | E21: 1 | F21: =VLOOKUP($B$3,'Data Proposed Rates'!$A:$AZ,MATCH(BI_UR_Avg!$A21,ProposedHeader,0),FALSE) -> -0.08 | G21: -0.08 | H21: 0 | I21: 0 | J21: -0.0006678521608 | K21: -0.0006587732387
A22: Distribution Volumetric Charge | B22: =IF($B$9="kWh",$B$4,$B$5) -> 690 | C22: =VLOOKUP($B$3,'Data Current Rates'!$A:$AN,MATCH(BI_UR_Avg!$A22,CurrentHeader,0),FALSE) -> 0 | D22: 0 | E22: 690 | F22: =VLOOKUP($B$3,'Data Proposed Rates'!$A:$AZ,MATCH(BI_UR_Avg!$A22,ProposedHeader,0),FALSE) -> 0 | G22: 0 | H22: 0 | I22: N/A | J22: 0 | K22: 0
A23: Volumetric Base Rate Adjustment to Recover Past Tax Amounts | B23: =IF($B$9="kWh",$B$4,$B$5) -> 690 | C23: =VLOOKUP($B$3,'Data Current Rates'!$A:$AN,MATCH(BI_UR_Avg!$A23,CurrentHeader,0),FALSE) -> 0 | D23: 0 | E23: 690 | F23: =VLOOKUP($B$3,'Data Proposed Rates'!$A:$AZ,MATCH(BI_UR_Avg!$A23,ProposedHeader,0),FALSE) -> 0 | G23: 0 | H23: 0 | I23: N/A | J23: 0 | K23: 0
A24: Group 1 Volumetric DVA Rider (General) | B24: 690 | C24: =VLOOKUP($B$3,'Data Current Rates'!$A:$AN,MATCH(BI_UR_Avg!$A24,CurrentHeader,0),FALSE) -> -0.0004 | D24: -0.276 | E24: =B4 -> 690 | F24: =VLOOKUP($B$3,'Data Proposed Rates'!$A:$AZ,MATCH(BI_UR_Avg!$A24,ProposedHeader,0),FALSE) -> -0.0004 | G24: -0.276 | H24: 0 | I24: 0 | J24: -0.002304089955 | K24: -0.002272767673
A25: Group 2 Volumetric DVA Rider | B25: 690 | C25: =VLOOKUP($B$3,'Data Current Rates'!$A:$AN,MATCH(BI_UR_Avg!$A25,CurrentHeader,0),FALSE) -> 0 | D25: 0 | E25: =B4 -> 690 | F25: =VLOOKUP($B$3,'Data Proposed Rates'!$A:$AZ,MATCH(BI_UR_Avg!$A25,ProposedHeader,0),FALSE) -> 0 | G25: 0 | H25: 0 | I25: N/A | J25: 0 | K25: 0
A26: Fair Hydro Plan - Distribution Rate Protection Savings* | D26: =IF(AND(B3<>"R1",B3<>"R2"),0,IF(VLOOKUP($A26,'Data Pass Through'!$A:$D,2,FALSE)=0,0,IF(SUM(D19:D20,D22:D23)<VLOOKUP($A26,'Data Pass Through'!$A:$D,2,FALSE),0,VLOOKUP($A26,'Data Pass Through'!$A:$D,2,FALSE)-SUM(D19:D20,D22:D23)))) -> 0 | G26: =IF(AND(B3<>"R1",B3<>"R2"),0,IF(VLOOKUP($A26,'Data Pass Through'!$A:$D,2,FALSE)=0,0,IF(SUM(G19:G20,G22:G23)<VLOOKUP($A26,'Data Pass Through'!$A:$D,2,FALSE),0,VLOOKUP($A26,'Data Pass Through'!$A:$D,2,FALSE)-SUM(G19:G20,G22:G23)))) -> 0 | H26: 0 | I26: N/A | J26: 0 | K26: 0
A27: Sub-Total: Distribution (excluding pass through) | D27: =SUM(INDIRECT("D19:D"&ROW()-1)) -> 36.324 | G27: =SUM(INDIRECT("g19:g"&ROW()-1)) -> 37.124 | H27: =G27-D27 -> 0.8 | I27: 0.02202400617 | J27: 0.3099167952 | K27: 0.3057037214
A28: Smart Metering Entity Charge | B28: 1 | C28: =VLOOKUP($A28,'Data Pass Through'!$A:$D,2,FALSE) -> 0.57 | D28: =B28*C28 -> 0.57 | E28: 1 | F28: =VLOOKUP($A28,'Data Pass Through'!$A:$D,3,FALSE) -> 0.57 | G28: =E28*F28 -> 0.57 | H28: 0 | I28: 0 | J28: 0.004758446645 | K28: 0.004693759325
A29: Line Losses on Cost of Power (based on two-tier RPP prices) | B29: =B8-B4 -> 39.33 | C29: =IF(B4>B7,C13,C12) -> 0.115 | D29: =B29*C29 -> 4.52295 | E29: 39.33 | F29: =IF(B4>B7,F13,F12) -> 0.115 | G29: =E29*F29 -> 4.52295 | H29: 0 | I29: 0 | J29: 0.03775827413 | K29: 0.03724498025
A30: Line Losses on Cost of Power (based on TOU prices) | B30: =B8-B4 -> 39.33 | C30: =VLOOKUP($B$3,'Data Billing Quantities'!$A:$O,MATCH(BI_UR_Avg!$A15,'Data Billing Quantities'!$4:$4,0),FALSE)*C15+VLOOKUP($B$3,'Data Billing Quantities'!$A:$O,MATCH(BI_UR_Avg!$A16,'Data Billing Quantities'!$4:$4,0),FALSE)*C16+VLOOKUP($B$3,'Data Billing Quantities'!$A:$O,MATCH(BI_UR_Avg!$A17,'Data Billing Quantities'!$4:$4,0),FALSE)*C17 -> 0.10342 | D30: =B30*C30 -> 4.0675086 | E30: 39.33 | F30: =VLOOKUP($B$3,'Data Billing Quantities'!$A:$O,MATCH(BI_UR_Avg!$A15,'Data Billing Quantities'!$4:$4,0),FALSE)*F15+VLOOKUP($B$3,'Data Billing Quantities'!$A:$O,MATCH(BI_UR_Avg!$A16,'Data Billing Quantities'!$4:$4,0),FALSE)*F16+VLOOKUP($B$3,'Data Billing Quantities'!$A:$O,MATCH(BI_UR_Avg!$A17,'Data Billing Quantities'!$4:$4,0),FALSE)*F17 -> 0.10342 | G30: =E30*F30 -> 4.0675086 | H30: 0 | I30: 0 | J30: 0.03395618009 | K30: 0.03349457267
A31: Sub-Total: Distribution (based on two-tier RPP prices) | D31: =SUM(D27,D28:D29) -> 41.41695 | G31: =SUM(G27,G28:G29) -> 42.21695 | H31: 0.8 | I31: 0.01931576323 | J31: 0.352433516 | K31: 0.347642461
A32: Sub-Total: Distribution (based on TOU prices) | D32: =SUM(D27,D28,D30) -> 40.9615086 | G32: =SUM(G27,G28,G30) -> 41.7615086 | H32: 0.8 | I32: 0.01953053067 | J32: 0.3486314219 | K32: 0.3438920534
A33: Retail Transmission Rate – Network Service Rate | B33: =B8 -> 729.33 | C33: =VLOOKUP($B$3,'Data Current Rates'!$A:$AN,MATCH(BI_UR_Avg!$A33,CurrentHeader,0),FALSE) -> 0.0102 | D33: =B33*C33 -> 7.439166 | E33: 729.33 | F33: =VLOOKUP($B$3,'Data Proposed Rates'!$A:$AZ,MATCH(BI_UR_Avg!$A33,ProposedHeader,0),FALSE) -> 0.0102 | G33: =E33*F33 -> 7.439166 | H33: =G33-D33 -> 0 | I33: 0 | J33: 0.06210328859 | K33: 0.06125904348
A34: Retail Transmission Rate – Line and Transformation Connection Service Rate | B34: =B8 -> 729.33 | C34: =VLOOKUP($B$3,'Data Current Rates'!$A:$AN,MATCH(BI_UR_Avg!$A34,CurrentHeader,0),FALSE) -> 0.0074 | D34: =B34*C34 -> 5.397042 | E34: 729.33 | F34: =VLOOKUP($B$3,'Data Proposed Rates'!$A:$AZ,MATCH(BI_UR_Avg!$A34,ProposedHeader,0),FALSE) -> 0.0074 | G34: =E34*F34 -> 5.397042 | H34: =G34-D34 -> 0 | I34: 0 | J34: 0.04505532702 | K34: 0.04444283547
A35: Sub-Total: Retail Transmission | D35: =SUM(D33:D34) -> 12.836208 | G35: =SUM(G33:G34) -> 12.836208 | H35: =G35-D35 -> 0 | I35: 0 | J35: 0.1071586156 | K35: 0.105701879
A36: Sub-Total: Delivery (based on two-tier RPP prices) | D36: =D31+D35 -> 54.253158 | G36: =G31+G35 -> 55.053158 | H36: =G36-D36 -> 0.8 | I36: 0.0147456854 | J36: 0.4595921316 | K36: 0.4533443399
A37: Sub-Total: Delivery (based on TOU prices) | D37: =D32+D35 -> 53.7977166 | G37: =G32+G35 -> 54.5977166 | H37: =G37-D37 -> 0.8 | I37: 0.01487051962 | J37: 0.4557900376 | K37: 0.4495939323
A38: Wholesale Market Service Rate (WMS) - not including CBR | B38: =B8 -> 729.33 | C38: =VLOOKUP($A38,'Data Pass Through'!$A:$D,2,FALSE) -> 0.003 | D38: =B38*C38 -> 2.18799 | E38: =$B$8 -> 729.33 | F38: =VLOOKUP($A38,'Data Pass Through'!$A:$D,3,FALSE) -> 0.003 | G38: =E38*F38 -> 2.18799 | H38: 0 | I38: 0 | J38: 0.01826567312 | K38: 0.01801736573
A39: Capacity Based Recovery (CBR) - Applicable for Class B Customers | B39: =B8 -> 729.33 | C39: =VLOOKUP($A39,'Data Pass Through'!$A:$D,2,FALSE) -> 0.0004 | D39: =B39*C39 -> 0.291732 | E39: =$B$8 -> 729.33 | F39: =VLOOKUP($A39,'Data Pass Through'!$A:$D,3,FALSE) -> 0.0004 | G39: =E39*F39 -> 0.291732 | H39: 0 | I39: 0 | J39: 0.002435423082 | K39: 0.002402315431
A40: Rural Rate Protection Charge | B40: =B8 -> 729.33 | C40: =VLOOKUP($A40,'Data Pass Through'!$A:$D,2,FALSE) -> 0.0005 | D40: 0.364665 | E40: 729.33 | F40: =VLOOKUP($A40,'Data Pass Through'!$A:$D,3,FALSE) -> 0.0005 | G40: 0.364665 | H40: 0 | I40: 0 | J40: 0.003044278853 | K40: 0.003002894288
A41: Standard Supply Service – Administration Charge (if applicable) | B41: 1 | C41: =VLOOKUP($A41,'Data Pass Through'!$A:$D,2,FALSE) -> 0.25 | D41: =B41*C41 -> 0.25 | E41: 1 | F41: =VLOOKUP($A41,'Data Pass Through'!$A:$D,3,FALSE) -> 0.25 | G41: 0.25 | H41: 0 | I41: 0 | J41: 0.002087038002 | K41: 0.002058666371
A42: Sub-Total: Regulatory | D42: =SUM(D38:D41) -> 3.094387 | G42: =SUM(G38:G41) -> 3.094387 | H42: 0 | I42: 0 | J42: 0.02583241305 | K42: 0.02548124182
A43: Total Electricty Charge on Two-Tier RPP | D43: =SUM(D14,D27,D28,D29,D35,D42) -> 126.497545 | G43: =SUM(G14,G27,G28,G29,G35,G42) -> 127.297545 | H43: 0.8 | I43: 0.006324233407 | J43: 1.062699256
A44: HST | C44: 0.13 | D44: =D43*C44 -> 16.44468085 | F44: =C44 -> 0.13 | G44: =G43*F44 -> 16.54868085 | H44: 0.104 | I44: 0.006324233407 | J44: 0.1381509033
A45: Total Electricity Charge on Two-Tier RPP (including HST) | D45: =SUM(D43:D44) -> 142.9422258 | G45: =SUM(G43:G44) -> 143.8462258 | H45: 0.904 | I45: 0.006324233407 | J45: 1.200850159
A46: Ontario Electricity Rebate (OER) | C46: =IF(($B$4*12)<250000,VLOOKUP(A46,'Data Pass Through'!$A$4:$C$20,2,0),0) -> -0.189 | D46: =D43*C46 -> -23.908036 | F46: =C46 -> -0.189 | G46: =G43*F46 -> -24.059236 | H46: -0.1512 | I46: -0.006324233407 | J46: -0.2008501594
A47: Total Amount on Two-Tier RPP | D47: =SUM(D45:D46) -> 119.0341898 | G47: =SUM(G45:G46) -> 119.7869898 | H47: 0.7528 | I47: 0.006324233407 | J47: 1
A48: Total Electricty Charge on TOU (before HST) | D48: =SUM(D18,D27,D28,D30,D35,D42) -> 128.2519036 | G48: =SUM(G18,G27,G28,G30,G35,G42) -> 129.0519036 | H48: 0.8 | I48: 0.006237724178 | K48: =G48/$G$52 -> 1.062699256
A49: HST | C49: 0.13 | D49: =D48*C49 -> 16.67274747 | F49: =C49 -> 0.13 | G49: =G48*F49 -> 16.77674747 | H49: 0.104 | I49: 0.006237724178 | K49: =G49/$G$52 -> 0.1381509033
A50: Total Electricity Charge on TOU (including HST) | D50: =SUM(D48:D49) -> 144.9246511 | G50: =SUM(G48:G49) -> 145.8286511 | H50: 0.904 | I50: 0.006237724178 | K50: =G50/$G$52 -> 1.200850159
A51: Ontario Electricity Rebate (OER) | C51: =IF(($B$4*12)<250000,VLOOKUP(A51,'Data Pass Through'!$A$4:$C$20,2,0),0) -> -0.189 | D51: =D48*C51 -> -24.23960978 | F51: =C51 -> -0.189 | G51: =G48*F51 -> -24.39080978 | H51: -0.1512 | I51: -0.006237724178 | K51: =G51/$G$52 -> -0.2008501594
A52: Total Amount on TOU | D52: =SUM(D50:D51) -> 120.6850413 | G52: =SUM(G50:G51) -> 121.4378413 | H52: 0.7528 | I52: 0.006237724178 | K52: =G52/$G$52 -> 1
A53: * Distribution rate protection applies to R1 and R2 customers

Sheet BI_UR_High
A1: 2024 Bill Impacts (High Consumption Level) - UR
A3: Rate Class | B3: =RIGHT(A1,LEN(A1)-FIND("- ",A1,1)-1) -> UR
A4: Monthly Consumption (kWh) | B4: =IF(COUNTIF(A1,"*Low*")>0,VLOOKUP(B3,'Data Billing Quantities'!$A:$Z,MATCH("Low kWh",'Data Billing Quantities'!4:4,0),FALSE),IF(COUNTIF(A1,"*Typical*")>0,VLOOKUP(B3,'Data Billing Quantities'!$A:$Z,MATCH("Typical kWh",'Data Billing Quantities'!4:4,0),FALSE),IF(COUNTIF(A1,"*Average*")>0,VLOOKUP(B3,'Data Billing Quantities'!$A:$Z,MATCH("Average kWh",'Data Billing Quantities'!4:4,0),FALSE),IF(COUNTIF(A1,"*High*")>0,VLOOKUP(B3,'Data Billing Quantities'!$A:$Z,MATCH("High kWh",'Data Billing Quantities'!4:4,0),FALSE),"error")))) -> 1260
A5: Peak (kW) | B5: =IF(COUNTIF(A1,"*Low*")>0,VLOOKUP(B3,'Data Billing Quantities'!$A:$Z,MATCH("Low kW",'Data Billing Quantities'!4:4,0),FALSE),IF(COUNTIF(A1,"*Typical*")>0,VLOOKUP(B3,'Data Billing Quantities'!$A:$Z,MATCH("Typical kW",'Data Billing Quantities'!4:4,0),FALSE),IF(COUNTIF(A1,"*Average*")>0,VLOOKUP(B3,'Data Billing Quantities'!$A:$Z,MATCH("Average kW",'Data Billing Quantities'!4:4,0),FALSE),IF(COUNTIF(A1,"*High*")>0,VLOOKUP(B3,'Data Billing Quantities'!$A:$Z,MATCH("High kW",'Data Billing Quantities'!4:4,0),FALSE),"error")))) -> 0
A6: Loss factor | B6: =VLOOKUP(B3,'Data Billing Quantities'!A:D,MATCH(A6,'Data Billing Quantities'!4:4,0),FALSE) -> 1.057
A7: Commodity Threshold | B7: =VLOOKUP(B3,'Data Billing Quantities'!A:D,MATCH(A7,'Data Billing Quantities'!4:4,0),FALSE) -> 600
A8: Monthly Consumption (kWh) - Uplifted | B8: =B4*B6 -> 1331.82
A9: Charge determinant | B9: =VLOOKUP(B3,'Data Billing Quantities'!A:D,MATCH(A9,'Data Billing Quantities'!4:4,0),FALSE) -> kWh
B11: Volume | C11: Current Rate ($) | D11: Current Charge ($) | E11: Volume | F11: Proposed Rate ($) | G11: Proposed Charge ($) | H11: Change ($) | I11: Change (%) | J11: % of Total Bill on RPP | K11: % of Total Bill
A12: Energy First Tier | B12: =IF(B4>B7,B7,B4) -> 600 | C12: =VLOOKUP($A12,'Data Pass Through'!$A:$D,2,FALSE) -> 0.098 | D12: =B12*C12 -> 58.8 | E12: =B12 -> 600 | F12: =VLOOKUP($A12,'Data Pass Through'!$A:$D,3,FALSE) -> 0.098 | G12: =E12*F12 -> 58.8 | H12: =G12-D12 -> 0 | I12: =IF(ISERROR(H12/ABS(D12)),"N/A",(H12/ABS(D12))) -> 0 | J12: =G12/$G$47 -> 0.298537511
A13: Energy Second Tier | B13: =IF(B4>B7,(B4)-B7,0) -> 660 | C13: =VLOOKUP($A13,'Data Pass Through'!$A:$D,2,FALSE) -> 0.115 | D13: =B13*C13 -> 75.9 | E13: =B13 -> 660 | F13: =VLOOKUP($A13,'Data Pass Through'!$A:$D,3,FALSE) -> 0.115 | G13: =E13*F13 -> 75.9 | H13: 0 | I13: 0 | J13: =G13/$G$47 -> 0.3853570933
A14: Sub-Total: Energy (RPP Tiered) | D14: =SUM(D12:D13) -> 134.7 | G14: =SUM(G12:G13) -> 134.7 | H14: 0 | I14: 0 | J14: =G14/$G$47 -> 0.6838946043
A15: TOU-Off Peak | B15: =B$4*VLOOKUP($B$3,'Data Billing Quantities'!$A:$O,MATCH(BI_UR_High!$A15,'Data Billing Quantities'!$4:$4,0),FALSE) -> 806.4 | C15: =VLOOKUP($A15,'Data Pass Through'!$A:$D,2,FALSE) -> 0.082 | D15: =B15*C15 -> 66.1248 | E15: 806.4 | F15: =VLOOKUP($A15,'Data Pass Through'!$A:$D,3,FALSE) -> 0.082 | G15: =E15*F15 -> 66.1248 | H15: 0 | I15: 0 | K15: =G15/$G$52 -> 0.3443178227
A16: TOU-Mid Peak | B16: =B$4*VLOOKUP($B$3,'Data Billing Quantities'!$A:$O,MATCH(BI_UR_High!$A16,'Data Billing Quantities'!$4:$4,0),FALSE) -> 226.8 | C16: =VLOOKUP($A16,'Data Pass Through'!$A:$D,2,FALSE) -> 0.113 | D16: =B16*C16 -> 25.6284 | E16: 226.8 | F16: =VLOOKUP($A16,'Data Pass Through'!$A:$D,3,FALSE) -> 0.113 | G16: =E16*F16 -> 25.6284 | H16: 0 | I16: 0 | K16: 0.1334494
A17: TOU-On Peak | B17: =B$4*VLOOKUP($B$3,'Data Billing Quantities'!$A:$O,MATCH(BI_UR_High!$A17,'Data Billing Quantities'!$4:$4,0),FALSE) -> 226.8 | C17: =VLOOKUP($A17,'Data Pass Through'!$A:$D,2,FALSE) -> 0.17 | D17: =B17*C17 -> 38.556 | E17: 226.8 | F17: =VLOOKUP($A17,'Data Pass Through'!$A:$D,3,FALSE) -> 0.17 | G17: =E17*F17 -> 38.556 | H17: 0 | I17: 0 | K17: 0.2007645841
A18: Sub-Total: Energy (RPP TOU) | D18: =SUM(D15:D17) -> 130.3092 | G18: =SUM(G15:G17) -> 130.3092 | H18: 0 | I18: 0 | J18: =G18/$G$47 -> 0.6616017726 | K18: 0.6785318068
A19: Service Charge | B19: 1 | C19: =VLOOKUP($B$3,'Data Current Rates'!$A:$AN,MATCH(BI_UR_High!$A19,CurrentHeader,0),FALSE) -> 35.88 | D19: =B19*C19 -> 35.88 | E19: 1 | F19: =VLOOKUP($B$3,'Data Proposed Rates'!$A:$AZ,MATCH(BI_UR_High!$A19,ProposedHeader,0),FALSE) -> 37.48 | G19: =E19*F19 -> 37.48 | H19: 1.6 | I19: 0.04459308807 | J19: 0.1902922774 | K19: 0.1951617546
A20: Fixed Base Rate Adjustment to Recover Past Tax Amounts | B20: 1 | C20: =VLOOKUP($B$3,'Data Current Rates'!$A:$AN,MATCH(BI_UR_High!$A20,CurrentHeader,0),FALSE) -> 0.8 | D20: 0.8 | E20: 1 | F20: =VLOOKUP($B$3,'Data Proposed Rates'!$A:$AZ,MATCH(BI_UR_High!$A20,ProposedHeader,0),FALSE) -> 0 | G20: 0 | H20: -0.8 | I20: -1 | J20: 0 | K20: 0
A21: Group 2 Fixed DVA Rider | B21: 1 | C21: =VLOOKUP($B$3,'Data Current Rates'!$A:$AN,MATCH(BI_UR_High!$A21,CurrentHeader,0),FALSE) -> -0.08 | D21: -0.08 | E21: 1 | F21: =VLOOKUP($B$3,'Data Proposed Rates'!$A:$AZ,MATCH(BI_UR_High!$A21,ProposedHeader,0),FALSE) -> -0.08 | G21: -0.08 | H21: 0 | I21: 0 | J21: -0.0004061734843 | K21: -0.0004165672458
A22: Distribution Volumetric Charge | B22: =IF($B$9="kWh",$B$4,$B$5) -> 1260 | C22: =VLOOKUP($B$3,'Data Current Rates'!$A:$AN,MATCH(BI_UR_High!$A22,CurrentHeader,0),FALSE) -> 0 | D22: 0 | E22: 1260 | F22: =VLOOKUP($B$3,'Data Proposed Rates'!$A:$AZ,MATCH(BI_UR_High!$A22,ProposedHeader,0),FALSE) -> 0 | G22: 0 | H22: 0 | I22: N/A | J22: 0 | K22: 0
A23: Volumetric Base Rate Adjustment to Recover Past Tax Amounts | B23: =IF($B$9="kWh",$B$4,$B$5) -> 1260 | C23: =VLOOKUP($B$3,'Data Current Rates'!$A:$AN,MATCH(BI_UR_High!$A23,CurrentHeader,0),FALSE) -> 0 | D23: 0 | E23: 1260 | F23: =VLOOKUP($B$3,'Data Proposed Rates'!$A:$AZ,MATCH(BI_UR_High!$A23,ProposedHeader,0),FALSE) -> 0 | G23: 0 | H23: 0 | I23: N/A | J23: 0 | K23: 0
A24: Group 1 Volumetric DVA Rider (General) | B24: 1260 | C24: =VLOOKUP($B$3,'Data Current Rates'!$A:$AN,MATCH(BI_UR_High!$A24,CurrentHeader,0),FALSE) -> -0.0004 | D24: -0.504 | E24: =B4 -> 1260 | F24: =VLOOKUP($B$3,'Data Proposed Rates'!$A:$AZ,MATCH(BI_UR_High!$A24,ProposedHeader,0),FALSE) -> -0.0004 | G24: -0.504 | H24: 0 | I24: 0 | J24: -0.002558892951 | K24: -0.002624373648
A25: Group 2 Volumetric DVA Rider | B25: 1260 | C25: =VLOOKUP($B$3,'Data Current Rates'!$A:$AN,MATCH(BI_UR_High!$A25,CurrentHeader,0),FALSE) -> 0 | D25: 0 | E25: =B4 -> 1260 | F25: =VLOOKUP($B$3,'Data Proposed Rates'!$A:$AZ,MATCH(BI_UR_High!$A25,ProposedHeader,0),FALSE) -> 0 | G25: 0 | H25: 0 | I25: N/A | J25: 0 | K25: 0
A26: Fair Hydro Plan - Distribution Rate Protection Savings* | D26: =IF(AND(B3<>"R1",B3<>"R2"),0,IF(VLOOKUP($A26,'Data Pass Through'!$A:$D,2,FALSE)=0,0,IF(SUM(D19:D20,D22:D23)<VLOOKUP($A26,'Data Pass Through'!$A:$D,2,FALSE),0,VLOOKUP($A26,'Data Pass Through'!$A:$D,2,FALSE)-SUM(D19:D20,D22:D23)))) -> 0 | G26: =IF(AND(B3<>"R1",B3<>"R2"),0,IF(VLOOKUP($A26,'Data Pass Through'!$A:$D,2,FALSE)=0,0,IF(SUM(G19:G20,G22:G23)<VLOOKUP($A26,'Data Pass Through'!$A:$D,2,FALSE),0,VLOOKUP($A26,'Data Pass Through'!$A:$D,2,FALSE)-SUM(G19:G20,G22:G23)))) -> 0 | H26: 0 | I26: N/A | J26: 0 | K26: 0
A27: Sub-Total: Distribution (excluding pass through) | D27: =SUM(INDIRECT("D19:D"&ROW()-1)) -> 36.096 | G27: =SUM(INDIRECT("g19:g"&ROW()-1)) -> 36.896 | H27: =G27-D27 -> 0.8 | I27: 0.02216312057 | J27: 0.187327211 | K27: 0.1921208137
A28: Smart Metering Entity Charge | B28: 1 | C28: =VLOOKUP($A28,'Data Pass Through'!$A:$D,2,FALSE) -> 0.57 | D28: =B28*C28 -> 0.57 | E28: 1 | F28: =VLOOKUP($A28,'Data Pass Through'!$A:$D,3,FALSE) -> 0.57 | G28: =E28*F28 -> 0.57 | H28: 0 | I28: 0 | J28: 0.002893986076 | K28: 0.002968041626
A29: Line Losses on Cost of Power (based on two-tier RPP prices) | B29: =B8-B4 -> 71.82 | C29: =IF(B4>B7,C13,C12) -> 0.115 | D29: =B29*C29 -> 8.2593 | E29: 71.82 | F29: =IF(B4>B7,F13,F12) -> 0.115 | G29: =E29*F29 -> 8.2593 | H29: 0 | I29: 0 | J29: 0.04193385824 | K29: 0.04300692316
A30: Line Losses on Cost of Power (based on TOU prices) | B30: =B8-B4 -> 71.82 | C30: =VLOOKUP($B$3,'Data Billing Quantities'!$A:$O,MATCH(BI_UR_High!$A15,'Data Billing Quantities'!$4:$4,0),FALSE)*C15+VLOOKUP($B$3,'Data Billing Quantities'!$A:$O,MATCH(BI_UR_High!$A16,'Data Billing Quantities'!$4:$4,0),FALSE)*C16+VLOOKUP($B$3,'Data Billing Quantities'!$A:$O,MATCH(BI_UR_High!$A17,'Data Billing Quantities'!$4:$4,0),FALSE)*C17 -> 0.10342 | D30: =B30*C30 -> 7.4276244 | E30: 71.82 | F30: =VLOOKUP($B$3,'Data Billing Quantities'!$A:$O,MATCH(BI_UR_High!$A15,'Data Billing Quantities'!$4:$4,0),FALSE)*F15+VLOOKUP($B$3,'Data Billing Quantities'!$A:$O,MATCH(BI_UR_High!$A16,'Data Billing Quantities'!$4:$4,0),FALSE)*F16+VLOOKUP($B$3,'Data Billing Quantities'!$A:$O,MATCH(BI_UR_High!$A17,'Data Billing Quantities'!$4:$4,0),FALSE)*F17 -> 0.10342 | G30: =E30*F30 -> 7.4276244 | H30: 0 | I30: 0 | J30: 0.03771130104 | K30: 0.03867631299
A31: Sub-Total: Distribution (based on two-tier RPP prices) | D31: =SUM(D27,D28:D29) -> 44.9253 | G31: =SUM(G27,G28:G29) -> 45.7253 | H31: 0.8 | I31: 0.01780733796 | J31: 0.2321550553 | K31: 0.2380957785
A32: Sub-Total: Distribution (based on TOU prices) | D32: =SUM(D27,D28,D30) -> 44.0936244 | G32: =SUM(G27,G28,G30) -> 44.8936244 | H32: 0.8 | I32: 0.01814321256 | J32: 0.2279324981 | K32: 0.2337651684
A33: Retail Transmission Rate – Network Service Rate | B33: =B8 -> 1331.82 | C33: =VLOOKUP($B$3,'Data Current Rates'!$A:$AN,MATCH(BI_UR_High!$A33,CurrentHeader,0),FALSE) -> 0.0102 | D33: =B33*C33 -> 13.584564 | E33: 1331.82 | F33: =VLOOKUP($B$3,'Data Proposed Rates'!$A:$AZ,MATCH(BI_UR_High!$A33,ProposedHeader,0),FALSE) -> 0.0102 | G33: =E33*F33 -> 13.584564 | H33: =G33-D33 -> 0 | I33: 0 | J33: 0.06897112116 | K33: 0.07073605513
